Workbook

Sheet Depreciação
A1: URBI
A3: Estudo de Viabilidade Econômica Financeira | D3: Lote (Bacia): 3
A6: Notas Explicativas
A8: O critério de depreciação utilizado para a frota é o contábil, com parcelas de depreciação constantes no tempo.
A9: O prazo de depreciação considerado foi de 4 anos.
A10: O valor residual empregado é o dado no item "Dados dos veículos" da Planilha 3.
A11: Os fatores de depreciação por faixa etária dos veículos é dada abaixo:
B13: Ano | C13: Mini- | D13: Básico | E13: Articu-
C14: ônibus | E14: lado
B15: 1 | C15: 0.2 | D15: 0.2 | E15: 0.2125
B16: 2 | C16: 0.2 | D16: 0.2 | E16: 0.2125
B17: 3 | C17: 0.2 | D17: 0.2 | E17: 0.2125
B18: 4 | C18: 0.2 | D18: 0.2 | E18: 0.2125
B19: 5
A22: O valor da venda considerado corresponde ao valor do veículo novo sem pneus deduzido do valor da depreciação
A24: Para as instalações, o método de depreciação é linear, com os seguintes critérios:
A26: Edificações de garagem: | C26: Vida útil | D26: 20 | E26: anos
C27: Valor residual | D27: sem
A29: Instalações e equipamentos de garagem | C29: Vida útil | D29: 10 | E29: anos
C30: Valor residual | D30: sem
A33: Para os equipamentos do SIM e vigilância o método de depreciação é linear, com os seguintes critérios
A35: Equipamentos embargados | C35: Vida útil | D35: 5 | E35: anos
C36: Valor residual | D36: sem
A38: Centro de Controle Operacional da empresa | C38: Vida útil | D38: 10 | E38: anos
C39: Valor residual | D39: sem
B43: DEPRECIAÇÃO DA FROTA ACRESCENTADA
A44: Tipo de Ônibus | B44: Licitada | C44: Acrescida | D44: Frota Total | E44: R$ Deprec.
E45: Mês/Carro
A46: Ônibus Básico | B46: =Q.Frota!F22 -> 352 | C46: =Q.Frota!F34-B46 -> 0 | D46: =B46+C46 -> 352 | E46: ='Plan 3 Custo Capital'!E33/12/B46 -> 3788.047095
A47: Depreciação Anual | C47: Início Ano 2 | D47: =E46*12*C46 -> 0
C48: Ano 3 | D48: =D47 -> 0
C49: Ano 4 | D49: 0
C50: Ano 5 | D50: 0
C51: Ano 9 | D51: 0
C52: Ano 10 | D52: 0

Sheet Custos Diversos
B2: Bilhetagem (Investimento)
B3: Histórico | C3: Status | D3: Miniônibus | E3: Ônibus Básico | F3: Articulado | G3: R$ Total Ano 0 | H3: R$ Total Ano 6
B4: Valor por ônibus | C4: R$ | D4: 6500 | E4: =E5/Q.Frota!F5 -> 6499.261364 | F4: =F5/Q.Frota!L5 -> 6411.363636
B5: Valor total | C5: R$ | D5: =D4*Q.Frota!C5 -> 513500 | E5: 2287740 | F5: 211575 | G5: =D5+E5+F5 -> 3012815 | H5: =G5 -> 3012815
B8: Monitoramento (Investimento)
B9: Histórico | C9: Status | D9: Miniônibus | E9: Ônibus Básico | F9: Articulado | G9: R$ Total Ano 0 | H9: R$ Total Ano 6
B10: Valor por ônibus | C10: R$ | D10: =D11/Q.Frota!C5 -> 3500 | E10: =E11/Q.Frota!F5 -> 3499.602273 | F10: =F11/Q.Frota!L5 -> 3452.272727
B11: Valor total | C11: R$ | D11: 276500 | E11: 1231860 | F11: 113925 | G11: =D11+E11+F11 -> 1622285 | H11: =G11 -> 1622285
B14: Paineis (Investimento) | D14: 14 midis vencidos não vendidos | M14: =D17/79 -> 1979.746835 | N14: 2 monitores
B15: Histórico | C15: Status | D15: Miniônibus | E15: Ônibus Básico | F15: Articulado | G15: R$ Total Ano 0 | H15: R$ Total Ano 6
B16: Valor por ônibus | C16: R$ | D16: =D17/92 -> 1700 | E16: =E17/352 -> 2550 | F16: =F17/33 -> 2550 | M16: =M14/2 -> 989.8734177 | N16: cada mon
B17: Valor total | C17: R$ | D17: =(Q.Frota!C38*(850*2)) -> 156400 | E17: =(850*3)*352 -> 897600 | F17: =(850*3)*33 -> 84150 | G17: =D17+E17+F17 -> 1138150 | H17: =G17 -> 1138150
M18: =M16*3 -> 2969.620253
B20: Terreno (Investimento)
B21: Histórico | C21: Status | D21: Total Ano 0
B22: Valor total | C22: R$ | D22: 13302512.56
B25: Edificações e Equipamentos de Garagem | F25: DEPRECIAÇÃO | J25: R$
B26: Histórico | C26: Status | D26: Total Ano 0 | E26: Total Ano 6 | F26: Taxa Ano | G26: Período | H26: Deprec.10 anos | I26: R$ Anual | J26: Revenda
B27: Edifícios | C27: R$ | D27: 7759798.995 | E27: 0 | F27: 0.04 | G27: 25 | H27: =D27*F27*10 -> 3103919.598 | I27: =H27/10 -> 310391.9598 | J27: =D27-H27 -> 4655879.397 | M27: =79+352+33 -> 464
B28: Instalações e Benfeitorias | C28: R$ | D28: 500000 | E28: 0 | F28: 0.05 | G28: 20 | H28: 250000 | I28: 25000 | J28: 250000
B29: Equips. de manutenção | C29: R$ | D29: 450000 | E29: 0 | F29: 0.1 | G29: 10 | H29: 450000 | I29: 45000 | J29: 0
B30: Móveis e Utensílios | C30: R$ | D30: 200000 | E30: 0 | F30: 0.1 | G30: 10 | H30: 200000 | I30: 20000 | J30: 0
B31: Equips. de Comunicação | C31: R$ | D31: 16000 | E31: =D31 -> 16000 | F31: 0.2 | G31: 5 | H31: 32000 | I31: 3200 | J31: 0
B32: Equips. Informática e Software | C32: R$ | D32: 150000 | E32: 150000 | F32: 0.2 | G32: 5 | H32: 300000 | I32: 30000 | J32: 0
B33: Equips Limpeza e Abastecimento | C33: R$ | D33: 887120 | E33: 0 | F33: 0.1 | G33: 5 | H33: 887120 | I33: 88712 | J33: 0
B34: Bens Patrimoniais Diversos | C34: R$ | D34: 100000 | E34: 100000 | F34: 0.2 | G34: 5 | H34: 200000 | I34: 20000 | J34: 0
B35: Total Geral | C35: R$ | D35: =SUM(D27:D34) -> 10062918.99 | E35: 266000 | J35: =SUM(J27:J34) -> 4905879.397
B38: Histórico | C38: Status | D38: Total Ano 0 | E38: Total Ano 6 | F38: Taxa Ano | G38: Período | H38: Deprec.10 anos | I38: R$ Anual
B39: Equips.SIM e Sist.Vigilância | C39: R$ | D39: =H5+H11+H17 -> 5773250 | E39: =D39 -> 5773250 | F39: 0.2 | G39: 5 | H39: =D39*F39*10 -> 11546500 | I39: =H39/10 -> 1154650
B42: Veículos de Apoio | F42: Revenda | I42: Depreciação
B43: Histórico | C43: Status | D43: Total Ano 0 | E43: Total Ano 6 | F43: Tx. | G43: Ano 6 | H43: Ano 10 | I43: R$ Anual
B44: Veíc. de Suporte Operacional | C44: R$ | D44: 125000 | E44: =D44 -> 125000 | F44: 0.4 | G44: =D44*F44 -> 50000 | H44: =E44*F44 -> 50000 | I44: =(D44*60%)/5 -> 15000
B45: Veíc. Uso Administrativo | C45: R$ | D45: 125000 | E45: 125000 | F45: 0.4 | G45: 50000 | H45: 50000 | I45: 15000
B46: Total Geral | C46: R$ | D46: =SUM(D44:D45) -> 250000 | E46: 250000 | F46: Total | G46: =SUM(G44:G45) -> 100000 | H46: 100000 | I46: 30000
B49: CUSTOS ADMINISTRATIVOS DIVERSOS | E49: R$ Total
B50: DESPESAS ADMINISTRATIVAS | C50: Status | D50: R$/veic/mês | E50: =Q.Frota!T5 -> 441
B51: Água e esgoto | C51: R$ | D51: 34.49045426 | E51: =D51*$E$50 -> 15210.29033
B52: Assessoria jurídica e contáfil | C52: R$ | D52: 59.85108239 | E52: 26394.32733
B53: Certificações | C53: R$ | D53: 8.453542711 | E53: 3728.012335
B54: Conservação de Máq. e equips. | C54: R$ | D54: 14.20195175 | E54: 6263.060723
B55: Desp.bancárias e transp. valores | C55: R$ | D55: 17.39130435 | E55: 7669.565217
B56: Despesas com veículos auxiliares | C56: R$ | D56: 19.27407738 | E56: 8499.868125
B57: Despesas de copa | C57: R$ | D57: 40.57700501 | E57: 17894.45921
B58: Energia elétrica | C58: R$ | D58: 50.72125626 | E58: 22368.07401
B59: Internet | C59: R$ | D59: 8.115401002 | E59: 3578.891842
B60: IPTU | C60: R$ | D60: 16.230802 | E60: 7157.783684
B61: Manutenção predial | C61: R$ | D61: 24.34620301 | E61: 10736.67553
B62: Marketing e relações com o cliente | C62: R$ | D62: 11.65217391 | E62: 5138.608696
B63: Materiais de escritório | C63: R$ | D63: 16.230802 | E63: 7157.783684
B64: Processamento de dados | C64: R$ | D64: 55.79338189 | E64: 24604.88141
B65: Proteção ambiental e dest.resíduos | C65: R$ | D65: 34.49045426 | E65: 15210.29033
B66: Publicações e assinaturas | C66: R$ | D66: 2.637505326 | E66: 1163.139849
B67: Segurança | C67: R$ | D67: 11.15867638 | E67: 4920.976283
B68: Telefonia e Comunicações | C68: R$ | D68: 10.14425125 | E68: 4473.614802
B69: Viagens e representação | C69: R$ | D69: 8.695652174 | E69: 3834.782609
B70: Outras despesas administrativas | C70: R$ | D70: 20.28850251 | E70: 8947.229605
D71: 0 | E71: 0
B72: Total | C72: R$ | D72: =SUM(D51:D71) -> 464.7444798 | E72: 204952.3156
B74: Operação e Manut.SIM e Vigilância | C74: R$ | D74: 40 | E74: =D74*Q.Frota!V5 -> 18560
B76: Pró-labore | C76: R$ | D76: 189 | E76: =D76*(Q.Frota!T5+Q.Frota!U5) -> 83349
B79: CUSTOS COM SEGUROS DIVERSOS
B80: IMPOSTOS SEGUROS E TAXAS | C80: Status | D80: R$/veic/mês | E80: R$ Total
B81: Seguro RCF | C81: R$ | D81: 111.9469027 | E81: =D81*Q.Frota!$V$5 -> 51943.36283
B82: DPVAT | C82: R$ | D82: 33.04083333 | E82: =D82*Q.Frota!$V$5 -> 15330.94667
B83: Licenciamento | C83: R$ | D83: 7.408333333 | E83: =D83*Q.Frota!$V$5 -> 3437.466667
B84: IPVA | C84: R$ | D84: 0 | E84: =D84*Q.Frota!$V$5 -> 0
B85: Valor Total | C85: R$ | D85: =SUM(D81:D84) -> 152.3960693 | E85: 70711.77617
E87: =(E85+E76+E74+E72)*12 -> 4530877.101

Sheet Plan4 R$ Pessoal
B2: Planilha 2 - Demonstração do Custo com Pessoal | L2: MARECHAL
B3: Composição do Custo mensal com Pessoal Administrativo | K3: Bacia/Lote: | L3: 4
B5: Funções | C5: Cargo | D5: Fator de | E5: Qtde. de | F5: Salário Base | G5: Salário Total | H5: % Encargos | I5: Encargos | J5: Salário + Enc. | K5: Benefícios | L5: Total
D6: Utilização | E6: Funcionários | F6: (R$/mês) | G6: R$ | H6: aplicáveis | I6: R$ | J6: R$/mês | K6: R$/mês | L6: R$/mês
B8: Administração | C8: Controle de Manutenção | D8: =E8/(Q.Frota!$T$5+Q.Frota!$U$5) -> 0.01133786848 | E8: 5 | F8: 1256.751 | G8: =E8*F8 -> 6283.755 | H8: =Enc.Sociais!$C$36 -> 0.3442967869 | I8: =G8*H8 -> 2163.476656 | J8: =G8+I8 -> 8447.231656 | K8: ='Plan2 R$ Pessoal'!K8 -> 624.71 | L8: =J8+K8*E8 -> 11570.78166
C9: Gerente de Operação | D9: =E9/(Q.Frota!$T$5+Q.Frota!$U$5) -> 0.002267573696 | E9: 1 | F9: 6981.95 | G9: 6981.95 | H9: =Enc.Sociais!$C$36 -> 0.3442967869 | I9: 2403.862951 | J9: 9385.812951 | K9: =K8 -> 624.71 | L9: 10010.52295
C10: Gerente Administrativo | D10: =E10/(Q.Frota!$T$5+Q.Frota!$U$5) -> 0.002267573696 | E10: 1 | F10: 6981.95 | G10: 6981.95 | H10: =Enc.Sociais!$C$36 -> 0.3442967869 | I10: 2403.862951 | J10: 9385.812951 | K10: 624.71 | L10: 10010.52295
C11: Assistente Administrativo | D11: =E11/(Q.Frota!$T$5+Q.Frota!$U$5) -> 0.01133786848 | E11: 5 | F11: 1536.029 | G11: 7680.145 | H11: =Enc.Sociais!$C$36 -> 0.3442967869 | I11: 2644.249247 | J11: 10324.39425 | K11: 624.71 | L11: 13447.94425
C12: Psicólogo | D12: =E12/(Q.Frota!$T$5+Q.Frota!$U$5) -> 0.002267573696 | E12: 1 | F12: 3630.614 | G12: 3630.614 | H12: =Enc.Sociais!$C$36 -> 0.3442967869 | I12: 1250.008735 | J12: 4880.622735 | K12: 624.71 | L12: 5505.332735
C13: Técnico Seg. do Trabalho | D13: =E13/(Q.Frota!$T$5+Q.Frota!$U$5) -> 0.01360544218 | E13: 6 | F13: 1815.307 | G13: 10891.842 | H13: =Enc.Sociais!$C$36 -> 0.3442967869 | I13: 3750.026204 | J13: 14641.8682 | K13: 624.71 | L13: 18390.1282
C14: Auxiliar de Compras | D14: =E14/(Q.Frota!$T$5+Q.Frota!$U$5) -> 0.002267573696 | E14: 1 | F14: 2234.224 | G14: 2234.224 | H14: =Enc.Sociais!$C$36 -> 0.3442967869 | I14: 769.2361444 | J14: 3003.460144 | K14: 624.71 | L14: 3628.170144
C15: Assistente Financeiro | D15: =E15/(Q.Frota!$T$5+Q.Frota!$U$5) -> 0.004535147392 | E15: 2 | F15: 2234.224 | G15: 4468.448 | H15: =Enc.Sociais!$C$36 -> 0.3442967869 | I15: 1538.472289 | J15: 6006.920289 | K15: 624.71 | L15: 7256.340289
C16: Auxiliar de CPD | D16: =E16/(Q.Frota!$T$5+Q.Frota!$U$5) -> 0.006802721088 | E16: 3 | F16: 2234.224 | G16: 6702.672 | H16: =Enc.Sociais!$C$36 -> 0.3442967869 | I16: 2307.708433 | J16: 9010.380433 | K16: 624.71 | L16: 10884.51043
C17: Enc. de Depto.Pessoal | D17: =E17/(Q.Frota!$T$5+Q.Frota!$U$5) -> 0.002267573696 | E17: 1 | F17: 3630.614 | G17: 3630.614 | H17: =Enc.Sociais!$C$36 -> 0.3442967869 | I17: 1250.008735 | J17: 4880.622735 | K17: 624.71 | L17: 5505.332735
C18: Eletrônico | D18: =E18/(Q.Frota!$T$5+Q.Frota!$U$5) -> 0.006802721088 | E18: 3 | F18: 2792.78 | G18: 8378.34 | H18: =Enc.Sociais!$C$36 -> 0.3442967869 | I18: 2884.635542 | J18: 11262.97554 | K18: 624.71 | L18: 13137.10554
C19: Auxiliar Depto. Pessoal | D19: =E19/(Q.Frota!$T$5+Q.Frota!$U$5) -> 0.009070294785 | E19: 4 | F19: 1536.029 | G19: 6144.116 | H19: =Enc.Sociais!$C$36 -> 0.3442967869 | I19: 2115.399397 | J19: 8259.515397 | K19: 624.71 | L19: 10758.3554
C20: Contador | D20: =E20/(Q.Frota!$T$5+Q.Frota!$U$5) -> 0.002267573696 | E20: 1 | F20: 3630.614 | G20: 3630.614 | H20: =Enc.Sociais!$C$36 -> 0.3442967869 | I20: 1250.008735 | J20: 4880.622735 | K20: 624.71 | L20: 5505.332735
C21: Auxiliar Contabilidade | D21: =E21/(Q.Frota!$T$5+Q.Frota!$U$5) -> 0.004535147392 | E21: 2 | F21: 1536.029 | G21: 3072.058 | H21: =Enc.Sociais!$C$36 -> 0.3442967869 | I21: 1057.699699 | J21: 4129.757699 | K21: 624.71 | L21: 5379.177699
C22: Outros | D22: =E22/(Q.Frota!$T$5+Q.Frota!$U$5) -> 0.01814058957 | E22: 8 | F22: 2792.78 | G22: 22342.24 | H22: =Enc.Sociais!$C$36 -> 0.3442967869 | I22: 7692.361444 | J22: 30034.60144 | K22: 624.71 | L22: 35032.28144
B23: Total | D23: =SUM(D8:D22) -> 0.09977324263 | E23: 44 | F23: =G23/E23 -> 2342.126864 | G23: =SUM(G8:G22) -> 103053.582 | I23: =SUM(I8:I22) -> 35481.01716 | J23: 138534.5992 | L23: =SUM(L8:L22) -> 166021.8392
B25: Demais custos administrativos
D26: Valores | E26: Valores (R$/ano)
B27: Itens | D27: (R$/mês)
B28: Custos administrativos diversos | D28: ='Custos Diversos'!E72 -> 204952.3156 | E28: =D28*12 -> 2459427.787
B29: Custos de manutenção SIM e Sist. de Vigilância | D29: ='Custos Diversos'!E74 -> 18560 | E29: 222720
B30: Custos com seguros diversos | D30: ='Custos Diversos'!E85 -> 70711.77617 | E30: 848541.314
B31: Custos não considerados nos itens acima | D31: 0 | E31: 0
B32: Pró-labore da diretoria | D32: ='Custos Diversos'!E76 -> 83349 | E32: 1000188

Sheet Plan2 R$ Pessoal
B2: Planilha 2 - Demonstração do Custo com Pessoal | L2: MARECHAL
B3: Composição do Custo mensal com Pessoal | K3: Bacia/Lote: | L3: 4
B5: Funções | C5: Cargo | D5: Fator de | E5: Qtde. de | F5: Salário Base | G5: Salário Total | H5: % Encargos | I5: Encargos | J5: Salário + Enc. | K5: Benefícios | L5: Total
D6: Utilização | E6: Funcionários | F6: (R$/mês) | G6: R$ | H6: aplicáveis | I6: R$ | J6: R$/mês | K6: R$/mês | L6: R$/mês
B8: Motorista | C8: Motoristas | D8: 2.505 | E8: =ROUND(D8*Q.Frota!T5,0) -> 1105 | F8: 1396.39 | G8: =E8*F8 -> 1543010.95 | H8: =Enc.Sociais!$B$36 -> 0.3442967869 | I8: =G8*H8 -> 531253.7123 | J8: =G8+I8 -> 2074264.662 | K8: 624.71 | L8: =J8+K8*E8 -> 2764569.212
C9: Sub-total Motoristas | D9: =D8 -> 2.505 | E9: =SUM(E8) -> 1105 | F9: =F8 -> 1396.39 | G9: =SUM(G8) -> 1543010.95 | I9: =SUM(I8) -> 531253.7123 | J9: 2074264.662 | L9: =SUM(L8) -> 2764569.212
B11: Cobrador | C11: Cobradores ônibus básico | D11: 2.505 | E11: =ROUND(D11*(Q.Frota!H5+Q.Frota!N5),0) -> 917 | F11: 787.52 | G11: =E11*F11 -> 722155.84 | H11: =Enc.Sociais!$B$36 -> 0.3442967869 | I11: =G11*H11 -> 248635.9354 | J11: =G11+I11 -> 970791.7754 | K11: =K8 -> 624.71 | L11: =J11+K11*E11 -> 1543650.845
C12: Sub-total Cobradores | D12: =D11 -> 2.505 | E12: 917 | F12: 787.52 | G12: 722155.84 | I12: =I11 -> 248635.9354 | J12: 970791.7754 | L12: =L11 -> 1543650.845
B14: Controle | C14: Fiscal | D14: 0.05 | E14: =ROUND(D14*Q.Frota!$T$5,0) -> 22 | F14: 1536.029 | G14: =E14*F14 -> 33792.638 | H14: =Enc.Sociais!$B$36 -> 0.3442967869 | I14: =G14*H14 -> 11634.69668 | J14: =G14+I14 -> 45427.33468 | K14: =K11 -> 624.71 | L14: =J14+K14*E14 -> 59170.95468
B15: operacional | C15: Inspetores de Tráfego | D15: 0.03 | E15: =ROUND(D15*Q.Frota!$T$5,0) -> 13 | F15: 1256.751 | G15: 16337.763 | H15: =Enc.Sociais!$B$36 -> 0.3442967869 | I15: 5625.039306 | J15: 21962.80231 | K15: =K14 -> 624.71 | L15: 30084.03231
C16: Chefe de tráfego | D16: 0.0075 | E16: =ROUND(D16*Q.Frota!$T$5,0) -> 3 | F16: 3490.975 | G16: 10472.925 | H16: =Enc.Sociais!$B$36 -> 0.3442967869 | I16: 3605.794427 | J16: 14078.71943 | K16: 624.71 | L16: 15952.84943
C17: Programadores | D17: 0.0075 | E17: =ROUND(D17*Q.Frota!$T$5,0) -> 3 | F17: 1536.029 | G17: 4608.087 | H17: =Enc.Sociais!$B$36 -> 0.3442967869 | I17: 1586.549548 | J17: 6194.636548 | K17: 624.71 | L17: 8068.766548
C18: Escaladores | D18: 0.005025125628 | E18: =ROUND(D18*Q.Frota!$T$5,0) -> 2 | F18: 2513.502 | G18: 5027.004 | H18: =Enc.Sociais!$B$36 -> 0.3442967869 | I18: 1730.781325 | J18: 6757.785325 | K18: 624.71 | L18: 8007.205325
C19: Auxiliares | D19: 0.02261306533 | E19: =ROUND(D19*Q.Frota!$T$5,0) -> 10 | F19: 1117.112 | G19: 11171.12 | H19: =Enc.Sociais!$B$36 -> 0.3442967869 | I19: 3846.180722 | J19: 15017.30072 | K19: 624.71 | L19: 21264.40072
C20: Sub-total Controle Operac. | D20: =SUM(D14:D19) -> 0.122638191 | E20: 53 | F20: =G20/E20 -> 1536.029 | G20: =SUM(G14:G19) -> 81409.537 | I20: =SUM(I14:I19) -> 28029.04201 | J20: 109438.579 | L20: =SUM(L14:L19) -> 142548.209
B22: Manutenção | C22: Chefe de Manutenção | D22: 0.0075 | E22: =ROUND(D22*Q.Frota!$T$5,0) -> 3 | F22: 3490.975 | G22: =E22*F22 -> 10472.925 | H22: =Enc.Sociais!$B$36 -> 0.3442967869 | I22: =G22*H22 -> 3605.794427 | J22: =G22+I22 -> 14078.71943 | K22: =K19 -> 624.71 | L22: =J22+K22*E22 -> 15952.84943
C23: Mecânicos | D23: 0.09045226131 | E23: =ROUND(D23*Q.Frota!$T$5,0) -> 40 | F23: 2094.585 | G23: 83783.4 | H23: =Enc.Sociais!$B$36 -> 0.3442967869 | I23: 28846.35542 | J23: 112629.7554 | K23: =K22 -> 624.71 | L23: 137618.1554
C24: Auxiliares | D24: 0.09045226131 | E24: =ROUND(D24*Q.Frota!$T$5,0) -> 40 | F24: 1256.751 | G24: 50270.04 | H24: =Enc.Sociais!$B$36 -> 0.3442967869 | I24: 17307.81325 | J24: 67577.85325 | K24: 624.71 | L24: 92566.25325
C25: Funileiro | D25: 0.06281407035 | E25: =ROUND(D25*Q.Frota!$T$5,0) -> 28 | F25: 2094.585 | G25: 58648.38 | H25: =Enc.Sociais!$B$36 -> 0.3442967869 | I25: 20192.44879 | J25: 78840.82879 | K25: 624.71 | L25: 96332.70879
C26: Borracheiro | D26: 0.0175879397 | E26: =ROUND(D26*Q.Frota!$T$5,0) -> 8 | F26: 1396.39 | G26: 11171.12 | H26: =Enc.Sociais!$B$36 -> 0.3442967869 | I26: 3846.180722 | J26: 15017.30072 | K26: 624.71 | L26: 20014.98072
C27: Eletricista | D27: 0.06281407035 | E27: =ROUND(D27*Q.Frota!$T$5,0) -> 28 | F27: 2373.863 | G27: 66468.164 | H27: =Enc.Sociais!$B$36 -> 0.3442967869 | I27: 22884.7753 | J27: 89352.9393 | K27: 624.71 | L27: 106844.8193
C28: Pintores | D28: 0.03015075377 | E28: =ROUND(D28*Q.Frota!$T$5,0) -> 13 | F28: 2373.863 | G28: 30860.219 | H28: =Enc.Sociais!$B$36 -> 0.3442967869 | I28: 10625.07425 | J28: 41485.29325 | K28: 624.71 | L28: 49606.52325
C29: Eletrônico | D29: 0.01507537688 | E29: =ROUND(D29*Q.Frota!$T$5,0) -> 7 | F29: 2792.78 | G29: 19549.46 | H29: =Enc.Sociais!$B$36 -> 0.3442967869 | I29: 6730.816264 | J29: 26280.27626 | K29: 624.71 | L29: 30653.24626
C30: Outros | D30: 0.1256281407 | E30: =ROUND(D30*Q.Frota!$T$5,0) -> 55 | F30: 1256.751 | G30: 69121.305 | H30: =Enc.Sociais!$B$36 -> 0.3442967869 | I30: 23798.24322 | J30: 92919.54822 | K30: 624.71 | L30: 127278.5982
C31: Sub-total Manutenção | D31: =SUM(D22:D30) -> 0.5024748744 | E31: 222 | F31: =G31/E31 -> 1803.355914 | G31: =SUM(G22:G30) -> 400345.013 | I31: =SUM(I22:I30) -> 137837.5016 | J31: 538182.5146 | L31: =SUM(L22:L30) -> 676868.1346
B33: Total | D33: =D9+D12+D20+D31 -> 5.635113065 | E33: 2297 | G33: =G9+G12+G20+G31 -> 2746921.34 | I33: =I9+I12+I20+I31 -> 945756.1913 | J33: 3692677.531 | L33: =L9+L12+L20+L31 -> 5127636.401

Sheet Q.Frota
B2: Marechal | F2: Frota Homologada Disponível e Operacional - Ano 1
B3: FONTE | C3: Miniônibus | F3: Básico | I3: Padron | L3: Artic.Conv. | O3: Artic.BRT | R3: Frota total
C4: Disp. | D4: Res. | E4: Oper. | F4: Disp. | G4: Res. | H4: Oper. | I4: Disp. | J4: Res. | K4: Oper. | L4: Disp. | M4: Res. | N4: Oper. | O4: Disp. | P4: Res. | Q4: Oper. | R4: Disp. | S4: Res. | T4: Oper.
B5: Edital | C5: 79 | D5: =C5-E5 -> 4 | E5: 75 | F5: 352 | G5: =F5-H5 -> 17 | H5: 335 | I5: 0 | J5: =I5-K5 -> 0 | K5: 0 | L5: 33 | M5: =L5-N5 -> 2 | N5: 31 | O5: 0 | P5: =O5-Q5 -> 0 | Q5: 0 | R5: =C5+F5+I5+L5+O5 -> 464 | S5: =R5-T5 -> 23 | T5: =E5+H5+K5+N5+Q5 -> 441 | V5: =R5 -> 464
B6: 2013-12-01 | C6: 0 | D6: 0 | E6: 0 | F6: 5 | G6: 0 | H6: 5 | I6: 0 | J6: 0 | K6: 0 | L6: 0 | M6: 0 | N6: 0 | O6: 0 | P6: 0 | Q6: 0 | R6: 5 | S6: =D6+G6+J6+M6+P6 -> 0 | T6: 5
B7: =DATE(YEAR(B6),MONTH(B6)+1,DAY(B6)) -> 2014-01-01 | C7: 0 | D7: 0 | E7: 0 | F7: 60 | G7: 3 | H7: 57 | I7: 0 | J7: 0 | K7: 0 | L7: 0 | M7: 0 | N7: 0 | O7: 0 | P7: 0 | Q7: 0 | R7: 60 | S7: =D7+G7+J7+M7+P7 -> 3 | T7: 57
B8: 2014-02-01 | C8: 20 | D8: 1 | E8: 19 | F8: 109 | G8: 5 | H8: 104 | I8: 0 | J8: 0 | K8: 0 | L8: 5 | M8: 0 | N8: 5 | O8: 0 | P8: 0 | Q8: 0 | R8: 134 | S8: =D8+G8+J8+M8+P8 -> 6 | T8: 128
B9: 2014-03-01 | C9: 30 | D9: 1 | E9: 29 | F9: 266 | G9: 13 | H9: 253 | I9: 0 | J9: 0 | K9: 0 | L9: 5 | M9: 0 | N9: 5 | O9: 0 | P9: 0 | Q9: 0 | R9: 301 | S9: =D9+G9+J9+M9+P9 -> 14 | T9: 287
B10: 2014-04-01 | C10: 30 | D10: 1 | E10: 29 | F10: 266 | G10: 13 | H10: 253 | I10: 0 | J10: 0 | K10: 0 | L10: 5 | M10: 0 | N10: 5 | O10: 0 | P10: 0 | Q10: 0 | R10: 301 | S10: =D10+G10+J10+M10+P10 -> 14 | T10: 287
B11: 2014-05-01 | C11: 30 | D11: 1 | E11: 29 | F11: 266 | G11: 13 | H11: 253 | I11: 0 | J11: 0 | K11: 0 | L11: 5 | M11: 0 | N11: 5 | O11: 0 | P11: 0 | Q11: 0 | R11: 301 | S11: =D11+G11+J11+M11+P11 -> 14 | T11: 287
B12: 2014-06-01 | C12: 50 | D12: 2 | E12: 48 | F12: 266 | G12: 13 | H12: 253 | I12: 0 | J12: 0 | K12: 0 | L12: 5 | M12: 0 | N12: 5 | O12: 0 | P12: 0 | Q12: 0 | R12: 321 | S12: =D12+G12+J12+M12+P12 -> 15 | T12: 306
B13: 2014-07-01 | C13: 68 | D13: 3 | E13: 65 | F13: 299 | G13: 14 | H13: 285 | I13: 0 | J13: 0 | K13: 0 | L13: 5 | M13: 0 | N13: 5 | O13: 0 | P13: 0 | Q13: 0 | R13: 372 | S13: =D13+G13+J13+M13+P13 -> 17 | T13: 355
B14: 2014-08-01 | C14: 68 | D14: 3 | E14: 65 | F14: 299 | G14: 14 | H14: 285 | I14: 0 | J14: 0 | K14: 0 | L14: 5 | M14: 0 | N14: 5 | O14: 0 | P14: 0 | Q14: 0 | R14: 372 | S14: =D14+G14+J14+M14+P14 -> 17 | T14: 355
B15: 2014-09-01 | C15: 68 | D15: 3 | E15: 65 | F15: 299 | G15: 14 | H15: 285 | I15: 0 | J15: 0 | K15: 0 | L15: 28 | M15: 1 | N15: 27 | O15: 0 | P15: 0 | Q15: 0 | R15: 395 | S15: =D15+G15+J15+M15+P15 -> 18 | T15: 377
B16: 2014-10-01 | C16: 68 | D16: 3 | E16: 65 | F16: 299 | G16: 14 | H16: 285 | I16: 0 | J16: 0 | K16: 0 | L16: 28 | M16: 1 | N16: 27 | O16: 0 | P16: 0 | Q16: 0 | R16: 395 | S16: =D16+G16+J16+M16+P16 -> 18 | T16: 377
B17: 2014-11-01 | C17: 68 | D17: 3 | E17: 65 | F17: 331 | G17: 16 | H17: 315 | I17: 0 | J17: 0 | K17: 0 | L17: 28 | M17: 1 | N17: 27 | O17: 0 | P17: 0 | Q17: 0 | R17: 427 | S17: =D17+G17+J17+M17+P17 -> 20 | T17: 407
B19: =B2 -> Marechal | F19: Frota Homologada Disponível e Operacional - Ano 2
B20: FONTE | C20: Miniônibus | F20: Básico | I20: Padron | L20: Artic.Conv. | O20: Artic.BRT | R20: Frota total
C21: Disp. | D21: Res. | E21: Oper. | F21: Disp. | G21: Res. | H21: Oper. | I21: Disp. | J21: Res. | K21: Oper. | L21: Disp. | M21: Res. | N21: Oper. | O21: Disp. | P21: Res. | Q21: Oper. | R21: Disp. | S21: Res. | T21: Oper.
B22: Edital | C22: =C5 -> 79 | D22: 4 | E22: =ROUND(C22/1.05,0) -> 75 | F22: =F5 -> 352 | G22: 17 | H22: =ROUND(F22/1.05,0) -> 335 | I22: =I5 -> 0 | J22: 0 | K22: 0 | L22: 33 | M22: 2 | N22: =ROUND(L22/1.05,0) -> 31 | O22: =O5 -> 0 | P22: 0 | Q22: 0 | R22: =C22+F22+I22+L22+O22 -> 464 | S22: 23 | T22: 441
B23: =DATE(YEAR(B17),MONTH(B17)+1,DAY(B17)) -> 2014-12-01 | C23: =C22 -> 79 | D23: =C23-E23 -> 4 | E23: 75 | F23: 352 | G23: =F23-H23 -> 17 | H23: 335 | I23: 0 | J23: =I23-K23 -> 0 | K23: 0 | L23: 33 | M23: =L23-N23 -> 2 | N23: 31 | O23: 0 | P23: =O23-Q23 -> 0 | Q23: 0 | R23: =C23+F23+I23+L23+O23 -> 464 | S23: 23 | T23: 441
B24: =DATE(YEAR(B23),MONTH(B23)+1,DAY(B23)) -> 2015-01-01 | C24: 79 | D24: 4 | E24: 75 | F24: 352 | G24: 17 | H24: 335 | I24: 0 | J24: 0 | K24: 0 | L24: 33 | M24: 2 | N24: 31 | O24: 0 | P24: 0 | Q24: 0 | R24: =C24+F24+I24+L24+O24 -> 464 | S24: 23 | T24: 441
B25: 2015-02-01 | C25: 79 | D25: 4 | E25: 75 | F25: 352 | G25: 17 | H25: 335 | I25: 0 | J25: 0 | K25: 0 | L25: 33 | M25: 2 | N25: 31 | O25: 0 | P25: 0 | Q25: 0 | R25: =C25+F25+I25+L25+O25 -> 464 | S25: 23 | T25: 441
B26: 2015-03-01 | C26: 79 | D26: 4 | E26: 75 | F26: 352 | G26: 17 | H26: 335 | I26: 0 | J26: 0 | K26: 0 | L26: 33 | M26: 2 | N26: 31 | O26: 0 | P26: 0 | Q26: 0 | R26: =C26+F26+I26+L26+O26 -> 464 | S26: 23 | T26: 441
B27: 2015-04-01 | C27: 79 | D27: 4 | E27: 75 | F27: 352 | G27: 17 | H27: 335 | I27: 0 | J27: 0 | K27: 0 | L27: 33 | M27: 2 | N27: 31 | O27: 0 | P27: 0 | Q27: 0 | R27: =C27+F27+I27+L27+O27 -> 464 | S27: 23 | T27: 441
B28: 2015-05-01 | C28: 79 | D28: 4 | E28: 75 | F28: 352 | G28: 17 | H28: 335 | I28: 0 | J28: 0 | K28: 0 | L28: 33 | M28: 2 | N28: 31 | O28: 0 | P28: 0 | Q28: 0 | R28: =C28+F28+I28+L28+O28 -> 464 | S28: 23 | T28: 441
B29: 2015-06-01 | C29: 79 | D29: 4 | E29: 75 | F29: 352 | G29: 17 | H29: 335 | I29: 0 | J29: 0 | K29: 0 | L29: 33 | M29: 2 | N29: 31 | O29: 0 | P29: 0 | Q29: 0 | R29: =C29+F29+I29+L29+O29 -> 464 | S29: 23 | T29: 441
B30: 2015-07-01 | C30: 79 | D30: 4 | E30: 75 | F30: 352 | G30: 17 | H30: 335 | I30: 0 | J30: 0 | K30: 0 | L30: 33 | M30: 2 | N30: 31 | O30: 0 | P30: 0 | Q30: 0 | R30: =C30+F30+I30+L30+O30 -> 464 | S30: 23 | T30: 441
B31: 2015-08-01 | C31: 79 | D31: 4 | E31: 75 | F31: 352 | G31: 17 | H31: 335 | I31: 0 | J31: 0 | K31: 0 | L31: 33 | M31: 2 | N31: 31 | O31: 0 | P31: 0 | Q31: 0 | R31: =C31+F31+I31+L31+O31 -> 464 | S31: 23 | T31: 441
B32: 2015-09-01 | C32: 79 | D32: 4 | E32: 75 | F32: 352 | G32: 17 | H32: 335 | I32: 0 | J32: 0 | K32: 0 | L32: 33 | M32: 2 | N32: 31 | O32: 0 | P32: 0 | Q32: 0 | R32: =C32+F32+I32+L32+O32 -> 464 | S32: 23 | T32: 441
B33: 2015-10-01 | C33: 79 | D33: 4 | E33: 75 | F33: 352 | G33: 17 | H33: 335 | I33: 0 | J33: 0 | K33: 0 | L33: 33 | M33: 2 | N33: 31 | O33: 0 | P33: 0 | Q33: 0 | R33: =C33+F33+I33+L33+O33 -> 464 | S33: 23 | T33: 441
B34: 2015-11-01 | C34: 79 | D34: 4 | E34: 75 | F34: 352 | G34: 17 | H34: 335 | I34: 0 | J34: 0 | K34: 0 | L34: 33 | M34: 2 | N34: 31 | O34: 0 | P34: 0 | Q34: 0 | R34: =C34+F34+I34+L34+O34 -> 464 | S34: 23 | T34: 441
B36: OBS: Para os demais anos seguem 464 total, 21 reservas e 443 operacionais
B38: desde 2023 | C38: =78+14 -> 92 | D38: midis

Sheet MO Oper_Adm.
A1: Planilha 2 - Demonstração do Custo com Pessoal | F1: =G2 -> Ano 1 | K1: =F1 -> Ano 1 | P1: =K1 -> Ano 1 | U1: =P1 -> Ano 1 | AA1: =U1 -> Ano 1 | AF1: =AA1 -> Ano 1 | AK1: =AF1 -> Ano 1 | BE1: =AK1 -> Ano 1 | BJ1: =BE1 -> Ano 1
A2: Motoristas e Cobradores - Composição do Custo Unitário Por Função | G2: Ano 1 | H2: Motoristas e Cobradores - Composição de Custo Total Mensal | T2: R$ | X2: FU Lei Motorista Salário | Y2: FU Mot. | AA2: =Z2 -> 0 | AB2: 0 | AC2: 0 | AD2: 0 | AE2: 0 | AF2: 0 | AG2: 0 | AH2: 0 | AI2: 0 | AJ2: 0 | AK2: 0 | AN2: FU Lei Motorista | AP2: =AO2 -> 0 | AQ2: 0 | AR2: 0 | AS2: 0 | AT2: 0 | AU2: 0 | AV2: 0 | AW2: 0 | AX2: 0 | AY2: 0 | AZ2: 0
A3: Funções | B3: Cargo | C3: Salário | D3: Hs Extras | E3: Enc. | F3: R$ Total | G3: Benefícios | H3: 2014-01-01 | I3: =DATE(YEAR(H3),MONTH(H3)+1,DAY(H3)) -> 2014-02-01 | J3: 2014-03-01 | K3: 2014-04-01 | L3: 2014-05-01 | M3: 2014-06-01 | N3: 2014-07-01 | O3: 2014-08-01 | P3: 2014-09-01 | Q3: 2014-10-01 | R3: 2014-11-01 | S3: 2014-12-01 | T3: Total | V3: Fator Utilização Mensal | X3: =U1 -> Ano 1 | Y3: FU Cob. | AA3: =Z3 -> 0 | AB3: 0 | AC3: 0 | AD3: 0 | AE3: 0 | AF3: 0 | AG3: 0 | AH3: 0 | AI3: 0 | AJ3: 0 | AK3: 0 | AM3: =X3 -> Ano 1 | AN3: FU Benefícios | AP3: =AO3 -> 0 | AQ3: 0 | AR3: 0 | AS3: 0 | AT3: 0 | AU3: 0 | AV3: 0 | AW3: 0 | AX3: 0 | AY3: 0 | AZ3: 0 | BB3: Frota Mensal | BE3: =AK1 -> Ano 1
C4: base | D4: e Adic. | E4: Soc. | F4: Por | G4: R$ por | H4: R$ | I4: R$ | J4: R$ | K4: R$ | L4: R$ | M4: R$ | N4: R$ | O4: R$ | P4: R$ | Q4: R$ | R4: R$ | S4: R$ | T4: Durante o | V4: Funções | W4: Cargo | X4: FU | Z4: =H3 -> 2014-01-01 | AA4: 2014-02-01 | AB4: 2014-03-01 | AC4: 2014-04-01 | AD4: 2014-05-01 | AE4: 2014-06-01 | AF4: 2014-07-01 | AG4: 2014-08-01 | AH4: 2014-09-01 | AI4: 2014-10-01 | AJ4: 2014-11-01 | AK4: 2014-12-01 | AM4: Funções | AN4: Cargo | AO4: FU FÍSICO PARA CÁLCULOS DOS BENEFÍCIOS | BB4: Funções | BC4: Cargo | BD4: Frota | BE4: =Z4 -> 2014-01-01 | BF4: 2014-02-01 | BG4: 2014-03-01 | BH4: 2014-04-01 | BI4: 2014-05-01 | BJ4: 2014-06-01 | BK4: 2014-07-01 | BL4: 2014-08-01 | BM4: 2014-09-01 | BN4: 2014-10-01 | BO4: 2014-11-01 | BP4: 2014-12-01
C5: (R$/mês) | D5: Not. | E5: % | F5: Função | G5: mês | T5: =P1 -> Ano 1 | X5: Licitação | Z5: FU | AA5: FU | AB5: FU | AC5: FU | AD5: FU | AE5: FU | AF5: FU | AG5: FU | AH5: FU | AI5: FU | AJ5: FU | AK5: FU | AO5: =Z4 -> 2014-01-01 | AP5: 2014-02-01 | AQ5: 2014-03-01 | AR5: 2014-04-01 | AS5: 2014-05-01 | AT5: 2014-06-01 | AU5: 2014-07-01 | AV5: 2014-08-01 | AW5: 2014-09-01 | AX5: 2014-10-01 | AY5: 2014-11-01 | AZ5: 2014-12-01 | BD5: Licitação | BE5: Frota | BF5: Frota | BG5: Frota | BH5: Frota | BI5: Frota | BJ5: Frota | BK5: Frota | BL5: Frota | BM5: Frota | BN5: Frota | BO5: Frota | BP5: Frota
A6: Motorista | B6: Miniônibus | C6: ='Plan2 R$ Pessoal'!F8 -> 1396.39 | D6: 0 | E6: ='Plan2 R$ Pessoal'!H8 -> 0.3442967869 | F6: =(C6+D6)*(E6/100*100+1) -> 1877.16259 | G6: ='Plan2 R$ Pessoal'!K8 -> 624.71 | H6: =(($F6*Z6)+($G6*AO6))*BE6 -> 0 | I6: 131203.4674 | J6: 189835.8725 | K6: 184847.2781 | L6: 184847.2781 | M6: 300700.7279 | N6: 407198.9023 | O6: 403740.5314 | P6: 396654.4028 | Q6: 400091.2124 | R6: 415798.1422 | S6: 477596.12 | T6: =SUM(H6:S6) -> 3492513.935 | V6: Motorista | W6: =B6 -> Miniônibus | X6: ='Plan2 R$ Pessoal'!$D$8 -> 2.505 | Y6: =X6/X11 -> 1 | Z6: =Z11*$Y6+Z2 -> 2.146019021 | AA6: 2.760110839 | AB6: 2.616465999 | AC6: 2.547709302 | AD6: 2.547709302 | AE6: 2.50396384 | AF6: 2.50396384 | AG6: 2.482697486 | AH6: 2.43912318 | AI6: 2.460256947 | AJ6: 2.556842631 | AK6: 2.545272806 | AM6: Motorista | AN6: =W6 -> Miniônibus | AO6: =AO11*$Y6+AO2 -> 2.146019021 | AP6: 2.760110839 | AQ6: 2.616465999 | AR6: 2.547709302 | AS6: 2.547709302 | AT6: 2.50396384 | AU6: 2.50396384 | AV6: 2.482697486 | AW6: 2.43912318 | AX6: 2.460256947 | AY6: 2.556842631 | AZ6: 2.545272806 | BB6: Motorista | BC6: =W6 -> Miniônibus | BD6: =Q.Frota!C5 -> 79 | BE6: 0 | BF6: 19 | BG6: 29 | BH6: 29 | BI6: 29 | BJ6: 48 | BK6: 65 | BL6: 65 | BM6: 65 | BN6: 65 | BO6: 65 | BP6: 75
B7: Ônibus Básico | C7: =C6 -> 1396.39 | D7: 0 | E7: =E6 -> 0.3442967869 | F7: 1877.16259 | G7: =G6 -> 624.71 | H7: =(($F7*Z7)+($G7*AO7))*BE7 -> 306036.7714 | I7: 718166.3479 | J7: 1656154.336 | K7: 1612633.15 | L7: 1612633.15 | M7: 1584943.42 | N7: 1785410.572 | O7: 1770246.945 | P7: 1739176.997 | Q7: 1754246.085 | R7: 2015021.766 | S7: 2133262.67 | T7: 18687932.21 | W7: Ônibus Básico | X7: =X6 -> 2.505 | Y7: =X7/X11 -> 1 | Z7: =Z11*$Y7+Z2 -> 2.146019021 | AA7: 2.760110839 | AB7: 2.616465999 | AC7: 2.547709302 | AD7: 2.547709302 | AE7: 2.50396384 | AF7: 2.50396384 | AG7: 2.482697486 | AH7: 2.43912318 | AI7: 2.460256947 | AJ7: 2.556842631 | AK7: 2.545272806 | AN7: Ônibus Básico | AO7: =AO11*$Y7+AO2 -> 2.146019021 | AP7: 2.760110839 | AQ7: 2.616465999 | AR7: 2.547709302 | AS7: 2.547709302 | AT7: 2.50396384 | AU7: 2.50396384 | AV7: 2.482697486 | AW7: 2.43912318 | AX7: 2.460256947 | AY7: 2.556842631 | AZ7: 2.545272806 | BC7: Ônibus Básico | BD7: =Q.Frota!F5 -> 352 | BE7: 57 | BF7: 104 | BG7: 253 | BH7: 253 | BI7: 253 | BJ7: 253 | BK7: 285 | BL7: 285 | BM7: 285 | BN7: 285 | BO7: 315 | BP7: 335
B8: Padron | C8: 1396.39 | D8: 0 | E8: 0.3442967869 | F8: 1877.16259 | G8: 624.71 | H8: =(($F8*Z8)+($G8*AO8))*BE8 -> 0 | I8: 0 | J8: 0 | K8: 0 | L8: 0 | M8: 0 | N8: 0 | O8: 0 | P8: 0 | Q8: 0 | R8: 0 | S8: 0 | T8: 0 | W8: Padron | X8: 2.505 | Y8: =X8/X11 -> 1 | Z8: =Z11*$Y8+Z2 -> 2.146019021 | AA8: 2.760110839 | AB8: 2.616465999 | AC8: 2.547709302 | AD8: 2.547709302 | AE8: 2.50396384 | AF8: 2.50396384 | AG8: 2.482697486 | AH8: 2.43912318 | AI8: 2.460256947 | AJ8: 2.556842631 | AK8: 2.545272806 | AN8: Padron | AO8: =AO11*$Y8+AO2 -> 2.146019021 | AP8: 2.760110839 | AQ8: 2.616465999 | AR8: 2.547709302 | AS8: 2.547709302 | AT8: 2.50396384 | AU8: 2.50396384 | AV8: 2.482697486 | AW8: 2.43912318 | AX8: 2.460256947 | AY8: 2.556842631 | AZ8: 2.545272806 | BC8: Padron | BD8: =Q.Frota!I5 -> 0 | BE8: 0 | BF8: 0 | BG8: 0 | BH8: 0 | BI8: 0 | BJ8: 0 | BK8: 0 | BL8: 0 | BM8: 0 | BN8: 0 | BO8: 0 | BP8: 0
B9: Articulado | C9: 1396.39 | D9: 0 | E9: 0.3442967869 | F9: 1877.16259 | G9: 624.71 | H9: =(($F9*Z9)+($G9*AO9))*BE9 -> 0 | I9: 34527.22827 | J9: 32730.32284 | K9: 31870.22035 | L9: 31870.22035 | M9: 31322.99249 | N9: 31322.99249 | O9: 31056.96395 | P9: 164764.1365 | Q9: 166191.7344 | R9: 172716.1514 | S9: 203774.3446 | T9: 932147.3076 | W9: Articulado | X9: 2.505 | Y9: =X9/X11 -> 1 | Z9: =Z11*$Y9+Z2 -> 2.146019021 | AA9: 2.760110839 | AB9: 2.616465999 | AC9: 2.547709302 | AD9: 2.547709302 | AE9: 2.50396384 | AF9: 2.50396384 | AG9: 2.482697486 | AH9: 2.43912318 | AI9: 2.460256947 | AJ9: 2.556842631 | AK9: 2.545272806 | AN9: Articulado | AO9: =AO11*$Y9+AO2 -> 2.146019021 | AP9: 2.760110839 | AQ9: 2.616465999 | AR9: 2.547709302 | AS9: 2.547709302 | AT9: 2.50396384 | AU9: 2.50396384 | AV9: 2.482697486 | AW9: 2.43912318 | AX9: 2.460256947 | AY9: 2.556842631 | AZ9: 2.545272806 | BC9: Articulado | BD9: =Q.Frota!L5 -> 33 | BE9: 0 | BF9: 5 | BG9: 5 | BH9: 5 | BI9: 5 | BJ9: 5 | BK9: 5 | BL9: 5 | BM9: 27 | BN9: 27 | BO9: 27 | BP9: 32
B10: Articulado BRT | C10: 1396.39 | D10: 0 | E10: 0.3442967869 | F10: 1877.16259 | G10: 624.71 | H10: =(($F10*Z10)+($G10*AO10))*BE10 -> 0 | I10: 0 | J10: 0 | K10: 0 | L10: 0 | M10: 0 | N10: 0 | O10: 0 | P10: 0 | Q10: 0 | R10: 0 | S10: 0 | T10: 0 | W10: Articulado BRT | X10: 2.505 | Y10: =X10/X11 -> 1 | Z10: =Z11*$Y10+Z2 -> 2.146019021 | AA10: 2.760110839 | AB10: 2.616465999 | AC10: 2.547709302 | AD10: 2.547709302 | AE10: 2.50396384 | AF10: 2.50396384 | AG10: 2.482697486 | AH10: 2.43912318 | AI10: 2.460256947 | AJ10: 2.556842631 | AK10: 2.545272806 | AN10: Articulado BRT | AO10: =AO11*$Y10+AO2 -> 2.146019021 | AP10: 2.760110839 | AQ10: 2.616465999 | AR10: 2.547709302 | AS10: 2.547709302 | AT10: 2.50396384 | AU10: 2.50396384 | AV10: 2.482697486 | AW10: 2.43912318 | AX10: 2.460256947 | AY10: 2.556842631 | AZ10: 2.545272806 | BC10: Articulado BRT | BD10: =Q.Frota!O5 -> 0 | BE10: 0 | BF10: 0 | BG10: 0 | BH10: 0 | BI10: 0 | BJ10: 0 | BK10: 0 | BL10: 0 | BM10: 0 | BN10: 0 | BO10: 0 | BP10: 0
B11: Totais........................ | F11: Totais... | H11: =SUM(H6:H10) -> 306036.7714 | I11: 883897.0436 | J11: 1878720.531 | K11: 1829350.648 | L11: 1829350.648 | M11: 1916967.14 | N11: 2223932.467 | O11: 2205044.441 | P11: 2300595.536 | Q11: 2320529.032 | R11: 2603536.059 | S11: 2814633.134 | T11: 23112593.45 | W11: Totais........................ | X11: 2.505 | Z11: ='FU Folha FGV'!$AK26 -> 2.146019021 | AA11: ='FU Folha FGV'!$AK27 -> 2.760110839 | AB11: ='FU Folha FGV'!$AK28 -> 2.616465999 | AC11: ='FU Folha FGV'!$AK29 -> 2.547709302 | AD11: ='FU Folha FGV'!$AK30 -> 2.547709302 | AE11: ='FU Folha FGV'!$AK31 -> 2.50396384 | AF11: ='FU Folha FGV'!$AK32 -> 2.50396384 | AG11: ='FU Folha FGV'!$AK33 -> 2.482697486 | AH11: ='FU Folha FGV'!$AK34 -> 2.43912318 | AI11: ='FU Folha FGV'!$AK35 -> 2.460256947 | AJ11: ='FU Folha FGV'!$AK36 -> 2.556842631 | AK11: ='FU Folha FGV'!$AK37 -> 2.545272806 | AN11: Totais........................ | AO11: ='FU Folha FGV'!$AR$26 -> 2.146019021 | AP11: ='FU Folha FGV'!$AR$27 -> 2.760110839 | AQ11: ='FU Folha FGV'!$AR$28 -> 2.616465999 | AR11: ='FU Folha FGV'!$AR$29 -> 2.547709302 | AS11: ='FU Folha FGV'!$AR$30 -> 2.547709302 | AT11: ='FU Folha FGV'!$AR$31 -> 2.50396384 | AU11: ='FU Folha FGV'!$AR$32 -> 2.50396384 | AV11: ='FU Folha FGV'!$AR$33 -> 2.482697486 | AW11: ='FU Folha FGV'!$AR$34 -> 2.43912318 | AX11: ='FU Folha FGV'!$AR$35 -> 2.460256947 | AY11: ='FU Folha FGV'!$AR$36 -> 2.556842631 | AZ11: ='FU Folha FGV'!$AR$37 -> 2.545272806 | BC11: Totais........................ | BD11: =SUM(BD6:BD10) -> 464 | BE11: 57 | BF11: 128 | BG11: 287 | BH11: 287 | BI11: 287 | BJ11: 306 | BK11: 355 | BL11: 355 | BM11: 377 | BN11: 377 | BO11: 407 | BP11: 442
A12: Cobrador | B12: Miniônibus | C12: ='Plan2 R$ Pessoal'!F11 -> 787.52 | D12: 0 | E12: ='Plan2 R$ Pessoal'!H11 -> 0.3442967869 | F12: =(C12+D12)*(E12/100*100+1) -> 1058.660606 | G12: =G10 -> 624.71 | H12: =(($F12*Z12)+($G12*AO12))*BE12 -> 0 | I12: 88279.49962 | J12: 127729.9767 | K12: 124373.4296 | L12: 124373.4296 | M12: 202324.758 | N12: 273981.4431 | O12: 271654.4981 | P12: 266886.6372 | Q12: 269199.0748 | R12: 279767.3923 | S12: 321347.8068 | T12: =SUM(H12:S12) -> 2349917.946 | V12: Cobrador | W12: =B12 -> Miniônibus | X12: ='Plan2 R$ Pessoal'!$D$11 -> 2.505 | Y12: =X12/X17 -> 1 | Z12: =Z17*$Y12+Z3 -> 2.146019021 | AA12: 2.760110839 | AB12: 2.616465999 | AC12: 2.547709302 | AD12: 2.547709302 | AE12: 2.50396384 | AF12: 2.50396384 | AG12: 2.482697486 | AH12: 2.43912318 | AI12: 2.460256947 | AJ12: 2.556842631 | AK12: 2.545272806 | AM12: Cobrador | AN12: Miniônibus | AO12: =AO17*$Y12+AO3 -> 2.146019021 | AP12: 2.760110839 | AQ12: 2.616465999 | AR12: 2.547709302 | AS12: 2.547709302 | AT12: 2.50396384 | AU12: 2.50396384 | AV12: 2.482697486 | AW12: 2.43912318 | AX12: 2.460256947 | AY12: 2.556842631 | AZ12: 2.545272806 | BB12: Cobrador | BC12: Miniônibus | BD12: =BD6 -> 79 | BE12: 0 | BF12: 19 | BG12: 29 | BH12: 29 | BI12: 29 | BJ12: 48 | BK12: 65 | BL12: 65 | BM12: 65 | BN12: 65 | BO12: 65 | BP12: 75
B13: Ônibus Básico | C13: ='Plan2 R$ Pessoal'!F11 -> 787.52 | D13: 0 | E13: =E12 -> 0.3442967869 | F13: 1058.660606 | G13: =G12 -> 624.71 | H13: =(($F13*Z13)+($G13*AO13))*BE13 -> 205915.0843 | I13: 483214.1032 | J13: 1114333.934 | K13: 1085050.955 | L13: 1085050.955 | M13: 1066420.079 | N13: 1201303.251 | O13: 1191100.492 | P13: 1170195.255 | Q13: 1180334.405 | R13: 1355795.824 | S13: 1435353.537 | T13: 12574067.87 | W13: Ônibus Básico | X13: =X12 -> 2.505 | Y13: =X13/X17 -> 1 | Z13: =Z17*$Y13+Z3 -> 2.146019021 | AA13: 2.760110839 | AB13: 2.616465999 | AC13: 2.547709302 | AD13: 2.547709302 | AE13: 2.50396384 | AF13: 2.50396384 | AG13: 2.482697486 | AH13: 2.43912318 | AI13: 2.460256947 | AJ13: 2.556842631 | AK13: 2.545272806 | AN13: Ônibus Básico | AO13: =AO17*$Y13+AO3 -> 2.146019021 | AP13: 2.760110839 | AQ13: 2.616465999 | AR13: 2.547709302 | AS13: 2.547709302 | AT13: 2.50396384 | AU13: 2.50396384 | AV13: 2.482697486 | AW13: 2.43912318 | AX13: 2.460256947 | AY13: 2.556842631 | AZ13: 2.545272806 | BC13: Ônibus Básico | BD13: =BD7 -> 352 | BE13: 57 | BF13: 104 | BG13: 253 | BH13: 253 | BI13: 253 | BJ13: 253 | BK13: 285 | BL13: 285 | BM13: 285 | BN13: 285 | BO13: 315 | BP13: 335
B14: Padron | C14: =C13 -> 787.52 | D14: 0 | E14: 0.3442967869 | F14: 1058.660606 | G14: 624.71 | H14: =(($F14*Z14)+($G14*AO14))*BE14 -> 0 | I14: 0 | J14: 0 | K14: 0 | L14: 0 | M14: 0 | N14: 0 | O14: 0 | P14: 0 | Q14: 0 | R14: 0 | S14: 0 | T14: 0 | W14: Padron | X14: 2.505 | Y14: =X14/X17 -> 1 | Z14: =Z17*$Y14+Z3 -> 2.146019021 | AA14: 2.760110839 | AB14: 2.616465999 | AC14: 2.547709302 | AD14: 2.547709302 | AE14: 2.50396384 | AF14: 2.50396384 | AG14: 2.482697486 | AH14: 2.43912318 | AI14: 2.460256947 | AJ14: 2.556842631 | AK14: 2.545272806 | AN14: Padron | AO14: =AO17*$Y14+AO3 -> 2.146019021 | AP14: 2.760110839 | AQ14: 2.616465999 | AR14: 2.547709302 | AS14: 2.547709302 | AT14: 2.50396384 | AU14: 2.50396384 | AV14: 2.482697486 | AW14: 2.43912318 | AX14: 2.460256947 | AY14: 2.556842631 | AZ14: 2.545272806 | BC14: Padron | BD14: =BD8 -> 0 | BE14: 0 | BF14: 0 | BG14: 0 | BH14: 0 | BI14: 0 | BJ14: 0 | BK14: 0 | BL14: 0 | BM14: 0 | BN14: 0 | BO14: 0 | BP14: 0
B15: Articulado | C15: 787.52 | D15: 0 | E15: 0.3442967869 | F15: 1058.660606 | G15: 624.71 | H15: =(($F15*Z15)+($G15*AO15))*BE15 -> 0 | I15: 23231.44727 | J15: 22022.40977 | K15: 21443.69475 | L15: 21443.69475 | M15: 21075.49563 | N15: 21075.49563 | O15: 20896.49985 | P15: 110860.6031 | Q15: 111821.1541 | R15: 116211.0706 | S15: 137108.3976 | T15: 627189.9631 | W15: Articulado | X15: 2.505 | Y15: =X15/X17 -> 1 | Z15: =Z17*$Y15+Z3 -> 2.146019021 | AA15: 2.760110839 | AB15: 2.616465999 | AC15: 2.547709302 | AD15: 2.547709302 | AE15: 2.50396384 | AF15: 2.50396384 | AG15: 2.482697486 | AH15: 2.43912318 | AI15: 2.460256947 | AJ15: 2.556842631 | AK15: 2.545272806 | AN15: Articulado | AO15: =AO17*$Y15+AO3 -> 2.146019021 | AP15: 2.760110839 | AQ15: 2.616465999 | AR15: 2.547709302 | AS15: 2.547709302 | AT15: 2.50396384 | AU15: 2.50396384 | AV15: 2.482697486 | AW15: 2.43912318 | AX15: 2.460256947 | AY15: 2.556842631 | AZ15: 2.545272806 | BC15: Articulado | BD15: =BD9 -> 33 | BE15: 0 | BF15: 5 | BG15: 5 | BH15: 5 | BI15: 5 | BJ15: 5 | BK15: 5 | BL15: 5 | BM15: 27 | BN15: 27 | BO15: 27 | BP15: 32
B16: Articulado BRT | C16: 787.52 | D16: 0 | E16: 0.3442967869 | F16: 1058.660606 | G16: 624.71 | H16: =(($F16*Z16)+($G16*AO16))*BE16 -> 0 | I16: 0 | J16: 0 | K16: 0 | L16: 0 | M16: 0 | N16: 0 | O16: 0 | P16: 0 | Q16: 0 | R16: 0 | S16: 0 | T16: 0 | W16: Articulado BRT | X16: 2.505 | Y16: =X16/X17 -> 1 | Z16: =Z17*$Y16+Z3 -> 2.146019021 | AA16: 2.760110839 | AB16: 2.616465999 | AC16: 2.547709302 | AD16: 2.547709302 | AE16: 2.50396384 | AF16: 2.50396384 | AG16: 2.482697486 | AH16: 2.43912318 | AI16: 2.460256947 | AJ16: 2.556842631 | AK16: 2.545272806 | AN16: Articulado BRT | AO16: =AO17*$Y16+AO3 -> 2.146019021 | AP16: 2.760110839 | AQ16: 2.616465999 | AR16: 2.547709302 | AS16: 2.547709302 | AT16: 2.50396384 | AU16: 2.50396384 | AV16: 2.482697486 | AW16: 2.43912318 | AX16: 2.460256947 | AY16: 2.556842631 | AZ16: 2.545272806 | BC16: Articulado BRT | BD16: =BD10 -> 0 | BE16: 0 | BF16: 0 | BG16: 0 | BH16: 0 | BI16: 0 | BJ16: 0 | BK16: 0 | BL16: 0 | BM16: 0 | BN16: 0 | BO16: 0 | BP16: 0
B17: Totais........................ | F17: Totais... | H17: =SUM(H12:H16) -> 205915.0843 | I17: 594725.0501 | J17: 1264086.321 | K17: 1230868.079 | L17: 1230868.079 | M17: 1289820.332 | N17: 1496360.189 | O17: 1483651.49 | P17: 1547942.495 | Q17: 1561354.634 | R17: 1751774.287 | S17: 1893809.742 | T17: 15551175.78 | W17: Totais........................ | X17: 2.505 | Z17: ='FU Folha FGV'!$AL26 -> 2.146019021 | AA17: ='FU Folha FGV'!$AL27 -> 2.760110839 | AB17: ='FU Folha FGV'!$AL28 -> 2.616465999 | AC17: ='FU Folha FGV'!$AL29 -> 2.547709302 | AD17: ='FU Folha FGV'!$AL30 -> 2.547709302 | AE17: ='FU Folha FGV'!$AL31 -> 2.50396384 | AF17: ='FU Folha FGV'!$AL32 -> 2.50396384 | AG17: ='FU Folha FGV'!$AL33 -> 2.482697486 | AH17: ='FU Folha FGV'!$AL34 -> 2.43912318 | AI17: ='FU Folha FGV'!$AL35 -> 2.460256947 | AJ17: ='FU Folha FGV'!$AL36 -> 2.556842631 | AK17: ='FU Folha FGV'!$AL37 -> 2.545272806 | AN17: Totais........................ | AO17: ='FU Folha FGV'!$AS$26 -> 2.146019021 | AP17: ='FU Folha FGV'!$AS$27 -> 2.760110839 | AQ17: ='FU Folha FGV'!$AS$28 -> 2.616465999 | AR17: ='FU Folha FGV'!$AS$29 -> 2.547709302 | AS17: ='FU Folha FGV'!$AS$30 -> 2.547709302 | AT17: ='FU Folha FGV'!$AS$31 -> 2.50396384 | AU17: ='FU Folha FGV'!$AS$32 -> 2.50396384 | AV17: ='FU Folha FGV'!$AS$33 -> 2.482697486 | AW17: ='FU Folha FGV'!$AS$34 -> 2.43912318 | AX17: ='FU Folha FGV'!$AS$35 -> 2.460256947 | AY17: ='FU Folha FGV'!$AS$36 -> 2.556842631 | AZ17: ='FU Folha FGV'!$AS$37 -> 2.545272806 | BC17: Totais........................ | BD17: =SUM(BD12:BD16) -> 464 | BE17: 57 | BF17: 128 | BG17: 287 | BH17: 287 | BI17: 287 | BJ17: 306 | BK17: 355 | BL17: 355 | BM17: 377 | BN17: 377 | BO17: 407 | BP17: 442
F18: Total Mensal Mot./Cob. | H18: =H11+H17 -> 511951.8557 | I18: 1478622.094 | J18: 3142806.852 | K18: 3060218.727 | L18: 3060218.727 | M18: 3206787.472 | N18: 3720292.656 | O18: 3688695.93 | P18: 3848538.032 | Q18: 3881883.665 | R18: 4355310.347 | S18: 4708442.876 | T18: 38663769.23
A20: Controle Operacional - Composição do Custo Unitário Por Função | G20: Ano 1 | H20: Controle Operacional - Composição de Custo Total Mensal | T20: R$
A21: Funções | B21: Cargo | C21: Salário | D21: Hs Extras | E21: Enc. | F21: R$ Total | G21: Benefícios | H21: =H3 -> 2014-01-01 | I21: =DATE(YEAR(H21),MONTH(H21)+1,DAY(H21)) -> 2014-02-01 | J21: 2014-03-01 | K21: 2014-04-01 | L21: 2014-05-01 | M21: 2014-06-01 | N21: 2014-07-01 | O21: 2014-08-01 | P21: 2014-09-01 | Q21: 2014-10-01 | R21: 2014-11-01 | S21: 2014-12-01 | T21: Total | V21: Fator Utilização Mensal | X21: =U1 -> Ano 1 | Z21: FU FOLHA DE PAGAMENTO | AM21: =X21 -> Ano 1 | AN21: FU Benefícios | AO21: FU FÍSICO PARA CÁLCULOS DOS BENEFÍCIOS | BE21: =BE3 -> Ano 1
C22: base | D22: e Adic. | E22: Soc. | F22: Por | G22: R$ por | H22: R$ | I22: R$ | J22: R$ | K22: R$ | L22: R$ | M22: R$ | N22: R$ | O22: R$ | P22: R$ | Q22: R$ | R22: R$ | S22: R$ | T22: Durante o | V22: Funções | W22: Cargo | X22: FU | Z22: =H21 -> 2014-01-01 | AA22: 2014-02-01 | AB22: 2014-03-01 | AC22: 2014-04-01 | AD22: 2014-05-01 | AE22: 2014-06-01 | AF22: 2014-07-01 | AG22: 2014-08-01 | AH22: 2014-09-01 | AI22: 2014-10-01 | AJ22: 2014-11-01 | AK22: 2014-12-01 | AM22: Funções | AN22: Cargo | AO22: =Z22 -> 2014-01-01 | AP22: 2014-02-01 | AQ22: 2014-03-01 | AR22: 2014-04-01 | AS22: 2014-05-01 | AT22: 2014-06-01 | AU22: 2014-07-01 | AV22: 2014-08-01 | AW22: 2014-09-01 | AX22: 2014-10-01 | AY22: 2014-11-01 | AZ22: 2014-12-01 | BB22: Funções | BC22: Cargo | BD22: Frota | BE22: =Z22 -> 2014-01-01 | BF22: 2014-02-01 | BG22: 2014-03-01 | BH22: 2014-04-01 | BI22: 2014-05-01 | BJ22: 2014-06-01 | BK22: 2014-07-01 | BL22: 2014-08-01 | BM22: 2014-09-01 | BN22: 2014-10-01 | BO22: 2014-11-01 | BP22: 2014-12-01
C23: (R$/mês) | D23: Not. | E23: % | F23: Função | G23: mês | T23: =T5 -> Ano 1 | X23: Licitação | Z23: FU | AA23: FU | AB23: FU | AC23: FU | AD23: FU | AE23: FU | AF23: FU | AG23: FU | AH23: FU | AI23: FU | AJ23: FU | AK23: FU | BD23: Licitação | BE23: Frota | BF23: Frota | BG23: Frota | BH23: Frota | BI23: Frota | BJ23: Frota | BK23: Frota | BL23: Frota | BM23: Frota | BN23: Frota | BO23: Frota | BP23: Frota
A24: Controle Operacional | B24: ='Plan2 R$ Pessoal'!C14 -> Fiscal | C24: ='Plan2 R$ Pessoal'!F14 -> 1536.029 | D24: 0 | E24: ='Plan2 R$ Pessoal'!H14 -> 0.3442967869 | F24: =(C24+D24)*(E24/100*100+1) -> 2064.878849 | G24: =G16 -> 624.71 | H24: =(($F24*Z24)+($G24*AO24))*BE24 -> 7665.328221 | I24: 17213.36864 | J24: 38595.59999 | K24: 38595.59999 | L24: 38595.59999 | M24: 41150.70939 | N24: 47740.20208 | O24: 47740.20208 | P24: 50698.74981 | Q24: 50698.74981 | R24: 54733.13308 | S24: 59439.91357 | T24: =SUM(H24:S24) -> 492867.1566 | V24: Controle Operacional | W24: =B24 -> Fiscal | X24: ='Plan2 R$ Pessoal'!D14 -> 0.05 | Y24: =X24/X30 -> 0.4077033395 | Z24: =Z30*$Y24 -> 0.05 | AA24: 0.05 | AB24: 0.05 | AC24: 0.05 | AD24: 0.05 | AE24: 0.05 | AF24: 0.05 | AG24: 0.05 | AH24: 0.05 | AI24: 0.05 | AJ24: 0.05 | AK24: 0.05 | AM24: Controle Operacional | AN24: =W24 -> Fiscal | AO24: =AO30*$Y24 -> 0.05 | AP24: 0.05 | AQ24: 0.05 | AR24: 0.05 | AS24: 0.05 | AT24: 0.05 | AU24: 0.05 | AV24: 0.05 | AW24: 0.05 | AX24: 0.05 | AY24: 0.05 | AZ24: 0.05 | BB24: Controle Operacional | BC24: =AN24 -> Fiscal | BD24: =BD$11 -> 464 | BE24: 57 | BF24: 128 | BG24: 287 | BH24: 287 | BI24: 287 | BJ24: 306 | BK24: 355 | BL24: 355 | BM24: 377 | BN24: 377 | BO24: 407 | BP24: 442
B25: ='Plan2 R$ Pessoal'!C15 -> Inspetores de Tráfego | C25: ='Plan2 R$ Pessoal'!F15 -> 1256.751 | D25: 0 | E25: ='Plan2 R$ Pessoal'!H15 -> 0.3442967869 | F25: 1689.446331 | G25: =G24 -> 624.71 | H25: =(($F25*Z25)+($G25*AO25))*BE25 -> 3957.207326 | I25: 8886.360312 | J25: 19924.88601 | K25: 19924.88601 | L25: 19924.88601 | M25: 21243.95512 | N25: 24645.76493 | O25: 24645.76493 | P25: 26173.10811 | Q25: 26173.10811 | R25: 28255.8488 | S25: 30685.71295 | T25: 254441.4886 | W25: Inspetores de Tráfego | X25: ='Plan2 R$ Pessoal'!D15 -> 0.03 | Y25: =X25/X30 -> 0.2446220037 | Z25: =Z30*$Y25 -> 0.03 | AA25: 0.03 | AB25: 0.03 | AC25: 0.03 | AD25: 0.03 | AE25: 0.03 | AF25: 0.03 | AG25: 0.03 | AH25: 0.03 | AI25: 0.03 | AJ25: 0.03 | AK25: 0.03 | AN25: Inspetores de Tráfego | AO25: =AO30*$Y25 -> 0.03 | AP25: 0.03 | AQ25: 0.03 | AR25: 0.03 | AS25: 0.03 | AT25: 0.03 | AU25: 0.03 | AV25: 0.03 | AW25: 0.03 | AX25: 0.03 | AY25: 0.03 | AZ25: 0.03 | BC25: Inspetores de Tráfego | BD25: =BD$11 -> 464 | BE25: 57 | BF25: 128 | BG25: 287 | BH25: 287 | BI25: 287 | BJ25: 306 | BK25: 355 | BL25: 355 | BM25: 377 | BN25: 377 | BO25: 407 | BP25: 442
B26: ='Plan2 R$ Pessoal'!C16 -> Chefe de tráfego | C26: ='Plan2 R$ Pessoal'!F16 -> 3490.975 | D26: 0 | E26: ='Plan2 R$ Pessoal'!H16 -> 0.3442967869 | F26: 4692.906476 | G26: 624.71 | H26: =(($F26*Z26)+($G26*AO26))*BE26 -> 2273.281043 | I26: 5104.911817 | J26: 11446.16946 | K26: 11446.16946 | L26: 11446.16946 | M26: 12203.92981 | N26: 14158.15387 | O26: 14158.15387 | P26: 15035.56059 | Q26: 15035.56059 | R26: 16232.02429 | S26: 17627.89862 | T26: 146167.9829 | W26: Chefe de tráfego | X26: ='Plan2 R$ Pessoal'!D16 -> 0.0075 | Y26: =X26/X30 -> 0.06115550092 | Z26: =Z30*$Y26 -> 0.0075 | AA26: 0.0075 | AB26: 0.0075 | AC26: 0.0075 | AD26: 0.0075 | AE26: 0.0075 | AF26: 0.0075 | AG26: 0.0075 | AH26: 0.0075 | AI26: 0.0075 | AJ26: 0.0075 | AK26: 0.0075 | AN26: Chefe de tráfego | AO26: =AO30*$Y26 -> 0.0075 | AP26: 0.0075 | AQ26: 0.0075 | AR26: 0.0075 | AS26: 0.0075 | AT26: 0.0075 | AU26: 0.0075 | AV26: 0.0075 | AW26: 0.0075 | AX26: 0.0075 | AY26: 0.0075 | AZ26: 0.0075 | BC26: Chefe de tráfego | BD26: =BD$11 -> 464 | BE26: 57 | BF26: 128 | BG26: 287 | BH26: 287 | BI26: 287 | BJ26: 306 | BK26: 355 | BL26: 355 | BM26: 377 | BN26: 377 | BO26: 407 | BP26: 442
B27: ='Plan2 R$ Pessoal'!C17 -> Programadores | C27: ='Plan2 R$ Pessoal'!F17 -> 1536.029 | D27: 0 | E27: ='Plan2 R$ Pessoal'!H17 -> 0.3442967869 | F27: 2064.878849 | G27: 624.71 | H27: =(($F27*Z27)+($G27*AO27))*BE27 -> 1149.799233 | I27: 2582.005295 | J27: 5789.339998 | K27: 5789.339998 | L27: 5789.339998 | M27: 6172.606409 | N27: 7161.030311 | O27: 7161.030311 | P27: 7604.812471 | Q27: 7604.812471 | R27: 8209.969963 | S27: 8915.987035 | T27: 73930.0735 | W27: Programadores | X27: ='Plan2 R$ Pessoal'!D17 -> 0.0075 | Y27: =X27/X30 -> 0.06115550092 | Z27: =Z30*$Y27 -> 0.0075 | AA27: 0.0075 | AB27: 0.0075 | AC27: 0.0075 | AD27: 0.0075 | AE27: 0.0075 | AF27: 0.0075 | AG27: 0.0075 | AH27: 0.0075 | AI27: 0.0075 | AJ27: 0.0075 | AK27: 0.0075 | AN27: Programadores | AO27: =AO30*$Y27 -> 0.0075 | AP27: 0.0075 | AQ27: 0.0075 | AR27: 0.0075 | AS27: 0.0075 | AT27: 0.0075 | AU27: 0.0075 | AV27: 0.0075 | AW27: 0.0075 | AX27: 0.0075 | AY27: 0.0075 | AZ27: 0.0075 | BC27: Programadores | BD27: =BD$11 -> 464 | BE27: 57 | BF27: 128 | BG27: 287 | BH27: 287 | BI27: 287 | BJ27: 306 | BK27: 355 | BL27: 355 | BM27: 377 | BN27: 377 | BO27: 407 | BP27: 442
B28: ='Plan2 R$ Pessoal'!C18 -> Escaladores | C28: ='Plan2 R$ Pessoal'!F18 -> 2513.502 | D28: 0 | E28: ='Plan2 R$ Pessoal'!H18 -> 0.3442967869 | F28: 3378.892663 | G28: 624.71 | H28: =(($F28*Z28)+($G28*AO28))*BE28 -> 1146.760562 | I28: 2575.181612 | J28: 5774.040021 | K28: 5774.040021 | L28: 5774.040021 | M28: 6156.293541 | N28: 7142.105252 | O28: 7142.105252 | P28: 7584.714592 | Q28: 7584.714592 | R28: 8188.272782 | S28: 8892.424004 | T28: 73734.69225 | W28: Escaladores | X28: ='Plan2 R$ Pessoal'!D18 -> 0.005025125628 | Y28: =X28/X30 -> 0.04097521 | Z28: =Z30*$Y28 -> 0.005025125628 | AA28: 0.005025125628 | AB28: 0.005025125628 | AC28: 0.005025125628 | AD28: 0.005025125628 | AE28: 0.005025125628 | AF28: 0.005025125628 | AG28: 0.005025125628 | AH28: 0.005025125628 | AI28: 0.005025125628 | AJ28: 0.005025125628 | AK28: 0.005025125628 | AN28: Escaladores | AO28: =AO30*$Y28 -> 0.005025125628 | AP28: 0.005025125628 | AQ28: 0.005025125628 | AR28: 0.005025125628 | AS28: 0.005025125628 | AT28: 0.005025125628 | AU28: 0.005025125628 | AV28: 0.005025125628 | AW28: 0.005025125628 | AX28: 0.005025125628 | AY28: 0.005025125628 | AZ28: 0.005025125628 | BC28: Escaladores | BD28: =BD$11 -> 464 | BE28: 57 | BF28: 128 | BG28: 287 | BH28: 287 | BI28: 287 | BJ28: 306 | BK28: 355 | BL28: 355 | BM28: 377 | BN28: 377 | BO28: 407 | BP28: 442
B29: ='Plan2 R$ Pessoal'!C19 -> Auxiliares | C29: ='Plan2 R$ Pessoal'!F19 -> 1117.112 | D29: 0 | E29: ='Plan2 R$ Pessoal'!H19 -> 0.3442967869 | F29: 1501.730072 | G29: 624.71 | H29: =(($F29*Z29)+($G29*AO29))*BE29 -> 2740.863711 | I29: 6154.922018 | J29: 13800.48921 | K29: 13800.48921 | L29: 13800.48921 | M29: 14714.11045 | N29: 17070.29153 | O29: 17070.29153 | P29: 18128.16876 | Q29: 18128.16876 | R29: 19570.7286 | S29: 21253.71509 | T29: 176232.7281 | W29: Auxiliares | X29: ='Plan2 R$ Pessoal'!D19 -> 0.02261306533 | Y29: =X29/X30 -> 0.184388445 | Z29: =Z30*$Y29 -> 0.02261306533 | AA29: 0.02261306533 | AB29: 0.02261306533 | AC29: 0.02261306533 | AD29: 0.02261306533 | AE29: 0.02261306533 | AF29: 0.02261306533 | AG29: 0.02261306533 | AH29: 0.02261306533 | AI29: 0.02261306533 | AJ29: 0.02261306533 | AK29: 0.02261306533 | AN29: Auxiliares | AO29: =AO30*$Y29 -> 0.02261306533 | AP29: 0.02261306533 | AQ29: 0.02261306533 | AR29: 0.02261306533 | AS29: 0.02261306533 | AT29: 0.02261306533 | AU29: 0.02261306533 | AV29: 0.02261306533 | AW29: 0.02261306533 | AX29: 0.02261306533 | AY29: 0.02261306533 | AZ29: 0.02261306533 | BC29: Auxiliares | BD29: =BD$11 -> 464 | BE29: 57 | BF29: 128 | BG29: 287 | BH29: 287 | BI29: 287 | BJ29: 306 | BK29: 355 | BL29: 355 | BM29: 377 | BN29: 377 | BO29: 407 | BP29: 442
B30: Totais........................ | F30: Totais... | H30: =SUM(H24:H29) -> 18933.2401 | I30: 42516.74969 | J30: 95330.52469 | K30: 95330.52469 | L30: 95330.52469 | M30: 101641.6047 | N30: 117917.548 | O30: 117917.548 | P30: 125225.1143 | Q30: 125225.1143 | R30: 135189.9775 | S30: 146815.6513 | T30: 1217374.122 | W30: Totais........................ | X30: =SUM(X24:X29) -> 0.122638191 | Y30: 1 | Z30: ='FU Folha FGV'!$AM26 -> 0.122638191 | AA30: ='FU Folha FGV'!$AM27 -> 0.122638191 | AB30: ='FU Folha FGV'!$AM28 -> 0.122638191 | AC30: ='FU Folha FGV'!$AM29 -> 0.122638191 | AD30: ='FU Folha FGV'!$AM30 -> 0.122638191 | AE30: ='FU Folha FGV'!$AM31 -> 0.122638191 | AF30: ='FU Folha FGV'!$AM32 -> 0.122638191 | AG30: ='FU Folha FGV'!$AM33 -> 0.122638191 | AH30: ='FU Folha FGV'!$AM34 -> 0.122638191 | AI30: ='FU Folha FGV'!$AM35 -> 0.122638191 | AJ30: ='FU Folha FGV'!$AM36 -> 0.122638191 | AK30: ='FU Folha FGV'!$AM37 -> 0.122638191 | AN30: Totais........................ | AO30: ='FU Folha FGV'!$AT$26 -> 0.122638191 | AP30: ='FU Folha FGV'!$AT$27 -> 0.122638191 | AQ30: ='FU Folha FGV'!$AT$28 -> 0.122638191 | AR30: ='FU Folha FGV'!$AT$29 -> 0.122638191 | AS30: ='FU Folha FGV'!$AT$30 -> 0.122638191 | AT30: ='FU Folha FGV'!$AT$31 -> 0.122638191 | AU30: ='FU Folha FGV'!$AT$32 -> 0.122638191 | AV30: ='FU Folha FGV'!$AT$33 -> 0.122638191 | AW30: ='FU Folha FGV'!$AT$34 -> 0.122638191 | AX30: ='FU Folha FGV'!$AT$35 -> 0.122638191 | AY30: ='FU Folha FGV'!$AT$36 -> 0.122638191 | AZ30: ='FU Folha FGV'!$AT$37 -> 0.122638191 | BC30: Totais........................ | BD30: =BD$11 -> 464 | BE30: 57 | BF30: 128 | BG30: 287 | BH30: 287 | BI30: 287 | BJ30: 306 | BK30: 355 | BL30: 355 | BM30: 377 | BN30: 377 | BO30: 407 | BP30: 442
A31: Manutenção | B31: ='Plan2 R$ Pessoal'!C22 -> Chefe de Manutenção | C31: ='Plan2 R$ Pessoal'!F22 -> 3490.975 | D31: 0 | E31: ='Plan2 R$ Pessoal'!H22 -> 0.3442967869 | F31: =(C31+D31)*(E31/100*100+1) -> 4692.906476 | G31: =G29 -> 624.71 | H31: =(($F31*Z31)+($G31*AO31))*BE31 -> 2273.281043 | I31: 5104.911817 | J31: 11446.16946 | K31: 11446.16946 | L31: 11446.16946 | M31: 12203.92981 | N31: 14158.15387 | O31: 14158.15387 | P31: 15035.56059 | Q31: 15035.56059 | R31: 16232.02429 | S31: 17627.89862 | T31: =SUM(H31:S31) -> 146167.9829 | V31: Manutenção | W31: Chefe de Manutenção | X31: ='Plan2 R$ Pessoal'!D22 -> 0.0075 | Y31: =X31/X40 -> 0.01492611946 | Z31: =Z40*$Y31 -> 0.0075 | AA31: 0.0075 | AB31: 0.0075 | AC31: 0.0075 | AD31: 0.0075 | AE31: 0.0075 | AF31: 0.0075 | AG31: 0.0075 | AH31: 0.0075 | AI31: 0.0075 | AJ31: 0.0075 | AK31: 0.0075 | AM31: Manutenção | AN31: Chefe de Manutenção | AO31: =AO40*$Y31 -> 0.0075 | AP31: 0.0075 | AQ31: 0.0075 | AR31: 0.0075 | AS31: 0.0075 | AT31: 0.0075 | AU31: 0.0075 | AV31: 0.0075 | AW31: 0.0075 | AX31: 0.0075 | AY31: 0.0075 | AZ31: 0.0075 | BB31: Manutenção | BC31: Chefe de Manutenção | BD31: =BD$11 -> 464 | BE31: 57 | BF31: 128 | BG31: 287 | BH31: 287 | BI31: 287 | BJ31: 306 | BK31: 355 | BL31: 355 | BM31: 377 | BN31: 377 | BO31: 407 | BP31: 442
B32: ='Plan2 R$ Pessoal'!C23 -> Mecânicos | C32: ='Plan2 R$ Pessoal'!F23 -> 2094.585 | D32: 0 | E32: ='Plan2 R$ Pessoal'!H23 -> 0.3442967869 | F32: 2815.743885 | G32: =G31 -> 624.71 | H32: =(($F32*Z32)+($G32*AO32))*BE32 -> 17738.21953 | I32: 39833.19473 | J32: 89313.49132 | K32: 89313.49132 | L32: 89313.49132 | M32: 95226.23116 | N32: 110474.876 | O32: 110474.876 | P32: 117321.2064 | Q32: 117321.2064 | R32: 126657.1114 | S32: 137549.0006 | T32: 1140536.396 | W32: Mecânicos | X32: ='Plan2 R$ Pessoal'!D23 -> 0.09045226131 | Y32: =X32/X40 -> 0.180013501 | Z32: =Z40*$Y32 -> 0.09045226131 | AA32: 0.09045226131 | AB32: 0.09045226131 | AC32: 0.09045226131 | AD32: 0.09045226131 | AE32: 0.09045226131 | AF32: 0.09045226131 | AG32: 0.09045226131 | AH32: 0.09045226131 | AI32: 0.09045226131 | AJ32: 0.09045226131 | AK32: 0.09045226131 | AN32: Mecânicos | AO32: =AO40*$Y32 -> 0.09045226131 | AP32: 0.09045226131 | AQ32: 0.09045226131 | AR32: 0.09045226131 | AS32: 0.09045226131 | AT32: 0.09045226131 | AU32: 0.09045226131 | AV32: 0.09045226131 | AW32: 0.09045226131 | AX32: 0.09045226131 | AY32: 0.09045226131 | AZ32: 0.09045226131 | BC32: Mecânicos | BD32: =BD$11 -> 464 | BE32: 57 | BF32: 128 | BG32: 287 | BH32: 287 | BI32: 287 | BJ32: 306 | BK32: 355 | BL32: 355 | BM32: 377 | BN32: 377 | BO32: 407 | BP32: 442
B33: ='Plan2 R$ Pessoal'!C24 -> Auxiliares | C33: ='Plan2 R$ Pessoal'!F24 -> 1256.751 | D33: 0 | E33: ='Plan2 R$ Pessoal'!H24 -> 0.3442967869 | F33: 1689.446331 | G33: 624.71 | H33: =(($F33*Z33)+($G33*AO33))*BE33 -> 11931.27837 | I33: 26793.04617 | J33: 60075.0332 | K33: 60075.0332 | L33: 60075.0332 | M33: 64052.12599 | N33: 74308.83898 | O33: 74308.83898 | P33: 78913.89379 | Q33: 78913.89379 | R33: 85193.51398 | S33: 92519.73754 | T33: 767160.2672 | W33: Auxiliares | X33: ='Plan2 R$ Pessoal'!D24 -> 0.09045226131 | Y33: =X33/X40 -> 0.180013501 | Z33: =Z40*$Y33 -> 0.09045226131 | AA33: 0.09045226131 | AB33: 0.09045226131 | AC33: 0.09045226131 | AD33: 0.09045226131 | AE33: 0.09045226131 | AF33: 0.09045226131 | AG33: 0.09045226131 | AH33: 0.09045226131 | AI33: 0.09045226131 | AJ33: 0.09045226131 | AK33: 0.09045226131 | AN33: Auxiliares | AO33: =AO40*$Y33 -> 0.09045226131 | AP33: 0.09045226131 | AQ33: 0.09045226131 | AR33: 0.09045226131 | AS33: 0.09045226131 | AT33: 0.09045226131 | AU33: 0.09045226131 | AV33: 0.09045226131 | AW33: 0.09045226131 | AX33: 0.09045226131 | AY33: 0.09045226131 | AZ33: 0.09045226131 | BC33: Auxiliares | BD33: =BD$11 -> 464 | BE33: 57 | BF33: 128 | BG33: 287 | BH33: 287 | BI33: 287 | BJ33: 306 | BK33: 355 | BL33: 355 | BM33: 377 | BN33: 377 | BO33: 407 | BP33: 442
B34: ='Plan2 R$ Pessoal'!C25 -> Funileiro | C34: ='Plan2 R$ Pessoal'!F25 -> 2094.585 | D34: 0 | E34: ='Plan2 R$ Pessoal'!H25 -> 0.3442967869 | F34: 2815.743885 | G34: 624.71 | H34: =(($F34*Z34)+($G34*AO34))*BE34 -> 12318.20801 | I34: 27661.94079 | J34: 62023.25786 | K34: 62023.25786 | L34: 62023.25786 | M34: 66129.32719 | N34: 76718.6639 | O34: 76718.6639 | P34: 81473.05998 | Q34: 81473.05998 | R34: 87956.32735 | S34: 95520.13928 | T34: 792039.1639 | W34: Funileiro | X34: ='Plan2 R$ Pessoal'!D25 -> 0.06281407035 | Y34: =X34/X40 -> 0.1250093757 | Z34: =Z40*$Y34 -> 0.06281407035 | AA34: 0.06281407035 | AB34: 0.06281407035 | AC34: 0.06281407035 | AD34: 0.06281407035 | AE34: 0.06281407035 | AF34: 0.06281407035 | AG34: 0.06281407035 | AH34: 0.06281407035 | AI34: 0.06281407035 | AJ34: 0.06281407035 | AK34: 0.06281407035 | AN34: Funileiro | AO34: =AO40*$Y34 -> 0.06281407035 | AP34: 0.06281407035 | AQ34: 0.06281407035 | AR34: 0.06281407035 | AS34: 0.06281407035 | AT34: 0.06281407035 | AU34: 0.06281407035 | AV34: 0.06281407035 | AW34: 0.06281407035 | AX34: 0.06281407035 | AY34: 0.06281407035 | AZ34: 0.06281407035 | BC34: Funileiro | BD34: =BD$11 -> 464 | BE34: 57 | BF34: 128 | BG34: 287 | BH34: 287 | BI34: 287 | BJ34: 306 | BK34: 355 | BL34: 355 | BM34: 377 | BN34: 377 | BO34: 407 | BP34: 442
B35: ='Plan2 R$ Pessoal'!C26 -> Borracheiro | C35: ='Plan2 R$ Pessoal'!F26 -> 1396.39 | D35: 0 | E35: ='Plan2 R$ Pessoal'!H26 -> 0.3442967869 | F35: 1877.16259 | G35: 624.71 | H35: =(($F35*Z35)+($G35*AO35))*BE35 -> 2508.158702 | I35: 5632.356384 | J35: 12628.79908 | K35: 12628.79908 | L35: 12628.79908 | M35: 13464.85198 | N35: 15620.98841 | O35: 15620.98841 | P35: 16589.04966 | Q35: 16589.04966 | R35: 17909.13319 | S35: 19449.23064 | T35: 161270.2043 | W35: Borracheiro | X35: ='Plan2 R$ Pessoal'!D26 -> 0.0175879397 | Y35: =X35/X40 -> 0.0350026252 | Z35: =Z40*$Y35 -> 0.0175879397 | AA35: 0.0175879397 | AB35: 0.0175879397 | AC35: 0.0175879397 | AD35: 0.0175879397 | AE35: 0.0175879397 | AF35: 0.0175879397 | AG35: 0.0175879397 | AH35: 0.0175879397 | AI35: 0.0175879397 | AJ35: 0.0175879397 | AK35: 0.0175879397 | AN35: Borracheiro | AO35: =AO40*$Y35 -> 0.0175879397 | AP35: 0.0175879397 | AQ35: 0.0175879397 | AR35: 0.0175879397 | AS35: 0.0175879397 | AT35: 0.0175879397 | AU35: 0.0175879397 | AV35: 0.0175879397 | AW35: 0.0175879397 | AX35: 0.0175879397 | AY35: 0.0175879397 | AZ35: 0.0175879397 | BC35: Borracheiro | BD35: =BD$11 -> 464 | BE35: 57 | BF35: 128 | BG35: 287 | BH35: 287 | BI35: 287 | BJ35: 306 | BK35: 355 | BL35: 355 | BM35: 377 | BN35: 377 | BO35: 407 | BP35: 442
B36: ='Plan2 R$ Pessoal'!C27 -> Eletricista | C36: ='Plan2 R$ Pessoal'!F27 -> 2373.863 | D36: 0 | E36: ='Plan2 R$ Pessoal'!H27 -> 0.3442967869 | F36: 3191.176403 | G36: 624.71 | H36: =(($F36*Z36)+($G36*AO36))*BE36 -> 13662.40735 | I36: 30680.4937 | J36: 68791.41946 | K36: 68791.41946 | L36: 68791.41946 | M36: 73345.55524 | N36: 85090.43174 | O36: 85090.43174 | P36: 90363.64159 | Q36: 90363.64159 | R36: 97554.3823 | S36: 105943.5798 | T36: 878468.8234 | W36: Eletricista | X36: ='Plan2 R$ Pessoal'!D27 -> 0.06281407035 | Y36: =X36/X40 -> 0.1250093757 | Z36: =Z40*$Y36 -> 0.06281407035 | AA36: 0.06281407035 | AB36: 0.06281407035 | AC36: 0.06281407035 | AD36: 0.06281407035 | AE36: 0.06281407035 | AF36: 0.06281407035 | AG36: 0.06281407035 | AH36: 0.06281407035 | AI36: 0.06281407035 | AJ36: 0.06281407035 | AK36: 0.06281407035 | AN36: Eletricista | AO36: =AO40*$Y36 -> 0.06281407035 | AP36: 0.06281407035 | AQ36: 0.06281407035 | AR36: 0.06281407035 | AS36: 0.06281407035 | AT36: 0.06281407035 | AU36: 0.06281407035 | AV36: 0.06281407035 | AW36: 0.06281407035 | AX36: 0.06281407035 | AY36: 0.06281407035 | AZ36: 0.06281407035 | BC36: Eletricista | BD36: =BD$11 -> 464 | BE36: 57 | BF36: 128 | BG36: 287 | BH36: 287 | BI36: 287 | BJ36: 306 | BK36: 355 | BL36: 355 | BM36: 377 | BN36: 377 | BO36: 407 | BP36: 442
B37: ='Plan2 R$ Pessoal'!C28 -> Pintores | C37: ='Plan2 R$ Pessoal'!F28 -> 2373.863 | D37: 0 | E37: ='Plan2 R$ Pessoal'!H28 -> 0.3442967869 | F37: 3191.176403 | G37: 624.71 | H37: =(($F37*Z37)+($G37*AO37))*BE37 -> 6557.955528 | I37: 14726.63697 | J37: 33019.88134 | K37: 33019.88134 | L37: 33019.88134 | M37: 35205.86652 | N37: 40843.40723 | O37: 40843.40723 | P37: 43374.54796 | Q37: 43374.54796 | R37: 46826.1035 | S37: 50852.9183 | T37: 421665.0352 | W37: Pintores | X37: ='Plan2 R$ Pessoal'!D28 -> 0.03015075377 | Y37: =X37/X40 -> 0.06000450034 | Z37: =Z40*$Y37 -> 0.03015075377 | AA37: 0.03015075377 | AB37: 0.03015075377 | AC37: 0.03015075377 | AD37: 0.03015075377 | AE37: 0.03015075377 | AF37: 0.03015075377 | AG37: 0.03015075377 | AH37: 0.03015075377 | AI37: 0.03015075377 | AJ37: 0.03015075377 | AK37: 0.03015075377 | AN37: Pintores | AO37: =AO40*$Y37 -> 0.03015075377 | AP37: 0.03015075377 | AQ37: 0.03015075377 | AR37: 0.03015075377 | AS37: 0.03015075377 | AT37: 0.03015075377 | AU37: 0.03015075377 | AV37: 0.03015075377 | AW37: 0.03015075377 | AX37: 0.03015075377 | AY37: 0.03015075377 | AZ37: 0.03015075377 | BC37: Pintores | BD37: =BD$11 -> 464 | BE37: 57 | BF37: 128 | BG37: 287 | BH37: 287 | BI37: 287 | BJ37: 306 | BK37: 355 | BL37: 355 | BM37: 377 | BN37: 377 | BO37: 407 | BP37: 442
B38: ='Plan2 R$ Pessoal'!C29 -> Eletrônico | C38: ='Plan2 R$ Pessoal'!F29 -> 2792.78 | E38: ='Plan2 R$ Pessoal'!H29 -> 0.3442967869 | F38: 3754.325181 | G38: 624.71 | H38: =(($F38*Z38)+($G38*AO38))*BE38 -> 3762.889527 | I38: 8449.997534 | J38: 18946.47885 | K38: 18946.47885 | L38: 18946.47885 | M38: 20200.77536 | N38: 23435.54004 | O38: 23435.54004 | P38: 24887.88336 | Q38: 24887.88336 | R38: 26868.35153 | S38: 29178.89774 | T38: 241947.195 | W38: Eletrônico | X38: ='Plan2 R$ Pessoal'!D29 -> 0.01507537688 | Y38: =X38/X40 -> 0.03000225017 | Z38: =Z40*$Y38 -> 0.01507537688 | AA38: 0.01507537688 | AB38: 0.01507537688 | AC38: 0.01507537688 | AD38: 0.01507537688 | AE38: 0.01507537688 | AF38: 0.01507537688 | AG38: 0.01507537688 | AH38: 0.01507537688 | AI38: 0.01507537688 | AJ38: 0.01507537688 | AK38: 0.01507537688 | AN38: Eletrônico | AO38: =AO40*$Y38 -> 0.01507537688 | AP38: 0.01507537688 | AQ38: 0.01507537688 | AR38: 0.01507537688 | AS38: 0.01507537688 | AT38: 0.01507537688 | AU38: 0.01507537688 | AV38: 0.01507537688 | AW38: 0.01507537688 | AX38: 0.01507537688 | AY38: 0.01507537688 | AZ38: 0.01507537688 | BC38: Eletrônico | BD38: =BD$11 -> 464 | BE38: 57 | BF38: 128 | BG38: 287 | BH38: 287 | BI38: 287 | BJ38: 306 | BK38: 355 | BL38: 355 | BM38: 377 | BN38: 377 | BO38: 407 | BP38: 442
B39: ='Plan2 R$ Pessoal'!C30 -> Outros | C39: ='Plan2 R$ Pessoal'!F30 -> 1256.751 | D39: 0 | E39: ='Plan2 R$ Pessoal'!H30 -> 0.3442967869 | F39: 1689.446331 | G39: =G37 -> 624.71 | H39: =(($F39*Z39)+($G39*AO39))*BE39 -> 16571.21996 | I39: 37212.56412 | J39: 83437.54611 | K39: 83437.54611 | L39: 83437.54611 | M39: 88961.2861 | N39: 103206.7208 | O39: 103206.7208 | P39: 109602.6303 | Q39: 109602.6303 | R39: 118324.325 | S39: 128499.6355 | T39: 1065500.371 | W39: Outros | X39: ='Plan2 R$ Pessoal'!D30 -> 0.1256281407 | Y39: =X39/X40 -> 0.2500187514 | Z39: =Z40*$Y39 -> 0.1256281407 | AA39: 0.1256281407 | AB39: 0.1256281407 | AC39: 0.1256281407 | AD39: 0.1256281407 | AE39: 0.1256281407 | AF39: 0.1256281407 | AG39: 0.1256281407 | AH39: 0.1256281407 | AI39: 0.1256281407 | AJ39: 0.1256281407 | AK39: 0.1256281407 | AN39: Outros | AO39: =AO40*$Y39 -> 0.1256281407 | AP39: 0.1256281407 | AQ39: 0.1256281407 | AR39: 0.1256281407 | AS39: 0.1256281407 | AT39: 0.1256281407 | AU39: 0.1256281407 | AV39: 0.1256281407 | AW39: 0.1256281407 | AX39: 0.1256281407 | AY39: 0.1256281407 | AZ39: 0.1256281407 | BC39: Outros | BD39: =BD$11 -> 464 | BE39: 57 | BF39: 128 | BG39: 287 | BH39: 287 | BI39: 287 | BJ39: 306 | BK39: 355 | BL39: 355 | BM39: 377 | BN39: 377 | BO39: 407 | BP39: 442
B40: Totais........................ | F40: Totais... | H40: =SUM(H31:H39) -> 87323.61802 | I40: 196095.1422 | J40: 439682.0767 | K40: 439682.0767 | L40: 439682.0767 | M40: 468789.9494 | N40: 543857.621 | O40: 543857.621 | P40: 577561.4736 | Q40: 577561.4736 | R40: 623521.2725 | S40: 677141.038 | T40: 5614755.439 | W40: Totais........................ | X40: =SUM(X31:X39) -> 0.5024748744 | Y40: 1 | Z40: ='FU Folha FGV'!$AN26 -> 0.5024748744 | AA40: ='FU Folha FGV'!$AN27 -> 0.5024748744 | AB40: ='FU Folha FGV'!$AN28 -> 0.5024748744 | AC40: ='FU Folha FGV'!$AN29 -> 0.5024748744 | AD40: ='FU Folha FGV'!$AN30 -> 0.5024748744 | AE40: ='FU Folha FGV'!$AN31 -> 0.5024748744 | AF40: ='FU Folha FGV'!$AN32 -> 0.5024748744 | AG40: ='FU Folha FGV'!$AN33 -> 0.5024748744 | AH40: ='FU Folha FGV'!$AN34 -> 0.5024748744 | AI40: ='FU Folha FGV'!$AN35 -> 0.5024748744 | AJ40: ='FU Folha FGV'!$AN36 -> 0.5024748744 | AK40: ='FU Folha FGV'!$AN37 -> 0.5024748744 | AN40: Totais........................ | AO40: ='FU Folha FGV'!$AU$26 -> 0.5024748744 | AP40: ='FU Folha FGV'!$AU$27 -> 0.5024748744 | AQ40: ='FU Folha FGV'!$AU$28 -> 0.5024748744 | AR40: ='FU Folha FGV'!$AU$29 -> 0.5024748744 | AS40: ='FU Folha FGV'!$AU$30 -> 0.5024748744 | AT40: ='FU Folha FGV'!$AU$31 -> 0.5024748744 | AU40: ='FU Folha FGV'!$AU$32 -> 0.5024748744 | AV40: ='FU Folha FGV'!$AU$33 -> 0.5024748744 | AW40: ='FU Folha FGV'!$AU$34 -> 0.5024748744 | AX40: ='FU Folha FGV'!$AU$35 -> 0.5024748744 | AY40: ='FU Folha FGV'!$AU$36 -> 0.5024748744 | AZ40: ='FU Folha FGV'!$AU$37 -> 0.5024748744 | BC40: Totais........................ | BD40: =BD$11 -> 464 | BE40: 57 | BF40: 128 | BG40: 287 | BH40: 287 | BI40: 287 | BJ40: 306 | BK40: 355 | BL40: 355 | BM40: 377 | BN40: 377 | BO40: 407 | BP40: 442
F41: Total Geral Mensal Pessoal de Operação | H41: =H18+H30+H40 -> 618208.7138 | I41: 1717233.986 | J41: 3677819.453 | K41: 3595231.329 | L41: 3595231.329 | M41: 3777219.027 | N41: 4382067.825 | O41: 4350471.099 | P41: 4551324.619 | Q41: 4584670.253 | R41: 5114021.597 | S41: 5532399.565 | T41: 45495898.79
A43: Administração - Composição do Custo Unitário Por Função | G43: Ano 1 | H43: Administração - Composição de Custo Total Mensal | T43: R$
A44: Funções | B44: Cargo | C44: Salário | D44: Hs Extras | E44: Enc. | F44: R$ Total | G44: Benefícios | H44: =H3 -> 2014-01-01 | I44: =DATE(YEAR(H44),MONTH(H44)+1,DAY(H44)) -> 2014-02-01 | J44: 2014-03-01 | K44: 2014-04-01 | L44: 2014-05-01 | M44: 2014-06-01 | N44: 2014-07-01 | O44: 2014-08-01 | P44: 2014-09-01 | Q44: 2014-10-01 | R44: 2014-11-01 | S44: 2014-12-01 | T44: Total | V44: Fator Utilização Mensal | X44: =X21 -> Ano 1 | Z44: FU FOLHA DE PAGAMENTO | AM44: =X44 -> Ano 1 | AN44: FU Benefícios | AO44: FU FÍSICO PARA CÁLCULOS DOS BENEFÍCIOS | BB44: Frota Mensal | BE44: =BE21 -> Ano 1
C45: base | D45: e Adic. | E45: Soc. | F45: Por | G45: R$ por | H45: R$ | I45: R$ | J45: R$ | K45: R$ | L45: R$ | M45: R$ | N45: R$ | O45: R$ | P45: R$ | Q45: R$ | R45: R$ | S45: R$ | T45: Durante o | V45: Funções | W45: Cargo | X45: FU | Z45: =H44 -> 2014-01-01 | AA45: 2014-02-01 | AB45: 2014-03-01 | AC45: 2014-04-01 | AD45: 2014-05-01 | AE45: 2014-06-01 | AF45: 2014-07-01 | AG45: 2014-08-01 | AH45: 2014-09-01 | AI45: 2014-10-01 | AJ45: 2014-11-01 | AK45: 2014-12-01 | AM45: Funções | AN45: Cargo | AO45: =Z45 -> 2014-01-01 | AP45: 2014-02-01 | AQ45: 2014-03-01 | AR45: 2014-04-01 | AS45: 2014-05-01 | AT45: 2014-06-01 | AU45: 2014-07-01 | AV45: 2014-08-01 | AW45: 2014-09-01 | AX45: 2014-10-01 | AY45: 2014-11-01 | AZ45: 2014-12-01 | BB45: Funções | BC45: Cargo | BD45: Frota | BE45: =Z45 -> 2014-01-01 | BF45: 2014-02-01 | BG45: 2014-03-01 | BH45: 2014-04-01 | BI45: 2014-05-01 | BJ45: 2014-06-01 | BK45: 2014-07-01 | BL45: 2014-08-01 | BM45: 2014-09-01 | BN45: 2014-10-01 | BO45: 2014-11-01 | BP45: 2014-12-01
C46: (R$/mês) | D46: Not. | E46: % | F46: Função | G46: mês | T46: =T23 -> Ano 1 | X46: Licitação | Z46: FU | AA46: FU | AB46: FU | AC46: FU | AD46: FU | AE46: FU | AF46: FU | AG46: FU | AH46: FU | AI46: FU | AJ46: FU | AK46: FU | BD46: Licitação | BE46: Frota | BF46: Frota | BG46: Frota | BH46: Frota | BI46: Frota | BJ46: Frota | BK46: Frota | BL46: Frota | BM46: Frota | BN46: Frota | BO46: Frota | BP46: Frota
A47: Administração | B47: ='Plan4 R$ Pessoal'!C8 -> Controle de Manutenção | C47: ='Plan4 R$ Pessoal'!F8 -> 1256.751 | D47: 0 | E47: ='Plan4 R$ Pessoal'!H8 -> 0.3442967869 | F47: =(C47+D47)*(E47/100*100+1) -> 1689.446331 | G47: =G39 -> 624.71 | H47: =(($F47*Z47)+($G47*AO47))*BE47 -> 1495.543207 | I47: 3358.412816 | J47: 7530.191237 | K47: 7530.191237 | L47: 7530.191237 | M47: 8028.705639 | N47: 9314.348045 | O47: 9314.348045 | P47: 9891.575248 | Q47: 9891.575248 | R47: 10678.70325 | S47: 11597.01926 | T47: =SUM(H47:S47) -> 96160.80447 | V47: Administração | W47: =B47 -> Controle de Manutenção | X47: ='Plan4 R$ Pessoal'!D8 -> 0.01133786848 | Y47: =X47/X62 -> 0.1136363636 | Z47: =Z62*$Y47 -> 0.01133786848 | AA47: 0.01133786848 | AB47: 0.01133786848 | AC47: 0.01133786848 | AD47: 0.01133786848 | AE47: 0.01133786848 | AF47: 0.01133786848 | AG47: 0.01133786848 | AH47: 0.01133786848 | AI47: 0.01133786848 | AJ47: 0.01133786848 | AK47: 0.01133786848 | AM47: Administração | AN47: =W47 -> Controle de Manutenção | AO47: =AO62*$Y47 -> 0.01133786848 | AP47: 0.01133786848 | AQ47: 0.01133786848 | AR47: 0.01133786848 | AS47: 0.01133786848 | AT47: 0.01133786848 | AU47: 0.01133786848 | AV47: 0.01133786848 | AW47: 0.01133786848 | AX47: 0.01133786848 | AY47: 0.01133786848 | AZ47: 0.01133786848 | BB47: Administração | BC47: =AN47 -> Controle de Manutenção | BD47: =BD$11 -> 464 | BE47: 57 | BF47: 128 | BG47: 287 | BH47: 287 | BI47: 287 | BJ47: 306 | BK47: 355 | BL47: 355 | BM47: 377 | BN47: 377 | BO47: 407 | BP47: 442
B48: ='Plan4 R$ Pessoal'!C9 -> Gerente de Operação | C48: ='Plan4 R$ Pessoal'!F9 -> 6981.95 | D48: 0 | E48: ='Plan4 R$ Pessoal'!H9 -> 0.3442967869 | F48: 9385.812951 | G48: =G47 -> 624.71 | H48: =(($F48*Z48)+($G48*AO48))*BE48 -> 1293.877116 | I48: 2905.548612 | J48: 6514.784778 | K48: 6514.784778 | L48: 6514.784778 | M48: 6946.07715 | N48: 8058.357478 | O48: 8058.357478 | P48: 8557.748646 | Q48: 8557.748646 | R48: 9238.736601 | S48: 10033.22255 | T48: 83194.02861 | W48: Gerente de Operação | X48: ='Plan4 R$ Pessoal'!D9 -> 0.002267573696 | Y48: =X48/X62 -> 0.02272727273 | Z48: =Z62*$Y48 -> 0.002267573696 | AA48: 0.002267573696 | AB48: 0.002267573696 | AC48: 0.002267573696 | AD48: 0.002267573696 | AE48: 0.002267573696 | AF48: 0.002267573696 | AG48: 0.002267573696 | AH48: 0.002267573696 | AI48: 0.002267573696 | AJ48: 0.002267573696 | AK48: 0.002267573696 | AN48: Gerente de Operação | AO48: =AO62*$Y48 -> 0.002267573696 | AP48: 0.002267573696 | AQ48: 0.002267573696 | AR48: 0.002267573696 | AS48: 0.002267573696 | AT48: 0.002267573696 | AU48: 0.002267573696 | AV48: 0.002267573696 | AW48: 0.002267573696 | AX48: 0.002267573696 | AY48: 0.002267573696 | AZ48: 0.002267573696 | BC48: Gerente de Operação | BD48: =BD$11 -> 464 | BE48: 57 | BF48: 128 | BG48: 287 | BH48: 287 | BI48: 287 | BJ48: 306 | BK48: 355 | BL48: 355 | BM48: 377 | BN48: 377 | BO48: 407 | BP48: 442
B49: ='Plan4 R$ Pessoal'!C10 -> Gerente Administrativo | C49: ='Plan4 R$ Pessoal'!F10 -> 6981.95 | D49: 0 | E49: ='Plan4 R$ Pessoal'!H10 -> 0.3442967869 | F49: 9385.812951 | G49: 624.71 | H49: =(($F49*Z49)+($G49*AO49))*BE49 -> 1293.877116 | I49: 2905.548612 | J49: 6514.784778 | K49: 6514.784778 | L49: 6514.784778 | M49: 6946.07715 | N49: 8058.357478 | O49: 8058.357478 | P49: 8557.748646 | Q49: 8557.748646 | R49: 9238.736601 | S49: 10033.22255 | T49: 83194.02861 | W49: Gerente Administrativo | X49: ='Plan4 R$ Pessoal'!D10 -> 0.002267573696 | Y49: =X49/X62 -> 0.02272727273 | Z49: =Z62*$Y49 -> 0.002267573696 | AA49: 0.002267573696 | AB49: 0.002267573696 | AC49: 0.002267573696 | AD49: 0.002267573696 | AE49: 0.002267573696 | AF49: 0.002267573696 | AG49: 0.002267573696 | AH49: 0.002267573696 | AI49: 0.002267573696 | AJ49: 0.002267573696 | AK49: 0.002267573696 | AN49: Gerente Administrativo | AO49: =AO62*$Y49 -> 0.002267573696 | AP49: 0.002267573696 | AQ49: 0.002267573696 | AR49: 0.002267573696 | AS49: 0.002267573696 | AT49: 0.002267573696 | AU49: 0.002267573696 | AV49: 0.002267573696 | AW49: 0.002267573696 | AX49: 0.002267573696 | AY49: 0.002267573696 | AZ49: 0.002267573696 | BC49: Gerente Administrativo | BD49: =BD$11 -> 464 | BE49: 57 | BF49: 128 | BG49: 287 | BH49: 287 | BI49: 287 | BJ49: 306 | BK49: 355 | BL49: 355 | BM49: 377 | BN49: 377 | BO49: 407 | BP49: 442
B50: ='Plan4 R$ Pessoal'!C11 -> Assistente Administrativo | C50: ='Plan4 R$ Pessoal'!F11 -> 1536.029 | D50: 0 | E50: ='Plan4 R$ Pessoal'!H11 -> 0.3442967869 | F50: 2064.878849 | G50: 624.71 | H50: =(($F50*Z50)+($G50*AO50))*BE50 -> 1738.169665 | I50: 3903.258194 | J50: 8751.836732 | K50: 8751.836732 | L50: 8751.836732 | M50: 9331.22662 | N50: 10825.44265 | O50: 10825.44265 | P50: 11496.31515 | Q50: 11496.31515 | R50: 12411.14129 | S50: 13478.43845 | T50: 111761.26 | W50: Assistente Administrativo | X50: ='Plan4 R$ Pessoal'!D11 -> 0.01133786848 | Y50: =X50/X62 -> 0.1136363636 | Z50: =Z62*$Y50 -> 0.01133786848 | AA50: 0.01133786848 | AB50: 0.01133786848 | AC50: 0.01133786848 | AD50: 0.01133786848 | AE50: 0.01133786848 | AF50: 0.01133786848 | AG50: 0.01133786848 | AH50: 0.01133786848 | AI50: 0.01133786848 | AJ50: 0.01133786848 | AK50: 0.01133786848 | AN50: Assistente Administrativo | AO50: =AO62*$Y50 -> 0.01133786848 | AP50: 0.01133786848 | AQ50: 0.01133786848 | AR50: 0.01133786848 | AS50: 0.01133786848 | AT50: 0.01133786848 | AU50: 0.01133786848 | AV50: 0.01133786848 | AW50: 0.01133786848 | AX50: 0.01133786848 | AY50: 0.01133786848 | AZ50: 0.01133786848 | BC50: Assistente Administrativo | BD50: =BD$11 -> 464 | BE50: 57 | BF50: 128 | BG50: 287 | BH50: 287 | BI50: 287 | BJ50: 306 | BK50: 355 | BL50: 355 | BM50: 377 | BN50: 377 | BO50: 407 | BP50: 442
B51: ='Plan4 R$ Pessoal'!C12 -> Psicólogo | C51: ='Plan4 R$ Pessoal'!F12 -> 3630.614 | D51: 0 | E51: ='Plan4 R$ Pessoal'!H12 -> 0.3442967869 | F51: 4880.622735 | G51: 624.71 | H51: =(($F51*Z51)+($G51*AO51))*BE51 -> 711.5736188 | I51: 1597.919705 | J51: 3582.835589 | K51: 3582.835589 | L51: 3582.835589 | M51: 3820.026796 | N51: 4431.730433 | O51: 4431.730433 | P51: 4706.372882 | Q51: 4706.372882 | R51: 5080.885313 | S51: 5517.816482 | T51: 45752.93531 | W51: Psicólogo | X51: ='Plan4 R$ Pessoal'!D12 -> 0.002267573696 | Y51: =X51/X62 -> 0.02272727273 | Z51: =Z62*$Y51 -> 0.002267573696 | AA51: 0.002267573696 | AB51: 0.002267573696 | AC51: 0.002267573696 | AD51: 0.002267573696 | AE51: 0.002267573696 | AF51: 0.002267573696 | AG51: 0.002267573696 | AH51: 0.002267573696 | AI51: 0.002267573696 | AJ51: 0.002267573696 | AK51: 0.002267573696 | AN51: Psicólogo | AO51: =AO62*$Y51 -> 0.002267573696 | AP51: 0.002267573696 | AQ51: 0.002267573696 | AR51: 0.002267573696 | AS51: 0.002267573696 | AT51: 0.002267573696 | AU51: 0.002267573696 | AV51: 0.002267573696 | AW51: 0.002267573696 | AX51: 0.002267573696 | AY51: 0.002267573696 | AZ51: 0.002267573696 | BC51: Psicólogo | BD51: =BD$11 -> 464 | BE51: 57 | BF51: 128 | BG51: 287 | BH51: 287 | BI51: 287 | BJ51: 306 | BK51: 355 | BL51: 355 | BM51: 377 | BN51: 377 | BO51: 407 | BP51: 442
B52: ='Plan4 R$ Pessoal'!C13 -> Técnico Seg. do Trabalho | C52: ='Plan4 R$ Pessoal'!F13 -> 1815.307 | D52: 0 | E52: ='Plan4 R$ Pessoal'!H13 -> 0.3442967869 | F52: 2440.311367 | G52: 624.71 | H52: =(($F52*Z52)+($G52*AO52))*BE52 -> 2376.955346 | I52: 5337.724286 | J52: 11968.17867 | K52: 11968.17867 | L52: 11968.17867 | M52: 12760.49712 | N52: 14803.8447 | O52: 14803.8447 | P52: 15721.26606 | Q52: 15721.26606 | R52: 16972.29519 | S52: 18431.82918 | T52: 152834.0587 | W52: Técnico Seg. do Trabalho | X52: ='Plan4 R$ Pessoal'!D13 -> 0.01360544218 | Y52: =X52/X62 -> 0.1363636364 | Z52: =Z62*$Y52 -> 0.01360544218 | AA52: 0.01360544218 | AB52: 0.01360544218 | AC52: 0.01360544218 | AD52: 0.01360544218 | AE52: 0.01360544218 | AF52: 0.01360544218 | AG52: 0.01360544218 | AH52: 0.01360544218 | AI52: 0.01360544218 | AJ52: 0.01360544218 | AK52: 0.01360544218 | AN52: Técnico Seg. do Trabalho | AO52: =AO62*$Y52 -> 0.01360544218 | AP52: 0.01360544218 | AQ52: 0.01360544218 | AR52: 0.01360544218 | AS52: 0.01360544218 | AT52: 0.01360544218 | AU52: 0.01360544218 | AV52: 0.01360544218 | AW52: 0.01360544218 | AX52: 0.01360544218 | AY52: 0.01360544218 | AZ52: 0.01360544218 | BC52: Técnico Seg. do Trabalho | BD52: =BD$11 -> 464 | BE52: 57 | BF52: 128 | BG52: 287 | BH52: 287 | BI52: 287 | BJ52: 306 | BK52: 355 | BL52: 355 | BM52: 377 | BN52: 377 | BO52: 407 | BP52: 442
B53: ='Plan4 R$ Pessoal'!C14 -> Auxiliar de Compras | C53: ='Plan4 R$ Pessoal'!F14 -> 2234.224 | D53: 0 | E53: ='Plan4 R$ Pessoal'!H14 -> 0.3442967869 | F53: 3003.460144 | G53: 624.71 | H53: =(($F53*Z53)+($G53*AO53))*BE53 -> 468.9471615 | I53: 1053.074328 | J53: 2361.190094 | K53: 2361.190094 | L53: 2361.190094 | M53: 2517.505815 | N53: 2920.635831 | O53: 2920.635831 | P53: 3101.632981 | Q53: 3101.632981 | R53: 3348.447276 | S53: 3636.397288 | T53: 30152.47977 | W53: Auxiliar de Compras | X53: ='Plan4 R$ Pessoal'!D14 -> 0.002267573696 | Y53: =X53/X62 -> 0.02272727273 | Z53: =Z62*$Y53 -> 0.002267573696 | AA53: 0.002267573696 | AB53: 0.002267573696 | AC53: 0.002267573696 | AD53: 0.002267573696 | AE53: 0.002267573696 | AF53: 0.002267573696 | AG53: 0.002267573696 | AH53: 0.002267573696 | AI53: 0.002267573696 | AJ53: 0.002267573696 | AK53: 0.002267573696 | AN53: Auxiliar de Compras | AO53: =AO62*$Y53 -> 0.002267573696 | AP53: 0.002267573696 | AQ53: 0.002267573696 | AR53: 0.002267573696 | AS53: 0.002267573696 | AT53: 0.002267573696 | AU53: 0.002267573696 | AV53: 0.002267573696 | AW53: 0.002267573696 | AX53: 0.002267573696 | AY53: 0.002267573696 | AZ53: 0.002267573696 | BC53: Auxiliar de Compras | BD53: =BD$11 -> 464 | BE53: 57 | BF53: 128 | BG53: 287 | BH53: 287 | BI53: 287 | BJ53: 306 | BK53: 355 | BL53: 355 | BM53: 377 | BN53: 377 | BO53: 407 | BP53: 442
B54: ='Plan4 R$ Pessoal'!C15 -> Assistente Financeiro | C54: ='Plan4 R$ Pessoal'!F15 -> 2234.224 | D54: 0 | E54: ='Plan4 R$ Pessoal'!H15 -> 0.3442967869 | F54: 3003.460144 | G54: 624.71 | H54: =(($F54*Z54)+($G54*AO54))*BE54 -> 937.8943231 | I54: 2106.148655 | J54: 4722.380188 | K54: 4722.380188 | L54: 4722.380188 | M54: 5035.011629 | N54: 5841.271661 | O54: 5841.271661 | P54: 6203.265961 | Q54: 6203.265961 | R54: 6696.894552 | S54: 7272.794575 | T54: 60304.95954 | W54: Assistente Financeiro | X54: ='Plan4 R$ Pessoal'!D15 -> 0.004535147392 | Y54: =X54/X62 -> 0.04545454545 | Z54: =Z62*$Y54 -> 0.004535147392 | AA54: 0.004535147392 | AB54: 0.004535147392 | AC54: 0.004535147392 | AD54: 0.004535147392 | AE54: 0.004535147392 | AF54: 0.004535147392 | AG54: 0.004535147392 | AH54: 0.004535147392 | AI54: 0.004535147392 | AJ54: 0.004535147392 | AK54: 0.004535147392 | AN54: Assistente Financeiro | AO54: =AO62*$Y54 -> 0.004535147392 | AP54: 0.004535147392 | AQ54: 0.004535147392 | AR54: 0.004535147392 | AS54: 0.004535147392 | AT54: 0.004535147392 | AU54: 0.004535147392 | AV54: 0.004535147392 | AW54: 0.004535147392 | AX54: 0.004535147392 | AY54: 0.004535147392 | AZ54: 0.004535147392 | BC54: Assistente Financeiro | BD54: =BD$11 -> 464 | BE54: 57 | BF54: 128 | BG54: 287 | BH54: 287 | BI54: 287 | BJ54: 306 | BK54: 355 | BL54: 355 | BM54: 377 | BN54: 377 | BO54: 407 | BP54: 442
B55: ='Plan4 R$ Pessoal'!C16 -> Auxiliar de CPD | C55: ='Plan4 R$ Pessoal'!F16 -> 2234.224 | D55: 0 | E55: ='Plan4 R$ Pessoal'!H16 -> 0.3442967869 | F55: 3003.460144 | G55: 624.71 | H55: =(($F55*Z55)+($G55*AO55))*BE55 -> 1406.841485 | I55: 3159.222983 | J55: 7083.570282 | K55: 7083.570282 | L55: 7083.570282 | M55: 7552.517444 | N55: 8761.907492 | O55: 8761.907492 | P55: 9304.898942 | Q55: 9304.898942 | R55: 10045.34183 | S55: 10909.19186 | T55: 90457.43932 | W55: Auxiliar de CPD | X55: ='Plan4 R$ Pessoal'!D16 -> 0.006802721088 | Y55: =X55/X62 -> 0.06818181818 | Z55: =Z62*$Y55 -> 0.006802721088 | AA55: 0.006802721088 | AB55: 0.006802721088 | AC55: 0.006802721088 | AD55: 0.006802721088 | AE55: 0.006802721088 | AF55: 0.006802721088 | AG55: 0.006802721088 | AH55: 0.006802721088 | AI55: 0.006802721088 | AJ55: 0.006802721088 | AK55: 0.006802721088 | AN55: Auxiliar de CPD | AO55: =AO62*$Y55 -> 0.006802721088 | AP55: 0.006802721088 | AQ55: 0.006802721088 | AR55: 0.006802721088 | AS55: 0.006802721088 | AT55: 0.006802721088 | AU55: 0.006802721088 | AV55: 0.006802721088 | AW55: 0.006802721088 | AX55: 0.006802721088 | AY55: 0.006802721088 | AZ55: 0.006802721088 | BC55: Auxiliar de CPD | BD55: =BD$11 -> 464 | BE55: 57 | BF55: 128 | BG55: 287 | BH55: 287 | BI55: 287 | BJ55: 306 | BK55: 355 | BL55: 355 | BM55: 377 | BN55: 377 | BO55: 407 | BP55: 442
B56: ='Plan4 R$ Pessoal'!C17 -> Enc. de Depto.Pessoal | C56: ='Plan4 R$ Pessoal'!F17 -> 3630.614 | D56: 0 | E56: ='Plan4 R$ Pessoal'!H17 -> 0.3442967869 | F56: 4880.622735 | G56: 624.71 | H56: =(($F56*Z56)+($G56*AO56))*BE56 -> 711.5736188 | I56: 1597.919705 | J56: 3582.835589 | K56: 3582.835589 | L56: 3582.835589 | M56: 3820.026796 | N56: 4431.730433 | O56: 4431.730433 | P56: 4706.372882 | Q56: 4706.372882 | R56: 5080.885313 | S56: 5517.816482 | T56: 45752.93531 | W56: Enc. de Depto.Pessoal | X56: ='Plan4 R$ Pessoal'!D17 -> 0.002267573696 | Y56: =X56/X62 -> 0.02272727273 | Z56: =Z62*$Y56 -> 0.002267573696 | AA56: 0.002267573696 | AB56: 0.002267573696 | AC56: 0.002267573696 | AD56: 0.002267573696 | AE56: 0.002267573696 | AF56: 0.002267573696 | AG56: 0.002267573696 | AH56: 0.002267573696 | AI56: 0.002267573696 | AJ56: 0.002267573696 | AK56: 0.002267573696 | AN56: Enc. de Depto.Pessoal | AO56: =AO62*$Y56 -> 0.002267573696 | AP56: 0.002267573696 | AQ56: 0.002267573696 | AR56: 0.002267573696 | AS56: 0.002267573696 | AT56: 0.002267573696 | AU56: 0.002267573696 | AV56: 0.002267573696 | AW56: 0.002267573696 | AX56: 0.002267573696 | AY56: 0.002267573696 | AZ56: 0.002267573696 | BC56: Enc. de Depto.Pessoal | BD56: =BD$11 -> 464 | BE56: 57 | BF56: 128 | BG56: 287 | BH56: 287 | BI56: 287 | BJ56: 306 | BK56: 355 | BL56: 355 | BM56: 377 | BN56: 377 | BO56: 407 | BP56: 442
B57: ='Plan4 R$ Pessoal'!C18 -> Eletrônico | C57: ='Plan4 R$ Pessoal'!F18 -> 2792.78 | D57: 0 | E57: ='Plan4 R$ Pessoal'!H18 -> 0.3442967869 | F57: 3754.325181 | G57: 624.71 | H57: =(($F57*Z57)+($G57*AO57))*BE57 -> 1697.993233 | I57: 3813.037436 | J57: 8549.544876 | K57: 8549.544876 | L57: 8549.544876 | M57: 9115.542621 | N57: 10575.22101 | O57: 10575.22101 | P57: 11230.58682 | Q57: 11230.58682 | R57: 12124.26747 | S57: 13166.8949 | T57: 109177.986 | W57: Eletrônico | X57: ='Plan4 R$ Pessoal'!D18 -> 0.006802721088 | Y57: =X57/X62 -> 0.06818181818 | Z57: =Z62*$Y57 -> 0.006802721088 | AA57: 0.006802721088 | AB57: 0.006802721088 | AC57: 0.006802721088 | AD57: 0.006802721088 | AE57: 0.006802721088 | AF57: 0.006802721088 | AG57: 0.006802721088 | AH57: 0.006802721088 | AI57: 0.006802721088 | AJ57: 0.006802721088 | AK57: 0.006802721088 | AN57: Eletrônico | AO57: =AO62*$Y57 -> 0.006802721088 | AP57: 0.006802721088 | AQ57: 0.006802721088 | AR57: 0.006802721088 | AS57: 0.006802721088 | AT57: 0.006802721088 | AU57: 0.006802721088 | AV57: 0.006802721088 | AW57: 0.006802721088 | AX57: 0.006802721088 | AY57: 0.006802721088 | AZ57: 0.006802721088 | BC57: Eletrônico | BD57: =BD$11 -> 464 | BE57: 57 | BF57: 128 | BG57: 287 | BH57: 287 | BI57: 287 | BJ57: 306 | BK57: 355 | BL57: 355 | BM57: 377 | BN57: 377 | BO57: 407 | BP57: 442
B58: ='Plan4 R$ Pessoal'!C19 -> Auxiliar Depto. Pessoal | C58: ='Plan4 R$ Pessoal'!F19 -> 1536.029 | D58: 0 | E58: ='Plan4 R$ Pessoal'!H19 -> 0.3442967869 | F58: 2064.878849 | G58: 624.71 | H58: =(($F58*Z58)+($G58*AO58))*BE58 -> 1390.535732 | I58: 3122.606555 | J58: 7001.469385 | K58: 7001.469385 | L58: 7001.469385 | M58: 7464.981296 | N58: 8660.354118 | O58: 8660.354118 | P58: 9197.05212 | Q58: 9197.05212 | R58: 9928.913031 | S58: 10782.75076 | T58: 89409.00801 | W58: Auxiliar Depto. Pessoal | X58: ='Plan4 R$ Pessoal'!D19 -> 0.009070294785 | Y58: =X58/X62 -> 0.09090909091 | Z58: =Z62*$Y58 -> 0.009070294785 | AA58: 0.009070294785 | AB58: 0.009070294785 | AC58: 0.009070294785 | AD58: 0.009070294785 | AE58: 0.009070294785 | AF58: 0.009070294785 | AG58: 0.009070294785 | AH58: 0.009070294785 | AI58: 0.009070294785 | AJ58: 0.009070294785 | AK58: 0.009070294785 | AN58: Auxiliar Depto. Pessoal | AO58: =AO62*$Y58 -> 0.009070294785 | AP58: 0.009070294785 | AQ58: 0.009070294785 | AR58: 0.009070294785 | AS58: 0.009070294785 | AT58: 0.009070294785 | AU58: 0.009070294785 | AV58: 0.009070294785 | AW58: 0.009070294785 | AX58: 0.009070294785 | AY58: 0.009070294785 | AZ58: 0.009070294785 | BC58: Auxiliar Depto. Pessoal | BD58: =BD$11 -> 464 | BE58: 57 | BF58: 128 | BG58: 287 | BH58: 287 | BI58: 287 | BJ58: 306 | BK58: 355 | BL58: 355 | BM58: 377 | BN58: 377 | BO58: 407 | BP58: 442
B59: ='Plan4 R$ Pessoal'!C20 -> Contador | C59: ='Plan4 R$ Pessoal'!F20 -> 3630.614 | D59: 0 | E59: ='Plan4 R$ Pessoal'!H20 -> 0.3442967869 | F59: 4880.622735 | G59: 624.71 | H59: =(($F59*Z59)+($G59*AO59))*BE59 -> 711.5736188 | I59: 1597.919705 | J59: 3582.835589 | K59: 3582.835589 | L59: 3582.835589 | M59: 3820.026796 | N59: 4431.730433 | O59: 4431.730433 | P59: 4706.372882 | Q59: 4706.372882 | R59: 5080.885313 | S59: 5517.816482 | T59: 45752.93531 | W59: Contador | X59: ='Plan4 R$ Pessoal'!D20 -> 0.002267573696 | Y59: =X59/X62 -> 0.02272727273 | Z59: =Z62*$Y59 -> 0.002267573696 | AA59: 0.002267573696 | AB59: 0.002267573696 | AC59: 0.002267573696 | AD59: 0.002267573696 | AE59: 0.002267573696 | AF59: 0.002267573696 | AG59: 0.002267573696 | AH59: 0.002267573696 | AI59: 0.002267573696 | AJ59: 0.002267573696 | AK59: 0.002267573696 | AN59: Contador | AO59: =AO62*$Y59 -> 0.002267573696 | AP59: 0.002267573696 | AQ59: 0.002267573696 | AR59: 0.002267573696 | AS59: 0.002267573696 | AT59: 0.002267573696 | AU59: 0.002267573696 | AV59: 0.002267573696 | AW59: 0.002267573696 | AX59: 0.002267573696 | AY59: 0.002267573696 | AZ59: 0.002267573696 | BC59: Contador | BD59: =BD$11 -> 464 | BE59: 57 | BF59: 128 | BG59: 287 | BH59: 287 | BI59: 287 | BJ59: 306 | BK59: 355 | BL59: 355 | BM59: 377 | BN59: 377 | BO59: 407 | BP59: 442
B60: ='Plan4 R$ Pessoal'!C21 -> Auxiliar Contabilidade | C60: ='Plan4 R$ Pessoal'!F21 -> 1536.029 | D60: 0 | E60: ='Plan4 R$ Pessoal'!H21 -> 0.3442967869 | F60: 2064.878849 | G60: 624.71 | H60: =(($F60*Z60)+($G60*AO60))*BE60 -> 695.2678658 | I60: 1561.303278 | J60: 3500.734693 | K60: 3500.734693 | L60: 3500.734693 | M60: 3732.490648 | N60: 4330.177059 | O60: 4330.177059 | P60: 4598.52606 | Q60: 4598.52606 | R60: 4964.456516 | S60: 5391.37538 | T60: 44704.504 | W60: Auxiliar Contabilidade | X60: ='Plan4 R$ Pessoal'!D21 -> 0.004535147392 | Y60: =X60/X62 -> 0.04545454545 | Z60: =Z62*$Y60 -> 0.004535147392 | AA60: 0.004535147392 | AB60: 0.004535147392 | AC60: 0.004535147392 | AD60: 0.004535147392 | AE60: 0.004535147392 | AF60: 0.004535147392 | AG60: 0.004535147392 | AH60: 0.004535147392 | AI60: 0.004535147392 | AJ60: 0.004535147392 | AK60: 0.004535147392 | AN60: Auxiliar Contabilidade | AO60: =AO62*$Y60 -> 0.004535147392 | AP60: 0.004535147392 | AQ60: 0.004535147392 | AR60: 0.004535147392 | AS60: 0.004535147392 | AT60: 0.004535147392 | AU60: 0.004535147392 | AV60: 0.004535147392 | AW60: 0.004535147392 | AX60: 0.004535147392 | AY60: 0.004535147392 | AZ60: 0.004535147392 | BC60: Auxiliar Contabilidade | BD60: =BD$11 -> 464 | BE60: 57 | BF60: 128 | BG60: 287 | BH60: 287 | BI60: 287 | BJ60: 306 | BK60: 355 | BL60: 355 | BM60: 377 | BN60: 377 | BO60: 407 | BP60: 442
B61: ='Plan4 R$ Pessoal'!C22 -> Outros | C61: ='Plan4 R$ Pessoal'!F22 -> 2792.78 | D61: 0 | E61: ='Plan4 R$ Pessoal'!H22 -> 0.3442967869 | F61: 3754.325181 | G61: 624.71 | H61: =(($F61*Z61)+($G61*AO61))*BE61 -> 4527.981955 | I61: 10168.09983 | J61: 22798.78634 | K61: 22798.78634 | L61: 22798.78634 | M61: 24308.11366 | N61: 28200.58937 | O61: 28200.58937 | P61: 29948.23153 | Q61: 29948.23153 | R61: 32331.37993 | S61: 35111.71972 | T61: 291141.2959 | W61: Outros | X61: ='Plan4 R$ Pessoal'!D22 -> 0.01814058957 | Y61: =X61/X62 -> 0.1818181818 | Z61: =Z62*$Y61 -> 0.01814058957 | AA61: 0.01814058957 | AB61: 0.01814058957 | AC61: 0.01814058957 | AD61: 0.01814058957 | AE61: 0.01814058957 | AF61: 0.01814058957 | AG61: 0.01814058957 | AH61: 0.01814058957 | AI61: 0.01814058957 | AJ61: 0.01814058957 | AK61: 0.01814058957 | AN61: Outros | AO61: =AO62*$Y61 -> 0.01814058957 | AP61: 0.01814058957 | AQ61: 0.01814058957 | AR61: 0.01814058957 | AS61: 0.01814058957 | AT61: 0.01814058957 | AU61: 0.01814058957 | AV61: 0.01814058957 | AW61: 0.01814058957 | AX61: 0.01814058957 | AY61: 0.01814058957 | AZ61: 0.01814058957 | BC61: Outros | BD61: =BD$11 -> 464 | BE61: 57 | BF61: 128 | BG61: 287 | BH61: 287 | BI61: 287 | BJ61: 306 | BK61: 355 | BL61: 355 | BM61: 377 | BN61: 377 | BO61: 407 | BP61: 442
B62: Totais......................... | F62: Totais... | H62: =SUM(H47:H61) -> 21458.60506 | I62: 48187.7447 | J62: 108045.9588 | K62: 108045.9588 | L62: 108045.9588 | M62: 115198.8272 | N62: 133645.6982 | O62: 133645.6982 | P62: 141927.9668 | Q62: 141927.9668 | R62: 153221.9695 | S62: 166398.3059 | T62: 1379750.659 | W62: Totais......................... | X62: =SUM(X47:X61) -> 0.09977324263 | Y62: 1 | Z62: ='FU Folha FGV'!$AO26 -> 0.09977324263 | AA62: ='FU Folha FGV'!$AO27 -> 0.09977324263 | AB62: ='FU Folha FGV'!$AO28 -> 0.09977324263 | AC62: ='FU Folha FGV'!$AO29 -> 0.09977324263 | AD62: ='FU Folha FGV'!$AO30 -> 0.09977324263 | AE62: ='FU Folha FGV'!$AO31 -> 0.09977324263 | AF62: ='FU Folha FGV'!$AO32 -> 0.09977324263 | AG62: ='FU Folha FGV'!$AO33 -> 0.09977324263 | AH62: ='FU Folha FGV'!$AO34 -> 0.09977324263 | AI62: ='FU Folha FGV'!$AO35 -> 0.09977324263 | AJ62: ='FU Folha FGV'!$AO36 -> 0.09977324263 | AK62: ='FU Folha FGV'!$AO37 -> 0.09977324263 | AN62: Totais......................... | AO62: ='FU Folha FGV'!$AV$26 -> 0.09977324263 | AP62: ='FU Folha FGV'!$AV$27 -> 0.09977324263 | AQ62: ='FU Folha FGV'!$AV$28 -> 0.09977324263 | AR62: ='FU Folha FGV'!$AV$29 -> 0.09977324263 | AS62: ='FU Folha FGV'!$AV$30 -> 0.09977324263 | AT62: ='FU Folha FGV'!$AV$31 -> 0.09977324263 | AU62: ='FU Folha FGV'!$AV$32 -> 0.09977324263 | AV62: ='FU Folha FGV'!$AV$33 -> 0.09977324263 | AW62: ='FU Folha FGV'!$AV$34 -> 0.09977324263 | AX62: ='FU Folha FGV'!$AV$35 -> 0.09977324263 | AY62: ='FU Folha FGV'!$AV$36 -> 0.09977324263 | AZ62: ='FU Folha FGV'!$AV$37 -> 0.09977324263 | BC62: Totais......................... | BD62: =BD$11 -> 464 | BE62: 57 | BF62: 128 | BG62: 287 | BH62: 287 | BI62: 287 | BJ62: 306 | BK62: 355 | BL62: 355 | BM62: 377 | BN62: 377 | BO62: 407 | BP62: 442
A63: Planilha 2 - Demonstração do Custo com Pessoal | F63: =G64 -> Ano 2 | K63: =F63 -> Ano 2 | P63: =K63 -> Ano 2 | U63: =P63 -> Ano 2 | AA63: =U63 -> Ano 2 | AF63: =AA63 -> Ano 2 | AK63: =AF63 -> Ano 2 | BE63: =AK63 -> Ano 2 | BJ63: =BE63 -> Ano 2
A64: Motoristas e Cobradores - Composição do Custo Unitário Por Função | G64: Ano 2 | H64: Motoristas e Cobradores - Composição de Custo Total Mensal | T64: R$ | X64: FU Lei Motorista Salário | Y64: FU Mot. | Z64: =$Z$2 -> 0 | AA64: =Z64 -> 0 | AB64: 0 | AC64: 0 | AD64: 0 | AE64: 0 | AF64: 0 | AG64: 0 | AH64: 0 | AI64: 0 | AJ64: 0 | AK64: 0 | AN64: FU Lei Motorista | AO64: =$AO$2 -> 0 | AP64: =AO64 -> 0 | AQ64: 0 | AR64: 0 | AS64: 0 | AT64: 0 | AU64: 0 | AV64: 0 | AW64: 0 | AX64: 0 | AY64: 0 | AZ64: 0
A65: Funções | B65: Cargo | C65: Salário | D65: Hs Extras | E65: Enc. | F65: R$ Total | G65: Benefícios | H65: =DATE(YEAR(S44),MONTH(S44)+1,DAY(S44)) -> 2015-01-01 | I65: =DATE(YEAR(H65),MONTH(H65)+1,DAY(H65)) -> 2015-02-01 | J65: 2015-03-01 | K65: 2015-04-01 | L65: 2015-05-01 | M65: 2015-06-01 | N65: 2015-07-01 | O65: 2015-08-01 | P65: 2015-09-01 | Q65: 2015-10-01 | R65: 2015-11-01 | S65: 2015-12-01 | T65: Total | V65: Fator Utilização Mensal | X65: =U63 -> Ano 2 | Y65: FU Cob. | Z65: =$Z$3 -> 0 | AA65: =Z65 -> 0 | AB65: 0 | AC65: 0 | AD65: 0 | AE65: 0 | AF65: 0 | AG65: 0 | AH65: 0 | AI65: 0 | AJ65: 0 | AK65: 0 | AM65: =X65 -> Ano 2 | AN65: FU Benefícios | AO65: =$AO$3 -> 0 | AP65: =AO65 -> 0 | AQ65: 0 | AR65: 0 | AS65: 0 | AT65: 0 | AU65: 0 | AV65: 0 | AW65: 0 | AX65: 0 | AY65: 0 | AZ65: 0 | BB65: Frota Mensal | BE65: =AK63 -> Ano 2
C66: base | D66: e Adic. | E66: Soc. | F66: Por | G66: R$ por | H66: R$ | I66: R$ | J66: R$ | K66: R$ | L66: R$ | M66: R$ | N66: R$ | O66: R$ | P66: R$ | Q66: R$ | R66: R$ | S66: R$ | T66: Durante o | V66: Funções | W66: Cargo | X66: FU | Z66: =H65 -> 2015-01-01 | AA66: 2015-02-01 | AB66: 2015-03-01 | AC66: 2015-04-01 | AD66: 2015-05-01 | AE66: 2015-06-01 | AF66: 2015-07-01 | AG66: 2015-08-01 | AH66: 2015-09-01 | AI66: 2015-10-01 | AJ66: 2015-11-01 | AK66: 2015-12-01 | AM66: Funções | AN66: Cargo | AO66: FU FÍSICO PARA CÁLCULOS DOS BENEFÍCIOS | BB66: Funções | BC66: Cargo | BD66: Frota | BE66: =Z66 -> 2015-01-01 | BF66: 2015-02-01 | BG66: 2015-03-01 | BH66: 2015-04-01 | BI66: 2015-05-01 | BJ66: 2015-06-01 | BK66: 2015-07-01 | BL66: 2015-08-01 | BM66: 2015-09-01 | BN66: 2015-10-01 | BO66: 2015-11-01 | BP66: 2015-12-01
C67: (R$/mês) | D67: Not. | E67: % | F67: Função | G67: mês | T67: =P63 -> Ano 2 | X67: Licitação | Z67: FU | AA67: FU | AB67: FU | AC67: FU | AD67: FU | AE67: FU | AF67: FU | AG67: FU | AH67: FU | AI67: FU | AJ67: FU | AK67: FU | AO67: =Z66 -> 2015-01-01 | AP67: 2015-02-01 | AQ67: 2015-03-01 | AR67: 2015-04-01 | AS67: 2015-05-01 | AT67: 2015-06-01 | AU67: 2015-07-01 | AV67: 2015-08-01 | AW67: 2015-09-01 | AX67: 2015-10-01 | AY67: 2015-11-01 | AZ67: 2015-12-01 | BD67: Licitação | BE67: Frota | BF67: Frota | BG67: Frota | BH67: Frota | BI67: Frota | BJ67: Frota | BK67: Frota | BL67: Frota | BM67: Frota | BN67: Frota | BO67: Frota | BP67: Frota
A68: Motorista | B68: Miniônibus | C68: =C6 -> 1396.39 | D68: 0 | E68: 0.3442967869 | F68: =(C68+D68)*(E68/100*100+1) -> 1877.16259 | G68: =G6 -> 624.71 | H68: =(($F68*Z68)+($G68*AO68))*BE68 -> 483167.1276 | I68: 487096.967 | J68: 487615.9251 | K68: 489196.7514 | L68: 614184.7022 | M68: 620094.4171 | N68: 610770.7073 | O68: 616089.1066 | P68: 615724.1918 | Q68: 615724.1918 | R68: 633851.1813 | S68: 539879.0863 | T68: =SUM(H68:S68) -> 6813394.355 | V68: Motorista | W68: =B68 -> Miniônibus | X68: =X6 -> 2.505 | Y68: =X68/X73 -> 1 | Z68: =Z73*$Y68+Z64 -> 2.574962607 | AA68: 2.595906063 | AB68: 2.598671768 | AC68: 2.607096531 | AD68: 3.2732 | AE68: 3.304694889 | AF68: 3.255005656 | AG68: 3.283349222 | AH68: 3.281404466 | AI68: 3.281404466 | AJ68: 3.378009383 | AK68: 2.8772 | AM68: Motorista | AN68: =W68 -> Miniônibus | AO68: =AO73*$Y68+AO64 -> 2.574962607 | AP68: 2.595906063 | AQ68: 2.598671768 | AR68: 2.607096531 | AS68: 3.2732 | AT68: 3.304694889 | AU68: 3.255005656 | AV68: 3.283349222 | AW68: 3.281404466 | AX68: 3.281404466 | AY68: 3.378009383 | AZ68: 2.8772 | BB68: Motorista | BC68: =W68 -> Miniônibus | BD68: =BD6 -> 79 | BE68: 75 | BF68: =BE68 -> 75 | BG68: 75 | BH68: 75 | BI68: 75 | BJ68: 75 | BK68: 75 | BL68: 75 | BM68: 75 | BN68: 75 | BO68: 75 | BP68: 75
B69: Ônibus Básico | C69: =C7 -> 1396.39 | D69: 0 | E69: 0.3442967869 | F69: 1877.16259 | G69: =G68 -> 624.71 | H69: =(($F69*Z69)+($G69*AO69))*BE69 -> 2158146.503 | I69: 2175699.786 | J69: 2178017.799 | K69: 2185078.823 | L69: 2743358.336 | M69: 2769755.063 | N69: 2728109.159 | O69: 2751864.676 | P69: 2750234.723 | Q69: 2750234.723 | R69: 2831201.943 | S69: 2411459.919 | T69: 30433161.45 | W69: Ônibus Básico | X69: =X68 -> 2.505 | Y69: =X69/X73 -> 1 | Z69: =Z73*$Y69+Z64 -> 2.574962607 | AA69: 2.595906063 | AB69: 2.598671768 | AC69: 2.607096531 | AD69: 3.2732 | AE69: 3.304694889 | AF69: 3.255005656 | AG69: 3.283349222 | AH69: 3.281404466 | AI69: 3.281404466 | AJ69: 3.378009383 | AK69: 2.8772 | AN69: Ônibus Básico | AO69: =AO73*$Y69+AO64 -> 2.574962607 | AP69: 2.595906063 | AQ69: 2.598671768 | AR69: 2.607096531 | AS69: 3.2732 | AT69: 3.304694889 | AU69: 3.255005656 | AV69: 3.283349222 | AW69: 3.281404466 | AX69: 3.281404466 | AY69: 3.378009383 | AZ69: 2.8772 | BC69: Ônibus Básico | BD69: 352 | BE69: 335 | BF69: =BE69 -> 335 | BG69: 335 | BH69: 335 | BI69: 335 | BJ69: 335 | BK69: 335 | BL69: 335 | BM69: 335 | BN69: 335 | BO69: 335 | BP69: 335
B70: Padron | C70: =C8 -> 1396.39 | D70: 0 | E70: 0.3442967869 | F70: 1877.16259 | G70: 624.71 | H70: =(($F70*Z70)+($G70*AO70))*BE70 -> 0 | I70: 0 | J70: 0 | K70: 0 | L70: 0 | M70: 0 | N70: 0 | O70: 0 | P70: 0 | Q70: 0 | R70: 0 | S70: 0 | T70: 0 | W70: Padron | X70: 2.505 | Y70: =X70/X73 -> 1 | Z70: =Z73*$Y70+Z64 -> 2.574962607 | AA70: 2.595906063 | AB70: 2.598671768 | AC70: 2.607096531 | AD70: 3.2732 | AE70: 3.304694889 | AF70: 3.255005656 | AG70: 3.283349222 | AH70: 3.281404466 | AI70: 3.281404466 | AJ70: 3.378009383 | AK70: 2.8772 | AN70: Padron | AO70: =AO73*$Y70+AO64 -> 2.574962607 | AP70: 2.595906063 | AQ70: 2.598671768 | AR70: 2.607096531 | AS70: 3.2732 | AT70: 3.304694889 | AU70: 3.255005656 | AV70: 3.283349222 | AW70: 3.281404466 | AX70: 3.281404466 | AY70: 3.378009383 | AZ70: 2.8772 | BC70: Padron | BD70: 0 | BE70: 0 | BF70: =BE70 -> 0 | BG70: 0 | BH70: 0 | BI70: 0 | BJ70: 0 | BK70: 0 | BL70: 0 | BM70: 0 | BN70: 0 | BO70: 0 | BP70: 0
B71: Articulado | C71: =C9 -> 1396.39 | D71: 0 | E71: 0.3442967869 | F71: 1877.16259 | G71: 624.71 | H71: =(($F71*Z71)+($G71*AO71))*BE71 -> 199709.0794 | I71: 201333.413 | J71: 201547.9157 | K71: 202201.3239 | L71: 253863.0102 | M71: 256305.6924 | N71: 252451.8924 | O71: 254650.1641 | P71: 254499.3326 | Q71: 254499.3326 | R71: 261991.8216 | S71: 223150.0223 | T71: 2816203 | W71: Articulado | X71: 2.505 | Y71: =X71/X73 -> 1 | Z71: =Z73*$Y71+Z64 -> 2.574962607 | AA71: 2.595906063 | AB71: 2.598671768 | AC71: 2.607096531 | AD71: 3.2732 | AE71: 3.304694889 | AF71: 3.255005656 | AG71: 3.283349222 | AH71: 3.281404466 | AI71: 3.281404466 | AJ71: 3.378009383 | AK71: 2.8772 | AN71: Articulado | AO71: =AO73*$Y71+AO64 -> 2.574962607 | AP71: 2.595906063 | AQ71: 2.598671768 | AR71: 2.607096531 | AS71: 3.2732 | AT71: 3.304694889 | AU71: 3.255005656 | AV71: 3.283349222 | AW71: 3.281404466 | AX71: 3.281404466 | AY71: 3.378009383 | AZ71: 2.8772 | BC71: Articulado | BD71: 33 | BE71: 31 | BF71: =BE71 -> 31 | BG71: 31 | BH71: 31 | BI71: 31 | BJ71: 31 | BK71: 31 | BL71: 31 | BM71: 31 | BN71: 31 | BO71: 31 | BP71: 31
B72: Articulado BRT | C72: =C10 -> 1396.39 | D72: 0 | E72: 0.3442967869 | F72: 1877.16259 | G72: 624.71 | H72: =(($F72*Z72)+($G72*AO72))*BE72 -> 0 | I72: 0 | J72: 0 | K72: 0 | L72: 0 | M72: 0 | N72: 0 | O72: 0 | P72: 0 | Q72: 0 | R72: 0 | S72: 0 | T72: 0 | W72: Articulado BRT | X72: 2.505 | Y72: =X72/X73 -> 1 | Z72: =Z73*$Y72+Z64 -> 2.574962607 | AA72: 2.595906063 | AB72: 2.598671768 | AC72: 2.607096531 | AD72: 3.2732 | AE72: 3.304694889 | AF72: 3.255005656 | AG72: 3.283349222 | AH72: 3.281404466 | AI72: 3.281404466 | AJ72: 3.378009383 | AK72: 2.8772 | AN72: Articulado BRT | AO72: =AO73*$Y72+AO64 -> 2.574962607 | AP72: 2.595906063 | AQ72: 2.598671768 | AR72: 2.607096531 | AS72: 3.2732 | AT72: 3.304694889 | AU72: 3.255005656 | AV72: 3.283349222 | AW72: 3.281404466 | AX72: 3.281404466 | AY72: 3.378009383 | AZ72: 2.8772 | BC72: Articulado BRT | BD72: 0 | BE72: 0 | BF72: =BE72 -> 0 | BG72: 0 | BH72: 0 | BI72: 0 | BJ72: 0 | BK72: 0 | BL72: 0 | BM72: 0 | BN72: 0 | BO72: 0 | BP72: 0
B73: Totais........................ | F73: Totais... | G73: 624.71 | H73: =SUM(H68:H72) -> 2841022.71 | I73: 2864130.166 | J73: 2867181.64 | K73: 2876476.898 | L73: 3611406.049 | M73: 3646155.173 | N73: 3591331.759 | O73: 3622603.947 | P73: 3620458.248 | Q73: 3620458.248 | R73: 3727044.946 | S73: 3174489.027 | T73: 40062758.81 | W73: Totais........................ | X73: 2.505 | Z73: ='FU Folha FGV'!$AK43 -> 2.574962607 | AA73: ='FU Folha FGV'!$AK44 -> 2.595906063 | AB73: ='FU Folha FGV'!$AK45 -> 2.598671768 | AC73: ='FU Folha FGV'!$AK46 -> 2.607096531 | AD73: ='FU Folha FGV'!$AK47 -> 3.2732 | AE73: ='FU Folha FGV'!$AK48 -> 3.304694889 | AF73: ='FU Folha FGV'!$AK49 -> 3.255005656 | AG73: ='FU Folha FGV'!$AK50 -> 3.283349222 | AH73: ='FU Folha FGV'!$AK51 -> 3.281404466 | AI73: ='FU Folha FGV'!$AK52 -> 3.281404466 | AJ73: ='FU Folha FGV'!$AK53 -> 3.378009383 | AK73: ='FU Folha FGV'!$AK54 -> 2.8772 | AN73: Totais........................ | AO73: ='FU Folha FGV'!$AR$43 -> 2.574962607 | AP73: ='FU Folha FGV'!$AR$44 -> 2.595906063 | AQ73: ='FU Folha FGV'!$AR$45 -> 2.598671768 | AR73: ='FU Folha FGV'!$AR$46 -> 2.607096531 | AS73: ='FU Folha FGV'!$AR$47 -> 3.2732 | AT73: ='FU Folha FGV'!$AR$48 -> 3.304694889 | AU73: ='FU Folha FGV'!$AR$49 -> 3.255005656 | AV73: ='FU Folha FGV'!$AR$50 -> 3.283349222 | AW73: ='FU Folha FGV'!$AR$51 -> 3.281404466 | AX73: ='FU Folha FGV'!$AR$52 -> 3.281404466 | AY73: ='FU Folha FGV'!$AR$53 -> 3.378009383 | AZ73: ='FU Folha FGV'!$AR$54 -> 2.8772 | BC73: Totais........................ | BD73: =SUM(BD68:BD72) -> 464 | BE73: 441 | BF73: 441 | BG73: 441 | BH73: 441 | BI73: 441 | BJ73: 441 | BK73: 441 | BL73: 441 | BM73: 441 | BN73: 441 | BO73: 441 | BP73: 441
A74: Cobrador | B74: Miniônibus | C74: =C12 -> 787.52 | D74: 0 | E74: 0.3442967869 | F74: =(C74+D74)*(E74/100*100+1) -> 1058.660606 | G74: 624.71 | H74: =(($F74*Z74)+($G74*AO74))*BE74 -> 325096.2272 | I74: 327740.3971 | J74: 328089.5751 | K74: 329153.225 | L74: 413250.65 | M74: 417226.9678 | N74: 410953.5631 | O74: 414532.0176 | P74: 414286.4867 | Q74: 414286.4867 | R74: 426483.1275 | S74: 363254.543 | T74: =SUM(H74:S74) -> 4584353.267 | V74: Cobrador | W74: =B74 -> Miniônibus | X74: =X12 -> 2.505 | Y74: =X74/X79 -> 1 | Z74: =Z79*$Y74+Z65 -> 2.574962607 | AA74: 2.595906063 | AB74: 2.598671768 | AC74: 2.607096531 | AD74: 3.2732 | AE74: 3.304694889 | AF74: 3.255005656 | AG74: 3.283349222 | AH74: 3.281404466 | AI74: 3.281404466 | AJ74: 3.378009383 | AK74: 2.8772 | AM74: Cobrador | AN74: Miniônibus | AO74: =AO79*$Y74+AO65 -> 2.574962607 | AP74: 2.595906063 | AQ74: 2.598671768 | AR74: 2.607096531 | AS74: 3.2732 | AT74: 3.304694889 | AU74: 3.255005656 | AV74: 3.283349222 | AW74: 3.281404466 | AX74: 3.281404466 | AY74: 3.378009383 | AZ74: 2.8772 | BB74: Cobrador | BC74: Miniônibus | BD74: =BD12 -> 79 | BE74: =BE68 -> 75 | BF74: 75 | BG74: 75 | BH74: 75 | BI74: 75 | BJ74: 75 | BK74: 75 | BL74: 75 | BM74: 75 | BN74: 75 | BO74: 75 | BP74: 75
B75: Ônibus Básico | C75: =C13 -> 787.52 | D75: 0 | E75: 0.3442967869 | F75: 1058.660606 | G75: 624.71 | H75: =(($F75*Z75)+($G75*AO75))*BE75 -> 1452096.482 | I75: 1463907.107 | J75: 1465466.769 | K75: 1470217.738 | L75: 1845852.903 | M75: 1863613.789 | N75: 1835592.582 | O75: 1851576.345 | P75: 1850479.641 | Q75: 1850479.641 | R75: 1904957.97 | S75: 1622536.959 | T75: 20476777.93 | W75: Ônibus Básico | X75: =X74 -> 2.505 | Y75: =X75/X79 -> 1 | Z75: =Z79*$Y75+Z65 -> 2.574962607 | AA75: 2.595906063 | AB75: 2.598671768 | AC75: 2.607096531 | AD75: 3.2732 | AE75: 3.304694889 | AF75: 3.255005656 | AG75: 3.283349222 | AH75: 3.281404466 | AI75: 3.281404466 | AJ75: 3.378009383 | AK75: 2.8772 | AN75: Ônibus Básico | AO75: =AO79*$Y75+AO65 -> 2.574962607 | AP75: 2.595906063 | AQ75: 2.598671768 | AR75: 2.607096531 | AS75: 3.2732 | AT75: 3.304694889 | AU75: 3.255005656 | AV75: 3.283349222 | AW75: 3.281404466 | AX75: 3.281404466 | AY75: 3.378009383 | AZ75: 2.8772 | BC75: Ônibus Básico | BD75: 352 | BE75: =BE69 -> 335 | BF75: 335 | BG75: 335 | BH75: 335 | BI75: 335 | BJ75: 335 | BK75: 335 | BL75: 335 | BM75: 335 | BN75: 335 | BO75: 335 | BP75: 335
B76: Padron | C76: =C14 -> 787.52 | D76: 0 | E76: 0.3442967869 | F76: 1058.660606 | G76: 624.71 | H76: =(($F76*Z76)+($G76*AO76))*BE76 -> 0 | I76: 0 | J76: 0 | K76: 0 | L76: 0 | M76: 0 | N76: 0 | O76: 0 | P76: 0 | Q76: 0 | R76: 0 | S76: 0 | T76: 0 | W76: Padron | X76: 2.505 | Y76: =X76/X79 -> 1 | Z76: =Z79*$Y76+Z65 -> 2.574962607 | AA76: 2.595906063 | AB76: 2.598671768 | AC76: 2.607096531 | AD76: 3.2732 | AE76: 3.304694889 | AF76: 3.255005656 | AG76: 3.283349222 | AH76: 3.281404466 | AI76: 3.281404466 | AJ76: 3.378009383 | AK76: 2.8772 | AN76: Padron | AO76: =AO79*$Y76+AO65 -> 2.574962607 | AP76: 2.595906063 | AQ76: 2.598671768 | AR76: 2.607096531 | AS76: 3.2732 | AT76: 3.304694889 | AU76: 3.255005656 | AV76: 3.283349222 | AW76: 3.281404466 | AX76: 3.281404466 | AY76: 3.378009383 | AZ76: 2.8772 | BC76: Padron | BD76: 0 | BE76: =BE70 -> 0 | BF76: 0 | BG76: 0 | BH76: 0 | BI76: 0 | BJ76: 0 | BK76: 0 | BL76: 0 | BM76: 0 | BN76: 0 | BO76: 0 | BP76: 0
B77: Articulado | C77: =C15 -> 787.52 | D77: 0 | E77: 0.3442967869 | F77: 1058.660606 | G77: 624.71 | H77: =(($F77*Z77)+($G77*AO77))*BE77 -> 134373.1073 | I77: 135466.0308 | J77: 135610.3577 | K77: 136049.9997 | L77: 170810.2687 | M77: 172453.8133 | N77: 169860.8061 | O77: 171339.9006 | P77: 171238.4145 | Q77: 171238.4145 | R77: 176279.6927 | S77: 150145.2111 | T77: 1894866.017 | W77: Articulado | X77: 2.505 | Y77: =X77/X79 -> 1 | Z77: =Z79*$Y77+Z65 -> 2.574962607 | AA77: 2.595906063 | AB77: 2.598671768 | AC77: 2.607096531 | AD77: 3.2732 | AE77: 3.304694889 | AF77: 3.255005656 | AG77: 3.283349222 | AH77: 3.281404466 | AI77: 3.281404466 | AJ77: 3.378009383 | AK77: 2.8772 | AN77: Articulado | AO77: =AO79*$Y77+AO65 -> 2.574962607 | AP77: 2.595906063 | AQ77: 2.598671768 | AR77: 2.607096531 | AS77: 3.2732 | AT77: 3.304694889 | AU77: 3.255005656 | AV77: 3.283349222 | AW77: 3.281404466 | AX77: 3.281404466 | AY77: 3.378009383 | AZ77: 2.8772 | BC77: Articulado | BD77: 33 | BE77: =BE71 -> 31 | BF77: 31 | BG77: 31 | BH77: 31 | BI77: 31 | BJ77: 31 | BK77: 31 | BL77: 31 | BM77: 31 | BN77: 31 | BO77: 31 | BP77: 31
B78: Articulado BRT | C78: =C16 -> 787.52 | D78: 0 | E78: 0.3442967869 | F78: 1058.660606 | G78: 624.71 | H78: =(($F78*Z78)+($G78*AO78))*BE78 -> 0 | I78: 0 | J78: 0 | K78: 0 | L78: 0 | M78: 0 | N78: 0 | O78: 0 | P78: 0 | Q78: 0 | R78: 0 | S78: 0 | T78: 0 | W78: Articulado BRT | X78: 2.505 | Y78: =X78/X79 -> 1 | Z78: =Z79*$Y78+Z65 -> 2.574962607 | AA78: 2.595906063 | AB78: 2.598671768 | AC78: 2.607096531 | AD78: 3.2732 | AE78: 3.304694889 | AF78: 3.255005656 | AG78: 3.283349222 | AH78: 3.281404466 | AI78: 3.281404466 | AJ78: 3.378009383 | AK78: 2.8772 | AN78: Articulado BRT | AO78: =AO79*$Y78+AO65 -> 2.574962607 | AP78: 2.595906063 | AQ78: 2.598671768 | AR78: 2.607096531 | AS78: 3.2732 | AT78: 3.304694889 | AU78: 3.255005656 | AV78: 3.283349222 | AW78: 3.281404466 | AX78: 3.281404466 | AY78: 3.378009383 | AZ78: 2.8772 | BC78: Articulado BRT | BD78: 0 | BE78: =BE72 -> 0 | BF78: 0 | BG78: 0 | BH78: 0 | BI78: 0 | BJ78: 0 | BK78: 0 | BL78: 0 | BM78: 0 | BN78: 0 | BO78: 0 | BP78: 0
B79: Totais........................ | F79: Totais... | H79: =SUM(H74:H78) -> 1911565.816 | I79: 1927113.535 | J79: 1929166.702 | K79: 1935420.963 | L79: 2429913.822 | M79: 2453294.57 | N79: 2416406.951 | O79: 2437448.263 | P79: 2436004.542 | Q79: 2436004.542 | R79: 2507720.79 | S79: 2135936.713 | T79: 26955997.21 | W79: Totais........................ | X79: 2.505 | Z79: ='FU Folha FGV'!$AL43 -> 2.574962607 | AA79: ='FU Folha FGV'!$AL44 -> 2.595906063 | AB79: ='FU Folha FGV'!$AL45 -> 2.598671768 | AC79: ='FU Folha FGV'!$AL46 -> 2.607096531 | AD79: ='FU Folha FGV'!$AL47 -> 3.2732 | AE79: ='FU Folha FGV'!$AL48 -> 3.304694889 | AF79: ='FU Folha FGV'!$AL49 -> 3.255005656 | AG79: ='FU Folha FGV'!$AL50 -> 3.283349222 | AH79: ='FU Folha FGV'!$AL51 -> 3.281404466 | AI79: ='FU Folha FGV'!$AL52 -> 3.281404466 | AJ79: ='FU Folha FGV'!$AL53 -> 3.378009383 | AK79: ='FU Folha FGV'!$AL54 -> 2.8772 | AN79: Totais........................ | AO79: ='FU Folha FGV'!$AS$43 -> 2.574962607 | AP79: ='FU Folha FGV'!$AS$44 -> 2.595906063 | AQ79: ='FU Folha FGV'!$AS$45 -> 2.598671768 | AR79: ='FU Folha FGV'!$AS$46 -> 2.607096531 | AS79: ='FU Folha FGV'!$AS$47 -> 3.2732 | AT79: ='FU Folha FGV'!$AS$48 -> 3.304694889 | AU79: ='FU Folha FGV'!$AS$49 -> 3.255005656 | AV79: ='FU Folha FGV'!$AS$50 -> 3.283349222 | AW79: ='FU Folha FGV'!$AS$51 -> 3.281404466 | AX79: ='FU Folha FGV'!$AS$52 -> 3.281404466 | AY79: ='FU Folha FGV'!$AS$53 -> 3.378009383 | AZ79: ='FU Folha FGV'!$AS$54 -> 2.8772 | BC79: Totais........................ | BD79: =SUM(BD74:BD78) -> 464 | BE79: 441 | BF79: 441 | BG79: 441 | BH79: 441 | BI79: 441 | BJ79: 441 | BK79: 441 | BL79: 441 | BM79: 441 | BN79: 441 | BO79: 441 | BP79: 441
F80: Total Mensal Mot./Cob. | H80: =H73+H79 -> 4752588.526 | I80: 4791243.701 | J80: 4796348.341 | K80: 4811897.861 | L80: 6041319.871 | M80: 6099449.743 | N80: 6007738.71 | O80: 6060052.21 | P80: 6056462.789 | Q80: 6056462.789 | R80: 6234765.736 | S80: 5310425.74 | T80: 67018756.02
A82: Controle Operacional - Composição do Custo Unitário Por Função | G82: =G64 -> Ano 2 | H82: Controle Operacional - Composição de Custo Total Mensal | T82: R$
A83: Funções | B83: Cargo | C83: Salário | D83: Hs Extras | E83: Enc. | F83: R$ Total | G83: Benefícios | H83: =H65 -> 2015-01-01 | I83: =DATE(YEAR(H83),MONTH(H83)+1,DAY(H83)) -> 2015-02-01 | J83: 2015-03-01 | K83: 2015-04-01 | L83: 2015-05-01 | M83: 2015-06-01 | N83: 2015-07-01 | O83: 2015-08-01 | P83: 2015-09-01 | Q83: 2015-10-01 | R83: 2015-11-01 | S83: 2015-12-01 | T83: Total | V83: Fator Utilização Mensal | X83: =U63 -> Ano 2 | Z83: FU FOLHA DE PAGAMENTO | AM83: =X83 -> Ano 2 | AN83: FU Benefícios | AO83: FU FÍSICO PARA CÁLCULOS DOS BENEFÍCIOS | BB83: Frota Mensal | BE83: =BE65 -> Ano 2
C84: base | D84: e Adic. | E84: Soc. | F84: Por | G84: R$ por | H84: R$ | I84: R$ | J84: R$ | K84: R$ | L84: R$ | M84: R$ | N84: R$ | O84: R$ | P84: R$ | Q84: R$ | R84: R$ | S84: R$ | T84: Durante o | V84: Funções | W84: Cargo | X84: FU | Z84: =H83 -> 2015-01-01 | AA84: 2015-02-01 | AB84: 2015-03-01 | AC84: 2015-04-01 | AD84: 2015-05-01 | AE84: 2015-06-01 | AF84: 2015-07-01 | AG84: 2015-08-01 | AH84: 2015-09-01 | AI84: 2015-10-01 | AJ84: 2015-11-01 | AK84: 2015-12-01 | AM84: Funções | AN84: Cargo | AO84: =Z84 -> 2015-01-01 | AP84: 2015-02-01 | AQ84: 2015-03-01 | AR84: 2015-04-01 | AS84: 2015-05-01 | AT84: 2015-06-01 | AU84: 2015-07-01 | AV84: 2015-08-01 | AW84: 2015-09-01 | AX84: 2015-10-01 | AY84: 2015-11-01 | AZ84: 2015-12-01 | BB84: Funções | BC84: Cargo | BD84: Frota | BE84: =Z84 -> 2015-01-01 | BF84: 2015-02-01 | BG84: 2015-03-01 | BH84: 2015-04-01 | BI84: 2015-05-01 | BJ84: 2015-06-01 | BK84: 2015-07-01 | BL84: 2015-08-01 | BM84: 2015-09-01 | BN84: 2015-10-01 | BO84: 2015-11-01 | BP84: 2015-12-01
C85: (R$/mês) | D85: Not. | E85: % | F85: Função | G85: mês | T85: =T67 -> Ano 2 | X85: Licitação | Z85: FU | AA85: FU | AB85: FU | AC85: FU | AD85: FU | AE85: FU | AF85: FU | AG85: FU | AH85: FU | AI85: FU | AJ85: FU | AK85: FU | BD85: Licitação | BE85: Frota | BF85: Frota | BG85: Frota | BH85: Frota | BI85: Frota | BJ85: Frota | BK85: Frota | BL85: Frota | BM85: Frota | BN85: Frota | BO85: Frota | BP85: Frota
A86: Controle Operacional | B86: =B24 -> Fiscal | C86: 1536.029 | D86: 0 | E86: 0.3442967869 | F86: =(C86+D86)*(E86/100*100+1) -> 2064.878849 | G86: =G39 -> 624.71 | H86: =(($F86*Z86)+($G86*AO86))*BE86 -> 59305.43413 | I86: 59305.43413 | J86: 59305.43413 | K86: 59305.43413 | L86: 59305.43413 | M86: 59305.43413 | N86: 59305.43413 | O86: 59305.43413 | P86: 59305.43413 | Q86: 59305.43413 | R86: 59305.43413 | S86: 59305.43413 | T86: =SUM(H86:S86) -> 711665.2095 | V86: Controle Operacional | W86: =B86 -> Fiscal | X86: =X24 -> 0.05 | Y86: =X86/X92 -> 0.4077033395 | Z86: =Z92*$Y86 -> 0.05 | AA86: 0.05 | AB86: 0.05 | AC86: 0.05 | AD86: 0.05 | AE86: 0.05 | AF86: 0.05 | AG86: 0.05 | AH86: 0.05 | AI86: 0.05 | AJ86: 0.05 | AK86: 0.05 | AM86: Controle Operacional | AN86: =W86 -> Fiscal | AO86: =AO92*$Y86 -> 0.05 | AP86: 0.05 | AQ86: 0.05 | AR86: 0.05 | AS86: 0.05 | AT86: 0.05 | AU86: 0.05 | AV86: 0.05 | AW86: 0.05 | AX86: 0.05 | AY86: 0.05 | AZ86: 0.05 | BB86: Controle Operacional | BC86: =AN86 -> Fiscal | BD86: =BD$11 -> 464 | BE86: =BE73 -> 441 | BF86: 441 | BG86: 441 | BH86: 441 | BI86: 441 | BJ86: 441 | BK86: 441 | BL86: 441 | BM86: 441 | BN86: 441 | BO86: 441 | BP86: 441
B87: =B25 -> Inspetores de Tráfego | C87: 1256.751 | D87: 0 | E87: 0.3442967869 | F87: 1689.446331 | G87: =G86 -> 624.71 | H87: =(($F87*Z87)+($G87*AO87))*BE87 -> 30616.28826 | I87: 30616.28826 | J87: 30616.28826 | K87: 30616.28826 | L87: 30616.28826 | M87: 30616.28826 | N87: 30616.28826 | O87: 30616.28826 | P87: 30616.28826 | Q87: 30616.28826 | R87: 30616.28826 | S87: 30616.28826 | T87: 367395.4591 | W87: Inspetores de Tráfego | X87: 0.03 | Y87: =X87/X92 -> 0.2446220037 | Z87: =Z92*$Y87 -> 0.03 | AA87: 0.03 | AB87: 0.03 | AC87: 0.03 | AD87: 0.03 | AE87: 0.03 | AF87: 0.03 | AG87: 0.03 | AH87: 0.03 | AI87: 0.03 | AJ87: 0.03 | AK87: 0.03 | AN87: Inspetores de Tráfego | AO87: =AO92*$Y87 -> 0.03 | AP87: 0.03 | AQ87: 0.03 | AR87: 0.03 | AS87: 0.03 | AT87: 0.03 | AU87: 0.03 | AV87: 0.03 | AW87: 0.03 | AX87: 0.03 | AY87: 0.03 | AZ87: 0.03 | BC87: Inspetores de Tráfego | BD87: 464 | BE87: =BE86 -> 441 | BF87: 441 | BG87: 441 | BH87: 441 | BI87: 441 | BJ87: 441 | BK87: 441 | BL87: 441 | BM87: 441 | BN87: 441 | BO87: 441 | BP87: 441
B88: =B26 -> Chefe de tráfego | C88: 3490.975 | D88: 0 | E88: 0.3442967869 | F88: 4692.906476 | G88: 624.71 | H88: =(($F88*Z88)+($G88*AO88))*BE88 -> 17588.01649 | I88: 17588.01649 | J88: 17588.01649 | K88: 17588.01649 | L88: 17588.01649 | M88: 17588.01649 | N88: 17588.01649 | O88: 17588.01649 | P88: 17588.01649 | Q88: 17588.01649 | R88: 17588.01649 | S88: 17588.01649 | T88: 211056.1979 | W88: Chefe de tráfego | X88: 0.0075 | Y88: =X88/X92 -> 0.06115550092 | Z88: =Z92*$Y88 -> 0.0075 | AA88: 0.0075 | AB88: 0.0075 | AC88: 0.0075 | AD88: 0.0075 | AE88: 0.0075 | AF88: 0.0075 | AG88: 0.0075 | AH88: 0.0075 | AI88: 0.0075 | AJ88: 0.0075 | AK88: 0.0075 | AN88: Chefe de tráfego | AO88: =AO92*$Y88 -> 0.0075 | AP88: 0.0075 | AQ88: 0.0075 | AR88: 0.0075 | AS88: 0.0075 | AT88: 0.0075 | AU88: 0.0075 | AV88: 0.0075 | AW88: 0.0075 | AX88: 0.0075 | AY88: 0.0075 | AZ88: 0.0075 | BC88: Chefe de tráfego | BD88: 464 | BE88: =BE87 -> 441 | BF88: 441 | BG88: 441 | BH88: 441 | BI88: 441 | BJ88: 441 | BK88: 441 | BL88: 441 | BM88: 441 | BN88: 441 | BO88: 441 | BP88: 441
B89: =B27 -> Programadores | C89: 1536.029 | D89: 0 | E89: 0.3442967869 | F89: 2064.878849 | G89: 624.71 | H89: =(($F89*Z89)+($G89*AO89))*BE89 -> 8895.815119 | I89: 8895.815119 | J89: 8895.815119 | K89: 8895.815119 | L89: 8895.815119 | M89: 8895.815119 | N89: 8895.815119 | O89: 8895.815119 | P89: 8895.815119 | Q89: 8895.815119 | R89: 8895.815119 | S89: 8895.815119 | T89: 106749.7814 | W89: Programadores | X89: 0.0075 | Y89: =X89/X92 -> 0.06115550092 | Z89: =Z92*$Y89 -> 0.0075 | AA89: 0.0075 | AB89: 0.0075 | AC89: 0.0075 | AD89: 0.0075 | AE89: 0.0075 | AF89: 0.0075 | AG89: 0.0075 | AH89: 0.0075 | AI89: 0.0075 | AJ89: 0.0075 | AK89: 0.0075 | AN89: Programadores | AO89: =AO92*$Y89 -> 0.0075 | AP89: 0.0075 | AQ89: 0.0075 | AR89: 0.0075 | AS89: 0.0075 | AT89: 0.0075 | AU89: 0.0075 | AV89: 0.0075 | AW89: 0.0075 | AX89: 0.0075 | AY89: 0.0075 | AZ89: 0.0075 | BC89: Programadores | BD89: 464 | BE89: =BE88 -> 441 | BF89: 441 | BG89: 441 | BH89: 441 | BI89: 441 | BJ89: 441 | BK89: 441 | BL89: 441 | BM89: 441 | BN89: 441 | BO89: 441 | BP89: 441
B90: =B28 -> Escaladores | C90: 2513.502 | D90: 0 | E90: 0.3442967869 | F90: 3378.892663 | G90: 624.71 | H90: =(($F90*Z90)+($G90*AO90))*BE90 -> 8872.305398 | I90: 8872.305398 | J90: 8872.305398 | K90: 8872.305398 | L90: 8872.305398 | M90: 8872.305398 | N90: 8872.305398 | O90: 8872.305398 | P90: 8872.305398 | Q90: 8872.305398 | R90: 8872.305398 | S90: 8872.305398 | T90: 106467.6648 | W90: Escaladores | X90: 0.005025125628 | Y90: =X90/X92 -> 0.04097521 | Z90: =Z92*$Y90 -> 0.005025125628 | AA90: 0.005025125628 | AB90: 0.005025125628 | AC90: 0.005025125628 | AD90: 0.005025125628 | AE90: 0.005025125628 | AF90: 0.005025125628 | AG90: 0.005025125628 | AH90: 0.005025125628 | AI90: 0.005025125628 | AJ90: 0.005025125628 | AK90: 0.005025125628 | AN90: Escaladores | AO90: =AO92*$Y90 -> 0.005025125628 | AP90: 0.005025125628 | AQ90: 0.005025125628 | AR90: 0.005025125628 | AS90: 0.005025125628 | AT90: 0.005025125628 | AU90: 0.005025125628 | AV90: 0.005025125628 | AW90: 0.005025125628 | AX90: 0.005025125628 | AY90: 0.005025125628 | AZ90: 0.005025125628 | BC90: Escaladores | BD90: 464 | BE90: =BE89 -> 441 | BF90: 441 | BG90: 441 | BH90: 441 | BI90: 441 | BJ90: 441 | BK90: 441 | BL90: 441 | BM90: 441 | BN90: 441 | BO90: 441 | BP90: 441
B91: =B29 -> Auxiliares | C91: 1117.112 | D91: 0 | E91: 0.3442967869 | F91: 1501.730072 | G91: 624.71 | H91: =(($F91*Z91)+($G91*AO91))*BE91 -> 21205.62977 | I91: 21205.62977 | J91: 21205.62977 | K91: 21205.62977 | L91: 21205.62977 | M91: 21205.62977 | N91: 21205.62977 | O91: 21205.62977 | P91: 21205.62977 | Q91: 21205.62977 | R91: 21205.62977 | S91: 21205.62977 | T91: 254467.5572 | W91: Auxiliares | X91: 0.02261306533 | Y91: =X91/X92 -> 0.184388445 | Z91: =Z92*$Y91 -> 0.02261306533 | AA91: 0.02261306533 | AB91: 0.02261306533 | AC91: 0.02261306533 | AD91: 0.02261306533 | AE91: 0.02261306533 | AF91: 0.02261306533 | AG91: 0.02261306533 | AH91: 0.02261306533 | AI91: 0.02261306533 | AJ91: 0.02261306533 | AK91: 0.02261306533 | AN91: Auxiliares | AO91: =AO92*$Y91 -> 0.02261306533 | AP91: 0.02261306533 | AQ91: 0.02261306533 | AR91: 0.02261306533 | AS91: 0.02261306533 | AT91: 0.02261306533 | AU91: 0.02261306533 | AV91: 0.02261306533 | AW91: 0.02261306533 | AX91: 0.02261306533 | AY91: 0.02261306533 | AZ91: 0.02261306533 | BC91: Auxiliares | BD91: 464 | BE91: =BE90 -> 441 | BF91: 441 | BG91: 441 | BH91: 441 | BI91: 441 | BJ91: 441 | BK91: 441 | BL91: 441 | BM91: 441 | BN91: 441 | BO91: 441 | BP91: 441
B92: =B30 -> Totais........................ | F92: Totais... | H92: =SUM(H86:H91) -> 146483.4892 | I92: 146483.4892 | J92: 146483.4892 | K92: 146483.4892 | L92: 146483.4892 | M92: 146483.4892 | N92: 146483.4892 | O92: 146483.4892 | P92: 146483.4892 | Q92: 146483.4892 | R92: 146483.4892 | S92: 146483.4892 | T92: 1757801.87 | W92: Totais........................ | X92: =SUM(X86:X91) -> 0.122638191 | Y92: 1 | Z92: ='FU Folha FGV'!$AM43 -> 0.122638191 | AA92: ='FU Folha FGV'!$AM44 -> 0.122638191 | AB92: ='FU Folha FGV'!$AM45 -> 0.122638191 | AC92: ='FU Folha FGV'!$AM46 -> 0.122638191 | AD92: ='FU Folha FGV'!$AM47 -> 0.122638191 | AE92: ='FU Folha FGV'!$AM48 -> 0.122638191 | AF92: ='FU Folha FGV'!$AM49 -> 0.122638191 | AG92: ='FU Folha FGV'!$AM50 -> 0.122638191 | AH92: ='FU Folha FGV'!$AM51 -> 0.122638191 | AI92: ='FU Folha FGV'!$AM52 -> 0.122638191 | AJ92: ='FU Folha FGV'!$AM53 -> 0.122638191 | AK92: ='FU Folha FGV'!$AM54 -> 0.122638191 | AN92: Totais........................ | AO92: ='FU Folha FGV'!$AT$43 -> 0.122638191 | AP92: ='FU Folha FGV'!$AT$44 -> 0.122638191 | AQ92: ='FU Folha FGV'!$AT$45 -> 0.122638191 | AR92: ='FU Folha FGV'!$AT$46 -> 0.122638191 | AS92: ='FU Folha FGV'!$AT$47 -> 0.122638191 | AT92: ='FU Folha FGV'!$AT$48 -> 0.122638191 | AU92: ='FU Folha FGV'!$AT$49 -> 0.122638191 | AV92: ='FU Folha FGV'!$AT$50 -> 0.122638191 | AW92: ='FU Folha FGV'!$AT$51 -> 0.122638191 | AX92: ='FU Folha FGV'!$AT$52 -> 0.122638191 | AY92: ='FU Folha FGV'!$AT$53 -> 0.122638191 | AZ92: ='FU Folha FGV'!$AT$54 -> 0.122638191 | BC92: Totais........................ | BD92: 464 | BE92: =BE79 -> 441 | BF92: 441 | BG92: 441 | BH92: 441 | BI92: 441 | BJ92: 441 | BK92: 441 | BL92: 441 | BM92: 441 | BN92: 441 | BO92: 441 | BP92: 441
A93: Manutenção | B93: Chefe de Manutenção | C93: =C31 -> 3490.975 | D93: 0 | E93: 0.3442967869 | F93: =(C93+D93)*(E93/100*100+1) -> 4692.906476 | G93: =G91 -> 624.71 | H93: =(($F93*Z93)+($G93*AO93))*BE93 -> 17588.01649 | I93: 17588.01649 | J93: 17588.01649 | K93: 17588.01649 | L93: 17588.01649 | M93: 17588.01649 | N93: 17588.01649 | O93: 17588.01649 | P93: 17588.01649 | Q93: 17588.01649 | R93: 17588.01649 | S93: 17588.01649 | T93: =SUM(H93:S93) -> 211056.1979 | V93: Manutenção | W93: Chefe de Manutenção | X93: =X31 -> 0.0075 | Y93: =X93/X102 -> 0.01492611946 | Z93: =Z102*$Y93 -> 0.0075 | AA93: 0.0075 | AB93: 0.0075 | AC93: 0.0075 | AD93: 0.0075 | AE93: 0.0075 | AF93: 0.0075 | AG93: 0.0075 | AH93: 0.0075 | AI93: 0.0075 | AJ93: 0.0075 | AK93: 0.0075 | AM93: Manutenção | AN93: Chefe de Manutenção | AO93: =AO102*$Y93 -> 0.0075 | AP93: 0.0075 | AQ93: 0.0075 | AR93: 0.0075 | AS93: 0.0075 | AT93: 0.0075 | AU93: 0.0075 | AV93: 0.0075 | AW93: 0.0075 | AX93: 0.0075 | AY93: 0.0075 | AZ93: 0.0075 | BB93: Manutenção | BC93: Chefe de Manutenção | BD93: 464 | BE93: =BE91 -> 441 | BF93: 441 | BG93: 441 | BH93: 441 | BI93: 441 | BJ93: 441 | BK93: 441 | BL93: 441 | BM93: 441 | BN93: 441 | BO93: 441 | BP93: 441
B94: Mecânicos | C94: =C32 -> 2094.585 | D94: 0 | E94: 0.3442967869 | F94: 2815.743885 | G94: =G93 -> 624.71 | H94: =(($F94*Z94)+($G94*AO94))*BE94 -> 137237.8037 | I94: 137237.8037 | J94: 137237.8037 | K94: 137237.8037 | L94: 137237.8037 | M94: 137237.8037 | N94: 137237.8037 | O94: 137237.8037 | P94: 137237.8037 | Q94: 137237.8037 | R94: 137237.8037 | S94: 137237.8037 | T94: 1646853.645 | W94: Mecânicos | X94: 0.09045226131 | Y94: =X94/X102 -> 0.180013501 | Z94: =Z102*$Y94 -> 0.09045226131 | AA94: 0.09045226131 | AB94: 0.09045226131 | AC94: 0.09045226131 | AD94: 0.09045226131 | AE94: 0.09045226131 | AF94: 0.09045226131 | AG94: 0.09045226131 | AH94: 0.09045226131 | AI94: 0.09045226131 | AJ94: 0.09045226131 | AK94: 0.09045226131 | AN94: Mecânicos | AO94: =AO102*$Y94 -> 0.09045226131 | AP94: 0.09045226131 | AQ94: 0.09045226131 | AR94: 0.09045226131 | AS94: 0.09045226131 | AT94: 0.09045226131 | AU94: 0.09045226131 | AV94: 0.09045226131 | AW94: 0.09045226131 | AX94: 0.09045226131 | AY94: 0.09045226131 | AZ94: 0.09045226131 | BC94: Mecânicos | BD94: 464 | BE94: =BE93 -> 441 | BF94: 441 | BG94: 441 | BH94: 441 | BI94: 441 | BJ94: 441 | BK94: 441 | BL94: 441 | BM94: 441 | BN94: 441 | BO94: 441 | BP94: 441
B95: Auxiliares | C95: =C33 -> 1256.751 | D95: 0 | E95: 0.3442967869 | F95: 1689.446331 | G95: 624.71 | H95: =(($F95*Z95)+($G95*AO95))*BE95 -> 92310.41687 | I95: 92310.41687 | J95: 92310.41687 | K95: 92310.41687 | L95: 92310.41687 | M95: 92310.41687 | N95: 92310.41687 | O95: 92310.41687 | P95: 92310.41687 | Q95: 92310.41687 | R95: 92310.41687 | S95: 92310.41687 | T95: 1107725.002 | W95: Auxiliares | X95: 0.09045226131 | Y95: =X95/X102 -> 0.180013501 | Z95: =Z102*$Y95 -> 0.09045226131 | AA95: 0.09045226131 | AB95: 0.09045226131 | AC95: 0.09045226131 | AD95: 0.09045226131 | AE95: 0.09045226131 | AF95: 0.09045226131 | AG95: 0.09045226131 | AH95: 0.09045226131 | AI95: 0.09045226131 | AJ95: 0.09045226131 | AK95: 0.09045226131 | AN95: Auxiliares | AO95: =AO102*$Y95 -> 0.09045226131 | AP95: 0.09045226131 | AQ95: 0.09045226131 | AR95: 0.09045226131 | AS95: 0.09045226131 | AT95: 0.09045226131 | AU95: 0.09045226131 | AV95: 0.09045226131 | AW95: 0.09045226131 | AX95: 0.09045226131 | AY95: 0.09045226131 | AZ95: 0.09045226131 | BC95: Auxiliares | BD95: 464 | BE95: =BE94 -> 441 | BF95: 441 | BG95: 441 | BH95: 441 | BI95: 441 | BJ95: 441 | BK95: 441 | BL95: 441 | BM95: 441 | BN95: 441 | BO95: 441 | BP95: 441
B96: Funileiro | C96: =C34 -> 2094.585 | D96: 0 | E96: 0.3442967869 | F96: 2815.743885 | G96: 624.71 | H96: =(($F96*Z96)+($G96*AO96))*BE96 -> 95304.03037 | I96: 95304.03037 | J96: 95304.03037 | K96: 95304.03037 | L96: 95304.03037 | M96: 95304.03037 | N96: 95304.03037 | O96: 95304.03037 | P96: 95304.03037 | Q96: 95304.03037 | R96: 95304.03037 | S96: 95304.03037 | T96: 1143648.364 | W96: Funileiro | X96: 0.06281407035 | Y96: =X96/X102 -> 0.1250093757 | Z96: =Z102*$Y96 -> 0.06281407035 | AA96: 0.06281407035 | AB96: 0.06281407035 | AC96: 0.06281407035 | AD96: 0.06281407035 | AE96: 0.06281407035 | AF96: 0.06281407035 | AG96: 0.06281407035 | AH96: 0.06281407035 | AI96: 0.06281407035 | AJ96: 0.06281407035 | AK96: 0.06281407035 | AN96: Funileiro | AO96: =AO102*$Y96 -> 0.06281407035 | AP96: 0.06281407035 | AQ96: 0.06281407035 | AR96: 0.06281407035 | AS96: 0.06281407035 | AT96: 0.06281407035 | AU96: 0.06281407035 | AV96: 0.06281407035 | AW96: 0.06281407035 | AX96: 0.06281407035 | AY96: 0.06281407035 | AZ96: 0.06281407035 | BC96: Funileiro | BD96: 464 | BE96: =BE95 -> 441 | BF96: 441 | BG96: 441 | BH96: 441 | BI96: 441 | BJ96: 441 | BK96: 441 | BL96: 441 | BM96: 441 | BN96: 441 | BO96: 441 | BP96: 441
B97: Borracheiro | C97: =C35 -> 1396.39 | D97: 0 | E97: 0.3442967869 | F97: 1877.16259 | G97: 624.71 | H97: =(($F97*Z97)+($G97*AO97))*BE97 -> 19405.22785 | I97: 19405.22785 | J97: 19405.22785 | K97: 19405.22785 | L97: 19405.22785 | M97: 19405.22785 | N97: 19405.22785 | O97: 19405.22785 | P97: 19405.22785 | Q97: 19405.22785 | R97: 19405.22785 | S97: 19405.22785 | T97: 232862.7343 | W97: Borracheiro | X97: 0.0175879397 | Y97: =X97/X102 -> 0.0350026252 | Z97: =Z102*$Y97 -> 0.0175879397 | AA97: 0.0175879397 | AB97: 0.0175879397 | AC97: 0.0175879397 | AD97: 0.0175879397 | AE97: 0.0175879397 | AF97: 0.0175879397 | AG97: 0.0175879397 | AH97: 0.0175879397 | AI97: 0.0175879397 | AJ97: 0.0175879397 | AK97: 0.0175879397 | AN97: Borracheiro | AO97: =AO102*$Y97 -> 0.0175879397 | AP97: 0.0175879397 | AQ97: 0.0175879397 | AR97: 0.0175879397 | AS97: 0.0175879397 | AT97: 0.0175879397 | AU97: 0.0175879397 | AV97: 0.0175879397 | AW97: 0.0175879397 | AX97: 0.0175879397 | AY97: 0.0175879397 | AZ97: 0.0175879397 | BC97: Borracheiro | BD97: 464 | BE97: =BE96 -> 441 | BF97: 441 | BG97: 441 | BH97: 441 | BI97: 441 | BJ97: 441 | BK97: 441 | BL97: 441 | BM97: 441 | BN97: 441 | BO97: 441 | BP97: 441
B98: Eletricista | C98: =C36 -> 2373.863 | D98: 0 | E98: 0.3442967869 | F98: 3191.176403 | G98: 624.71 | H98: =(($F98*Z98)+($G98*AO98))*BE98 -> 105703.8884 | I98: 105703.8884 | J98: 105703.8884 | K98: 105703.8884 | L98: 105703.8884 | M98: 105703.8884 | N98: 105703.8884 | O98: 105703.8884 | P98: 105703.8884 | Q98: 105703.8884 | R98: 105703.8884 | S98: 105703.8884 | T98: 1268446.661 | W98: Eletricista | X98: 0.06281407035 | Y98: =X98/X102 -> 0.1250093757 | Z98: =Z102*$Y98 -> 0.06281407035 | AA98: 0.06281407035 | AB98: 0.06281407035 | AC98: 0.06281407035 | AD98: 0.06281407035 | AE98: 0.06281407035 | AF98: 0.06281407035 | AG98: 0.06281407035 | AH98: 0.06281407035 | AI98: 0.06281407035 | AJ98: 0.06281407035 | AK98: 0.06281407035 | AN98: Eletricista | AO98: =AO102*$Y98 -> 0.06281407035 | AP98: 0.06281407035 | AQ98: 0.06281407035 | AR98: 0.06281407035 | AS98: 0.06281407035 | AT98: 0.06281407035 | AU98: 0.06281407035 | AV98: 0.06281407035 | AW98: 0.06281407035 | AX98: 0.06281407035 | AY98: 0.06281407035 | AZ98: 0.06281407035 | BC98: Eletricista | BD98: 464 | BE98: =BE97 -> 441 | BF98: 441 | BG98: 441 | BH98: 441 | BI98: 441 | BJ98: 441 | BK98: 441 | BL98: 441 | BM98: 441 | BN98: 441 | BO98: 441 | BP98: 441
B99: Pintores | C99: =C37 -> 2373.863 | D99: 0 | E99: 0.3442967869 | F99: 3191.176403 | G99: 624.71 | H99: =(($F99*Z99)+($G99*AO99))*BE99 -> 50737.86645 | I99: 50737.86645 | J99: 50737.86645 | K99: 50737.86645 | L99: 50737.86645 | M99: 50737.86645 | N99: 50737.86645 | O99: 50737.86645 | P99: 50737.86645 | Q99: 50737.86645 | R99: 50737.86645 | S99: 50737.86645 | T99: 608854.3974 | W99: Pintores | X99: 0.03015075377 | Y99: =X99/X102 -> 0.06000450034 | Z99: =Z102*$Y99 -> 0.03015075377 | AA99: 0.03015075377 | AB99: 0.03015075377 | AC99: 0.03015075377 | AD99: 0.03015075377 | AE99: 0.03015075377 | AF99: 0.03015075377 | AG99: 0.03015075377 | AH99: 0.03015075377 | AI99: 0.03015075377 | AJ99: 0.03015075377 | AK99: 0.03015075377 | AN99: Pintores | AO99: =AO102*$Y99 -> 0.03015075377 | AP99: 0.03015075377 | AQ99: 0.03015075377 | AR99: 0.03015075377 | AS99: 0.03015075377 | AT99: 0.03015075377 | AU99: 0.03015075377 | AV99: 0.03015075377 | AW99: 0.03015075377 | AX99: 0.03015075377 | AY99: 0.03015075377 | AZ99: 0.03015075377 | BC99: Pintores | BD99: 464 | BE99: =BE98 -> 441 | BF99: 441 | BG99: 441 | BH99: 441 | BI99: 441 | BJ99: 441 | BK99: 441 | BL99: 441 | BM99: 441 | BN99: 441 | BO99: 441 | BP99: 441
B100: Eletrônico | C100: =C38 -> 2792.78 | E100: =E38 -> 0.3442967869 | F100: 3754.325181 | G100: 624.71 | H100: =(($F100*Z100)+($G100*AO100))*BE100 -> 29112.88213 | I100: 29112.88213 | J100: 29112.88213 | K100: 29112.88213 | L100: 29112.88213 | M100: 29112.88213 | N100: 29112.88213 | O100: 29112.88213 | P100: 29112.88213 | Q100: 29112.88213 | R100: 29112.88213 | S100: 29112.88213 | T100: 349354.5856 | W100: Eletrônico | X100: 0.01507537688 | Y100: =X100/X102 -> 0.03000225017 | Z100: =Z102*$Y100 -> 0.01507537688 | AA100: 0.01507537688 | AB100: 0.01507537688 | AC100: 0.01507537688 | AD100: 0.01507537688 | AE100: 0.01507537688 | AF100: 0.01507537688 | AG100: 0.01507537688 | AH100: 0.01507537688 | AI100: 0.01507537688 | AJ100: 0.01507537688 | AK100: 0.01507537688 | AN100: Eletrônico | AO100: =AO102*$Y100 -> 0.01507537688 | AP100: 0.01507537688 | AQ100: 0.01507537688 | AR100: 0.01507537688 | AS100: 0.01507537688 | AT100: 0.01507537688 | AU100: 0.01507537688 | AV100: 0.01507537688 | AW100: 0.01507537688 | AX100: 0.01507537688 | AY100: 0.01507537688 | AZ100: 0.01507537688 | BC100: Eletrônico | BD100: 464 | BE100: =BE99 -> 441 | BF100: 441 | BG100: 441 | BH100: 441 | BI100: 441 | BJ100: 441 | BK100: 441 | BL100: 441 | BM100: 441 | BN100: 441 | BO100: 441 | BP100: 441
B101: Outros | C101: 1256.751 | D101: =D39 -> 0 | E101: 0.3442967869 | F101: 1689.446331 | G101: =G99 -> 624.71 | H101: =(($F101*Z101)+($G101*AO101))*BE101 -> 128208.9123 | I101: 128208.9123 | J101: 128208.9123 | K101: 128208.9123 | L101: 128208.9123 | M101: 128208.9123 | N101: 128208.9123 | O101: 128208.9123 | P101: 128208.9123 | Q101: 128208.9123 | R101: 128208.9123 | S101: 128208.9123 | T101: 1538506.948 | W101: Outros | X101: 0.1256281407 | Y101: =X101/X102 -> 0.2500187514 | Z101: =Z102*$Y101 -> 0.1256281407 | AA101: 0.1256281407 | AB101: 0.1256281407 | AC101: 0.1256281407 | AD101: 0.1256281407 | AE101: 0.1256281407 | AF101: 0.1256281407 | AG101: 0.1256281407 | AH101: 0.1256281407 | AI101: 0.1256281407 | AJ101: 0.1256281407 | AK101: 0.1256281407 | AN101: Outros | AO101: =AO102*$Y101 -> 0.1256281407 | AP101: 0.1256281407 | AQ101: 0.1256281407 | AR101: 0.1256281407 | AS101: 0.1256281407 | AT101: 0.1256281407 | AU101: 0.1256281407 | AV101: 0.1256281407 | AW101: 0.1256281407 | AX101: 0.1256281407 | AY101: 0.1256281407 | AZ101: 0.1256281407 | BC101: Outros | BD101: 464 | BE101: =BE99 -> 441 | BF101: 441 | BG101: 441 | BH101: 441 | BI101: 441 | BJ101: 441 | BK101: 441 | BL101: 441 | BM101: 441 | BN101: 441 | BO101: 441 | BP101: 441
B102: Totais........................ | F102: Totais... | H102: =SUM(H93:H101) -> 675609.0447 | I102: 675609.0447 | J102: 675609.0447 | K102: 675609.0447 | L102: 675609.0447 | M102: 675609.0447 | N102: 675609.0447 | O102: 675609.0447 | P102: 675609.0447 | Q102: 675609.0447 | R102: 675609.0447 | S102: 675609.0447 | T102: 8107308.536 | W102: Totais........................ | X102: =SUM(X93:X101) -> 0.5024748744 | Y102: 1 | Z102: ='FU Folha FGV'!$AN43 -> 0.5024748744 | AA102: ='FU Folha FGV'!$AN44 -> 0.5024748744 | AB102: ='FU Folha FGV'!$AN45 -> 0.5024748744 | AC102: ='FU Folha FGV'!$AN46 -> 0.5024748744 | AD102: ='FU Folha FGV'!$AN47 -> 0.5024748744 | AE102: ='FU Folha FGV'!$AN48 -> 0.5024748744 | AF102: ='FU Folha FGV'!$AN49 -> 0.5024748744 | AG102: ='FU Folha FGV'!$AN50 -> 0.5024748744 | AH102: ='FU Folha FGV'!$AN51 -> 0.5024748744 | AI102: ='FU Folha FGV'!$AN52 -> 0.5024748744 | AJ102: ='FU Folha FGV'!$AN53 -> 0.5024748744 | AK102: ='FU Folha FGV'!$AN54 -> 0.5024748744 | AN102: Totais........................ | AO102: ='FU Folha FGV'!$AU$43 -> 0.5024748744 | AP102: ='FU Folha FGV'!$AU$44 -> 0.5024748744 | AQ102: ='FU Folha FGV'!$AU$45 -> 0.5024748744 | AR102: ='FU Folha FGV'!$AU$46 -> 0.5024748744 | AS102: ='FU Folha FGV'!$AU$47 -> 0.5024748744 | AT102: ='FU Folha FGV'!$AU$48 -> 0.5024748744 | AU102: ='FU Folha FGV'!$AU$49 -> 0.5024748744 | AV102: ='FU Folha FGV'!$AU$50 -> 0.5024748744 | AW102: ='FU Folha FGV'!$AU$51 -> 0.5024748744 | AX102: ='FU Folha FGV'!$AU$52 -> 0.5024748744 | AY102: ='FU Folha FGV'!$AU$53 -> 0.5024748744 | AZ102: ='FU Folha FGV'!$AU$54 -> 0.5024748744 | BC102: Totais........................ | BD102: 464 | BE102: =BE101 -> 441 | BF102: 441 | BG102: 441 | BH102: 441 | BI102: 441 | BJ102: 441 | BK102: 441 | BL102: 441 | BM102: 441 | BN102: 441 | BO102: 441 | BP102: 441
F103: Total Geral Mensal Pessoal de Operação | H103: =H80+H92+H102 -> 5574681.06 | I103: 5613336.235 | J103: 5618440.875 | K103: 5633990.395 | L103: 6863412.405 | M103: 6921542.277 | N103: 6829831.244 | O103: 6882144.744 | P103: 6878555.323 | Q103: 6878555.323 | R103: 7056858.27 | S103: 6132518.274 | T103: 76883866.42
A105: Administração - Composição do Custo Unitário Por Função | G105: Ano 2 | H105: Administração - Composição de Custo Total Mensal | T105: R$
A106: Funções | B106: Cargo | C106: Salário | D106: Hs Extras | E106: Enc. | F106: R$ Total | G106: Benefícios | H106: =H65 -> 2015-01-01 | I106: =DATE(YEAR(H106),MONTH(H106)+1,DAY(H106)) -> 2015-02-01 | J106: 2015-03-01 | K106: 2015-04-01 | L106: 2015-05-01 | M106: 2015-06-01 | N106: 2015-07-01 | O106: 2015-08-01 | P106: 2015-09-01 | Q106: 2015-10-01 | R106: 2015-11-01 | S106: 2015-12-01 | T106: Total | V106: Fator Utilização Mensal | X106: =X83 -> Ano 2 | Z106: FU FOLHA DE PAGAMENTO | AM106: =X106 -> Ano 2 | AN106: FU Benefícios | AO106: FU FÍSICO PARA CÁLCULOS DOS BENEFÍCIOS | BB106: Frota Mensal | BE106: =BE83 -> Ano 2
C107: base | D107: e Adic. | E107: Soc. | F107: Por | G107: R$ por | H107: R$ | I107: R$ | J107: R$ | K107: R$ | L107: R$ | M107: R$ | N107: R$ | O107: R$ | P107: R$ | Q107: R$ | R107: R$ | S107: R$ | T107: Durante o | V107: Funções | W107: Cargo | X107: FU | Z107: =H106 -> 2015-01-01 | AA107: 2015-02-01 | AB107: 2015-03-01 | AC107: 2015-04-01 | AD107: 2015-05-01 | AE107: 2015-06-01 | AF107: 2015-07-01 | AG107: 2015-08-01 | AH107: 2015-09-01 | AI107: 2015-10-01 | AJ107: 2015-11-01 | AK107: 2015-12-01 | AM107: Funções | AN107: Cargo | AO107: =Z107 -> 2015-01-01 | AP107: 2015-02-01 | AQ107: 2015-03-01 | AR107: 2015-04-01 | AS107: 2015-05-01 | AT107: 2015-06-01 | AU107: 2015-07-01 | AV107: 2015-08-01 | AW107: 2015-09-01 | AX107: 2015-10-01 | AY107: 2015-11-01 | AZ107: 2015-12-01 | BB107: Funções | BC107: Cargo | BD107: Frota | BE107: =Z107 -> 2015-01-01 | BF107: 2015-02-01 | BG107: 2015-03-01 | BH107: 2015-04-01 | BI107: 2015-05-01 | BJ107: 2015-06-01 | BK107: 2015-07-01 | BL107: 2015-08-01 | BM107: 2015-09-01 | BN107: 2015-10-01 | BO107: 2015-11-01 | BP107: 2015-12-01
C108: (R$/mês) | D108: Not. | E108: % | F108: Função | G108: mês | T108: =T85 -> Ano 2 | X108: Licitação | Z108: FU | AA108: FU | AB108: FU | AC108: FU | AD108: FU | AE108: FU | AF108: FU | AG108: FU | AH108: FU | AI108: FU | AJ108: FU | AK108: FU | BD108: Licitação | BE108: Frota | BF108: Frota | BG108: Frota | BH108: Frota | BI108: Frota | BJ108: Frota | BK108: Frota | BL108: Frota | BM108: Frota | BN108: Frota | BO108: Frota | BP108: Frota
A109: Administração | B109: =B47 -> Controle de Manutenção | C109: 1256.751 | D109: 0 | E109: 0.3442967869 | F109: =(C109+D109)*(E109/100*100+1) -> 1689.446331 | G109: =G101 -> 624.71 | H109: =(($F109*Z109)+($G109*AO109))*BE109 -> 11570.78166 | I109: 11570.78166 | J109: 11570.78166 | K109: 11570.78166 | L109: 11570.78166 | M109: 11570.78166 | N109: 11570.78166 | O109: 11570.78166 | P109: 11570.78166 | Q109: 11570.78166 | R109: 11570.78166 | S109: 11570.78166 | T109: =SUM(H109:S109) -> 138849.3799 | V109: Administração | W109: =B109 -> Controle de Manutenção | X109: =X47 -> 0.01133786848 | Y109: =X109/X124 -> 0.1136363636 | Z109: =Z124*$Y109 -> 0.01133786848 | AA109: 0.01133786848 | AB109: 0.01133786848 | AC109: 0.01133786848 | AD109: 0.01133786848 | AE109: 0.01133786848 | AF109: 0.01133786848 | AG109: 0.01133786848 | AH109: 0.01133786848 | AI109: 0.01133786848 | AJ109: 0.01133786848 | AK109: 0.01133786848 | AM109: Administração | AN109: =W109 -> Controle de Manutenção | AO109: =AO124*$Y109 -> 0.01133786848 | AP109: 0.01133786848 | AQ109: 0.01133786848 | AR109: 0.01133786848 | AS109: 0.01133786848 | AT109: 0.01133786848 | AU109: 0.01133786848 | AV109: 0.01133786848 | AW109: 0.01133786848 | AX109: 0.01133786848 | AY109: 0.01133786848 | AZ109: 0.01133786848 | BB109: Administração | BC109: =AN109 -> Controle de Manutenção | BD109: =BD$11 -> 464 | BE109: =BE102 -> 441 | BF109: 441 | BG109: 441 | BH109: 441 | BI109: 441 | BJ109: 441 | BK109: 441 | BL109: 441 | BM109: 441 | BN109: 441 | BO109: 441 | BP109: 441
B110: =B48 -> Gerente de Operação | C110: 6981.95 | D110: 0 | E110: 0.3442967869 | F110: 9385.812951 | G110: =G109 -> 624.71 | H110: =(($F110*Z110)+($G110*AO110))*BE110 -> 10010.52295 | I110: 10010.52295 | J110: 10010.52295 | K110: 10010.52295 | L110: 10010.52295 | M110: 10010.52295 | N110: 10010.52295 | O110: 10010.52295 | P110: 10010.52295 | Q110: 10010.52295 | R110: 10010.52295 | S110: 10010.52295 | T110: 120126.2754 | W110: Gerente de Operação | X110: 0.002267573696 | Y110: =X110/X124 -> 0.02272727273 | Z110: =Z124*$Y110 -> 0.002267573696 | AA110: 0.002267573696 | AB110: 0.002267573696 | AC110: 0.002267573696 | AD110: 0.002267573696 | AE110: 0.002267573696 | AF110: 0.002267573696 | AG110: 0.002267573696 | AH110: 0.002267573696 | AI110: 0.002267573696 | AJ110: 0.002267573696 | AK110: 0.002267573696 | AN110: Gerente de Operação | AO110: =AO124*$Y110 -> 0.002267573696 | AP110: 0.002267573696 | AQ110: 0.002267573696 | AR110: 0.002267573696 | AS110: 0.002267573696 | AT110: 0.002267573696 | AU110: 0.002267573696 | AV110: 0.002267573696 | AW110: 0.002267573696 | AX110: 0.002267573696 | AY110: 0.002267573696 | AZ110: 0.002267573696 | BC110: Gerente de Operação | BD110: 464 | BE110: =BE109 -> 441 | BF110: 441 | BG110: 441 | BH110: 441 | BI110: 441 | BJ110: 441 | BK110: 441 | BL110: 441 | BM110: 441 | BN110: 441 | BO110: 441 | BP110: 441
B111: =B49 -> Gerente Administrativo | C111: 6981.95 | D111: 0 | E111: 0.3442967869 | F111: 9385.812951 | G111: 624.71 | H111: =(($F111*Z111)+($G111*AO111))*BE111 -> 10010.52295 | I111: 10010.52295 | J111: 10010.52295 | K111: 10010.52295 | L111: 10010.52295 | M111: 10010.52295 | N111: 10010.52295 | O111: 10010.52295 | P111: 10010.52295 | Q111: 10010.52295 | R111: 10010.52295 | S111: 10010.52295 | T111: 120126.2754 | W111: Gerente Administrativo | X111: 0.002267573696 | Y111: =X111/X124 -> 0.02272727273 | Z111: =Z124*$Y111 -> 0.002267573696 | AA111: 0.002267573696 | AB111: 0.002267573696 | AC111: 0.002267573696 | AD111: 0.002267573696 | AE111: 0.002267573696 | AF111: 0.002267573696 | AG111: 0.002267573696 | AH111: 0.002267573696 | AI111: 0.002267573696 | AJ111: 0.002267573696 | AK111: 0.002267573696 | AN111: Gerente Administrativo | AO111: =AO124*$Y111 -> 0.002267573696 | AP111: 0.002267573696 | AQ111: 0.002267573696 | AR111: 0.002267573696 | AS111: 0.002267573696 | AT111: 0.002267573696 | AU111: 0.002267573696 | AV111: 0.002267573696 | AW111: 0.002267573696 | AX111: 0.002267573696 | AY111: 0.002267573696 | AZ111: 0.002267573696 | BC111: Gerente Administrativo | BD111: 464 | BE111: =BE110 -> 441 | BF111: 441 | BG111: 441 | BH111: 441 | BI111: 441 | BJ111: 441 | BK111: 441 | BL111: 441 | BM111: 441 | BN111: 441 | BO111: 441 | BP111: 441
B112: =B50 -> Assistente Administrativo | C112: 1536.029 | D112: 0 | E112: 0.3442967869 | F112: 2064.878849 | G112: 624.71 | H112: =(($F112*Z112)+($G112*AO112))*BE112 -> 13447.94425 | I112: 13447.94425 | J112: 13447.94425 | K112: 13447.94425 | L112: 13447.94425 | M112: 13447.94425 | N112: 13447.94425 | O112: 13447.94425 | P112: 13447.94425 | Q112: 13447.94425 | R112: 13447.94425 | S112: 13447.94425 | T112: 161375.331 | W112: Assistente Administrativo | X112: 0.01133786848 | Y112: =X112/X124 -> 0.1136363636 | Z112: =Z124*$Y112 -> 0.01133786848 | AA112: 0.01133786848 | AB112: 0.01133786848 | AC112: 0.01133786848 | AD112: 0.01133786848 | AE112: 0.01133786848 | AF112: 0.01133786848 | AG112: 0.01133786848 | AH112: 0.01133786848 | AI112: 0.01133786848 | AJ112: 0.01133786848 | AK112: 0.01133786848 | AN112: Assistente Administrativo | AO112: =AO124*$Y112 -> 0.01133786848 | AP112: 0.01133786848 | AQ112: 0.01133786848 | AR112: 0.01133786848 | AS112: 0.01133786848 | AT112: 0.01133786848 | AU112: 0.01133786848 | AV112: 0.01133786848 | AW112: 0.01133786848 | AX112: 0.01133786848 | AY112: 0.01133786848 | AZ112: 0.01133786848 | BC112: Assistente Administrativo | BD112: 464 | BE112: =BE111 -> 441 | BF112: 441 | BG112: 441 | BH112: 441 | BI112: 441 | BJ112: 441 | BK112: 441 | BL112: 441 | BM112: 441 | BN112: 441 | BO112: 441 | BP112: 441
B113: =B51 -> Psicólogo | C113: 3630.614 | D113: 0 | E113: 0.3442967869 | F113: 4880.622735 | G113: 624.71 | H113: =(($F113*Z113)+($G113*AO113))*BE113 -> 5505.332735 | I113: 5505.332735 | J113: 5505.332735 | K113: 5505.332735 | L113: 5505.332735 | M113: 5505.332735 | N113: 5505.332735 | O113: 5505.332735 | P113: 5505.332735 | Q113: 5505.332735 | R113: 5505.332735 | S113: 5505.332735 | T113: 66063.99282 | W113: Psicólogo | X113: 0.002267573696 | Y113: =X113/X124 -> 0.02272727273 | Z113: =Z124*$Y113 -> 0.002267573696 | AA113: 0.002267573696 | AB113: 0.002267573696 | AC113: 0.002267573696 | AD113: 0.002267573696 | AE113: 0.002267573696 | AF113: 0.002267573696 | AG113: 0.002267573696 | AH113: 0.002267573696 | AI113: 0.002267573696 | AJ113: 0.002267573696 | AK113: 0.002267573696 | AN113: Psicólogo | AO113: =AO124*$Y113 -> 0.002267573696 | AP113: 0.002267573696 | AQ113: 0.002267573696 | AR113: 0.002267573696 | AS113: 0.002267573696 | AT113: 0.002267573696 | AU113: 0.002267573696 | AV113: 0.002267573696 | AW113: 0.002267573696 | AX113: 0.002267573696 | AY113: 0.002267573696 | AZ113: 0.002267573696 | BC113: Psicólogo | BD113: 464 | BE113: =BE112 -> 441 | BF113: 441 | BG113: 441 | BH113: 441 | BI113: 441 | BJ113: 441 | BK113: 441 | BL113: 441 | BM113: 441 | BN113: 441 | BO113: 441 | BP113: 441
B114: =B52 -> Técnico Seg. do Trabalho | C114: 1815.307 | D114: 0 | E114: 0.3442967869 | F114: 2440.311367 | G114: 624.71 | H114: =(($F114*Z114)+($G114*AO114))*BE114 -> 18390.1282 | I114: 18390.1282 | J114: 18390.1282 | K114: 18390.1282 | L114: 18390.1282 | M114: 18390.1282 | N114: 18390.1282 | O114: 18390.1282 | P114: 18390.1282 | Q114: 18390.1282 | R114: 18390.1282 | S114: 18390.1282 | T114: 220681.5385 | W114: Técnico Seg. do Trabalho | X114: 0.01360544218 | Y114: =X114/X124 -> 0.1363636364 | Z114: =Z124*$Y114 -> 0.01360544218 | AA114: 0.01360544218 | AB114: 0.01360544218 | AC114: 0.01360544218 | AD114: 0.01360544218 | AE114: 0.01360544218 | AF114: 0.01360544218 | AG114: 0.01360544218 | AH114: 0.01360544218 | AI114: 0.01360544218 | AJ114: 0.01360544218 | AK114: 0.01360544218 | AN114: Técnico Seg. do Trabalho | AO114: =AO124*$Y114 -> 0.01360544218 | AP114: 0.01360544218 | AQ114: 0.01360544218 | AR114: 0.01360544218 | AS114: 0.01360544218 | AT114: 0.01360544218 | AU114: 0.01360544218 | AV114: 0.01360544218 | AW114: 0.01360544218 | AX114: 0.01360544218 | AY114: 0.01360544218 | AZ114: 0.01360544218 | BC114: Técnico Seg. do Trabalho | BD114: 464 | BE114: =BE113 -> 441 | BF114: 441 | BG114: 441 | BH114: 441 | BI114: 441 | BJ114: 441 | BK114: 441 | BL114: 441 | BM114: 441 | BN114: 441 | BO114: 441 | BP114: 441
B115: =B53 -> Auxiliar de Compras | C115: 2234.224 | D115: 0 | E115: 0.3442967869 | F115: 3003.460144 | G115: 624.71 | H115: =(($F115*Z115)+($G115*AO115))*BE115 -> 3628.170144 | I115: 3628.170144 | J115: 3628.170144 | K115: 3628.170144 | L115: 3628.170144 | M115: 3628.170144 | N115: 3628.170144 | O115: 3628.170144 | P115: 3628.170144 | Q115: 3628.170144 | R115: 3628.170144 | S115: 3628.170144 | T115: 43538.04173 | W115: Auxiliar de Compras | X115: 0.002267573696 | Y115: =X115/X124 -> 0.02272727273 | Z115: =Z124*$Y115 -> 0.002267573696 | AA115: 0.002267573696 | AB115: 0.002267573696 | AC115: 0.002267573696 | AD115: 0.002267573696 | AE115: 0.002267573696 | AF115: 0.002267573696 | AG115: 0.002267573696 | AH115: 0.002267573696 | AI115: 0.002267573696 | AJ115: 0.002267573696 | AK115: 0.002267573696 | AN115: Auxiliar de Compras | AO115: =AO124*$Y115 -> 0.002267573696 | AP115: 0.002267573696 | AQ115: 0.002267573696 | AR115: 0.002267573696 | AS115: 0.002267573696 | AT115: 0.002267573696 | AU115: 0.002267573696 | AV115: 0.002267573696 | AW115: 0.002267573696 | AX115: 0.002267573696 | AY115: 0.002267573696 | AZ115: 0.002267573696 | BC115: Auxiliar de Compras | BD115: 464 | BE115: =BE114 -> 441 | BF115: 441 | BG115: 441 | BH115: 441 | BI115: 441 | BJ115: 441 | BK115: 441 | BL115: 441 | BM115: 441 | BN115: 441 | BO115: 441 | BP115: 441
B116: =B54 -> Assistente Financeiro | C116: 2234.224 | D116: 0 | E116: 0.3442967869 | F116: 3003.460144 | G116: 624.71 | H116: =(($F116*Z116)+($G116*AO116))*BE116 -> 7256.340289 | I116: 7256.340289 | J116: 7256.340289 | K116: 7256.340289 | L116: 7256.340289 | M116: 7256.340289 | N116: 7256.340289 | O116: 7256.340289 | P116: 7256.340289 | Q116: 7256.340289 | R116: 7256.340289 | S116: 7256.340289 | T116: 87076.08347 | W116: Assistente Financeiro | X116: 0.004535147392 | Y116: =X116/X124 -> 0.04545454545 | Z116: =Z124*$Y116 -> 0.004535147392 | AA116: 0.004535147392 | AB116: 0.004535147392 | AC116: 0.004535147392 | AD116: 0.004535147392 | AE116: 0.004535147392 | AF116: 0.004535147392 | AG116: 0.004535147392 | AH116: 0.004535147392 | AI116: 0.004535147392 | AJ116: 0.004535147392 | AK116: 0.004535147392 | AN116: Assistente Financeiro | AO116: =AO124*$Y116 -> 0.004535147392 | AP116: 0.004535147392 | AQ116: 0.004535147392 | AR116: 0.004535147392 | AS116: 0.004535147392 | AT116: 0.004535147392 | AU116: 0.004535147392 | AV116: 0.004535147392 | AW116: 0.004535147392 | AX116: 0.004535147392 | AY116: 0.004535147392 | AZ116: 0.004535147392 | BC116: Assistente Financeiro | BD116: 464 | BE116: =BE115 -> 441 | BF116: 441 | BG116: 441 | BH116: 441 | BI116: 441 | BJ116: 441 | BK116: 441 | BL116: 441 | BM116: 441 | BN116: 441 | BO116: 441 | BP116: 441
B117: =B55 -> Auxiliar de CPD | C117: 2234.224 | D117: 0 | E117: 0.3442967869 | F117: 3003.460144 | G117: 624.71 | H117: =(($F117*Z117)+($G117*AO117))*BE117 -> 10884.51043 | I117: 10884.51043 | J117: 10884.51043 | K117: 10884.51043 | L117: 10884.51043 | M117: 10884.51043 | N117: 10884.51043 | O117: 10884.51043 | P117: 10884.51043 | Q117: 10884.51043 | R117: 10884.51043 | S117: 10884.51043 | T117: 130614.1252 | W117: Auxiliar de CPD | X117: 0.006802721088 | Y117: =X117/X124 -> 0.06818181818 | Z117: =Z124*$Y117 -> 0.006802721088 | AA117: 0.006802721088 | AB117: 0.006802721088 | AC117: 0.006802721088 | AD117: 0.006802721088 | AE117: 0.006802721088 | AF117: 0.006802721088 | AG117: 0.006802721088 | AH117: 0.006802721088 | AI117: 0.006802721088 | AJ117: 0.006802721088 | AK117: 0.006802721088 | AN117: Auxiliar de CPD | AO117: =AO124*$Y117 -> 0.006802721088 | AP117: 0.006802721088 | AQ117: 0.006802721088 | AR117: 0.006802721088 | AS117: 0.006802721088 | AT117: 0.006802721088 | AU117: 0.006802721088 | AV117: 0.006802721088 | AW117: 0.006802721088 | AX117: 0.006802721088 | AY117: 0.006802721088 | AZ117: 0.006802721088 | BC117: Auxiliar de CPD | BD117: 464 | BE117: =BE116 -> 441 | BF117: 441 | BG117: 441 | BH117: 441 | BI117: 441 | BJ117: 441 | BK117: 441 | BL117: 441 | BM117: 441 | BN117: 441 | BO117: 441 | BP117: 441
B118: =B56 -> Enc. de Depto.Pessoal | C118: 3630.614 | D118: 0 | E118: 0.3442967869 | F118: 4880.622735 | G118: 624.71 | H118: =(($F118*Z118)+($G118*AO118))*BE118 -> 5505.332735 | I118: 5505.332735 | J118: 5505.332735 | K118: 5505.332735 | L118: 5505.332735 | M118: 5505.332735 | N118: 5505.332735 | O118: 5505.332735 | P118: 5505.332735 | Q118: 5505.332735 | R118: 5505.332735 | S118: 5505.332735 | T118: 66063.99282 | W118: Enc. de Depto.Pessoal | X118: 0.002267573696 | Y118: =X118/X124 -> 0.02272727273 | Z118: =Z124*$Y118 -> 0.002267573696 | AA118: 0.002267573696 | AB118: 0.002267573696 | AC118: 0.002267573696 | AD118: 0.002267573696 | AE118: 0.002267573696 | AF118: 0.002267573696 | AG118: 0.002267573696 | AH118: 0.002267573696 | AI118: 0.002267573696 | AJ118: 0.002267573696 | AK118: 0.002267573696 | AN118: Enc. de Depto.Pessoal | AO118: =AO124*$Y118 -> 0.002267573696 | AP118: 0.002267573696 | AQ118: 0.002267573696 | AR118: 0.002267573696 | AS118: 0.002267573696 | AT118: 0.002267573696 | AU118: 0.002267573696 | AV118: 0.002267573696 | AW118: 0.002267573696 | AX118: 0.002267573696 | AY118: 0.002267573696 | AZ118: 0.002267573696 | BC118: Enc. de Depto.Pessoal | BD118: 464 | BE118: =BE117 -> 441 | BF118: 441 | BG118: 441 | BH118: 441 | BI118: 441 | BJ118: 441 | BK118: 441 | BL118: 441 | BM118: 441 | BN118: 441 | BO118: 441 | BP118: 441
B119: =B57 -> Eletrônico | C119: 2792.78 | D119: 0 | E119: 0.3442967869 | F119: 3754.325181 | G119: 624.71 | H119: =(($F119*Z119)+($G119*AO119))*BE119 -> 13137.10554 | I119: 13137.10554 | J119: 13137.10554 | K119: 13137.10554 | L119: 13137.10554 | M119: 13137.10554 | N119: 13137.10554 | O119: 13137.10554 | P119: 13137.10554 | Q119: 13137.10554 | R119: 13137.10554 | S119: 13137.10554 | T119: 157645.2665 | W119: Eletrônico | X119: 0.006802721088 | Y119: =X119/X124 -> 0.06818181818 | Z119: =Z124*$Y119 -> 0.006802721088 | AA119: 0.006802721088 | AB119: 0.006802721088 | AC119: 0.006802721088 | AD119: 0.006802721088 | AE119: 0.006802721088 | AF119: 0.006802721088 | AG119: 0.006802721088 | AH119: 0.006802721088 | AI119: 0.006802721088 | AJ119: 0.006802721088 | AK119: 0.006802721088 | AN119: Eletrônico | AO119: =AO124*$Y119 -> 0.006802721088 | AP119: 0.006802721088 | AQ119: 0.006802721088 | AR119: 0.006802721088 | AS119: 0.006802721088 | AT119: 0.006802721088 | AU119: 0.006802721088 | AV119: 0.006802721088 | AW119: 0.006802721088 | AX119: 0.006802721088 | AY119: 0.006802721088 | AZ119: 0.006802721088 | BC119: Eletrônico | BD119: 464 | BE119: =BE118 -> 441 | BF119: 441 | BG119: 441 | BH119: 441 | BI119: 441 | BJ119: 441 | BK119: 441 | BL119: 441 | BM119: 441 | BN119: 441 | BO119: 441 | BP119: 441
B120: =B58 -> Auxiliar Depto. Pessoal | C120: 1536.029 | D120: 0 | E120: 0.3442967869 | F120: 2064.878849 | G120: 624.71 | H120: =(($F120*Z120)+($G120*AO120))*BE120 -> 10758.3554 | I120: 10758.3554 | J120: 10758.3554 | K120: 10758.3554 | L120: 10758.3554 | M120: 10758.3554 | N120: 10758.3554 | O120: 10758.3554 | P120: 10758.3554 | Q120: 10758.3554 | R120: 10758.3554 | S120: 10758.3554 | T120: 129100.2648 | W120: Auxiliar Depto. Pessoal | X120: 0.009070294785 | Y120: =X120/X124 -> 0.09090909091 | Z120: =Z124*$Y120 -> 0.009070294785 | AA120: 0.009070294785 | AB120: 0.009070294785 | AC120: 0.009070294785 | AD120: 0.009070294785 | AE120: 0.009070294785 | AF120: 0.009070294785 | AG120: 0.009070294785 | AH120: 0.009070294785 | AI120: 0.009070294785 | AJ120: 0.009070294785 | AK120: 0.009070294785 | AN120: Auxiliar Depto. Pessoal | AO120: =AO124*$Y120 -> 0.009070294785 | AP120: 0.009070294785 | AQ120: 0.009070294785 | AR120: 0.009070294785 | AS120: 0.009070294785 | AT120: 0.009070294785 | AU120: 0.009070294785 | AV120: 0.009070294785 | AW120: 0.009070294785 | AX120: 0.009070294785 | AY120: 0.009070294785 | AZ120: 0.009070294785 | BC120: Auxiliar Depto. Pessoal | BD120: 464 | BE120: =BE119 -> 441 | BF120: 441 | BG120: 441 | BH120: 441 | BI120: 441 | BJ120: 441 | BK120: 441 | BL120: 441 | BM120: 441 | BN120: 441 | BO120: 441 | BP120: 441
B121: =B59 -> Contador | C121: 3630.614 | D121: 0 | E121: 0.3442967869 | F121: 4880.622735 | G121: 624.71 | H121: =(($F121*Z121)+($G121*AO121))*BE121 -> 5505.332735 | I121: 5505.332735 | J121: 5505.332735 | K121: 5505.332735 | L121: 5505.332735 | M121: 5505.332735 | N121: 5505.332735 | O121: 5505.332735 | P121: 5505.332735 | Q121: 5505.332735 | R121: 5505.332735 | S121: 5505.332735 | T121: 66063.99282 | W121: Contador | X121: 0.002267573696 | Y121: =X121/X124 -> 0.02272727273 | Z121: =Z124*$Y121 -> 0.002267573696 | AA121: 0.002267573696 | AB121: 0.002267573696 | AC121: 0.002267573696 | AD121: 0.002267573696 | AE121: 0.002267573696 | AF121: 0.002267573696 | AG121: 0.002267573696 | AH121: 0.002267573696 | AI121: 0.002267573696 | AJ121: 0.002267573696 | AK121: 0.002267573696 | AN121: Contador | AO121: =AO124*$Y121 -> 0.002267573696 | AP121: 0.002267573696 | AQ121: 0.002267573696 | AR121: 0.002267573696 | AS121: 0.002267573696 | AT121: 0.002267573696 | AU121: 0.002267573696 | AV121: 0.002267573696 | AW121: 0.002267573696 | AX121: 0.002267573696 | AY121: 0.002267573696 | AZ121: 0.002267573696 | BC121: Contador | BD121: 464 | BE121: =BE120 -> 441 | BF121: 441 | BG121: 441 | BH121: 441 | BI121: 441 | BJ121: 441 | BK121: 441 | BL121: 441 | BM121: 441 | BN121: 441 | BO121: 441 | BP121: 441
B122: =B60 -> Auxiliar Contabilidade | C122: 1536.029 | D122: 0 | E122: 0.3442967869 | F122: 2064.878849 | G122: 624.71 | H122: =(($F122*Z122)+($G122*AO122))*BE122 -> 5379.177699 | I122: 5379.177699 | J122: 5379.177699 | K122: 5379.177699 | L122: 5379.177699 | M122: 5379.177699 | N122: 5379.177699 | O122: 5379.177699 | P122: 5379.177699 | Q122: 5379.177699 | R122: 5379.177699 | S122: 5379.177699 | T122: 64550.13238 | W122: Auxiliar Contabilidade | X122: 0.004535147392 | Y122: =X122/X124 -> 0.04545454545 | Z122: =Z124*$Y122 -> 0.004535147392 | AA122: 0.004535147392 | AB122: 0.004535147392 | AC122: 0.004535147392 | AD122: 0.004535147392 | AE122: 0.004535147392 | AF122: 0.004535147392 | AG122: 0.004535147392 | AH122: 0.004535147392 | AI122: 0.004535147392 | AJ122: 0.004535147392 | AK122: 0.004535147392 | AN122: Auxiliar Contabilidade | AO122: =AO124*$Y122 -> 0.004535147392 | AP122: 0.004535147392 | AQ122: 0.004535147392 | AR122: 0.004535147392 | AS122: 0.004535147392 | AT122: 0.004535147392 | AU122: 0.004535147392 | AV122: 0.004535147392 | AW122: 0.004535147392 | AX122: 0.004535147392 | AY122: 0.004535147392 | AZ122: 0.004535147392 | BC122: Auxiliar Contabilidade | BD122: 464 | BE122: =BE121 -> 441 | BF122: 441 | BG122: 441 | BH122: 441 | BI122: 441 | BJ122: 441 | BK122: 441 | BL122: 441 | BM122: 441 | BN122: 441 | BO122: 441 | BP122: 441
B123: =B61 -> Outros | C123: 2792.78 | D123: 0 | E123: 0.3442967869 | F123: 3754.325181 | G123: 624.71 | H123: =(($F123*Z123)+($G123*AO123))*BE123 -> 35032.28144 | I123: 35032.28144 | J123: 35032.28144 | K123: 35032.28144 | L123: 35032.28144 | M123: 35032.28144 | N123: 35032.28144 | O123: 35032.28144 | P123: 35032.28144 | Q123: 35032.28144 | R123: 35032.28144 | S123: 35032.28144 | T123: 420387.3773 | W123: Outros | X123: 0.01814058957 | Y123: =X123/X124 -> 0.1818181818 | Z123: =Z124*$Y123 -> 0.01814058957 | AA123: 0.01814058957 | AB123: 0.01814058957 | AC123: 0.01814058957 | AD123: 0.01814058957 | AE123: 0.01814058957 | AF123: 0.01814058957 | AG123: 0.01814058957 | AH123: 0.01814058957 | AI123: 0.01814058957 | AJ123: 0.01814058957 | AK123: 0.01814058957 | AN123: Outros | AO123: =AO124*$Y123 -> 0.01814058957 | AP123: 0.01814058957 | AQ123: 0.01814058957 | AR123: 0.01814058957 | AS123: 0.01814058957 | AT123: 0.01814058957 | AU123: 0.01814058957 | AV123: 0.01814058957 | AW123: 0.01814058957 | AX123: 0.01814058957 | AY123: 0.01814058957 | AZ123: 0.01814058957 | BC123: Outros | BD123: 464 | BE123: =BE122 -> 441 | BF123: 441 | BG123: 441 | BH123: 441 | BI123: 441 | BJ123: 441 | BK123: 441 | BL123: 441 | BM123: 441 | BN123: 441 | BO123: 441 | BP123: 441
B124: Totais......................... | F124: Totais... | H124: =SUM(H109:H123) -> 166021.8392 | I124: 166021.8392 | J124: 166021.8392 | K124: 166021.8392 | L124: 166021.8392 | M124: 166021.8392 | N124: 166021.8392 | O124: 166021.8392 | P124: 166021.8392 | Q124: 166021.8392 | R124: 166021.8392 | S124: 166021.8392 | T124: 1992262.07 | W124: Totais......................... | X124: =SUM(X109:X123) -> 0.09977324263 | Y124: 1 | Z124: ='FU Folha FGV'!$AO43 -> 0.09977324263 | AA124: ='FU Folha FGV'!$AO44 -> 0.09977324263 | AB124: ='FU Folha FGV'!$AO45 -> 0.09977324263 | AC124: ='FU Folha FGV'!$AO46 -> 0.09977324263 | AD124: ='FU Folha FGV'!$AO47 -> 0.09977324263 | AE124: ='FU Folha FGV'!$AO48 -> 0.09977324263 | AF124: ='FU Folha FGV'!$AO49 -> 0.09977324263 | AG124: ='FU Folha FGV'!$AO50 -> 0.09977324263 | AH124: ='FU Folha FGV'!$AO51 -> 0.09977324263 | AI124: ='FU Folha FGV'!$AO52 -> 0.09977324263 | AJ124: ='FU Folha FGV'!$AO53 -> 0.09977324263 | AK124: ='FU Folha FGV'!$AO54 -> 0.09977324263 | AN124: Totais......................... | AO124: ='FU Folha FGV'!$AV$43 -> 0.09977324263 | AP124: ='FU Folha FGV'!$AV$44 -> 0.09977324263 | AQ124: ='FU Folha FGV'!$AV$45 -> 0.09977324263 | AR124: ='FU Folha FGV'!$AV$46 -> 0.09977324263 | AS124: ='FU Folha FGV'!$AV$47 -> 0.09977324263 | AT124: ='FU Folha FGV'!$AV$48 -> 0.09977324263 | AU124: ='FU Folha FGV'!$AV$49 -> 0.09977324263 | AV124: ='FU Folha FGV'!$AV$50 -> 0.09977324263 | AW124: ='FU Folha FGV'!$AV$51 -> 0.09977324263 | AX124: ='FU Folha FGV'!$AV$52 -> 0.09977324263 | AY124: ='FU Folha FGV'!$AV$53 -> 0.09977324263 | AZ124: ='FU Folha FGV'!$AV$54 -> 0.09977324263 | BC124: Totais......................... | BD124: 464 | BE124: =BE102 -> 441 | BF124: 441 | BG124: 441 | BH124: 441 | BI124: 441 | BJ124: 441 | BK124: 441 | BL124: 441 | BM124: 441 | BN124: 441 | BO124: 441 | BP124: 441
A125: Planilha 2 - Demonstração do Custo com Pessoal | F125: =G126 -> Ano 3 | K125: =F125 -> Ano 3 | P125: =K125 -> Ano 3 | U125: =P125 -> Ano 3 | AA125: =U125 -> Ano 3 | AF125: =AA125 -> Ano 3 | AK125: =AF125 -> Ano 3 | BE125: =AK125 -> Ano 3 | BJ125: =BE125 -> Ano 3
A126: Motoristas e Cobradores - Composição do Custo Unitário Por Função | G126: Ano 3 | H126: Motoristas e Cobradores - Composição de Custo Total Mensal | T126: R$ | X126: FU Lei Motorista Salário | Y126: FU Mot. | Z126: =$Z$2 -> 0 | AA126: =Z126 -> 0 | AB126: 0 | AC126: 0 | AD126: 0 | AE126: 0 | AF126: 0 | AG126: 0 | AH126: 0 | AI126: 0 | AJ126: 0 | AK126: 0 | AN126: FU Lei Motorista | AO126: =$AO$2 -> 0 | AP126: =AO126 -> 0 | AQ126: 0 | AR126: 0 | AS126: 0 | AT126: 0 | AU126: 0 | AV126: 0 | AW126: 0 | AX126: 0 | AY126: 0 | AZ126: 0
A127: Funções | B127: Cargo | C127: Salário | D127: Hs Extras | E127: Enc. | F127: R$ Total | G127: Benefícios | H127: =DATE(YEAR(S106),MONTH(S106)+1,DAY(S106)) -> 2016-01-01 | I127: =DATE(YEAR(H127),MONTH(H127)+1,DAY(H127)) -> 2016-02-01 | J127: 2016-03-01 | K127: 2016-04-01 | L127: 2016-05-01 | M127: 2016-06-01 | N127: 2016-07-01 | O127: 2016-08-01 | P127: 2016-09-01 | Q127: 2016-10-01 | R127: 2016-11-01 | S127: 2016-12-01 | T127: Total | V127: Fator Utilização Mensal | X127: =U125 -> Ano 3 | Y127: FU Cob. | Z127: =$Z$3 -> 0 | AA127: =Z127 -> 0 | AB127: 0 | AC127: 0 | AD127: 0 | AE127: 0 | AF127: 0 | AG127: 0 | AH127: 0 | AI127: 0 | AJ127: 0 | AK127: 0 | AM127: =X127 -> Ano 3 | AN127: FU Benefícios | AO127: =$AO$3 -> 0 | AP127: =AO127 -> 0 | AQ127: 0 | AR127: 0 | AS127: 0 | AT127: 0 | AU127: 0 | AV127: 0 | AW127: 0 | AX127: 0 | AY127: 0 | AZ127: 0 | BB127: Frota Mensal | BE127: =BE125 -> Ano 3
C128: base | D128: e Adic. | E128: Soc. | F128: Por | G128: R$ por | H128: R$ | I128: R$ | J128: R$ | K128: R$ | L128: R$ | M128: R$ | N128: R$ | O128: R$ | P128: R$ | Q128: R$ | R128: R$ | S128: R$ | T128: Durante o | V128: Funções | W128: Cargo | X128: FU | Z128: =H127 -> 2016-01-01 | AA128: 2016-02-01 | AB128: 2016-03-01 | AC128: 2016-04-01 | AD128: 2016-05-01 | AE128: 2016-06-01 | AF128: 2016-07-01 | AG128: 2016-08-01 | AH128: 2016-09-01 | AI128: 2016-10-01 | AJ128: 2016-11-01 | AK128: 2016-12-01 | AM128: Funções | AN128: Cargo | AO128: FU FÍSICO PARA CÁLCULOS DOS BENEFÍCIOS | BB128: Funções | BC128: Cargo | BD128: Frota | BE128: =Z128 -> 2016-01-01 | BF128: 2016-02-01 | BG128: 2016-03-01 | BH128: 2016-04-01 | BI128: 2016-05-01 | BJ128: 2016-06-01 | BK128: 2016-07-01 | BL128: 2016-08-01 | BM128: 2016-09-01 | BN128: 2016-10-01 | BO128: 2016-11-01 | BP128: 2016-12-01
C129: (R$/mês) | D129: Not. | E129: % | F129: Função | G129: mês | T129: =P125 -> Ano 3 | X129: Licitação | Z129: FU | AA129: FU | AB129: FU | AC129: FU | AD129: FU | AE129: FU | AF129: FU | AG129: FU | AH129: FU | AI129: FU | AJ129: FU | AK129: FU | AO129: =Z128 -> 2016-01-01 | AP129: 2016-02-01 | AQ129: 2016-03-01 | AR129: 2016-04-01 | AS129: 2016-05-01 | AT129: 2016-06-01 | AU129: 2016-07-01 | AV129: 2016-08-01 | AW129: 2016-09-01 | AX129: 2016-10-01 | AY129: 2016-11-01 | AZ129: 2016-12-01 | BD129: Licitação | BE129: Frota | BF129: Frota | BG129: Frota | BH129: Frota | BI129: Frota | BJ129: Frota | BK129: Frota | BL129: Frota | BM129: Frota | BN129: Frota | BO129: Frota | BP129: Frota
A130: Motorista | B130: Miniônibus | C130: =C68 -> 1396.39 | D130: 0 | E130: 0.3442967869 | F130: =(C130+D130)*(E130/100*100+1) -> 1877.16259 | G130: =G68 -> 624.71 | H130: =(($F130*Z130)+($G130*AO130))*BE130 -> 539879.0863 | I130: 608461.6686 | J130: 611914.2528 | K130: 608442.9046 | L130: 617975.0392 | M130: 618050.0953 | N130: 597747.3993 | O130: 613359.0842 | P130: 617580.9942 | Q130: 578439.1976 | R130: 578439.1976 | S130: 543950.8839 | T130: =SUM(H130:S130) -> 7134239.804 | V130: Motorista | W130: =B130 -> Miniônibus | X130: =X68 -> 2.505 | Y130: =X130/X135 -> 1 | Z130: =Z135*$Y130+Z126 -> 2.8772 | AA130: 3.2427 | AB130: 3.2611 | AC130: 3.2426 | AD130: 3.2934 | AE130: 3.2938 | AF130: 3.1856 | AG130: 3.2688 | AH130: 3.2913 | AI130: 3.0827 | AJ130: 3.0827 | AK130: 2.8989 | AM130: Motorista | AN130: =W130 -> Miniônibus | AO130: =AO135*$Y130+AO126 -> 2.8772 | AP130: 3.2427 | AQ130: 3.2611 | AR130: 3.2426 | AS130: 3.2934 | AT130: 3.2938 | AU130: 3.1856 | AV130: 3.2688 | AW130: 3.2913 | AX130: 3.0827 | AY130: 3.0827 | AZ130: 2.8989 | BB130: Motorista | BC130: =W130 -> Miniônibus | BD130: =BD68 -> 79 | BE130: =BP68 -> 75 | BF130: =BE130 -> 75 | BG130: 75 | BH130: 75 | BI130: 75 | BJ130: 75 | BK130: 75 | BL130: 75 | BM130: 75 | BN130: 75 | BO130: 75 | BP130: 75
B131: Ônibus Básico | C131: =C69 -> 1396.39 | D131: 0 | E131: 0.3442967869 | F131: 1877.16259 | G131: =G130 -> 624.71 | H131: =(($F131*Z131)+($G131*AO131))*BE131 -> 2411459.919 | I131: 2717795.453 | J131: 2733216.996 | K131: 2717711.641 | L131: 2760288.508 | M131: 2760623.759 | N131: 2669938.383 | O131: 2739670.576 | P131: 2758528.441 | Q131: 2583695.082 | R131: 2583695.082 | S131: 2429647.281 | T131: 31866271.12 | W131: Ônibus Básico | X131: =X130 -> 2.505 | Y131: =X131/X135 -> 1 | Z131: =Z135*$Y131+Z126 -> 2.8772 | AA131: 3.2427 | AB131: 3.2611 | AC131: 3.2426 | AD131: 3.2934 | AE131: 3.2938 | AF131: 3.1856 | AG131: 3.2688 | AH131: 3.2913 | AI131: 3.0827 | AJ131: 3.0827 | AK131: 2.8989 | AN131: Ônibus Básico | AO131: =AO135*$Y131+AO126 -> 2.8772 | AP131: 3.2427 | AQ131: 3.2611 | AR131: 3.2426 | AS131: 3.2934 | AT131: 3.2938 | AU131: 3.1856 | AV131: 3.2688 | AW131: 3.2913 | AX131: 3.0827 | AY131: 3.0827 | AZ131: 2.8989 | BC131: Ônibus Básico | BD131: 352 | BE131: 335 | BF131: =BE131 -> 335 | BG131: 335 | BH131: 335 | BI131: 335 | BJ131: 335 | BK131: 335 | BL131: 335 | BM131: 335 | BN131: 335 | BO131: 335 | BP131: 335
B132: Padron | C132: =C70 -> 1396.39 | D132: 0 | E132: 0.3442967869 | F132: 1877.16259 | G132: 624.71 | H132: =(($F132*Z132)+($G132*AO132))*BE132 -> 0 | I132: 0 | J132: 0 | K132: 0 | L132: 0 | M132: 0 | N132: 0 | O132: 0 | P132: 0 | Q132: 0 | R132: 0 | S132: 0 | T132: 0 | W132: Padron | X132: 2.505 | Y132: =X132/X135 -> 1 | Z132: =Z135*$Y132+Z126 -> 2.8772 | AA132: 3.2427 | AB132: 3.2611 | AC132: 3.2426 | AD132: 3.2934 | AE132: 3.2938 | AF132: 3.1856 | AG132: 3.2688 | AH132: 3.2913 | AI132: 3.0827 | AJ132: 3.0827 | AK132: 2.8989 | AN132: Padron | AO132: =AO135*$Y132+AO126 -> 2.8772 | AP132: 3.2427 | AQ132: 3.2611 | AR132: 3.2426 | AS132: 3.2934 | AT132: 3.2938 | AU132: 3.1856 | AV132: 3.2688 | AW132: 3.2913 | AX132: 3.0827 | AY132: 3.0827 | AZ132: 2.8989 | BC132: Padron | BD132: 0 | BE132: 0 | BF132: =BE132 -> 0 | BG132: 0 | BH132: 0 | BI132: 0 | BJ132: 0 | BK132: 0 | BL132: 0 | BM132: 0 | BN132: 0 | BO132: 0 | BP132: 0
B133: Articulado | C133: =C71 -> 1396.39 | D133: 0 | E133: 0.3442967869 | F133: 1877.16259 | G133: 624.71 | H133: =(($F133*Z133)+($G133*AO133))*BE133 -> 223150.0223 | I133: 251497.4897 | J133: 252924.5578 | K133: 251489.7339 | L133: 255429.6829 | M133: 255460.7061 | N133: 247068.925 | O133: 253521.7548 | P133: 255266.8109 | Q133: 239088.2017 | R133: 239088.2017 | S133: 224833.032 | T133: 2948819.119 | W133: Articulado | X133: 2.505 | Y133: =X133/X135 -> 1 | Z133: =Z135*$Y133+Z126 -> 2.8772 | AA133: 3.2427 | AB133: 3.2611 | AC133: 3.2426 | AD133: 3.2934 | AE133: 3.2938 | AF133: 3.1856 | AG133: 3.2688 | AH133: 3.2913 | AI133: 3.0827 | AJ133: 3.0827 | AK133: 2.8989 | AN133: Articulado | AO133: =AO135*$Y133+AO126 -> 2.8772 | AP133: 3.2427 | AQ133: 3.2611 | AR133: 3.2426 | AS133: 3.2934 | AT133: 3.2938 | AU133: 3.1856 | AV133: 3.2688 | AW133: 3.2913 | AX133: 3.0827 | AY133: 3.0827 | AZ133: 2.8989 | BC133: Articulado | BD133: 33 | BE133: 31 | BF133: =BE133 -> 31 | BG133: 31 | BH133: 31 | BI133: 31 | BJ133: 31 | BK133: 31 | BL133: 31 | BM133: 31 | BN133: 31 | BO133: 31 | BP133: 31
B134: Articulado BRT | C134: =C72 -> 1396.39 | D134: 0 | E134: 0.3442967869 | F134: 1877.16259 | G134: 624.71 | H134: =(($F134*Z134)+($G134*AO134))*BE134 -> 0 | I134: 0 | J134: 0 | K134: 0 | L134: 0 | M134: 0 | N134: 0 | O134: 0 | P134: 0 | Q134: 0 | R134: 0 | S134: 0 | T134: 0 | W134: Articulado BRT | X134: 2.505 | Y134: =X134/X135 -> 1 | Z134: =Z135*$Y134+Z126 -> 2.8772 | AA134: 3.2427 | AB134: 3.2611 | AC134: 3.2426 | AD134: 3.2934 | AE134: 3.2938 | AF134: 3.1856 | AG134: 3.2688 | AH134: 3.2913 | AI134: 3.0827 | AJ134: 3.0827 | AK134: 2.8989 | AN134: Articulado BRT | AO134: =AO135*$Y134+AO126 -> 2.8772 | AP134: 3.2427 | AQ134: 3.2611 | AR134: 3.2426 | AS134: 3.2934 | AT134: 3.2938 | AU134: 3.1856 | AV134: 3.2688 | AW134: 3.2913 | AX134: 3.0827 | AY134: 3.0827 | AZ134: 2.8989 | BC134: Articulado BRT | BD134: 0 | BE134: 0 | BF134: =BE134 -> 0 | BG134: 0 | BH134: 0 | BI134: 0 | BJ134: 0 | BK134: 0 | BL134: 0 | BM134: 0 | BN134: 0 | BO134: 0 | BP134: 0
B135: Totais........................ | F135: Totais... | G135: 624.71 | H135: =SUM(H130:H134) -> 3174489.027 | I135: 3577754.612 | J135: 3598055.807 | K135: 3577644.279 | L135: 3633693.23 | M135: 3634134.561 | N135: 3514754.708 | O135: 3606551.415 | P135: 3631376.246 | Q135: 3401222.482 | R135: 3401222.482 | S135: 3198431.197 | T135: 41949330.04 | W135: Totais........................ | X135: 2.505 | Z135: ='FU Folha FGV'!$AK60 -> 2.8772 | AA135: ='FU Folha FGV'!$AK61 -> 3.2427 | AB135: ='FU Folha FGV'!$AK62 -> 3.2611 | AC135: ='FU Folha FGV'!$AK63 -> 3.2426 | AD135: ='FU Folha FGV'!$AK64 -> 3.2934 | AE135: ='FU Folha FGV'!$AK65 -> 3.2938 | AF135: ='FU Folha FGV'!$AK66 -> 3.1856 | AG135: ='FU Folha FGV'!$AK67 -> 3.2688 | AH135: ='FU Folha FGV'!$AK68 -> 3.2913 | AI135: ='FU Folha FGV'!$AK69 -> 3.0827 | AJ135: ='FU Folha FGV'!$AK70 -> 3.0827 | AK135: ='FU Folha FGV'!$AK71 -> 2.8989 | AN135: Totais........................ | AO135: ='FU Folha FGV'!$AR$60 -> 2.8772 | AP135: ='FU Folha FGV'!$AR$61 -> 3.2427 | AQ135: ='FU Folha FGV'!$AR$62 -> 3.2611 | AR135: ='FU Folha FGV'!$AR$63 -> 3.2426 | AS135: ='FU Folha FGV'!$AR$64 -> 3.2934 | AT135: ='FU Folha FGV'!$AR$65 -> 3.2938 | AU135: ='FU Folha FGV'!$AR$66 -> 3.1856 | AV135: ='FU Folha FGV'!$AR$67 -> 3.2688 | AW135: ='FU Folha FGV'!$AR$68 -> 3.2913 | AX135: ='FU Folha FGV'!$AR$69 -> 3.0827 | AY135: ='FU Folha FGV'!$AR$70 -> 3.0827 | AZ135: ='FU Folha FGV'!$AR$71 -> 2.8989 | BC135: Totais........................ | BD135: =SUM(BD130:BD134) -> 464 | BE135: 441 | BF135: 441 | BG135: 441 | BH135: 441 | BI135: 441 | BJ135: 441 | BK135: 441 | BL135: 441 | BM135: 441 | BN135: 441 | BO135: 441 | BP135: 441
A136: Cobrador | B136: Miniônibus | C136: =C74 -> 787.52 | D136: 0 | E136: 0.3442967869 | F136: =(C136+D136)*(E136/100*100+1) -> 1058.660606 | G136: 624.71 | H136: =(($F136*Z136)+($G136*AO136))*BE136 -> 363254.543 | I136: 409399.9397 | J136: 411722.9912 | K136: 409387.3144 | L136: 415800.9564 | M136: 415851.4576 | N136: 402190.9051 | O136: 412695.1377 | P136: 415535.8256 | Q136: 389199.4924 | R136: 389199.4924 | S136: 365994.2286 | T136: =SUM(H136:S136) -> 4800232.284 | V136: Cobrador | W136: =B136 -> Miniônibus | X136: =X74 -> 2.505 | Y136: =X136/X141 -> 1 | Z136: =Z141*$Y136+Z127 -> 2.8772 | AA136: 3.2427 | AB136: 3.2611 | AC136: 3.2426 | AD136: 3.2934 | AE136: 3.2938 | AF136: 3.1856 | AG136: 3.2688 | AH136: 3.2913 | AI136: 3.0827 | AJ136: 3.0827 | AK136: 2.8989 | AM136: Cobrador | AN136: Miniônibus | AO136: =AO141*$Y136+AO127 -> 2.8772 | AP136: 3.2427 | AQ136: 3.2611 | AR136: 3.2426 | AS136: 3.2934 | AT136: 3.2938 | AU136: 3.1856 | AV136: 3.2688 | AW136: 3.2913 | AX136: 3.0827 | AY136: 3.0827 | AZ136: 2.8989 | BB136: Cobrador | BC136: Miniônibus | BD136: =BD74 -> 79 | BE136: =BP74 -> 75 | BF136: =BE136 -> 75 | BG136: 75 | BH136: 75 | BI136: 75 | BJ136: 75 | BK136: 75 | BL136: 75 | BM136: 75 | BN136: 75 | BO136: 75 | BP136: 75
B137: Ônibus Básico | C137: =C75 -> 787.52 | D137: 0 | E137: 0.3442967869 | F137: 1058.660606 | G137: 624.71 | H137: =(($F137*Z137)+($G137*AO137))*BE137 -> 1622536.959 | I137: 1828653.064 | J137: 1839029.36 | K137: 1828596.671 | L137: 1857244.272 | M137: 1857469.844 | N137: 1796452.709 | O137: 1843371.615 | P137: 1856060.021 | Q137: 1738424.4 | R137: 1738424.4 | S137: 1634774.221 | T137: 21441037.54 | W137: Ônibus Básico | X137: =X136 -> 2.505 | Y137: =X137/X141 -> 1 | Z137: =Z141*$Y137+Z127 -> 2.8772 | AA137: 3.2427 | AB137: 3.2611 | AC137: 3.2426 | AD137: 3.2934 | AE137: 3.2938 | AF137: 3.1856 | AG137: 3.2688 | AH137: 3.2913 | AI137: 3.0827 | AJ137: 3.0827 | AK137: 2.8989 | AN137: Ônibus Básico | AO137: =AO141*$Y137+AO127 -> 2.8772 | AP137: 3.2427 | AQ137: 3.2611 | AR137: 3.2426 | AS137: 3.2934 | AT137: 3.2938 | AU137: 3.1856 | AV137: 3.2688 | AW137: 3.2913 | AX137: 3.0827 | AY137: 3.0827 | AZ137: 2.8989 | BC137: Ônibus Básico | BD137: 352 | BE137: 335 | BF137: =BE137 -> 335 | BG137: 335 | BH137: 335 | BI137: 335 | BJ137: 335 | BK137: 335 | BL137: 335 | BM137: 335 | BN137: 335 | BO137: 335 | BP137: 335
B138: Padron | C138: =C76 -> 787.52 | D138: 0 | E138: 0.3442967869 | F138: 1058.660606 | G138: 624.71 | H138: =(($F138*Z138)+($G138*AO138))*BE138 -> 0 | I138: 0 | J138: 0 | K138: 0 | L138: 0 | M138: 0 | N138: 0 | O138: 0 | P138: 0 | Q138: 0 | R138: 0 | S138: 0 | T138: 0 | W138: Padron | X138: 2.505 | Y138: =X138/X141 -> 1 | Z138: =Z141*$Y138+Z127 -> 2.8772 | AA138: 3.2427 | AB138: 3.2611 | AC138: 3.2426 | AD138: 3.2934 | AE138: 3.2938 | AF138: 3.1856 | AG138: 3.2688 | AH138: 3.2913 | AI138: 3.0827 | AJ138: 3.0827 | AK138: 2.8989 | AN138: Padron | AO138: =AO141*$Y138+AO127 -> 2.8772 | AP138: 3.2427 | AQ138: 3.2611 | AR138: 3.2426 | AS138: 3.2934 | AT138: 3.2938 | AU138: 3.1856 | AV138: 3.2688 | AW138: 3.2913 | AX138: 3.0827 | AY138: 3.0827 | AZ138: 2.8989 | BC138: Padron | BD138: 0 | BE138: 0 | BF138: =BE138 -> 0 | BG138: 0 | BH138: 0 | BI138: 0 | BJ138: 0 | BK138: 0 | BL138: 0 | BM138: 0 | BN138: 0 | BO138: 0 | BP138: 0
B139: Articulado | C139: =C77 -> 787.52 | D139: 0 | E139: 0.3442967869 | F139: 1058.660606 | G139: 624.71 | H139: =(($F139*Z139)+($G139*AO139))*BE139 -> 150145.2111 | I139: 169218.6417 | J139: 170178.8363 | K139: 169213.4233 | L139: 171864.3953 | M139: 171885.2691 | N139: 166238.9074 | O139: 170580.6569 | P139: 171754.8079 | Q139: 160869.1235 | R139: 160869.1235 | S139: 151277.6145 | T139: 1984096.011 | W139: Articulado | X139: 2.505 | Y139: =X139/X141 -> 1 | Z139: =Z141*$Y139+Z127 -> 2.8772 | AA139: 3.2427 | AB139: 3.2611 | AC139: 3.2426 | AD139: 3.2934 | AE139: 3.2938 | AF139: 3.1856 | AG139: 3.2688 | AH139: 3.2913 | AI139: 3.0827 | AJ139: 3.0827 | AK139: 2.8989 | AN139: Articulado | AO139: =AO141*$Y139+AO127 -> 2.8772 | AP139: 3.2427 | AQ139: 3.2611 | AR139: 3.2426 | AS139: 3.2934 | AT139: 3.2938 | AU139: 3.1856 | AV139: 3.2688 | AW139: 3.2913 | AX139: 3.0827 | AY139: 3.0827 | AZ139: 2.8989 | BC139: Articulado | BD139: 33 | BE139: 31 | BF139: =BE139 -> 31 | BG139: 31 | BH139: 31 | BI139: 31 | BJ139: 31 | BK139: 31 | BL139: 31 | BM139: 31 | BN139: 31 | BO139: 31 | BP139: 31
B140: Articulado BRT | C140: =C78 -> 787.52 | D140: 0 | E140: 0.3442967869 | F140: 1058.660606 | G140: 624.71 | H140: =(($F140*Z140)+($G140*AO140))*BE140 -> 0 | I140: 0 | J140: 0 | K140: 0 | L140: 0 | M140: 0 | N140: 0 | O140: 0 | P140: 0 | Q140: 0 | R140: 0 | S140: 0 | T140: 0 | W140: Articulado BRT | X140: 2.505 | Y140: =X140/X141 -> 1 | Z140: =Z141*$Y140+Z127 -> 2.8772 | AA140: 3.2427 | AB140: 3.2611 | AC140: 3.2426 | AD140: 3.2934 | AE140: 3.2938 | AF140: 3.1856 | AG140: 3.2688 | AH140: 3.2913 | AI140: 3.0827 | AJ140: 3.0827 | AK140: 2.8989 | AN140: Articulado BRT | AO140: =AO141*$Y140+AO127 -> 2.8772 | AP140: 3.2427 | AQ140: 3.2611 | AR140: 3.2426 | AS140: 3.2934 | AT140: 3.2938 | AU140: 3.1856 | AV140: 3.2688 | AW140: 3.2913 | AX140: 3.0827 | AY140: 3.0827 | AZ140: 2.8989 | BC140: Articulado BRT | BD140: 0 | BE140: 0 | BF140: =BE140 -> 0 | BG140: 0 | BH140: 0 | BI140: 0 | BJ140: 0 | BK140: 0 | BL140: 0 | BM140: 0 | BN140: 0 | BO140: 0 | BP140: 0
B141: Totais........................ | F141: Totais... | H141: =SUM(H136:H140) -> 2135936.713 | I141: 2407271.646 | J141: 2420931.188 | K141: 2407197.409 | L141: 2444909.624 | M141: 2445206.57 | N141: 2364882.522 | O141: 2426647.41 | P141: 2443350.654 | Q141: 2288493.016 | R141: 2288493.016 | S141: 2152046.064 | T141: 28225365.83 | W141: Totais........................ | X141: 2.505 | Z141: ='FU Folha FGV'!$AL60 -> 2.8772 | AA141: ='FU Folha FGV'!$AL61 -> 3.2427 | AB141: ='FU Folha FGV'!$AL62 -> 3.2611 | AC141: ='FU Folha FGV'!$AL63 -> 3.2426 | AD141: ='FU Folha FGV'!$AL64 -> 3.2934 | AE141: ='FU Folha FGV'!$AL65 -> 3.2938 | AF141: ='FU Folha FGV'!$AL66 -> 3.1856 | AG141: ='FU Folha FGV'!$AL67 -> 3.2688 | AH141: ='FU Folha FGV'!$AL68 -> 3.2913 | AI141: ='FU Folha FGV'!$AL69 -> 3.0827 | AJ141: ='FU Folha FGV'!$AL70 -> 3.0827 | AK141: ='FU Folha FGV'!$AL71 -> 2.8989 | AN141: Totais........................ | AO141: ='FU Folha FGV'!$AS$60 -> 2.8772 | AP141: ='FU Folha FGV'!$AS$61 -> 3.2427 | AQ141: ='FU Folha FGV'!$AS$62 -> 3.2611 | AR141: ='FU Folha FGV'!$AS$63 -> 3.2426 | AS141: ='FU Folha FGV'!$AS$64 -> 3.2934 | AT141: ='FU Folha FGV'!$AS$65 -> 3.2938 | AU141: ='FU Folha FGV'!$AS$66 -> 3.1856 | AV141: ='FU Folha FGV'!$AS$67 -> 3.2688 | AW141: ='FU Folha FGV'!$AS$68 -> 3.2913 | AX141: ='FU Folha FGV'!$AS$69 -> 3.0827 | AY141: ='FU Folha FGV'!$AS$70 -> 3.0827 | AZ141: ='FU Folha FGV'!$AS$71 -> 2.8989 | BC141: Totais........................ | BD141: =SUM(BD136:BD140) -> 464 | BE141: 441 | BF141: 441 | BG141: 441 | BH141: 441 | BI141: 441 | BJ141: 441 | BK141: 441 | BL141: 441 | BM141: 441 | BN141: 441 | BO141: 441 | BP141: 441
F142: Total Mensal Mot./Cob. | H142: =H135+H141 -> 5310425.74 | I142: 5985026.257 | J142: 6018986.995 | K142: 5984841.688 | L142: 6078602.854 | M142: 6079341.131 | N142: 5879637.23 | O142: 6033198.825 | P142: 6074726.9 | Q142: 5689715.497 | R142: 5689715.497 | S142: 5350477.262 | T142: 70174695.88
A144: Controle Operacional - Composição do Custo Unitário Por Função | G144: Ano 3 | H144: Controle Operacional - Composição de Custo Total Mensal | T144: R$
A145: Funções | B145: Cargo | C145: Salário | D145: Hs Extras | E145: Enc. | F145: R$ Total | G145: Benefícios | H145: =H127 -> 2016-01-01 | I145: =DATE(YEAR(H145),MONTH(H145)+1,DAY(H145)) -> 2016-02-01 | J145: 2016-03-01 | K145: 2016-04-01 | L145: 2016-05-01 | M145: 2016-06-01 | N145: 2016-07-01 | O145: 2016-08-01 | P145: 2016-09-01 | Q145: 2016-10-01 | R145: 2016-11-01 | S145: 2016-12-01 | T145: Total | V145: Fator Utilização Mensal | X145: =U125 -> Ano 3 | Z145: FU FOLHA DE PAGAMENTO | AM145: =X145 -> Ano 3 | AN145: FU Benefícios | AO145: FU FÍSICO PARA CÁLCULOS DOS BENEFÍCIOS | BB145: Frota Mensal | BE145: =BE127 -> Ano 3
C146: base | D146: e Adic. | E146: Soc. | F146: Por | G146: R$ por | H146: R$ | I146: R$ | J146: R$ | K146: R$ | L146: R$ | M146: R$ | N146: R$ | O146: R$ | P146: R$ | Q146: R$ | R146: R$ | S146: R$ | T146: Durante o | V146: Funções | W146: Cargo | X146: FU | Z146: =H145 -> 2016-01-01 | AA146: 2016-02-01 | AB146: 2016-03-01 | AC146: 2016-04-01 | AD146: 2016-05-01 | AE146: 2016-06-01 | AF146: 2016-07-01 | AG146: 2016-08-01 | AH146: 2016-09-01 | AI146: 2016-10-01 | AJ146: 2016-11-01 | AK146: 2016-12-01 | AM146: Funções | AN146: Cargo | AO146: =Z146 -> 2016-01-01 | AP146: 2016-02-01 | AQ146: 2016-03-01 | AR146: 2016-04-01 | AS146: 2016-05-01 | AT146: 2016-06-01 | AU146: 2016-07-01 | AV146: 2016-08-01 | AW146: 2016-09-01 | AX146: 2016-10-01 | AY146: 2016-11-01 | AZ146: 2016-12-01 | BB146: Funções | BC146: Cargo | BD146: Frota | BE146: =Z146 -> 2016-01-01 | BF146: 2016-02-01 | BG146: 2016-03-01 | BH146: 2016-04-01 | BI146: 2016-05-01 | BJ146: 2016-06-01 | BK146: 2016-07-01 | BL146: 2016-08-01 | BM146: 2016-09-01 | BN146: 2016-10-01 | BO146: 2016-11-01 | BP146: 2016-12-01
C147: (R$/mês) | D147: Not. | E147: % | F147: Função | G147: mês | T147: =T129 -> Ano 3 | X147: Licitação | Z147: FU | AA147: FU | AB147: FU | AC147: FU | AD147: FU | AE147: FU | AF147: FU | AG147: FU | AH147: FU | AI147: FU | AJ147: FU | AK147: FU | BD147: Licitação | BE147: Frota | BF147: Frota | BG147: Frota | BH147: Frota | BI147: Frota | BJ147: Frota | BK147: Frota | BL147: Frota | BM147: Frota | BN147: Frota | BO147: Frota | BP147: Frota
A148: Controle Operacional | B148: =B86 -> Fiscal | C148: 1536.029 | D148: 0 | E148: 0.3442967869 | F148: =(C148+D148)*(E148/100*100+1) -> 2064.878849 | G148: =G101 -> 624.71 | H148: =(($F148*Z148)+($G148*AO148))*BE148 -> 59305.43413 | I148: 59305.43413 | J148: 59305.43413 | K148: 59305.43413 | L148: 59305.43413 | M148: 59305.43413 | N148: 59305.43413 | O148: 59305.43413 | P148: 59305.43413 | Q148: 59305.43413 | R148: 59305.43413 | S148: 59305.43413 | T148: =SUM(H148:S148) -> 711665.2095 | V148: Controle Operacional | W148: =B148 -> Fiscal | X148: =X86 -> 0.05 | Y148: =X148/X154 -> 0.4077033395 | Z148: =Z154*$Y148 -> 0.05 | AA148: 0.05 | AB148: 0.05 | AC148: 0.05 | AD148: 0.05 | AE148: 0.05 | AF148: 0.05 | AG148: 0.05 | AH148: 0.05 | AI148: 0.05 | AJ148: 0.05 | AK148: 0.05 | AM148: Controle Operacional | AN148: =W148 -> Fiscal | AO148: =AO154*$Y148 -> 0.05 | AP148: 0.05 | AQ148: 0.05 | AR148: 0.05 | AS148: 0.05 | AT148: 0.05 | AU148: 0.05 | AV148: 0.05 | AW148: 0.05 | AX148: 0.05 | AY148: 0.05 | AZ148: 0.05 | BB148: Controle Operacional | BC148: =AN148 -> Fiscal | BD148: =BD$11 -> 464 | BE148: =BE135 -> 441 | BF148: 441 | BG148: 441 | BH148: 441 | BI148: 441 | BJ148: 441 | BK148: 441 | BL148: 441 | BM148: 441 | BN148: 441 | BO148: 441 | BP148: 441
B149: =B87 -> Inspetores de Tráfego | C149: 1256.751 | D149: 0 | E149: 0.3442967869 | F149: 1689.446331 | G149: =G148 -> 624.71 | H149: =(($F149*Z149)+($G149*AO149))*BE149 -> 30616.28826 | I149: 30616.28826 | J149: 30616.28826 | K149: 30616.28826 | L149: 30616.28826 | M149: 30616.28826 | N149: 30616.28826 | O149: 30616.28826 | P149: 30616.28826 | Q149: 30616.28826 | R149: 30616.28826 | S149: 30616.28826 | T149: 367395.4591 | W149: Inspetores de Tráfego | X149: 0.03 | Y149: =X149/X154 -> 0.2446220037 | Z149: =Z154*$Y149 -> 0.03 | AA149: 0.03 | AB149: 0.03 | AC149: 0.03 | AD149: 0.03 | AE149: 0.03 | AF149: 0.03 | AG149: 0.03 | AH149: 0.03 | AI149: 0.03 | AJ149: 0.03 | AK149: 0.03 | AN149: Inspetores de Tráfego | AO149: =AO154*$Y149 -> 0.03 | AP149: 0.03 | AQ149: 0.03 | AR149: 0.03 | AS149: 0.03 | AT149: 0.03 | AU149: 0.03 | AV149: 0.03 | AW149: 0.03 | AX149: 0.03 | AY149: 0.03 | AZ149: 0.03 | BC149: Inspetores de Tráfego | BD149: 464 | BE149: =BE148 -> 441 | BF149: 441 | BG149: 441 | BH149: 441 | BI149: 441 | BJ149: 441 | BK149: 441 | BL149: 441 | BM149: 441 | BN149: 441 | BO149: 441 | BP149: 441
B150: =B88 -> Chefe de tráfego | C150: 3490.975 | D150: 0 | E150: 0.3442967869 | F150: 4692.906476 | G150: 624.71 | H150: =(($F150*Z150)+($G150*AO150))*BE150 -> 17588.01649 | I150: 17588.01649 | J150: 17588.01649 | K150: 17588.01649 | L150: 17588.01649 | M150: 17588.01649 | N150: 17588.01649 | O150: 17588.01649 | P150: 17588.01649 | Q150: 17588.01649 | R150: 17588.01649 | S150: 17588.01649 | T150: 211056.1979 | W150: Chefe de tráfego | X150: 0.0075 | Y150: =X150/X154 -> 0.06115550092 | Z150: =Z154*$Y150 -> 0.0075 | AA150: 0.0075 | AB150: 0.0075 | AC150: 0.0075 | AD150: 0.0075 | AE150: 0.0075 | AF150: 0.0075 | AG150: 0.0075 | AH150: 0.0075 | AI150: 0.0075 | AJ150: 0.0075 | AK150: 0.0075 | AN150: Chefe de tráfego | AO150: =AO154*$Y150 -> 0.0075 | AP150: 0.0075 | AQ150: 0.0075 | AR150: 0.0075 | AS150: 0.0075 | AT150: 0.0075 | AU150: 0.0075 | AV150: 0.0075 | AW150: 0.0075 | AX150: 0.0075 | AY150: 0.0075 | AZ150: 0.0075 | BC150: Chefe de tráfego | BD150: 464 | BE150: =BE149 -> 441 | BF150: 441 | BG150: 441 | BH150: 441 | BI150: 441 | BJ150: 441 | BK150: 441 | BL150: 441 | BM150: 441 | BN150: 441 | BO150: 441 | BP150: 441
B151: =B89 -> Programadores | C151: 1536.029 | D151: 0 | E151: 0.3442967869 | F151: 2064.878849 | G151: 624.71 | H151: =(($F151*Z151)+($G151*AO151))*BE151 -> 8895.815119 | I151: 8895.815119 | J151: 8895.815119 | K151: 8895.815119 | L151: 8895.815119 | M151: 8895.815119 | N151: 8895.815119 | O151: 8895.815119 | P151: 8895.815119 | Q151: 8895.815119 | R151: 8895.815119 | S151: 8895.815119 | T151: 106749.7814 | W151: Programadores | X151: 0.0075 | Y151: =X151/X154 -> 0.06115550092 | Z151: =Z154*$Y151 -> 0.0075 | AA151: 0.0075 | AB151: 0.0075 | AC151: 0.0075 | AD151: 0.0075 | AE151: 0.0075 | AF151: 0.0075 | AG151: 0.0075 | AH151: 0.0075 | AI151: 0.0075 | AJ151: 0.0075 | AK151: 0.0075 | AN151: Programadores | AO151: =AO154*$Y151 -> 0.0075 | AP151: 0.0075 | AQ151: 0.0075 | AR151: 0.0075 | AS151: 0.0075 | AT151: 0.0075 | AU151: 0.0075 | AV151: 0.0075 | AW151: 0.0075 | AX151: 0.0075 | AY151: 0.0075 | AZ151: 0.0075 | BC151: Programadores | BD151: 464 | BE151: =BE150 -> 441 | BF151: 441 | BG151: 441 | BH151: 441 | BI151: 441 | BJ151: 441 | BK151: 441 | BL151: 441 | BM151: 441 | BN151: 441 | BO151: 441 | BP151: 441
B152: =B90 -> Escaladores | C152: 2513.502 | D152: 0 | E152: 0.3442967869 | F152: 3378.892663 | G152: 624.71 | H152: =(($F152*Z152)+($G152*AO152))*BE152 -> 8872.305398 | I152: 8872.305398 | J152: 8872.305398 | K152: 8872.305398 | L152: 8872.305398 | M152: 8872.305398 | N152: 8872.305398 | O152: 8872.305398 | P152: 8872.305398 | Q152: 8872.305398 | R152: 8872.305398 | S152: 8872.305398 | T152: 106467.6648 | W152: Escaladores | X152: 0.005025125628 | Y152: =X152/X154 -> 0.04097521 | Z152: =Z154*$Y152 -> 0.005025125628 | AA152: 0.005025125628 | AB152: 0.005025125628 | AC152: 0.005025125628 | AD152: 0.005025125628 | AE152: 0.005025125628 | AF152: 0.005025125628 | AG152: 0.005025125628 | AH152: 0.005025125628 | AI152: 0.005025125628 | AJ152: 0.005025125628 | AK152: 0.005025125628 | AN152: Escaladores | AO152: =AO154*$Y152 -> 0.005025125628 | AP152: 0.005025125628 | AQ152: 0.005025125628 | AR152: 0.005025125628 | AS152: 0.005025125628 | AT152: 0.005025125628 | AU152: 0.005025125628 | AV152: 0.005025125628 | AW152: 0.005025125628 | AX152: 0.005025125628 | AY152: 0.005025125628 | AZ152: 0.005025125628 | BC152: Escaladores | BD152: 464 | BE152: =BE151 -> 441 | BF152: 441 | BG152: 441 | BH152: 441 | BI152: 441 | BJ152: 441 | BK152: 441 | BL152: 441 | BM152: 441 | BN152: 441 | BO152: 441 | BP152: 441
B153: =B91 -> Auxiliares | C153: 1117.112 | D153: 0 | E153: 0.3442967869 | F153: 1501.730072 | G153: 624.71 | H153: =(($F153*Z153)+($G153*AO153))*BE153 -> 21205.62977 | I153: 21205.62977 | J153: 21205.62977 | K153: 21205.62977 | L153: 21205.62977 | M153: 21205.62977 | N153: 21205.62977 | O153: 21205.62977 | P153: 21205.62977 | Q153: 21205.62977 | R153: 21205.62977 | S153: 21205.62977 | T153: 254467.5572 | W153: Auxiliares | X153: 0.02261306533 | Y153: =X153/X154 -> 0.184388445 | Z153: =Z154*$Y153 -> 0.02261306533 | AA153: 0.02261306533 | AB153: 0.02261306533 | AC153: 0.02261306533 | AD153: 0.02261306533 | AE153: 0.02261306533 | AF153: 0.02261306533 | AG153: 0.02261306533 | AH153: 0.02261306533 | AI153: 0.02261306533 | AJ153: 0.02261306533 | AK153: 0.02261306533 | AN153: Auxiliares | AO153: =AO154*$Y153 -> 0.02261306533 | AP153: 0.02261306533 | AQ153: 0.02261306533 | AR153: 0.02261306533 | AS153: 0.02261306533 | AT153: 0.02261306533 | AU153: 0.02261306533 | AV153: 0.02261306533 | AW153: 0.02261306533 | AX153: 0.02261306533 | AY153: 0.02261306533 | AZ153: 0.02261306533 | BC153: Auxiliares | BD153: 464 | BE153: =BE152 -> 441 | BF153: 441 | BG153: 441 | BH153: 441 | BI153: 441 | BJ153: 441 | BK153: 441 | BL153: 441 | BM153: 441 | BN153: 441 | BO153: 441 | BP153: 441
B154: =B92 -> Totais........................ | F154: Totais... | H154: =SUM(H148:H153) -> 146483.4892 | I154: 146483.4892 | J154: 146483.4892 | K154: 146483.4892 | L154: 146483.4892 | M154: 146483.4892 | N154: 146483.4892 | O154: 146483.4892 | P154: 146483.4892 | Q154: 146483.4892 | R154: 146483.4892 | S154: 146483.4892 | T154: 1757801.87 | W154: Totais........................ | X154: =SUM(X148:X153) -> 0.122638191 | Y154: 1 | Z154: ='FU Folha FGV'!$AM60 -> 0.122638191 | AA154: ='FU Folha FGV'!$AM61 -> 0.122638191 | AB154: ='FU Folha FGV'!$AM62 -> 0.122638191 | AC154: ='FU Folha FGV'!$AM63 -> 0.122638191 | AD154: ='FU Folha FGV'!$AM64 -> 0.122638191 | AE154: ='FU Folha FGV'!$AM65 -> 0.122638191 | AF154: ='FU Folha FGV'!$AM66 -> 0.122638191 | AG154: ='FU Folha FGV'!$AM67 -> 0.122638191 | AH154: ='FU Folha FGV'!$AM68 -> 0.122638191 | AI154: ='FU Folha FGV'!$AM69 -> 0.122638191 | AJ154: ='FU Folha FGV'!$AM70 -> 0.122638191 | AK154: ='FU Folha FGV'!$AM71 -> 0.122638191 | AN154: Totais........................ | AO154: ='FU Folha FGV'!$AT$60 -> 0.122638191 | AP154: ='FU Folha FGV'!$AT$61 -> 0.122638191 | AQ154: ='FU Folha FGV'!$AT$62 -> 0.122638191 | AR154: ='FU Folha FGV'!$AT$63 -> 0.122638191 | AS154: ='FU Folha FGV'!$AT$64 -> 0.122638191 | AT154: ='FU Folha FGV'!$AT$65 -> 0.122638191 | AU154: ='FU Folha FGV'!$AT$66 -> 0.122638191 | AV154: ='FU Folha FGV'!$AT$67 -> 0.122638191 | AW154: ='FU Folha FGV'!$AT$68 -> 0.122638191 | AX154: ='FU Folha FGV'!$AT$69 -> 0.122638191 | AY154: ='FU Folha FGV'!$AT$70 -> 0.122638191 | AZ154: ='FU Folha FGV'!$AT$71 -> 0.122638191 | BC154: Totais........................ | BD154: 464 | BE154: =BE153 -> 441 | BF154: 441 | BG154: 441 | BH154: 441 | BI154: 441 | BJ154: 441 | BK154: 441 | BL154: 441 | BM154: 441 | BN154: 441 | BO154: 441 | BP154: 441
A155: Manutenção | B155: Chefe de Manutenção | C155: =C93 -> 3490.975 | D155: 0 | E155: 0.3442967869 | F155: =(C155+D155)*(E155/100*100+1) -> 4692.906476 | G155: =G153 -> 624.71 | H155: =(($F155*Z155)+($G155*AO155))*BE155 -> 17588.01649 | I155: 17588.01649 | J155: 17588.01649 | K155: 17588.01649 | L155: 17588.01649 | M155: 17588.01649 | N155: 17588.01649 | O155: 17588.01649 | P155: 17588.01649 | Q155: 17588.01649 | R155: 17588.01649 | S155: 17588.01649 | T155: =SUM(H155:S155) -> 211056.1979 | V155: Manutenção | W155: Chefe de Manutenção | X155: =X93 -> 0.0075 | Y155: =X155/X164 -> 0.01492611946 | Z155: =Z164*$Y155 -> 0.0075 | AA155: 0.0075 | AB155: 0.0075 | AC155: 0.0075 | AD155: 0.0075 | AE155: 0.0075 | AF155: 0.0075 | AG155: 0.0075 | AH155: 0.0075 | AI155: 0.0075 | AJ155: 0.0075 | AK155: 0.0075 | AM155: Manutenção | AN155: Chefe de Manutenção | AO155: =AO164*$Y155 -> 0.0075 | AP155: 0.0075 | AQ155: 0.0075 | AR155: 0.0075 | AS155: 0.0075 | AT155: 0.0075 | AU155: 0.0075 | AV155: 0.0075 | AW155: 0.0075 | AX155: 0.0075 | AY155: 0.0075 | AZ155: 0.0075 | BB155: Manutenção | BC155: Chefe de Manutenção | BD155: 464 | BE155: =BE154 -> 441 | BF155: 441 | BG155: 441 | BH155: 441 | BI155: 441 | BJ155: 441 | BK155: 441 | BL155: 441 | BM155: 441 | BN155: 441 | BO155: 441 | BP155: 441
B156: Mecânicos | C156: =C94 -> 2094.585 | D156: 0 | E156: 0.3442967869 | F156: 2815.743885 | G156: =G155 -> 624.71 | H156: =(($F156*Z156)+($G156*AO156))*BE156 -> 137237.8037 | I156: 137237.8037 | J156: 137237.8037 | K156: 137237.8037 | L156: 137237.8037 | M156: 137237.8037 | N156: 137237.8037 | O156: 137237.8037 | P156: 137237.8037 | Q156: 137237.8037 | R156: 137237.8037 | S156: 137237.8037 | T156: 1646853.645 | W156: Mecânicos | X156: 0.09045226131 | Y156: =X156/X164 -> 0.180013501 | Z156: =Z164*$Y156 -> 0.09045226131 | AA156: 0.09045226131 | AB156: 0.09045226131 | AC156: 0.09045226131 | AD156: 0.09045226131 | AE156: 0.09045226131 | AF156: 0.09045226131 | AG156: 0.09045226131 | AH156: 0.09045226131 | AI156: 0.09045226131 | AJ156: 0.09045226131 | AK156: 0.09045226131 | AN156: Mecânicos | AO156: =AO164*$Y156 -> 0.09045226131 | AP156: 0.09045226131 | AQ156: 0.09045226131 | AR156: 0.09045226131 | AS156: 0.09045226131 | AT156: 0.09045226131 | AU156: 0.09045226131 | AV156: 0.09045226131 | AW156: 0.09045226131 | AX156: 0.09045226131 | AY156: 0.09045226131 | AZ156: 0.09045226131 | BC156: Mecânicos | BD156: 464 | BE156: =BE155 -> 441 | BF156: 441 | BG156: 441 | BH156: 441 | BI156: 441 | BJ156: 441 | BK156: 441 | BL156: 441 | BM156: 441 | BN156: 441 | BO156: 441 | BP156: 441
B157: Auxiliares | C157: =C95 -> 1256.751 | D157: 0 | E157: 0.3442967869 | F157: 1689.446331 | G157: 624.71 | H157: =(($F157*Z157)+($G157*AO157))*BE157 -> 92310.41687 | I157: 92310.41687 | J157: 92310.41687 | K157: 92310.41687 | L157: 92310.41687 | M157: 92310.41687 | N157: 92310.41687 | O157: 92310.41687 | P157: 92310.41687 | Q157: 92310.41687 | R157: 92310.41687 | S157: 92310.41687 | T157: 1107725.002 | W157: Auxiliares | X157: 0.09045226131 | Y157: =X157/X164 -> 0.180013501 | Z157: =Z164*$Y157 -> 0.09045226131 | AA157: 0.09045226131 | AB157: 0.09045226131 | AC157: 0.09045226131 | AD157: 0.09045226131 | AE157: 0.09045226131 | AF157: 0.09045226131 | AG157: 0.09045226131 | AH157: 0.09045226131 | AI157: 0.09045226131 | AJ157: 0.09045226131 | AK157: 0.09045226131 | AN157: Auxiliares | AO157: =AO164*$Y157 -> 0.09045226131 | AP157: 0.09045226131 | AQ157: 0.09045226131 | AR157: 0.09045226131 | AS157: 0.09045226131 | AT157: 0.09045226131 | AU157: 0.09045226131 | AV157: 0.09045226131 | AW157: 0.09045226131 | AX157: 0.09045226131 | AY157: 0.09045226131 | AZ157: 0.09045226131 | BC157: Auxiliares | BD157: 464 | BE157: =BE156 -> 441 | BF157: 441 | BG157: 441 | BH157: 441 | BI157: 441 | BJ157: 441 | BK157: 441 | BL157: 441 | BM157: 441 | BN157: 441 | BO157: 441 | BP157: 441
B158: Funileiro | C158: =C96 -> 2094.585 | D158: 0 | E158: 0.3442967869 | F158: 2815.743885 | G158: 624.71 | H158: =(($F158*Z158)+($G158*AO158))*BE158 -> 95304.03037 | I158: 95304.03037 | J158: 95304.03037 | K158: 95304.03037 | L158: 95304.03037 | M158: 95304.03037 | N158: 95304.03037 | O158: 95304.03037 | P158: 95304.03037 | Q158: 95304.03037 | R158: 95304.03037 | S158: 95304.03037 | T158: 1143648.364 | W158: Funileiro | X158: 0.06281407035 | Y158: =X158/X164 -> 0.1250093757 | Z158: =Z164*$Y158 -> 0.06281407035 | AA158: 0.06281407035 | AB158: 0.06281407035 | AC158: 0.06281407035 | AD158: 0.06281407035 | AE158: 0.06281407035 | AF158: 0.06281407035 | AG158: 0.06281407035 | AH158: 0.06281407035 | AI158: 0.06281407035 | AJ158: 0.06281407035 | AK158: 0.06281407035 | AN158: Funileiro | AO158: =AO164*$Y158 -> 0.06281407035 | AP158: 0.06281407035 | AQ158: 0.06281407035 | AR158: 0.06281407035 | AS158: 0.06281407035 | AT158: 0.06281407035 | AU158: 0.06281407035 | AV158: 0.06281407035 | AW158: 0.06281407035 | AX158: 0.06281407035 | AY158: 0.06281407035 | AZ158: 0.06281407035 | BC158: Funileiro | BD158: 464 | BE158: =BE157 -> 441 | BF158: 441 | BG158: 441 | BH158: 441 | BI158: 441 | BJ158: 441 | BK158: 441 | BL158: 441 | BM158: 441 | BN158: 441 | BO158: 441 | BP158: 441
B159: Borracheiro | C159: =C97 -> 1396.39 | D159: 0 | E159: 0.3442967869 | F159: 1877.16259 | G159: 624.71 | H159: =(($F159*Z159)+($G159*AO159))*BE159 -> 19405.22785 | I159: 19405.22785 | J159: 19405.22785 | K159: 19405.22785 | L159: 19405.22785 | M159: 19405.22785 | N159: 19405.22785 | O159: 19405.22785 | P159: 19405.22785 | Q159: 19405.22785 | R159: 19405.22785 | S159: 19405.22785 | T159: 232862.7343 | W159: Borracheiro | X159: 0.0175879397 | Y159: =X159/X164 -> 0.0350026252 | Z159: =Z164*$Y159 -> 0.0175879397 | AA159: 0.0175879397 | AB159: 0.0175879397 | AC159: 0.0175879397 | AD159: 0.0175879397 | AE159: 0.0175879397 | AF159: 0.0175879397 | AG159: 0.0175879397 | AH159: 0.0175879397 | AI159: 0.0175879397 | AJ159: 0.0175879397 | AK159: 0.0175879397 | AN159: Borracheiro | AO159: =AO164*$Y159 -> 0.0175879397 | AP159: 0.0175879397 | AQ159: 0.0175879397 | AR159: 0.0175879397 | AS159: 0.0175879397 | AT159: 0.0175879397 | AU159: 0.0175879397 | AV159: 0.0175879397 | AW159: 0.0175879397 | AX159: 0.0175879397 | AY159: 0.0175879397 | AZ159: 0.0175879397 | BC159: Borracheiro | BD159: 464 | BE159: =BE158 -> 441 | BF159: 441 | BG159: 441 | BH159: 441 | BI159: 441 | BJ159: 441 | BK159: 441 | BL159: 441 | BM159: 441 | BN159: 441 | BO159: 441 | BP159: 441
B160: Eletricista | C160: =C98 -> 2373.863 | D160: 0 | E160: 0.3442967869 | F160: 3191.176403 | G160: 624.71 | H160: =(($F160*Z160)+($G160*AO160))*BE160 -> 105703.8884 | I160: 105703.8884 | J160: 105703.8884 | K160: 105703.8884 | L160: 105703.8884 | M160: 105703.8884 | N160: 105703.8884 | O160: 105703.8884 | P160: 105703.8884 | Q160: 105703.8884 | R160: 105703.8884 | S160: 105703.8884 | T160: 1268446.661 | W160: Eletricista | X160: 0.06281407035 | Y160: =X160/X164 -> 0.1250093757 | Z160: =Z164*$Y160 -> 0.06281407035 | AA160: 0.06281407035 | AB160: 0.06281407035 | AC160: 0.06281407035 | AD160: 0.06281407035 | AE160: 0.06281407035 | AF160: 0.06281407035 | AG160: 0.06281407035 | AH160: 0.06281407035 | AI160: 0.06281407035 | AJ160: 0.06281407035 | AK160: 0.06281407035 | AN160: Eletricista | AO160: =AO164*$Y160 -> 0.06281407035 | AP160: 0.06281407035 | AQ160: 0.06281407035 | AR160: 0.06281407035 | AS160: 0.06281407035 | AT160: 0.06281407035 | AU160: 0.06281407035 | AV160: 0.06281407035 | AW160: 0.06281407035 | AX160: 0.06281407035 | AY160: 0.06281407035 | AZ160: 0.06281407035 | BC160: Eletricista | BD160: 464 | BE160: =BE159 -> 441 | BF160: 441 | BG160: 441 | BH160: 441 | BI160: 441 | BJ160: 441 | BK160: 441 | BL160: 441 | BM160: 441 | BN160: 441 | BO160: 441 | BP160: 441
B161: Pintores | C161: =C99 -> 2373.863 | D161: 0 | E161: 0.3442967869 | F161: 3191.176403 | G161: 624.71 | H161: =(($F161*Z161)+($G161*AO161))*BE161 -> 50737.86645 | I161: 50737.86645 | J161: 50737.86645 | K161: 50737.86645 | L161: 50737.86645 | M161: 50737.86645 | N161: 50737.86645 | O161: 50737.86645 | P161: 50737.86645 | Q161: 50737.86645 | R161: 50737.86645 | S161: 50737.86645 | T161: 608854.3974 | W161: Pintores | X161: 0.03015075377 | Y161: =X161/X164 -> 0.06000450034 | Z161: =Z164*$Y161 -> 0.03015075377 | AA161: 0.03015075377 | AB161: 0.03015075377 | AC161: 0.03015075377 | AD161: 0.03015075377 | AE161: 0.03015075377 | AF161: 0.03015075377 | AG161: 0.03015075377 | AH161: 0.03015075377 | AI161: 0.03015075377 | AJ161: 0.03015075377 | AK161: 0.03015075377 | AN161: Pintores | AO161: =AO164*$Y161 -> 0.03015075377 | AP161: 0.03015075377 | AQ161: 0.03015075377 | AR161: 0.03015075377 | AS161: 0.03015075377 | AT161: 0.03015075377 | AU161: 0.03015075377 | AV161: 0.03015075377 | AW161: 0.03015075377 | AX161: 0.03015075377 | AY161: 0.03015075377 | AZ161: 0.03015075377 | BC161: Pintores | BD161: 464 | BE161: =BE160 -> 441 | BF161: 441 | BG161: 441 | BH161: 441 | BI161: 441 | BJ161: 441 | BK161: 441 | BL161: 441 | BM161: 441 | BN161: 441 | BO161: 441 | BP161: 441
B162: Eletrônico | C162: =C100 -> 2792.78 | E162: =E100 -> 0.3442967869 | F162: 3754.325181 | G162: 624.71 | H162: =(($F162*Z162)+($G162*AO162))*BE162 -> 29112.88213 | I162: 29112.88213 | J162: 29112.88213 | K162: 29112.88213 | L162: 29112.88213 | M162: 29112.88213 | N162: 29112.88213 | O162: 29112.88213 | P162: 29112.88213 | Q162: 29112.88213 | R162: 29112.88213 | S162: 29112.88213 | T162: 349354.5856 | W162: Eletrônico | X162: 0.01507537688 | Y162: =X162/X164 -> 0.03000225017 | Z162: =Z164*$Y162 -> 0.01507537688 | AA162: 0.01507537688 | AB162: 0.01507537688 | AC162: 0.01507537688 | AD162: 0.01507537688 | AE162: 0.01507537688 | AF162: 0.01507537688 | AG162: 0.01507537688 | AH162: 0.01507537688 | AI162: 0.01507537688 | AJ162: 0.01507537688 | AK162: 0.01507537688 | AN162: Eletrônico | AO162: =AO164*$Y162 -> 0.01507537688 | AP162: 0.01507537688 | AQ162: 0.01507537688 | AR162: 0.01507537688 | AS162: 0.01507537688 | AT162: 0.01507537688 | AU162: 0.01507537688 | AV162: 0.01507537688 | AW162: 0.01507537688 | AX162: 0.01507537688 | AY162: 0.01507537688 | AZ162: 0.01507537688 | BC162: Eletrônico | BD162: 464 | BE162: =BE161 -> 441 | BF162: 441 | BG162: 441 | BH162: 441 | BI162: 441 | BJ162: 441 | BK162: 441 | BL162: 441 | BM162: 441 | BN162: 441 | BO162: 441 | BP162: 441
B163: Outros | C163: 1256.751 | D163: =D101 -> 0 | E163: 0.3442967869 | F163: 1689.446331 | G163: =G161 -> 624.71 | H163: =(($F163*Z163)+($G163*AO163))*BE163 -> 128208.9123 | I163: 128208.9123 | J163: 128208.9123 | K163: 128208.9123 | L163: 128208.9123 | M163: 128208.9123 | N163: 128208.9123 | O163: 128208.9123 | P163: 128208.9123 | Q163: 128208.9123 | R163: 128208.9123 | S163: 128208.9123 | T163: 1538506.948 | W163: Outros | X163: 0.1256281407 | Y163: =X163/X164 -> 0.2500187514 | Z163: =Z164*$Y163 -> 0.1256281407 | AA163: 0.1256281407 | AB163: 0.1256281407 | AC163: 0.1256281407 | AD163: 0.1256281407 | AE163: 0.1256281407 | AF163: 0.1256281407 | AG163: 0.1256281407 | AH163: 0.1256281407 | AI163: 0.1256281407 | AJ163: 0.1256281407 | AK163: 0.1256281407 | AN163: Outros | AO163: =AO164*$Y163 -> 0.1256281407 | AP163: 0.1256281407 | AQ163: 0.1256281407 | AR163: 0.1256281407 | AS163: 0.1256281407 | AT163: 0.1256281407 | AU163: 0.1256281407 | AV163: 0.1256281407 | AW163: 0.1256281407 | AX163: 0.1256281407 | AY163: 0.1256281407 | AZ163: 0.1256281407 | BC163: Outros | BD163: 464 | BE163: =BE161 -> 441 | BF163: 441 | BG163: 441 | BH163: 441 | BI163: 441 | BJ163: 441 | BK163: 441 | BL163: 441 | BM163: 441 | BN163: 441 | BO163: 441 | BP163: 441
B164: Totais........................ | F164: Totais... | H164: =SUM(H155:H163) -> 675609.0447 | I164: 675609.0447 | J164: 675609.0447 | K164: 675609.0447 | L164: 675609.0447 | M164: 675609.0447 | N164: 675609.0447 | O164: 675609.0447 | P164: 675609.0447 | Q164: 675609.0447 | R164: 675609.0447 | S164: 675609.0447 | T164: 8107308.536 | W164: Totais........................ | X164: =SUM(X155:X163) -> 0.5024748744 | Y164: 1 | Z164: ='FU Folha FGV'!$AN60 -> 0.5024748744 | AA164: ='FU Folha FGV'!$AN61 -> 0.5024748744 | AB164: ='FU Folha FGV'!$AN62 -> 0.5024748744 | AC164: ='FU Folha FGV'!$AN63 -> 0.5024748744 | AD164: ='FU Folha FGV'!$AN64 -> 0.5024748744 | AE164: ='FU Folha FGV'!$AN65 -> 0.5024748744 | AF164: ='FU Folha FGV'!$AN66 -> 0.5024748744 | AG164: ='FU Folha FGV'!$AN67 -> 0.5024748744 | AH164: ='FU Folha FGV'!$AN68 -> 0.5024748744 | AI164: ='FU Folha FGV'!$AN69 -> 0.5024748744 | AJ164: ='FU Folha FGV'!$AN70 -> 0.5024748744 | AK164: ='FU Folha FGV'!$AN71 -> 0.5024748744 | AN164: Totais........................ | AO164: ='FU Folha FGV'!$AU$60 -> 0.5024748744 | AP164: ='FU Folha FGV'!$AU$61 -> 0.5024748744 | AQ164: ='FU Folha FGV'!$AU$62 -> 0.5024748744 | AR164: ='FU Folha FGV'!$AU$63 -> 0.5024748744 | AS164: ='FU Folha FGV'!$AU$64 -> 0.5024748744 | AT164: ='FU Folha FGV'!$AU$65 -> 0.5024748744 | AU164: ='FU Folha FGV'!$AU$66 -> 0.5024748744 | AV164: ='FU Folha FGV'!$AU$67 -> 0.5024748744 | AW164: ='FU Folha FGV'!$AU$68 -> 0.5024748744 | AX164: ='FU Folha FGV'!$AU$69 -> 0.5024748744 | AY164: ='FU Folha FGV'!$AU$70 -> 0.5024748744 | AZ164: ='FU Folha FGV'!$AU$71 -> 0.5024748744 | BC164: Totais........................ | BD164: 464 | BE164: =BE154 -> 441 | BF164: 441 | BG164: 441 | BH164: 441 | BI164: 441 | BJ164: 441 | BK164: 441 | BL164: 441 | BM164: 441 | BN164: 441 | BO164: 441 | BP164: 441
F165: Total Geral Mensal Pessoal de Operação | H165: =H142+H154+H164 -> 6132518.274 | I165: 6807118.791 | J165: 6841079.528 | K165: 6806934.222 | L165: 6900695.388 | M165: 6901433.665 | N165: 6701729.764 | O165: 6855291.359 | P165: 6896819.434 | Q165: 6511808.031 | R165: 6511808.031 | S165: 6172569.796 | T165: 80039806.28
A167: Administração - Composição do Custo Unitário Por Função | G167: Ano 3 | H167: Administração - Composição de Custo Total Mensal | T167: R$
A168: Funções | B168: Cargo | C168: Salário | D168: Hs Extras | E168: Enc. | F168: R$ Total | G168: Benefícios | H168: =H127 -> 2016-01-01 | I168: =DATE(YEAR(H168),MONTH(H168)+1,DAY(H168)) -> 2016-02-01 | J168: 2016-03-01 | K168: 2016-04-01 | L168: 2016-05-01 | M168: 2016-06-01 | N168: 2016-07-01 | O168: 2016-08-01 | P168: 2016-09-01 | Q168: 2016-10-01 | R168: 2016-11-01 | S168: 2016-12-01 | T168: Total | V168: Fator Utilização Mensal | X168: =X145 -> Ano 3 | Z168: FU FOLHA DE PAGAMENTO | AM168: =X168 -> Ano 3 | AN168: FU Benefícios | AO168: FU FÍSICO PARA CÁLCULOS DOS BENEFÍCIOS | BB168: Frota Mensal | BE168: =BE145 -> Ano 3
C169: base | D169: e Adic. | E169: Soc. | F169: Por | G169: R$ por | H169: R$ | I169: R$ | J169: R$ | K169: R$ | L169: R$ | M169: R$ | N169: R$ | O169: R$ | P169: R$ | Q169: R$ | R169: R$ | S169: R$ | T169: Durante o | V169: Funções | W169: Cargo | X169: FU | Z169: =H168 -> 2016-01-01 | AA169: 2016-02-01 | AB169: 2016-03-01 | AC169: 2016-04-01 | AD169: 2016-05-01 | AE169: 2016-06-01 | AF169: 2016-07-01 | AG169: 2016-08-01 | AH169: 2016-09-01 | AI169: 2016-10-01 | AJ169: 2016-11-01 | AK169: 2016-12-01 | AM169: Funções | AN169: Cargo | AO169: =Z169 -> 2016-01-01 | AP169: 2016-02-01 | AQ169: 2016-03-01 | AR169: 2016-04-01 | AS169: 2016-05-01 | AT169: 2016-06-01 | AU169: 2016-07-01 | AV169: 2016-08-01 | AW169: 2016-09-01 | AX169: 2016-10-01 | AY169: 2016-11-01 | AZ169: 2016-12-01 | BB169: Funções | BC169: Cargo | BD169: Frota | BE169: =Z169 -> 2016-01-01 | BF169: 2016-02-01 | BG169: 2016-03-01 | BH169: 2016-04-01 | BI169: 2016-05-01 | BJ169: 2016-06-01 | BK169: 2016-07-01 | BL169: 2016-08-01 | BM169: 2016-09-01 | BN169: 2016-10-01 | BO169: 2016-11-01 | BP169: 2016-12-01
C170: (R$/mês) | D170: Not. | E170: % | F170: Função | G170: mês | T170: =T147 -> Ano 3 | X170: Licitação | Z170: FU | AA170: FU | AB170: FU | AC170: FU | AD170: FU | AE170: FU | AF170: FU | AG170: FU | AH170: FU | AI170: FU | AJ170: FU | AK170: FU | BD170: Licitação | BE170: Frota | BF170: Frota | BG170: Frota | BH170: Frota | BI170: Frota | BJ170: Frota | BK170: Frota | BL170: Frota | BM170: Frota | BN170: Frota | BO170: Frota | BP170: Frota
A171: Administração | B171: =B109 -> Controle de Manutenção | C171: 1256.751 | D171: 0 | E171: 0.3442967869 | F171: =(C171+D171)*(E171/100*100+1) -> 1689.446331 | G171: =G163 -> 624.71 | H171: =(($F171*Z171)+($G171*AO171))*BE171 -> 11570.78166 | I171: 11570.78166 | J171: 11570.78166 | K171: 11570.78166 | L171: 11570.78166 | M171: 11570.78166 | N171: 11570.78166 | O171: 11570.78166 | P171: 11570.78166 | Q171: 11570.78166 | R171: 11570.78166 | S171: 11570.78166 | T171: =SUM(H171:S171) -> 138849.3799 | V171: Administração | W171: =B171 -> Controle de Manutenção | X171: =X109 -> 0.01133786848 | Y171: =X171/X186 -> 0.1136363636 | Z171: =Z186*$Y171 -> 0.01133786848 | AA171: 0.01133786848 | AB171: 0.01133786848 | AC171: 0.01133786848 | AD171: 0.01133786848 | AE171: 0.01133786848 | AF171: 0.01133786848 | AG171: 0.01133786848 | AH171: 0.01133786848 | AI171: 0.01133786848 | AJ171: 0.01133786848 | AK171: 0.01133786848 | AM171: Administração | AN171: =W171 -> Controle de Manutenção | AO171: =AO186*$Y171 -> 0.01133786848 | AP171: 0.01133786848 | AQ171: 0.01133786848 | AR171: 0.01133786848 | AS171: 0.01133786848 | AT171: 0.01133786848 | AU171: 0.01133786848 | AV171: 0.01133786848 | AW171: 0.01133786848 | AX171: 0.01133786848 | AY171: 0.01133786848 | AZ171: 0.01133786848 | BB171: Administração | BC171: =AN171 -> Controle de Manutenção | BD171: =BD$11 -> 464 | BE171: =BE164 -> 441 | BF171: 441 | BG171: 441 | BH171: 441 | BI171: 441 | BJ171: 441 | BK171: 441 | BL171: 441 | BM171: 441 | BN171: 441 | BO171: 441 | BP171: 441
B172: =B110 -> Gerente de Operação | C172: 6981.95 | D172: 0 | E172: 0.3442967869 | F172: 9385.812951 | G172: =G171 -> 624.71 | H172: =(($F172*Z172)+($G172*AO172))*BE172 -> 10010.52295 | I172: 10010.52295 | J172: 10010.52295 | K172: 10010.52295 | L172: 10010.52295 | M172: 10010.52295 | N172: 10010.52295 | O172: 10010.52295 | P172: 10010.52295 | Q172: 10010.52295 | R172: 10010.52295 | S172: 10010.52295 | T172: 120126.2754 | W172: Gerente de Operação | X172: 0.002267573696 | Y172: =X172/X186 -> 0.02272727273 | Z172: =Z186*$Y172 -> 0.002267573696 | AA172: 0.002267573696 | AB172: 0.002267573696 | AC172: 0.002267573696 | AD172: 0.002267573696 | AE172: 0.002267573696 | AF172: 0.002267573696 | AG172: 0.002267573696 | AH172: 0.002267573696 | AI172: 0.002267573696 | AJ172: 0.002267573696 | AK172: 0.002267573696 | AN172: Gerente de Operação | AO172: =AO186*$Y172 -> 0.002267573696 | AP172: 0.002267573696 | AQ172: 0.002267573696 | AR172: 0.002267573696 | AS172: 0.002267573696 | AT172: 0.002267573696 | AU172: 0.002267573696 | AV172: 0.002267573696 | AW172: 0.002267573696 | AX172: 0.002267573696 | AY172: 0.002267573696 | AZ172: 0.002267573696 | BC172: Gerente de Operação | BD172: 464 | BE172: =BE171 -> 441 | BF172: 441 | BG172: 441 | BH172: 441 | BI172: 441 | BJ172: 441 | BK172: 441 | BL172: 441 | BM172: 441 | BN172: 441 | BO172: 441 | BP172: 441
B173: =B111 -> Gerente Administrativo | C173: 6981.95 | D173: 0 | E173: 0.3442967869 | F173: 9385.812951 | G173: 624.71 | H173: =(($F173*Z173)+($G173*AO173))*BE173 -> 10010.52295 | I173: 10010.52295 | J173: 10010.52295 | K173: 10010.52295 | L173: 10010.52295 | M173: 10010.52295 | N173: 10010.52295 | O173: 10010.52295 | P173: 10010.52295 | Q173: 10010.52295 | R173: 10010.52295 | S173: 10010.52295 | T173: 120126.2754 | W173: Gerente Administrativo | X173: 0.002267573696 | Y173: =X173/X186 -> 0.02272727273 | Z173: =Z186*$Y173 -> 0.002267573696 | AA173: 0.002267573696 | AB173: 0.002267573696 | AC173: 0.002267573696 | AD173: 0.002267573696 | AE173: 0.002267573696 | AF173: 0.002267573696 | AG173: 0.002267573696 | AH173: 0.002267573696 | AI173: 0.002267573696 | AJ173: 0.002267573696 | AK173: 0.002267573696 | AN173: Gerente Administrativo | AO173: =AO186*$Y173 -> 0.002267573696 | AP173: 0.002267573696 | AQ173: 0.002267573696 | AR173: 0.002267573696 | AS173: 0.002267573696 | AT173: 0.002267573696 | AU173: 0.002267573696 | AV173: 0.002267573696 | AW173: 0.002267573696 | AX173: 0.002267573696 | AY173: 0.002267573696 | AZ173: 0.002267573696 | BC173: Gerente Administrativo | BD173: 464 | BE173: =BE172 -> 441 | BF173: 441 | BG173: 441 | BH173: 441 | BI173: 441 | BJ173: 441 | BK173: 441 | BL173: 441 | BM173: 441 | BN173: 441 | BO173: 441 | BP173: 441
B174: =B112 -> Assistente Administrativo | C174: 1536.029 | D174: 0 | E174: 0.3442967869 | F174: 2064.878849 | G174: 624.71 | H174: =(($F174*Z174)+($G174*AO174))*BE174 -> 13447.94425 | I174: 13447.94425 | J174: 13447.94425 | K174: 13447.94425 | L174: 13447.94425 | M174: 13447.94425 | N174: 13447.94425 | O174: 13447.94425 | P174: 13447.94425 | Q174: 13447.94425 | R174: 13447.94425 | S174: 13447.94425 | T174: 161375.331 | W174: Assistente Administrativo | X174: 0.01133786848 | Y174: =X174/X186 -> 0.1136363636 | Z174: =Z186*$Y174 -> 0.01133786848 | AA174: 0.01133786848 | AB174: 0.01133786848 | AC174: 0.01133786848 | AD174: 0.01133786848 | AE174: 0.01133786848 | AF174: 0.01133786848 | AG174: 0.01133786848 | AH174: 0.01133786848 | AI174: 0.01133786848 | AJ174: 0.01133786848 | AK174: 0.01133786848 | AN174: Assistente Administrativo | AO174: =AO186*$Y174 -> 0.01133786848 | AP174: 0.01133786848 | AQ174: 0.01133786848 | AR174: 0.01133786848 | AS174: 0.01133786848 | AT174: 0.01133786848 | AU174: 0.01133786848 | AV174: 0.01133786848 | AW174: 0.01133786848 | AX174: 0.01133786848 | AY174: 0.01133786848 | AZ174: 0.01133786848 | BC174: Assistente Administrativo | BD174: 464 | BE174: =BE173 -> 441 | BF174: 441 | BG174: 441 | BH174: 441 | BI174: 441 | BJ174: 441 | BK174: 441 | BL174: 441 | BM174: 441 | BN174: 441 | BO174: 441 | BP174: 441
B175: =B113 -> Psicólogo | C175: 3630.614 | D175: 0 | E175: 0.3442967869 | F175: 4880.622735 | G175: 624.71 | H175: =(($F175*Z175)+($G175*AO175))*BE175 -> 5505.332735 | I175: 5505.332735 | J175: 5505.332735 | K175: 5505.332735 | L175: 5505.332735 | M175: 5505.332735 | N175: 5505.332735 | O175: 5505.332735 | P175: 5505.332735 | Q175: 5505.332735 | R175: 5505.332735 | S175: 5505.332735 | T175: 66063.99282 | W175: Psicólogo | X175: 0.002267573696 | Y175: =X175/X186 -> 0.02272727273 | Z175: =Z186*$Y175 -> 0.002267573696 | AA175: 0.002267573696 | AB175: 0.002267573696 | AC175: 0.002267573696 | AD175: 0.002267573696 | AE175: 0.002267573696 | AF175: 0.002267573696 | AG175: 0.002267573696 | AH175: 0.002267573696 | AI175: 0.002267573696 | AJ175: 0.002267573696 | AK175: 0.002267573696 | AN175: Psicólogo | AO175: =AO186*$Y175 -> 0.002267573696 | AP175: 0.002267573696 | AQ175: 0.002267573696 | AR175: 0.002267573696 | AS175: 0.002267573696 | AT175: 0.002267573696 | AU175: 0.002267573696 | AV175: 0.002267573696 | AW175: 0.002267573696 | AX175: 0.002267573696 | AY175: 0.002267573696 | AZ175: 0.002267573696 | BC175: Psicólogo | BD175: 464 | BE175: =BE174 -> 441 | BF175: 441 | BG175: 441 | BH175: 441 | BI175: 441 | BJ175: 441 | BK175: 441 | BL175: 441 | BM175: 441 | BN175: 441 | BO175: 441 | BP175: 441
B176: =B114 -> Técnico Seg. do Trabalho | C176: 1815.307 | D176: 0 | E176: 0.3442967869 | F176: 2440.311367 | G176: 624.71 | H176: =(($F176*Z176)+($G176*AO176))*BE176 -> 18390.1282 | I176: 18390.1282 | J176: 18390.1282 | K176: 18390.1282 | L176: 18390.1282 | M176: 18390.1282 | N176: 18390.1282 | O176: 18390.1282 | P176: 18390.1282 | Q176: 18390.1282 | R176: 18390.1282 | S176: 18390.1282 | T176: 220681.5385 | W176: Técnico Seg. do Trabalho | X176: 0.01360544218 | Y176: =X176/X186 -> 0.1363636364 | Z176: =Z186*$Y176 -> 0.01360544218 | AA176: 0.01360544218 | AB176: 0.01360544218 | AC176: 0.01360544218 | AD176: 0.01360544218 | AE176: 0.01360544218 | AF176: 0.01360544218 | AG176: 0.01360544218 | AH176: 0.01360544218 | AI176: 0.01360544218 | AJ176: 0.01360544218 | AK176: 0.01360544218 | AN176: Técnico Seg. do Trabalho | AO176: =AO186*$Y176 -> 0.01360544218 | AP176: 0.01360544218 | AQ176: 0.01360544218 | AR176: 0.01360544218 | AS176: 0.01360544218 | AT176: 0.01360544218 | AU176: 0.01360544218 | AV176: 0.01360544218 | AW176: 0.01360544218 | AX176: 0.01360544218 | AY176: 0.01360544218 | AZ176: 0.01360544218 | BC176: Técnico Seg. do Trabalho | BD176: 464 | BE176: =BE175 -> 441 | BF176: 441 | BG176: 441 | BH176: 441 | BI176: 441 | BJ176: 441 | BK176: 441 | BL176: 441 | BM176: 441 | BN176: 441 | BO176: 441 | BP176: 441
B177: =B115 -> Auxiliar de Compras | C177: 2234.224 | D177: 0 | E177: 0.3442967869 | F177: 3003.460144 | G177: 624.71 | H177: =(($F177*Z177)+($G177*AO177))*BE177 -> 3628.170144 | I177: 3628.170144 | J177: 3628.170144 | K177: 3628.170144 | L177: 3628.170144 | M177: 3628.170144 | N177: 3628.170144 | O177: 3628.170144 | P177: 3628.170144 | Q177: 3628.170144 | R177: 3628.170144 | S177: 3628.170144 | T177: 43538.04173 | W177: Auxiliar de Compras | X177: 0.002267573696 | Y177: =X177/X186 -> 0.02272727273 | Z177: =Z186*$Y177 -> 0.002267573696 | AA177: 0.002267573696 | AB177: 0.002267573696 | AC177: 0.002267573696 | AD177: 0.002267573696 | AE177: 0.002267573696 | AF177: 0.002267573696 | AG177: 0.002267573696 | AH177: 0.002267573696 | AI177: 0.002267573696 | AJ177: 0.002267573696 | AK177: 0.002267573696 | AN177: Auxiliar de Compras | AO177: =AO186*$Y177 -> 0.002267573696 | AP177: 0.002267573696 | AQ177: 0.002267573696 | AR177: 0.002267573696 | AS177: 0.002267573696 | AT177: 0.002267573696 | AU177: 0.002267573696 | AV177: 0.002267573696 | AW177: 0.002267573696 | AX177: 0.002267573696 | AY177: 0.002267573696 | AZ177: 0.002267573696 | BC177: Auxiliar de Compras | BD177: 464 | BE177: =BE176 -> 441 | BF177: 441 | BG177: 441 | BH177: 441 | BI177: 441 | BJ177: 441 | BK177: 441 | BL177: 441 | BM177: 441 | BN177: 441 | BO177: 441 | BP177: 441
B178: =B116 -> Assistente Financeiro | C178: 2234.224 | D178: 0 | E178: 0.3442967869 | F178: 3003.460144 | G178: 624.71 | H178: =(($F178*Z178)+($G178*AO178))*BE178 -> 7256.340289 | I178: 7256.340289 | J178: 7256.340289 | K178: 7256.340289 | L178: 7256.340289 | M178: 7256.340289 | N178: 7256.340289 | O178: 7256.340289 | P178: 7256.340289 | Q178: 7256.340289 | R178: 7256.340289 | S178: 7256.340289 | T178: 87076.08347 | W178: Assistente Financeiro | X178: 0.004535147392 | Y178: =X178/X186 -> 0.04545454545 | Z178: =Z186*$Y178 -> 0.004535147392 | AA178: 0.004535147392 | AB178: 0.004535147392 | AC178: 0.004535147392 | AD178: 0.004535147392 | AE178: 0.004535147392 | AF178: 0.004535147392 | AG178: 0.004535147392 | AH178: 0.004535147392 | AI178: 0.004535147392 | AJ178: 0.004535147392 | AK178: 0.004535147392 | AN178: Assistente Financeiro | AO178: =AO186*$Y178 -> 0.004535147392 | AP178: 0.004535147392 | AQ178: 0.004535147392 | AR178: 0.004535147392 | AS178: 0.004535147392 | AT178: 0.004535147392 | AU178: 0.004535147392 | AV178: 0.004535147392 | AW178: 0.004535147392 | AX178: 0.004535147392 | AY178: 0.004535147392 | AZ178: 0.004535147392 | BC178: Assistente Financeiro | BD178: 464 | BE178: =BE177 -> 441 | BF178: 441 | BG178: 441 | BH178: 441 | BI178: 441 | BJ178: 441 | BK178: 441 | BL178: 441 | BM178: 441 | BN178: 441 | BO178: 441 | BP178: 441
B179: =B117 -> Auxiliar de CPD | C179: 2234.224 | D179: 0 | E179: 0.3442967869 | F179: 3003.460144 | G179: 624.71 | H179: =(($F179*Z179)+($G179*AO179))*BE179 -> 10884.51043 | I179: 10884.51043 | J179: 10884.51043 | K179: 10884.51043 | L179: 10884.51043 | M179: 10884.51043 | N179: 10884.51043 | O179: 10884.51043 | P179: 10884.51043 | Q179: 10884.51043 | R179: 10884.51043 | S179: 10884.51043 | T179: 130614.1252 | W179: Auxiliar de CPD | X179: 0.006802721088 | Y179: =X179/X186 -> 0.06818181818 | Z179: =Z186*$Y179 -> 0.006802721088 | AA179: 0.006802721088 | AB179: 0.006802721088 | AC179: 0.006802721088 | AD179: 0.006802721088 | AE179: 0.006802721088 | AF179: 0.006802721088 | AG179: 0.006802721088 | AH179: 0.006802721088 | AI179: 0.006802721088 | AJ179: 0.006802721088 | AK179: 0.006802721088 | AN179: Auxiliar de CPD | AO179: =AO186*$Y179 -> 0.006802721088 | AP179: 0.006802721088 | AQ179: 0.006802721088 | AR179: 0.006802721088 | AS179: 0.006802721088 | AT179: 0.006802721088 | AU179: 0.006802721088 | AV179: 0.006802721088 | AW179: 0.006802721088 | AX179: 0.006802721088 | AY179: 0.006802721088 | AZ179: 0.006802721088 | BC179: Auxiliar de CPD | BD179: 464 | BE179: =BE178 -> 441 | BF179: 441 | BG179: 441 | BH179: 441 | BI179: 441 | BJ179: 441 | BK179: 441 | BL179: 441 | BM179: 441 | BN179: 441 | BO179: 441 | BP179: 441
B180: =B118 -> Enc. de Depto.Pessoal | C180: 3630.614 | D180: 0 | E180: 0.3442967869 | F180: 4880.622735 | G180: 624.71 | H180: =(($F180*Z180)+($G180*AO180))*BE180 -> 5505.332735 | I180: 5505.332735 | J180: 5505.332735 | K180: 5505.332735 | L180: 5505.332735 | M180: 5505.332735 | N180: 5505.332735 | O180: 5505.332735 | P180: 5505.332735 | Q180: 5505.332735 | R180: 5505.332735 | S180: 5505.332735 | T180: 66063.99282 | W180: Enc. de Depto.Pessoal | X180: 0.002267573696 | Y180: =X180/X186 -> 0.02272727273 | Z180: =Z186*$Y180 -> 0.002267573696 | AA180: 0.002267573696 | AB180: 0.002267573696 | AC180: 0.002267573696 | AD180: 0.002267573696 | AE180: 0.002267573696 | AF180: 0.002267573696 | AG180: 0.002267573696 | AH180: 0.002267573696 | AI180: 0.002267573696 | AJ180: 0.002267573696 | AK180: 0.002267573696 | AN180: Enc. de Depto.Pessoal | AO180: =AO186*$Y180 -> 0.002267573696 | AP180: 0.002267573696 | AQ180: 0.002267573696 | AR180: 0.002267573696 | AS180: 0.002267573696 | AT180: 0.002267573696 | AU180: 0.002267573696 | AV180: 0.002267573696 | AW180: 0.002267573696 | AX180: 0.002267573696 | AY180: 0.002267573696 | AZ180: 0.002267573696 | BC180: Enc. de Depto.Pessoal | BD180: 464 | BE180: =BE179 -> 441 | BF180: 441 | BG180: 441 | BH180: 441 | BI180: 441 | BJ180: 441 | BK180: 441 | BL180: 441 | BM180: 441 | BN180: 441 | BO180: 441 | BP180: 441
B181: =B119 -> Eletrônico | C181: 2792.78 | D181: 0 | E181: 0.3442967869 | F181: 3754.325181 | G181: 624.71 | H181: =(($F181*Z181)+($G181*AO181))*BE181 -> 13137.10554 | I181: 13137.10554 | J181: 13137.10554 | K181: 13137.10554 | L181: 13137.10554 | M181: 13137.10554 | N181: 13137.10554 | O181: 13137.10554 | P181: 13137.10554 | Q181: 13137.10554 | R181: 13137.10554 | S181: 13137.10554 | T181: 157645.2665 | W181: Eletrônico | X181: 0.006802721088 | Y181: =X181/X186 -> 0.06818181818 | Z181: =Z186*$Y181 -> 0.006802721088 | AA181: 0.006802721088 | AB181: 0.006802721088 | AC181: 0.006802721088 | AD181: 0.006802721088 | AE181: 0.006802721088 | AF181: 0.006802721088 | AG181: 0.006802721088 | AH181: 0.006802721088 | AI181: 0.006802721088 | AJ181: 0.006802721088 | AK181: 0.006802721088 | AN181: Eletrônico | AO181: =AO186*$Y181 -> 0.006802721088 | AP181: 0.006802721088 | AQ181: 0.006802721088 | AR181: 0.006802721088 | AS181: 0.006802721088 | AT181: 0.006802721088 | AU181: 0.006802721088 | AV181: 0.006802721088 | AW181: 0.006802721088 | AX181: 0.006802721088 | AY181: 0.006802721088 | AZ181: 0.006802721088 | BC181: Eletrônico | BD181: 464 | BE181: =BE180 -> 441 | BF181: 441 | BG181: 441 | BH181: 441 | BI181: 441 | BJ181: 441 | BK181: 441 | BL181: 441 | BM181: 441 | BN181: 441 | BO181: 441 | BP181: 441
B182: =B120 -> Auxiliar Depto. Pessoal | C182: 1536.029 | D182: 0 | E182: 0.3442967869 | F182: 2064.878849 | G182: 624.71 | H182: =(($F182*Z182)+($G182*AO182))*BE182 -> 10758.3554 | I182: 10758.3554 | J182: 10758.3554 | K182: 10758.3554 | L182: 10758.3554 | M182: 10758.3554 | N182: 10758.3554 | O182: 10758.3554 | P182: 10758.3554 | Q182: 10758.3554 | R182: 10758.3554 | S182: 10758.3554 | T182: 129100.2648 | W182: Auxiliar Depto. Pessoal | X182: 0.009070294785 | Y182: =X182/X186 -> 0.09090909091 | Z182: =Z186*$Y182 -> 0.009070294785 | AA182: 0.009070294785 | AB182: 0.009070294785 | AC182: 0.009070294785 | AD182: 0.009070294785 | AE182: 0.009070294785 | AF182: 0.009070294785 | AG182: 0.009070294785 | AH182: 0.009070294785 | AI182: 0.009070294785 | AJ182: 0.009070294785 | AK182: 0.009070294785 | AN182: Auxiliar Depto. Pessoal | AO182: =AO186*$Y182 -> 0.009070294785 | AP182: 0.009070294785 | AQ182: 0.009070294785 | AR182: 0.009070294785 | AS182: 0.009070294785 | AT182: 0.009070294785 | AU182: 0.009070294785 | AV182: 0.009070294785 | AW182: 0.009070294785 | AX182: 0.009070294785 | AY182: 0.009070294785 | AZ182: 0.009070294785 | BC182: Auxiliar Depto. Pessoal | BD182: 464 | BE182: =BE181 -> 441 | BF182: 441 | BG182: 441 | BH182: 441 | BI182: 441 | BJ182: 441 | BK182: 441 | BL182: 441 | BM182: 441 | BN182: 441 | BO182: 441 | BP182: 441
B183: =B121 -> Contador | C183: 3630.614 | D183: 0 | E183: 0.3442967869 | F183: 4880.622735 | G183: 624.71 | H183: =(($F183*Z183)+($G183*AO183))*BE183 -> 5505.332735 | I183: 5505.332735 | J183: 5505.332735 | K183: 5505.332735 | L183: 5505.332735 | M183: 5505.332735 | N183: 5505.332735 | O183: 5505.332735 | P183: 5505.332735 | Q183: 5505.332735 | R183: 5505.332735 | S183: 5505.332735 | T183: 66063.99282 | W183: Contador | X183: 0.002267573696 | Y183: =X183/X186 -> 0.02272727273 | Z183: =Z186*$Y183 -> 0.002267573696 | AA183: 0.002267573696 | AB183: 0.002267573696 | AC183: 0.002267573696 | AD183: 0.002267573696 | AE183: 0.002267573696 | AF183: 0.002267573696 | AG183: 0.002267573696 | AH183: 0.002267573696 | AI183: 0.002267573696 | AJ183: 0.002267573696 | AK183: 0.002267573696 | AN183: Contador | AO183: =AO186*$Y183 -> 0.002267573696 | AP183: 0.002267573696 | AQ183: 0.002267573696 | AR183: 0.002267573696 | AS183: 0.002267573696 | AT183: 0.002267573696 | AU183: 0.002267573696 | AV183: 0.002267573696 | AW183: 0.002267573696 | AX183: 0.002267573696 | AY183: 0.002267573696 | AZ183: 0.002267573696 | BC183: Contador | BD183: 464 | BE183: =BE182 -> 441 | BF183: 441 | BG183: 441 | BH183: 441 | BI183: 441 | BJ183: 441 | BK183: 441 | BL183: 441 | BM183: 441 | BN183: 441 | BO183: 441 | BP183: 441
B184: =B122 -> Auxiliar Contabilidade | C184: 1536.029 | D184: 0 | E184: 0.3442967869 | F184: 2064.878849 | G184: 624.71 | H184: =(($F184*Z184)+($G184*AO184))*BE184 -> 5379.177699 | I184: 5379.177699 | J184: 5379.177699 | K184: 5379.177699 | L184: 5379.177699 | M184: 5379.177699 | N184: 5379.177699 | O184: 5379.177699 | P184: 5379.177699 | Q184: 5379.177699 | R184: 5379.177699 | S184: 5379.177699 | T184: 64550.13238 | W184: Auxiliar Contabilidade | X184: 0.004535147392 | Y184: =X184/X186 -> 0.04545454545 | Z184: =Z186*$Y184 -> 0.004535147392 | AA184: 0.004535147392 | AB184: 0.004535147392 | AC184: 0.004535147392 | AD184: 0.004535147392 | AE184: 0.004535147392 | AF184: 0.004535147392 | AG184: 0.004535147392 | AH184: 0.004535147392 | AI184: 0.004535147392 | AJ184: 0.004535147392 | AK184: 0.004535147392 | AN184: Auxiliar Contabilidade | AO184: =AO186*$Y184 -> 0.004535147392 | AP184: 0.004535147392 | AQ184: 0.004535147392 | AR184: 0.004535147392 | AS184: 0.004535147392 | AT184: 0.004535147392 | AU184: 0.004535147392 | AV184: 0.004535147392 | AW184: 0.004535147392 | AX184: 0.004535147392 | AY184: 0.004535147392 | AZ184: 0.004535147392 | BC184: Auxiliar Contabilidade | BD184: 464 | BE184: =BE183 -> 441 | BF184: 441 | BG184: 441 | BH184: 441 | BI184: 441 | BJ184: 441 | BK184: 441 | BL184: 441 | BM184: 441 | BN184: 441 | BO184: 441 | BP184: 441
B185: =B123 -> Outros | C185: 2792.78 | D185: 0 | E185: 0.3442967869 | F185: 3754.325181 | G185: 624.71 | H185: =(($F185*Z185)+($G185*AO185))*BE185 -> 35032.28144 | I185: 35032.28144 | J185: 35032.28144 | K185: 35032.28144 | L185: 35032.28144 | M185: 35032.28144 | N185: 35032.28144 | O185: 35032.28144 | P185: 35032.28144 | Q185: 35032.28144 | R185: 35032.28144 | S185: 35032.28144 | T185: 420387.3773 | W185: Outros | X185: 0.01814058957 | Y185: =X185/X186 -> 0.1818181818 | Z185: =Z186*$Y185 -> 0.01814058957 | AA185: 0.01814058957 | AB185: 0.01814058957 | AC185: 0.01814058957 | AD185: 0.01814058957 | AE185: 0.01814058957 | AF185: 0.01814058957 | AG185: 0.01814058957 | AH185: 0.01814058957 | AI185: 0.01814058957 | AJ185: 0.01814058957 | AK185: 0.01814058957 | AN185: Outros | AO185: =AO186*$Y185 -> 0.01814058957 | AP185: 0.01814058957 | AQ185: 0.01814058957 | AR185: 0.01814058957 | AS185: 0.01814058957 | AT185: 0.01814058957 | AU185: 0.01814058957 | AV185: 0.01814058957 | AW185: 0.01814058957 | AX185: 0.01814058957 | AY185: 0.01814058957 | AZ185: 0.01814058957 | BC185: Outros | BD185: 464 | BE185: =BE184 -> 441 | BF185: 441 | BG185: 441 | BH185: 441 | BI185: 441 | BJ185: 441 | BK185: 441 | BL185: 441 | BM185: 441 | BN185: 441 | BO185: 441 | BP185: 441
B186: Totais......................... | F186: Totais... | H186: =SUM(H171:H185) -> 166021.8392 | I186: 166021.8392 | J186: 166021.8392 | K186: 166021.8392 | L186: 166021.8392 | M186: 166021.8392 | N186: 166021.8392 | O186: 166021.8392 | P186: 166021.8392 | Q186: 166021.8392 | R186: 166021.8392 | S186: 166021.8392 | T186: 1992262.07 | W186: Totais......................... | X186: =SUM(X171:X185) -> 0.09977324263 | Y186: 1 | Z186: ='FU Folha FGV'!$AO60 -> 0.09977324263 | AA186: ='FU Folha FGV'!$AO61 -> 0.09977324263 | AB186: ='FU Folha FGV'!$AO62 -> 0.09977324263 | AC186: ='FU Folha FGV'!$AO63 -> 0.09977324263 | AD186: ='FU Folha FGV'!$AO64 -> 0.09977324263 | AE186: ='FU Folha FGV'!$AO65 -> 0.09977324263 | AF186: ='FU Folha FGV'!$AO66 -> 0.09977324263 | AG186: ='FU Folha FGV'!$AO67 -> 0.09977324263 | AH186: ='FU Folha FGV'!$AO68 -> 0.09977324263 | AI186: ='FU Folha FGV'!$AO69 -> 0.09977324263 | AJ186: ='FU Folha FGV'!$AO70 -> 0.09977324263 | AK186: ='FU Folha FGV'!$AO71 -> 0.09977324263 | AN186: Totais......................... | AO186: ='FU Folha FGV'!$AV$60 -> 0.09977324263 | AP186: ='FU Folha FGV'!$AV$61 -> 0.09977324263 | AQ186: ='FU Folha FGV'!$AV$62 -> 0.09977324263 | AR186: ='FU Folha FGV'!$AV$63 -> 0.09977324263 | AS186: ='FU Folha FGV'!$AV$64 -> 0.09977324263 | AT186: ='FU Folha FGV'!$AV$65 -> 0.09977324263 | AU186: ='FU Folha FGV'!$AV$66 -> 0.09977324263 | AV186: ='FU Folha FGV'!$AV$67 -> 0.09977324263 | AW186: ='FU Folha FGV'!$AV$68 -> 0.09977324263 | AX186: ='FU Folha FGV'!$AV$69 -> 0.09977324263 | AY186: ='FU Folha FGV'!$AV$70 -> 0.09977324263 | AZ186: ='FU Folha FGV'!$AV$71 -> 0.09977324263 | BC186: Totais......................... | BD186: 464 | BE186: =BE164 -> 441 | BF186: 441 | BG186: 441 | BH186: 441 | BI186: 441 | BJ186: 441 | BK186: 441 | BL186: 441 | BM186: 441 | BN186: 441 | BO186: 441 | BP186: 441
A187: Planilha 2 - Demonstração do Custo com Pessoal | F187: =G188 -> Ano 4 | K187: =F187 -> Ano 4 | P187: =K187 -> Ano 4 | U187: =P187 -> Ano 4 | AA187: =U187 -> Ano 4 | AF187: =AA187 -> Ano 4 | AK187: =AF187 -> Ano 4 | BE187: =AK187 -> Ano 4 | BJ187: =BE187 -> Ano 4
A188: Motoristas e Cobradores - Composição do Custo Unitário Por Função | G188: Ano 4 | H188: Motoristas e Cobradores - Composição de Custo Total Mensal | T188: R$ | X188: FU Lei Motorista Salário | Y188: FU Mot. | Z188: =$Z$2 -> 0 | AA188: =Z188 -> 0 | AB188: 0 | AC188: 0 | AD188: 0 | AE188: 0 | AF188: 0 | AG188: 0 | AH188: 0 | AI188: 0 | AJ188: 0 | AK188: 0 | AN188: FU Lei Motorista | AO188: =$AO$2 -> 0 | AP188: =AO188 -> 0 | AQ188: 0 | AR188: 0 | AS188: 0 | AT188: 0 | AU188: 0 | AV188: 0 | AW188: 0 | AX188: 0 | AY188: 0 | AZ188: 0
A189: Funções | B189: Cargo | C189: Salário | D189: Hs Extras | E189: Enc. | F189: R$ Total | G189: Benefícios | H189: =DATE(YEAR(S168),MONTH(S168)+1,DAY(S168)) -> 2017-01-01 | I189: =DATE(YEAR(H189),MONTH(H189)+1,DAY(H189)) -> 2017-02-01 | J189: 2017-03-01 | K189: 2017-04-01 | L189: 2017-05-01 | M189: 2017-06-01 | N189: 2017-07-01 | O189: 2017-08-01 | P189: 2017-09-01 | Q189: 2017-10-01 | R189: 2017-11-01 | S189: 2017-12-01 | T189: Total | V189: Fator Utilização Mensal | X189: =U187 -> Ano 4 | Y189: FU Cob. | Z189: =$Z$3 -> 0 | AA189: =Z189 -> 0 | AB189: 0 | AC189: 0 | AD189: 0 | AE189: 0 | AF189: 0 | AG189: 0 | AH189: 0 | AI189: 0 | AJ189: 0 | AK189: 0 | AM189: =X189 -> Ano 4 | AN189: FU Benefícios | AO189: =$AO$3 -> 0 | AP189: =AO189 -> 0 | AQ189: 0 | AR189: 0 | AS189: 0 | AT189: 0 | AU189: 0 | AV189: 0 | AW189: 0 | AX189: 0 | AY189: 0 | AZ189: 0 | BB189: Frota Mensal | BE189: =BE187 -> Ano 4
C190: base | D190: e Adic. | E190: Soc. | F190: Por | G190: R$ por | H190: R$ | I190: R$ | J190: R$ | K190: R$ | L190: R$ | M190: R$ | N190: R$ | O190: R$ | P190: R$ | Q190: R$ | R190: R$ | S190: R$ | T190: Durante o | V190: Funções | W190: Cargo | X190: FU | Z190: =H189 -> 2017-01-01 | AA190: 2017-02-01 | AB190: 2017-03-01 | AC190: 2017-04-01 | AD190: 2017-05-01 | AE190: 2017-06-01 | AF190: 2017-07-01 | AG190: 2017-08-01 | AH190: 2017-09-01 | AI190: 2017-10-01 | AJ190: 2017-11-01 | AK190: 2017-12-01 | AM190: Funções | AN190: Cargo | AO190: FU FÍSICO PARA CÁLCULOS DOS BENEFÍCIOS | BB190: Funções | BC190: Cargo | BD190: Frota | BE190: =Z190 -> 2017-01-01 | BF190: 2017-02-01 | BG190: 2017-03-01 | BH190: 2017-04-01 | BI190: 2017-05-01 | BJ190: 2017-06-01 | BK190: 2017-07-01 | BL190: 2017-08-01 | BM190: 2017-09-01 | BN190: 2017-10-01 | BO190: 2017-11-01 | BP190: 2017-12-01
C191: (R$/mês) | D191: Not. | E191: % | F191: Função | G191: mês | T191: =P187 -> Ano 4 | X191: Licitação | Z191: FU | AA191: FU | AB191: FU | AC191: FU | AD191: FU | AE191: FU | AF191: FU | AG191: FU | AH191: FU | AI191: FU | AJ191: FU | AK191: FU | AO191: =Z190 -> 2017-01-01 | AP191: 2017-02-01 | AQ191: 2017-03-01 | AR191: 2017-04-01 | AS191: 2017-05-01 | AT191: 2017-06-01 | AU191: 2017-07-01 | AV191: 2017-08-01 | AW191: 2017-09-01 | AX191: 2017-10-01 | AY191: 2017-11-01 | AZ191: 2017-12-01 | BD191: Licitação | BE191: Frota | BF191: Frota | BG191: Frota | BH191: Frota | BI191: Frota | BJ191: Frota | BK191: Frota | BL191: Frota | BM191: Frota | BN191: Frota | BO191: Frota | BP191: Frota
A192: Motorista | B192: Miniônibus | C192: =C130 -> 1396.39 | D192: 0 | E192: 0.3442967869 | F192: =(C192+D192)*(E192/100*100+1) -> 1877.16259 | G192: =G130 -> 624.71 | H192: =(($F192*Z192)+($G192*AO192))*BE192 -> 543950.8839 | I192: 578026.3886 | J192: 578026.3886 | K192: 578026.3886 | L192: 580071.6694 | M192: 580071.6694 | N192: 568137.7372 | O192: 568137.7372 | P192: 555678.4117 | Q192: 555415.715 | R192: 552901.3331 | S192: 501337.739 | T192: =SUM(H192:S192) -> 6739782.062 | V192: Motorista | W192: =B192 -> Miniônibus | X192: =X130 -> 2.505 | Y192: =X192/X197 -> 1 | Z192: =Z197*$Y192+Z188 -> 2.8989 | AA192: 3.0805 | AB192: 3.0805 | AC192: 3.0805 | AD192: 3.0914 | AE192: 3.0914 | AF192: 3.0278 | AG192: 3.0278 | AH192: 2.9614 | AI192: 2.96 | AJ192: 2.9466 | AK192: 2.6718 | AM192: Motorista | AN192: =W192 -> Miniônibus | AO192: =AO197*$Y192+AO188 -> 2.8989 | AP192: 3.0805 | AQ192: 3.0805 | AR192: 3.0805 | AS192: 3.0914 | AT192: 3.0914 | AU192: 3.0278 | AV192: 3.0278 | AW192: 2.9614 | AX192: 2.96 | AY192: 2.9466 | AZ192: 2.6718 | BB192: Motorista | BC192: =W192 -> Miniônibus | BD192: =BD130 -> 79 | BE192: =BP130 -> 75 | BF192: =BE192 -> 75 | BG192: 75 | BH192: 75 | BI192: 75 | BJ192: 75 | BK192: 75 | BL192: 75 | BM192: 75 | BN192: 75 | BO192: 75 | BP192: 75
B193: Ônibus Básico | C193: =C131 -> 1396.39 | D193: 0 | E193: 0.3442967869 | F193: 1877.16259 | G193: =G192 -> 624.71 | H193: =(($F193*Z193)+($G193*AO193))*BE193 -> 2429647.281 | I193: 2581851.202 | J193: 2581851.202 | K193: 2581851.202 | L193: 2590986.79 | M193: 2590986.79 | N193: 2537681.893 | O193: 2537681.893 | P193: 2482030.239 | Q193: 2480856.861 | R193: 2469625.954 | S193: 2239308.568 | T193: 30104359.88 | W193: Ônibus Básico | X193: =X192 -> 2.505 | Y193: =X193/X197 -> 1 | Z193: =Z197*$Y193+Z188 -> 2.8989 | AA193: 3.0805 | AB193: 3.0805 | AC193: 3.0805 | AD193: 3.0914 | AE193: 3.0914 | AF193: 3.0278 | AG193: 3.0278 | AH193: 2.9614 | AI193: 2.96 | AJ193: 2.9466 | AK193: 2.6718 | AN193: Ônibus Básico | AO193: =AO197*$Y193+AO188 -> 2.8989 | AP193: 3.0805 | AQ193: 3.0805 | AR193: 3.0805 | AS193: 3.0914 | AT193: 3.0914 | AU193: 3.0278 | AV193: 3.0278 | AW193: 2.9614 | AX193: 2.96 | AY193: 2.9466 | AZ193: 2.6718 | BC193: Ônibus Básico | BD193: 352 | BE193: 335 | BF193: =BE193 -> 335 | BG193: 335 | BH193: 335 | BI193: 335 | BJ193: 335 | BK193: 335 | BL193: 335 | BM193: 335 | BN193: 335 | BO193: 335 | BP193: 335
B194: Padron | C194: =C132 -> 1396.39 | D194: 0 | E194: 0.3442967869 | F194: 1877.16259 | G194: 624.71 | H194: =(($F194*Z194)+($G194*AO194))*BE194 -> 0 | I194: 0 | J194: 0 | K194: 0 | L194: 0 | M194: 0 | N194: 0 | O194: 0 | P194: 0 | Q194: 0 | R194: 0 | S194: 0 | T194: 0 | W194: Padron | X194: 2.505 | Y194: =X194/X197 -> 1 | Z194: =Z197*$Y194+Z188 -> 2.8989 | AA194: 3.0805 | AB194: 3.0805 | AC194: 3.0805 | AD194: 3.0914 | AE194: 3.0914 | AF194: 3.0278 | AG194: 3.0278 | AH194: 2.9614 | AI194: 2.96 | AJ194: 2.9466 | AK194: 2.6718 | AN194: Padron | AO194: =AO197*$Y194+AO188 -> 2.8989 | AP194: 3.0805 | AQ194: 3.0805 | AR194: 3.0805 | AS194: 3.0914 | AT194: 3.0914 | AU194: 3.0278 | AV194: 3.0278 | AW194: 2.9614 | AX194: 2.96 | AY194: 2.9466 | AZ194: 2.6718 | BC194: Padron | BD194: 0 | BE194: 0 | BF194: =BE194 -> 0 | BG194: 0 | BH194: 0 | BI194: 0 | BJ194: 0 | BK194: 0 | BL194: 0 | BM194: 0 | BN194: 0 | BO194: 0 | BP194: 0
B195: Articulado | C195: =C133 -> 1396.39 | D195: 0 | E195: 0.3442967869 | F195: 1877.16259 | G195: 624.71 | H195: =(($F195*Z195)+($G195*AO195))*BE195 -> 224833.032 | I195: 238917.5739 | J195: 238917.5739 | K195: 238917.5739 | L195: 239762.9567 | M195: 239762.9567 | N195: 234830.2647 | O195: 234830.2647 | P195: 229680.4102 | Q195: 229571.8289 | R195: 228532.551 | S195: 207219.5988 | T195: 2785776.585 | W195: Articulado | X195: 2.505 | Y195: =X195/X197 -> 1 | Z195: =Z197*$Y195+Z188 -> 2.8989 | AA195: 3.0805 | AB195: 3.0805 | AC195: 3.0805 | AD195: 3.0914 | AE195: 3.0914 | AF195: 3.0278 | AG195: 3.0278 | AH195: 2.9614 | AI195: 2.96 | AJ195: 2.9466 | AK195: 2.6718 | AN195: Articulado | AO195: =AO197*$Y195+AO188 -> 2.8989 | AP195: 3.0805 | AQ195: 3.0805 | AR195: 3.0805 | AS195: 3.0914 | AT195: 3.0914 | AU195: 3.0278 | AV195: 3.0278 | AW195: 2.9614 | AX195: 2.96 | AY195: 2.9466 | AZ195: 2.6718 | BC195: Articulado | BD195: 33 | BE195: 31 | BF195: =BE195 -> 31 | BG195: 31 | BH195: 31 | BI195: 31 | BJ195: 31 | BK195: 31 | BL195: 31 | BM195: 31 | BN195: 31 | BO195: 31 | BP195: 31
B196: Articulado BRT | C196: =C134 -> 1396.39 | D196: 0 | E196: 0.3442967869 | F196: 1877.16259 | G196: 624.71 | H196: =(($F196*Z196)+($G196*AO196))*BE196 -> 0 | I196: 0 | J196: 0 | K196: 0 | L196: 0 | M196: 0 | N196: 0 | O196: 0 | P196: 0 | Q196: 0 | R196: 0 | S196: 0 | T196: 0 | W196: Articulado BRT | X196: 2.505 | Y196: =X196/X197 -> 1 | Z196: =Z197*$Y196+Z188 -> 2.8989 | AA196: 3.0805 | AB196: 3.0805 | AC196: 3.0805 | AD196: 3.0914 | AE196: 3.0914 | AF196: 3.0278 | AG196: 3.0278 | AH196: 2.9614 | AI196: 2.96 | AJ196: 2.9466 | AK196: 2.6718 | AN196: Articulado BRT | AO196: =AO197*$Y196+AO188 -> 2.8989 | AP196: 3.0805 | AQ196: 3.0805 | AR196: 3.0805 | AS196: 3.0914 | AT196: 3.0914 | AU196: 3.0278 | AV196: 3.0278 | AW196: 2.9614 | AX196: 2.96 | AY196: 2.9466 | AZ196: 2.6718 | BC196: Articulado BRT | BD196: 0 | BE196: 0 | BF196: =BE196 -> 0 | BG196: 0 | BH196: 0 | BI196: 0 | BJ196: 0 | BK196: 0 | BL196: 0 | BM196: 0 | BN196: 0 | BO196: 0 | BP196: 0
B197: Totais........................ | F197: Totais... | G197: 624.71 | H197: =SUM(H192:H196) -> 3198431.197 | I197: 3398795.165 | J197: 3398795.165 | K197: 3398795.165 | L197: 3410821.416 | M197: 3410821.416 | N197: 3340649.895 | O197: 3340649.895 | P197: 3267389.061 | Q197: 3265844.404 | R197: 3251059.839 | S197: 2947865.905 | T197: 39629918.52 | W197: Totais........................ | X197: 2.505 | Z197: ='FU Folha FGV'!$AK77 -> 2.8989 | AA197: ='FU Folha FGV'!$AK78 -> 3.0805 | AB197: ='FU Folha FGV'!$AK79 -> 3.0805 | AC197: ='FU Folha FGV'!$AK80 -> 3.0805 | AD197: ='FU Folha FGV'!$AK81 -> 3.0914 | AE197: ='FU Folha FGV'!$AK82 -> 3.0914 | AF197: ='FU Folha FGV'!$AK83 -> 3.0278 | AG197: ='FU Folha FGV'!$AK84 -> 3.0278 | AH197: ='FU Folha FGV'!$AK85 -> 2.9614 | AI197: ='FU Folha FGV'!$AK86 -> 2.96 | AJ197: ='FU Folha FGV'!$AK87 -> 2.9466 | AK197: ='FU Folha FGV'!$AK88 -> 2.6718 | AN197: Totais........................ | AO197: ='FU Folha FGV'!$AR$77 -> 2.8989 | AP197: ='FU Folha FGV'!$AR$78 -> 3.0805 | AQ197: ='FU Folha FGV'!$AR$79 -> 3.0805 | AR197: ='FU Folha FGV'!$AR$80 -> 3.0805 | AS197: ='FU Folha FGV'!$AR$81 -> 3.0914 | AT197: ='FU Folha FGV'!$AR$82 -> 3.0914 | AU197: ='FU Folha FGV'!$AR$83 -> 3.0278 | AV197: ='FU Folha FGV'!$AR$84 -> 3.0278 | AW197: ='FU Folha FGV'!$AR$85 -> 2.9614 | AX197: ='FU Folha FGV'!$AR$86 -> 2.96 | AY197: ='FU Folha FGV'!$AR$87 -> 2.9466 | AZ197: ='FU Folha FGV'!$AR$88 -> 2.6718 | BC197: Totais........................ | BD197: =SUM(BD192:BD196) -> 464 | BE197: 441 | BF197: 441 | BG197: 441 | BH197: 441 | BI197: 441 | BJ197: 441 | BK197: 441 | BL197: 441 | BM197: 441 | BN197: 441 | BO197: 441 | BP197: 441
A198: Cobrador | B198: Miniônibus | C198: =C136 -> 787.52 | D198: 0 | E198: 0.3442967869 | F198: =(C198+D198)*(E198/100*100+1) -> 1058.660606 | G198: 624.71 | H198: =(($F198*Z198)+($G198*AO198))*BE198 -> 365994.2286 | I198: 388921.7363 | J198: 388921.7363 | K198: 388921.7363 | L198: 390297.8918 | M198: 390297.8918 | N198: 382268.214 | O198: 382268.214 | P198: 373885.0284 | Q198: 373708.2745 | R198: 372016.487 | S198: 337322.2188 | T198: =SUM(H198:S198) -> 4534823.658 | V198: Cobrador | W198: =B198 -> Miniônibus | X198: =X136 -> 2.505 | Y198: =X198/X203 -> 1 | Z198: =Z203*$Y198+Z189 -> 2.8989 | AA198: 3.0805 | AB198: 3.0805 | AC198: 3.0805 | AD198: 3.0914 | AE198: 3.0914 | AF198: 3.0278 | AG198: 3.0278 | AH198: 2.9614 | AI198: 2.96 | AJ198: 2.9466 | AK198: 2.6718 | AM198: Cobrador | AN198: Miniônibus | AO198: =AO203*$Y198+AO189 -> 2.8989 | AP198: 3.0805 | AQ198: 3.0805 | AR198: 3.0805 | AS198: 3.0914 | AT198: 3.0914 | AU198: 3.0278 | AV198: 3.0278 | AW198: 2.9614 | AX198: 2.96 | AY198: 2.9466 | AZ198: 2.6718 | BB198: Cobrador | BC198: Miniônibus | BD198: =BD136 -> 79 | BE198: =BP136 -> 75 | BF198: =BE198 -> 75 | BG198: 75 | BH198: 75 | BI198: 75 | BJ198: 75 | BK198: 75 | BL198: 75 | BM198: 75 | BN198: 75 | BO198: 75 | BP198: 75
B199: Ônibus Básico | C199: =C137 -> 787.52 | D199: 0 | E199: 0.3442967869 | F199: 1058.660606 | G199: 624.71 | H199: =(($F199*Z199)+($G199*AO199))*BE199 -> 1634774.221 | I199: 1737183.755 | J199: 1737183.755 | K199: 1737183.755 | L199: 1743330.583 | M199: 1743330.583 | N199: 1707464.689 | O199: 1707464.689 | P199: 1670019.793 | Q199: 1669230.293 | R199: 1661673.642 | S199: 1506705.911 | T199: 20255545.67 | W199: Ônibus Básico | X199: =X198 -> 2.505 | Y199: =X199/X203 -> 1 | Z199: =Z203*$Y199+Z189 -> 2.8989 | AA199: 3.0805 | AB199: 3.0805 | AC199: 3.0805 | AD199: 3.0914 | AE199: 3.0914 | AF199: 3.0278 | AG199: 3.0278 | AH199: 2.9614 | AI199: 2.96 | AJ199: 2.9466 | AK199: 2.6718 | AN199: Ônibus Básico | AO199: =AO203*$Y199+AO189 -> 2.8989 | AP199: 3.0805 | AQ199: 3.0805 | AR199: 3.0805 | AS199: 3.0914 | AT199: 3.0914 | AU199: 3.0278 | AV199: 3.0278 | AW199: 2.9614 | AX199: 2.96 | AY199: 2.9466 | AZ199: 2.6718 | BC199: Ônibus Básico | BD199: 352 | BE199: 335 | BF199: =BE199 -> 335 | BG199: 335 | BH199: 335 | BI199: 335 | BJ199: 335 | BK199: 335 | BL199: 335 | BM199: 335 | BN199: 335 | BO199: 335 | BP199: 335
B200: Padron | C200: =C138 -> 787.52 | D200: 0 | E200: 0.3442967869 | F200: 1058.660606 | G200: 624.71 | H200: =(($F200*Z200)+($G200*AO200))*BE200 -> 0 | I200: 0 | J200: 0 | K200: 0 | L200: 0 | M200: 0 | N200: 0 | O200: 0 | P200: 0 | Q200: 0 | R200: 0 | S200: 0 | T200: 0 | W200: Padron | X200: 2.505 | Y200: =X200/X203 -> 1 | Z200: =Z203*$Y200+Z189 -> 2.8989 | AA200: 3.0805 | AB200: 3.0805 | AC200: 3.0805 | AD200: 3.0914 | AE200: 3.0914 | AF200: 3.0278 | AG200: 3.0278 | AH200: 2.9614 | AI200: 2.96 | AJ200: 2.9466 | AK200: 2.6718 | AN200: Padron | AO200: =AO203*$Y200+AO189 -> 2.8989 | AP200: 3.0805 | AQ200: 3.0805 | AR200: 3.0805 | AS200: 3.0914 | AT200: 3.0914 | AU200: 3.0278 | AV200: 3.0278 | AW200: 2.9614 | AX200: 2.96 | AY200: 2.9466 | AZ200: 2.6718 | BC200: Padron | BD200: 0 | BE200: 0 | BF200: =BE200 -> 0 | BG200: 0 | BH200: 0 | BI200: 0 | BJ200: 0 | BK200: 0 | BL200: 0 | BM200: 0 | BN200: 0 | BO200: 0 | BP200: 0
B201: Articulado | C201: =C139 -> 787.52 | D201: 0 | E201: 0.3442967869 | F201: 1058.660606 | G201: 624.71 | H201: =(($F201*Z201)+($G201*AO201))*BE201 -> 151277.6145 | I201: 160754.3177 | J201: 160754.3177 | K201: 160754.3177 | L201: 161323.1286 | M201: 161323.1286 | N201: 158004.1951 | O201: 158004.1951 | P201: 154539.1451 | Q201: 154466.0868 | R201: 153766.8146 | S201: 139426.5171 | T201: 1874393.778 | W201: Articulado | X201: 2.505 | Y201: =X201/X203 -> 1 | Z201: =Z203*$Y201+Z189 -> 2.8989 | AA201: 3.0805 | AB201: 3.0805 | AC201: 3.0805 | AD201: 3.0914 | AE201: 3.0914 | AF201: 3.0278 | AG201: 3.0278 | AH201: 2.9614 | AI201: 2.96 | AJ201: 2.9466 | AK201: 2.6718 | AN201: Articulado | AO201: =AO203*$Y201+AO189 -> 2.8989 | AP201: 3.0805 | AQ201: 3.0805 | AR201: 3.0805 | AS201: 3.0914 | AT201: 3.0914 | AU201: 3.0278 | AV201: 3.0278 | AW201: 2.9614 | AX201: 2.96 | AY201: 2.9466 | AZ201: 2.6718 | BC201: Articulado | BD201: 33 | BE201: 31 | BF201: =BE201 -> 31 | BG201: 31 | BH201: 31 | BI201: 31 | BJ201: 31 | BK201: 31 | BL201: 31 | BM201: 31 | BN201: 31 | BO201: 31 | BP201: 31
B202: Articulado BRT | C202: =C140 -> 787.52 | D202: 0 | E202: 0.3442967869 | F202: 1058.660606 | G202: 624.71 | H202: =(($F202*Z202)+($G202*AO202))*BE202 -> 0 | I202: 0 | J202: 0 | K202: 0 | L202: 0 | M202: 0 | N202: 0 | O202: 0 | P202: 0 | Q202: 0 | R202: 0 | S202: 0 | T202: 0 | W202: Articulado BRT | X202: 2.505 | Y202: =X202/X203 -> 1 | Z202: =Z203*$Y202+Z189 -> 2.8989 | AA202: 3.0805 | AB202: 3.0805 | AC202: 3.0805 | AD202: 3.0914 | AE202: 3.0914 | AF202: 3.0278 | AG202: 3.0278 | AH202: 2.9614 | AI202: 2.96 | AJ202: 2.9466 | AK202: 2.6718 | AN202: Articulado BRT | AO202: =AO203*$Y202+AO189 -> 2.8989 | AP202: 3.0805 | AQ202: 3.0805 | AR202: 3.0805 | AS202: 3.0914 | AT202: 3.0914 | AU202: 3.0278 | AV202: 3.0278 | AW202: 2.9614 | AX202: 2.96 | AY202: 2.9466 | AZ202: 2.6718 | BC202: Articulado BRT | BD202: 0 | BE202: 0 | BF202: =BE202 -> 0 | BG202: 0 | BH202: 0 | BI202: 0 | BJ202: 0 | BK202: 0 | BL202: 0 | BM202: 0 | BN202: 0 | BO202: 0 | BP202: 0
B203: Totais........................ | F203: Totais... | H203: =SUM(H198:H202) -> 2152046.064 | I203: 2286859.809 | J203: 2286859.809 | K203: 2286859.809 | L203: 2294951.604 | M203: 2294951.604 | N203: 2247737.098 | O203: 2247737.098 | P203: 2198443.967 | Q203: 2197404.654 | R203: 2187456.944 | S203: 1983454.647 | T203: 26664763.11 | W203: Totais........................ | X203: 2.505 | Z203: ='FU Folha FGV'!$AL77 -> 2.8989 | AA203: ='FU Folha FGV'!$AL78 -> 3.0805 | AB203: ='FU Folha FGV'!$AL79 -> 3.0805 | AC203: ='FU Folha FGV'!$AL80 -> 3.0805 | AD203: ='FU Folha FGV'!$AL81 -> 3.0914 | AE203: ='FU Folha FGV'!$AL82 -> 3.0914 | AF203: ='FU Folha FGV'!$AL83 -> 3.0278 | AG203: ='FU Folha FGV'!$AL84 -> 3.0278 | AH203: ='FU Folha FGV'!$AL85 -> 2.9614 | AI203: ='FU Folha FGV'!$AL86 -> 2.96 | AJ203: ='FU Folha FGV'!$AL87 -> 2.9466 | AK203: ='FU Folha FGV'!$AL88 -> 2.6718 | AN203: Totais........................ | AO203: ='FU Folha FGV'!$AS$77 -> 2.8989 | AP203: ='FU Folha FGV'!$AS$78 -> 3.0805 | AQ203: ='FU Folha FGV'!$AS$79 -> 3.0805 | AR203: ='FU Folha FGV'!$AS$80 -> 3.0805 | AS203: ='FU Folha FGV'!$AS$81 -> 3.0914 | AT203: ='FU Folha FGV'!$AS$82 -> 3.0914 | AU203: ='FU Folha FGV'!$AS$83 -> 3.0278 | AV203: ='FU Folha FGV'!$AS$84 -> 3.0278 | AW203: ='FU Folha FGV'!$AS$85 -> 2.9614 | AX203: ='FU Folha FGV'!$AS$86 -> 2.96 | AY203: ='FU Folha FGV'!$AS$87 -> 2.9466 | AZ203: ='FU Folha FGV'!$AS$88 -> 2.6718 | BC203: Totais........................ | BD203: =SUM(BD198:BD202) -> 464 | BE203: 441 | BF203: 441 | BG203: 441 | BH203: 441 | BI203: 441 | BJ203: 441 | BK203: 441 | BL203: 441 | BM203: 441 | BN203: 441 | BO203: 441 | BP203: 441
F204: Total Mensal Mot./Cob. | H204: =H197+H203 -> 5350477.262 | I204: 5685654.974 | J204: 5685654.974 | K204: 5685654.974 | L204: 5705773.02 | M204: 5705773.02 | N204: 5588386.993 | O204: 5588386.993 | P204: 5465833.027 | Q204: 5463249.058 | R204: 5438516.782 | S204: 4931320.552 | T204: 66294681.63
A206: Controle Operacional - Composição do Custo Unitário Por Função | G206: Ano 4 | H206: Controle Operacional - Composição de Custo Total Mensal | T206: R$
A207: Funções | B207: Cargo | C207: Salário | D207: Hs Extras | E207: Enc. | F207: R$ Total | G207: Benefícios | H207: =H189 -> 2017-01-01 | I207: =DATE(YEAR(H207),MONTH(H207)+1,DAY(H207)) -> 2017-02-01 | J207: 2017-03-01 | K207: 2017-04-01 | L207: 2017-05-01 | M207: 2017-06-01 | N207: 2017-07-01 | O207: 2017-08-01 | P207: 2017-09-01 | Q207: 2017-10-01 | R207: 2017-11-01 | S207: 2017-12-01 | T207: Total | V207: Fator Utilização Mensal | X207: =U187 -> Ano 4 | Z207: FU FOLHA DE PAGAMENTO | AM207: =X207 -> Ano 4 | AN207: FU Benefícios | AO207: FU FÍSICO PARA CÁLCULOS DOS BENEFÍCIOS | BB207: Frota Mensal | BE207: =BE189 -> Ano 4
... 400 more rows

Sheet MO Oper_Adm 11 em diante
A1: Planilha 2 - Demonstração do Custo com Pessoal | F1: =G2 -> Ano 1 | K1: =F1 -> Ano 1 | P1: =K1 -> Ano 1 | U1: =P1 -> Ano 1 | AA1: =U1 -> Ano 1 | AF1: =AA1 -> Ano 1 | AK1: =AF1 -> Ano 1 | BE1: =AK1 -> Ano 1 | BJ1: =BE1 -> Ano 1
A2: Motoristas e Cobradores - Composição do Custo Unitário Por Função | G2: Ano 1 | H2: Motoristas e Cobradores - Composição de Custo Total Mensal | T2: R$ | X2: FU Lei Motorista Salário | Y2: FU Mot. | AA2: =Z2 -> 0 | AB2: 0 | AC2: 0 | AD2: 0 | AE2: 0 | AF2: 0 | AG2: 0 | AH2: 0 | AI2: 0 | AJ2: 0 | AK2: 0 | AN2: FU Lei Motorista | AP2: =AO2 -> 0 | AQ2: 0 | AR2: 0 | AS2: 0 | AT2: 0 | AU2: 0 | AV2: 0 | AW2: 0 | AX2: 0 | AY2: 0 | AZ2: 0
A3: Funções | B3: Cargo | C3: Salário | D3: Hs Extras | E3: Enc. | F3: R$ Total | G3: Benefícios | H3: 2024-01-01 | I3: =DATE(YEAR(H3),MONTH(H3)+1,DAY(H3)) -> 2024-02-01 | J3: 2024-03-01 | K3: 2024-04-01 | L3: 2024-05-01 | M3: 2024-06-01 | N3: 2024-07-01 | O3: 2024-08-01 | P3: 2024-09-01 | Q3: 2024-10-01 | R3: 2024-11-01 | S3: 2024-12-01 | T3: Total | V3: Fator Utilização Mensal | X3: =U1 -> Ano 1 | Y3: FU Cob. | AA3: =Z3 -> 0 | AB3: 0 | AC3: 0 | AD3: 0 | AE3: 0 | AF3: 0 | AG3: 0 | AH3: 0 | AI3: 0 | AJ3: 0 | AK3: 0 | AM3: =X3 -> Ano 1 | AN3: FU Benefícios | AP3: =AO3 -> 0 | AQ3: 0 | AR3: 0 | AS3: 0 | AT3: 0 | AU3: 0 | AV3: 0 | AW3: 0 | AX3: 0 | AY3: 0 | AZ3: 0 | BB3: Frota Mensal | BE3: =AK1 -> Ano 1 | BK3: 335 | BL3: =335*5% -> 16.75 | BM3: =BK3-BL3 -> 318.25
C4: base | D4: e Adic. | E4: Soc. | F4: Por | G4: R$ por | H4: R$ | I4: R$ | J4: R$ | K4: R$ | L4: R$ | M4: R$ | N4: R$ | O4: R$ | P4: R$ | Q4: R$ | R4: R$ | S4: R$ | T4: Durante o | V4: Funções | W4: Cargo | X4: FU | Z4: =H3 -> 2024-01-01 | AA4: 2024-02-01 | AB4: 2024-03-01 | AC4: 2024-04-01 | AD4: 2024-05-01 | AE4: 2024-06-01 | AF4: 2024-07-01 | AG4: 2024-08-01 | AH4: 2024-09-01 | AI4: 2024-10-01 | AJ4: 2024-11-01 | AK4: 2024-12-01 | AM4: Funções | AN4: Cargo | AO4: FU FÍSICO PARA CÁLCULOS DOS BENEFÍCIOS | BB4: Funções | BC4: Cargo | BD4: Frota | BE4: =Z4 -> 2024-01-01 | BF4: 2024-02-01 | BG4: 2024-03-01 | BH4: 2024-04-01 | BI4: 2024-05-01 | BJ4: 2024-06-01 | BK4: 2024-07-01 | BL4: 2024-08-01 | BM4: 2024-09-01 | BN4: 2024-10-01 | BO4: 2024-11-01 | BP4: 2024-12-01
C5: (R$/mês) | D5: Not. | E5: % | F5: Função | G5: mês | T5: =P1 -> Ano 1 | X5: Licitação | Z5: FU | AA5: FU | AB5: FU | AC5: FU | AD5: FU | AE5: FU | AF5: FU | AG5: FU | AH5: FU | AI5: FU | AJ5: FU | AK5: FU | AO5: =Z4 -> 2024-01-01 | AP5: 2024-02-01 | AQ5: 2024-03-01 | AR5: 2024-04-01 | AS5: 2024-05-01 | AT5: 2024-06-01 | AU5: 2024-07-01 | AV5: 2024-08-01 | AW5: 2024-09-01 | AX5: 2024-10-01 | AY5: 2024-11-01 | AZ5: 2024-12-01 | BD5: Licitação | BE5: Frota | BF5: Frota | BG5: Frota | BH5: Frota | BI5: Frota | BJ5: Frota | BK5: Frota | BL5: Frota | BM5: Frota | BN5: Frota | BO5: Frota | BP5: Frota
A6: Motorista | B6: Miniônibus | C6: 1396.39 | D6: 0 | E6: =Enc.Sociais!B36 -> 0.3442967869 | F6: =(C6+D6)*(E6/100*100+1) -> 1877.16259 | G6: ='Plan2 R$ Pessoal'!K8 -> 624.71 | H6: =(($F6*Z6)+($G6*AO6))*BE6 -> 543417.2345 | I6: 543417.2345 | J6: 543417.2345 | K6: 543417.2345 | L6: 543417.2345 | M6: 543417.2345 | N6: 543417.2345 | O6: 543417.2345 | P6: 543417.2345 | Q6: 543417.2345 | R6: 543417.2345 | S6: 543417.2345 | T6: =SUM(H6:S6) -> 6521006.814 | V6: Motorista | W6: =B6 -> Miniônibus | X6: ='Plan2 R$ Pessoal'!$D$8 -> 2.505 | Y6: =X6/X11 -> 1 | Z6: =Z11*$Y6+Z2 -> 2.4966 | AA6: 2.4966 | AB6: 2.4966 | AC6: 2.4966 | AD6: 2.4966 | AE6: 2.4966 | AF6: 2.4966 | AG6: 2.4966 | AH6: 2.4966 | AI6: 2.4966 | AJ6: 2.4966 | AK6: 2.4966 | AM6: Motorista | AN6: =W6 -> Miniônibus | AO6: =AO11*$Y6+AO2 -> 2.4966 | AP6: 2.4966 | AQ6: 2.4966 | AR6: 2.4966 | AS6: 2.4966 | AT6: 2.4966 | AU6: 2.4966 | AV6: 2.4966 | AW6: 2.4966 | AX6: 2.4966 | AY6: 2.4966 | AZ6: 2.4966 | BB6: Motorista | BC6: =W6 -> Miniônibus | BD6: 92 | BE6: =92-5 -> 87 | BF6: =BE6 -> 87 | BG6: 87 | BH6: 87 | BI6: 87 | BJ6: 87 | BK6: 87 | BL6: 87 | BM6: 87 | BN6: 87 | BO6: 87 | BP6: 87
B7: Ônibus Básico | C7: 1396.39 | D7: 0 | E7: =E6 -> 0.3442967869 | F7: 1877.16259 | G7: =G6 -> 624.71 | H7: =(($F7*Z7)+($G7*AO7))*BE7 -> 2204899.813 | I7: 2204899.813 | J7: 2204899.813 | K7: 2204899.813 | L7: 2204899.813 | M7: 2204899.813 | N7: 2204899.813 | O7: 2204899.813 | P7: 1761421.381 | Q7: 1761421.381 | R7: 1761421.381 | S7: 1761421.381 | T7: 24684884.03 | W7: Ônibus Básico | X7: =X6 -> 2.505 | Y7: =X7/X11 -> 1 | Z7: =Z11*$Y7+Z2 -> 2.4966 | AA7: 2.4966 | AB7: 2.4966 | AC7: 2.4966 | AD7: 2.4966 | AE7: 2.4966 | AF7: 2.4966 | AG7: 2.4966 | AH7: 2.4966 | AI7: 2.4966 | AJ7: 2.4966 | AK7: 2.4966 | AN7: Ônibus Básico | AO7: =AO11*$Y7+AO2 -> 2.4966 | AP7: 2.4966 | AQ7: 2.4966 | AR7: 2.4966 | AS7: 2.4966 | AT7: 2.4966 | AU7: 2.4966 | AV7: 2.4966 | AW7: 2.4966 | AX7: 2.4966 | AY7: 2.4966 | AZ7: 2.4966 | BC7: Ônibus Básico | BD7: =335+18 -> 353 | BE7: 353 | BF7: 353 | BG7: 353 | BH7: 353 | BI7: 353 | BJ7: 353 | BK7: 353 | BL7: 353 | BM7: 282 | BN7: =BM7 -> 282 | BO7: 282 | BP7: 282
B8: Padron | C8: 1396.39 | D8: 0 | E8: 0.3442967869 | F8: 1877.16259 | G8: 624.71 | H8: =(($F8*Z8)+($G8*AO8))*BE8 -> 0 | I8: 0 | J8: 0 | K8: 0 | L8: 0 | M8: 0 | N8: 0 | O8: 0 | P8: 537171.0594 | Q8: 537171.0594 | R8: 537171.0594 | S8: 537171.0594 | T8: 2148684.237 | W8: Padron | X8: 2.505 | Y8: =X8/X11 -> 1 | Z8: =Z11*$Y8+Z2 -> 2.4966 | AA8: 2.4966 | AB8: 2.4966 | AC8: 2.4966 | AD8: 2.4966 | AE8: 2.4966 | AF8: 2.4966 | AG8: 2.4966 | AH8: 2.4966 | AI8: 2.4966 | AJ8: 2.4966 | AK8: 2.4966 | AN8: Padron | AO8: =AO11*$Y8+AO2 -> 2.4966 | AP8: 2.4966 | AQ8: 2.4966 | AR8: 2.4966 | AS8: 2.4966 | AT8: 2.4966 | AU8: 2.4966 | AV8: 2.4966 | AW8: 2.4966 | AX8: 2.4966 | AY8: 2.4966 | AZ8: 2.4966 | BC8: Padron | BD8: 0 | BE8: 0 | BF8: =BE8 -> 0 | BG8: 0 | BH8: 0 | BI8: 0 | BJ8: 0 | BK8: 0 | BL8: 0 | BM8: 86 | BN8: 86 | BO8: 86 | BP8: 86
B9: Articulado | C9: 1396.39 | D9: 0 | E9: 0.3442967869 | F9: 1877.16259 | G9: 624.71 | H9: =(($F9*Z9)+($G9*AO9))*BE9 -> 193631.4284 | I9: 193631.4284 | J9: 193631.4284 | K9: 193631.4284 | L9: 193631.4284 | M9: 193631.4284 | N9: 193631.4284 | O9: 193631.4284 | P9: 0 | Q9: 0 | R9: 0 | S9: 0 | T9: 1549051.427 | W9: Articulado | X9: 2.505 | Y9: =X9/X11 -> 1 | Z9: =Z11*$Y9+Z2 -> 2.4966 | AA9: 2.4966 | AB9: 2.4966 | AC9: 2.4966 | AD9: 2.4966 | AE9: 2.4966 | AF9: 2.4966 | AG9: 2.4966 | AH9: 2.4966 | AI9: 2.4966 | AJ9: 2.4966 | AK9: 2.4966 | AN9: Articulado | AO9: =AO11*$Y9+AO2 -> 2.4966 | AP9: 2.4966 | AQ9: 2.4966 | AR9: 2.4966 | AS9: 2.4966 | AT9: 2.4966 | AU9: 2.4966 | AV9: 2.4966 | AW9: 2.4966 | AX9: 2.4966 | AY9: 2.4966 | AZ9: 2.4966 | BC9: Articulado | BD9: =Q.Frota!L5 -> 33 | BE9: 31 | BF9: =BE9 -> 31 | BG9: 31 | BH9: 31 | BI9: 31 | BJ9: 31 | BK9: 31 | BL9: 31 | BM9: 0 | BN9: 0 | BO9: 0 | BP9: 0
B10: Articulado BRT | C10: 1396.39 | D10: 0 | E10: 0.3442967869 | F10: 1877.16259 | G10: 624.71 | H10: =(($F10*Z10)+($G10*AO10))*BE10 -> 0 | I10: 0 | J10: 0 | K10: 0 | L10: 0 | M10: 0 | N10: 0 | O10: 0 | P10: 0 | Q10: 0 | R10: 0 | S10: 0 | T10: 0 | W10: Articulado BRT | X10: 2.505 | Y10: =X10/X11 -> 1 | Z10: =Z11*$Y10+Z2 -> 2.4966 | AA10: 2.4966 | AB10: 2.4966 | AC10: 2.4966 | AD10: 2.4966 | AE10: 2.4966 | AF10: 2.4966 | AG10: 2.4966 | AH10: 2.4966 | AI10: 2.4966 | AJ10: 2.4966 | AK10: 2.4966 | AN10: Articulado BRT | AO10: =AO11*$Y10+AO2 -> 2.4966 | AP10: 2.4966 | AQ10: 2.4966 | AR10: 2.4966 | AS10: 2.4966 | AT10: 2.4966 | AU10: 2.4966 | AV10: 2.4966 | AW10: 2.4966 | AX10: 2.4966 | AY10: 2.4966 | AZ10: 2.4966 | BC10: Articulado BRT | BD10: =Q.Frota!O5 -> 0 | BE10: 0 | BF10: =BE10 -> 0 | BG10: 0 | BH10: 0 | BI10: 0 | BJ10: 0 | BK10: 0 | BL10: 0 | BM10: 0 | BN10: 0 | BO10: 0 | BP10: 0
B11: Totais........................ | F11: Totais... | H11: =SUM(H6:H10) -> 2941948.476 | I11: 2941948.476 | J11: 2941948.476 | K11: 2941948.476 | L11: 2941948.476 | M11: 2941948.476 | N11: 2941948.476 | O11: 2941948.476 | P11: 2842009.675 | Q11: 2842009.675 | R11: 2842009.675 | S11: 2842009.675 | T11: 34903626.51 | W11: Totais........................ | X11: 2.505 | Z11: ='FU Folha FGV 11 em diante'!$AK26 -> 2.4966 | AA11: ='FU Folha FGV 11 em diante'!$AK27 -> 2.4966 | AB11: ='FU Folha FGV 11 em diante'!$AK28 -> 2.4966 | AC11: ='FU Folha FGV 11 em diante'!$AK29 -> 2.4966 | AD11: ='FU Folha FGV 11 em diante'!$AK30 -> 2.4966 | AE11: ='FU Folha FGV 11 em diante'!$AK31 -> 2.4966 | AF11: ='FU Folha FGV 11 em diante'!$AK32 -> 2.4966 | AG11: ='FU Folha FGV 11 em diante'!$AK33 -> 2.4966 | AH11: ='FU Folha FGV 11 em diante'!$AK34 -> 2.4966 | AI11: ='FU Folha FGV 11 em diante'!$AK35 -> 2.4966 | AJ11: ='FU Folha FGV 11 em diante'!$AK36 -> 2.4966 | AK11: ='FU Folha FGV 11 em diante'!$AK37 -> 2.4966 | AN11: Totais........................ | AO11: ='FU Folha FGV 11 em diante'!$AR$26 -> 2.4966 | AP11: ='FU Folha FGV 11 em diante'!$AR$27 -> 2.4966 | AQ11: ='FU Folha FGV 11 em diante'!$AR$28 -> 2.4966 | AR11: ='FU Folha FGV 11 em diante'!$AR$29 -> 2.4966 | AS11: ='FU Folha FGV 11 em diante'!$AR$30 -> 2.4966 | AT11: ='FU Folha FGV 11 em diante'!$AR$31 -> 2.4966 | AU11: ='FU Folha FGV 11 em diante'!$AR$32 -> 2.4966 | AV11: ='FU Folha FGV 11 em diante'!$AR$33 -> 2.4966 | AW11: ='FU Folha FGV 11 em diante'!$AR$34 -> 2.4966 | AX11: ='FU Folha FGV 11 em diante'!$AR$35 -> 2.4966 | AY11: ='FU Folha FGV 11 em diante'!$AR$36 -> 2.4966 | AZ11: ='FU Folha FGV 11 em diante'!$AR$37 -> 2.4966 | BC11: Totais........................ | BD11: =SUM(BD6:BD10) -> 478 | BE11: 471 | BF11: 471 | BG11: 471 | BH11: 471 | BI11: 471 | BJ11: 471 | BK11: 471 | BL11: 471 | BM11: =SUM(BM6:BM10) -> 455 | BN11: 455 | BO11: 455 | BP11: 455
A12: Cobrador | B12: Miniônibus | C12: 787.52 | D12: 0 | E12: =E6 -> 0.3442967869 | F12: =(C12+D12)*(E12/100*100+1) -> 1058.660606 | G12: =G10 -> 624.71 | H12: =(($F12*Z12)+($G12*AO12))*BE12 -> 365635.1657 | I12: 365635.1657 | J12: 365635.1657 | K12: 365635.1657 | L12: 365635.1657 | M12: 365635.1657 | N12: 365635.1657 | O12: 365635.1657 | P12: 365635.1657 | Q12: 365635.1657 | R12: 365635.1657 | S12: 365635.1657 | T12: =SUM(H12:S12) -> 4387621.988 | V12: Cobrador | W12: =B12 -> Miniônibus | X12: ='Plan2 R$ Pessoal'!$D$11 -> 2.505 | Y12: =X12/X17 -> 1 | Z12: =Z17*$Y12+Z3 -> 2.4966 | AA12: 2.4966 | AB12: 2.4966 | AC12: 2.4966 | AD12: 2.4966 | AE12: 2.4966 | AF12: 2.4966 | AG12: 2.4966 | AH12: 2.4966 | AI12: 2.4966 | AJ12: 2.4966 | AK12: 2.4966 | AM12: Cobrador | AN12: Miniônibus | AO12: =AO17*$Y12+AO3 -> 2.4966 | AP12: 2.4966 | AQ12: 2.4966 | AR12: 2.4966 | AS12: 2.4966 | AT12: 2.4966 | AU12: 2.4966 | AV12: 2.4966 | AW12: 2.4966 | AX12: 2.4966 | AY12: 2.4966 | AZ12: 2.4966 | BB12: Cobrador | BC12: Miniônibus | BD12: =BD6 -> 92 | BE12: 87 | BF12: 87 | BG12: 87 | BH12: 87 | BI12: 87 | BJ12: 87 | BK12: 87 | BL12: 87 | BM12: 87 | BN12: 87 | BO12: 87 | BP12: 87
B13: Ônibus Básico | C13: 787.52 | D13: 0 | E13: =E12 -> 0.3442967869 | F13: 1058.660606 | G13: =G12 -> 624.71 | H13: =(($F13*Z13)+($G13*AO13))*BE13 -> 1483554.178 | I13: 1483554.178 | J13: 1483554.178 | K13: 1483554.178 | L13: 1483554.178 | M13: 1483554.178 | N13: 1483554.178 | O13: 1483554.178 | P13: 1185162.261 | Q13: 1185162.261 | R13: 1185162.261 | S13: 1185162.261 | T13: 16609082.47 | W13: Ônibus Básico | X13: =X12 -> 2.505 | Y13: =X13/X17 -> 1 | Z13: =Z17*$Y13+Z3 -> 2.4966 | AA13: 2.4966 | AB13: 2.4966 | AC13: 2.4966 | AD13: 2.4966 | AE13: 2.4966 | AF13: 2.4966 | AG13: 2.4966 | AH13: 2.4966 | AI13: 2.4966 | AJ13: 2.4966 | AK13: 2.4966 | AN13: Ônibus Básico | AO13: =AO17*$Y13+AO3 -> 2.4966 | AP13: 2.4966 | AQ13: 2.4966 | AR13: 2.4966 | AS13: 2.4966 | AT13: 2.4966 | AU13: 2.4966 | AV13: 2.4966 | AW13: 2.4966 | AX13: 2.4966 | AY13: 2.4966 | AZ13: 2.4966 | BC13: Ônibus Básico | BD13: =BD7 -> 353 | BE13: 353 | BF13: 353 | BG13: 353 | BH13: 353 | BI13: 353 | BJ13: 353 | BK13: 353 | BL13: 353 | BM13: 282 | BN13: 282 | BO13: 282 | BP13: 282 | BT13: 92
B14: Padron | C14: 787.52 | D14: 0 | E14: 0.3442967869 | F14: 1058.660606 | G14: 624.71 | H14: =(($F14*Z14)+($G14*AO14))*BE14 -> 0 | I14: 0 | J14: 0 | K14: 0 | L14: 0 | M14: 0 | N14: 0 | O14: 0 | P14: 361432.4626 | Q14: 361432.4626 | R14: 361432.4626 | S14: 361432.4626 | T14: 1445729.851 | W14: Padron | X14: 2.505 | Y14: =X14/X17 -> 1 | Z14: =Z17*$Y14+Z3 -> 2.4966 | AA14: 2.4966 | AB14: 2.4966 | AC14: 2.4966 | AD14: 2.4966 | AE14: 2.4966 | AF14: 2.4966 | AG14: 2.4966 | AH14: 2.4966 | AI14: 2.4966 | AJ14: 2.4966 | AK14: 2.4966 | AN14: Padron | AO14: =AO17*$Y14+AO3 -> 2.4966 | AP14: 2.4966 | AQ14: 2.4966 | AR14: 2.4966 | AS14: 2.4966 | AT14: 2.4966 | AU14: 2.4966 | AV14: 2.4966 | AW14: 2.4966 | AX14: 2.4966 | AY14: 2.4966 | AZ14: 2.4966 | BC14: Padron | BD14: =BD8 -> 0 | BE14: 0 | BF14: 0 | BG14: 0 | BH14: 0 | BI14: 0 | BJ14: 0 | BK14: 0 | BL14: 0 | BM14: 86 | BN14: 86 | BO14: 86 | BP14: 86
B15: Articulado | C15: 787.52 | D15: 0 | E15: 0.3442967869 | F15: 1058.660606 | G15: 624.71 | H15: =(($F15*Z15)+($G15*AO15))*BE15 -> 130283.7947 | I15: 130283.7947 | J15: 130283.7947 | K15: 130283.7947 | L15: 130283.7947 | M15: 130283.7947 | N15: 130283.7947 | O15: 130283.7947 | P15: 0 | Q15: 0 | R15: 0 | S15: 0 | T15: 1042270.357 | W15: Articulado | X15: 2.505 | Y15: =X15/X17 -> 1 | Z15: =Z17*$Y15+Z3 -> 2.4966 | AA15: 2.4966 | AB15: 2.4966 | AC15: 2.4966 | AD15: 2.4966 | AE15: 2.4966 | AF15: 2.4966 | AG15: 2.4966 | AH15: 2.4966 | AI15: 2.4966 | AJ15: 2.4966 | AK15: 2.4966 | AN15: Articulado | AO15: =AO17*$Y15+AO3 -> 2.4966 | AP15: 2.4966 | AQ15: 2.4966 | AR15: 2.4966 | AS15: 2.4966 | AT15: 2.4966 | AU15: 2.4966 | AV15: 2.4966 | AW15: 2.4966 | AX15: 2.4966 | AY15: 2.4966 | AZ15: 2.4966 | BC15: Articulado | BD15: =BD9 -> 33 | BE15: 31 | BF15: 31 | BG15: 31 | BH15: 31 | BI15: 31 | BJ15: 31 | BK15: 31 | BL15: 31 | BM15: 0 | BN15: 0 | BO15: 0 | BP15: 0
B16: Articulado BRT | C16: 787.52 | D16: 0 | E16: 0.3442967869 | F16: 1058.660606 | G16: 624.71 | H16: =(($F16*Z16)+($G16*AO16))*BE16 -> 0 | I16: 0 | J16: 0 | K16: 0 | L16: 0 | M16: 0 | N16: 0 | O16: 0 | P16: 0 | Q16: 0 | R16: 0 | S16: 0 | T16: 0 | W16: Articulado BRT | X16: 2.505 | Y16: =X16/X17 -> 1 | Z16: =Z17*$Y16+Z3 -> 2.4966 | AA16: 2.4966 | AB16: 2.4966 | AC16: 2.4966 | AD16: 2.4966 | AE16: 2.4966 | AF16: 2.4966 | AG16: 2.4966 | AH16: 2.4966 | AI16: 2.4966 | AJ16: 2.4966 | AK16: 2.4966 | AN16: Articulado BRT | AO16: =AO17*$Y16+AO3 -> 2.4966 | AP16: 2.4966 | AQ16: 2.4966 | AR16: 2.4966 | AS16: 2.4966 | AT16: 2.4966 | AU16: 2.4966 | AV16: 2.4966 | AW16: 2.4966 | AX16: 2.4966 | AY16: 2.4966 | AZ16: 2.4966 | BC16: Articulado BRT | BD16: =BD10 -> 0 | BE16: 0 | BF16: 0 | BG16: 0 | BH16: 0 | BI16: 0 | BJ16: 0 | BK16: 0 | BL16: 0 | BM16: 0 | BN16: 0 | BO16: 0 | BP16: 0
B17: Totais........................ | F17: Totais... | H17: =SUM(H12:H16) -> 1979473.138 | I17: 1979473.138 | J17: 1979473.138 | K17: 1979473.138 | L17: 1979473.138 | M17: 1979473.138 | N17: 1979473.138 | O17: 1979473.138 | P17: 1912229.89 | Q17: 1912229.89 | R17: 1912229.89 | S17: 1912229.89 | T17: 23484704.67 | W17: Totais........................ | X17: 2.505 | Z17: ='FU Folha FGV 11 em diante'!$AL26 -> 2.4966 | AA17: ='FU Folha FGV 11 em diante'!$AL27 -> 2.4966 | AB17: ='FU Folha FGV 11 em diante'!$AL28 -> 2.4966 | AC17: ='FU Folha FGV 11 em diante'!$AL29 -> 2.4966 | AD17: ='FU Folha FGV 11 em diante'!$AL30 -> 2.4966 | AE17: ='FU Folha FGV 11 em diante'!$AL31 -> 2.4966 | AF17: ='FU Folha FGV 11 em diante'!$AL32 -> 2.4966 | AG17: ='FU Folha FGV 11 em diante'!$AL33 -> 2.4966 | AH17: ='FU Folha FGV 11 em diante'!$AL34 -> 2.4966 | AI17: ='FU Folha FGV 11 em diante'!$AL35 -> 2.4966 | AJ17: ='FU Folha FGV 11 em diante'!$AL36 -> 2.4966 | AK17: ='FU Folha FGV 11 em diante'!$AL37 -> 2.4966 | AN17: Totais........................ | AO17: ='FU Folha FGV 11 em diante'!$AS$26 -> 2.4966 | AP17: ='FU Folha FGV 11 em diante'!$AS$27 -> 2.4966 | AQ17: ='FU Folha FGV 11 em diante'!$AS$28 -> 2.4966 | AR17: ='FU Folha FGV 11 em diante'!$AS$29 -> 2.4966 | AS17: ='FU Folha FGV 11 em diante'!$AS$30 -> 2.4966 | AT17: ='FU Folha FGV 11 em diante'!$AS$31 -> 2.4966 | AU17: ='FU Folha FGV 11 em diante'!$AS$32 -> 2.4966 | AV17: ='FU Folha FGV 11 em diante'!$AS$33 -> 2.4966 | AW17: ='FU Folha FGV 11 em diante'!$AS$34 -> 2.4966 | AX17: ='FU Folha FGV 11 em diante'!$AS$35 -> 2.4966 | AY17: ='FU Folha FGV 11 em diante'!$AS$36 -> 2.4966 | AZ17: ='FU Folha FGV 11 em diante'!$AS$37 -> 2.4966 | BC17: Totais........................ | BD17: =SUM(BD12:BD16) -> 478 | BE17: 471 | BF17: 471 | BG17: 471 | BH17: 471 | BI17: 471 | BJ17: 471 | BK17: 471 | BL17: 471 | BM17: 455 | BN17: 455 | BO17: 455 | BP17: 455
F18: Total Mensal Mot./Cob. | H18: =H11+H17 -> 4921421.615 | I18: 4921421.615 | J18: 4921421.615 | K18: 4921421.615 | L18: 4921421.615 | M18: 4921421.615 | N18: 4921421.615 | O18: 4921421.615 | P18: 4754239.564 | Q18: 4754239.564 | R18: 4754239.564 | S18: 4754239.564 | T18: 58388331.17
A20: Controle Operacional - Composição do Custo Unitário Por Função | G20: Ano 1 | H20: Controle Operacional - Composição de Custo Total Mensal | T20: R$
A21: Funções | B21: Cargo | C21: Salário | D21: Hs Extras | E21: Enc. | F21: R$ Total | G21: Benefícios | H21: =H3 -> 2024-01-01 | I21: =DATE(YEAR(H21),MONTH(H21)+1,DAY(H21)) -> 2024-02-01 | J21: 2024-03-01 | K21: 2024-04-01 | L21: 2024-05-01 | M21: 2024-06-01 | N21: 2024-07-01 | O21: 2024-08-01 | P21: 2024-09-01 | Q21: 2024-10-01 | R21: 2024-11-01 | S21: 2024-12-01 | T21: Total | V21: Fator Utilização Mensal | X21: =U1 -> Ano 1 | Z21: FU FOLHA DE PAGAMENTO | AM21: =X21 -> Ano 1 | AN21: FU Benefícios | AO21: FU FÍSICO PARA CÁLCULOS DOS BENEFÍCIOS | BE21: =BE3 -> Ano 1
C22: base | D22: e Adic. | E22: Soc. | F22: Por | G22: R$ por | H22: R$ | I22: R$ | J22: R$ | K22: R$ | L22: R$ | M22: R$ | N22: R$ | O22: R$ | P22: R$ | Q22: R$ | R22: R$ | S22: R$ | T22: Durante o | V22: Funções | W22: Cargo | X22: FU | Z22: =H21 -> 2024-01-01 | AA22: 2024-02-01 | AB22: 2024-03-01 | AC22: 2024-04-01 | AD22: 2024-05-01 | AE22: 2024-06-01 | AF22: 2024-07-01 | AG22: 2024-08-01 | AH22: 2024-09-01 | AI22: 2024-10-01 | AJ22: 2024-11-01 | AK22: 2024-12-01 | AM22: Funções | AN22: Cargo | AO22: =Z22 -> 2024-01-01 | AP22: 2024-02-01 | AQ22: 2024-03-01 | AR22: 2024-04-01 | AS22: 2024-05-01 | AT22: 2024-06-01 | AU22: 2024-07-01 | AV22: 2024-08-01 | AW22: 2024-09-01 | AX22: 2024-10-01 | AY22: 2024-11-01 | AZ22: 2024-12-01 | BB22: Funções | BC22: Cargo | BD22: Frota | BE22: =Z22 -> 2024-01-01 | BF22: 2024-02-01 | BG22: 2024-03-01 | BH22: 2024-04-01 | BI22: 2024-05-01 | BJ22: 2024-06-01 | BK22: 2024-07-01 | BL22: 2024-08-01 | BM22: 2024-09-01 | BN22: 2024-10-01 | BO22: 2024-11-01 | BP22: 2024-12-01
C23: (R$/mês) | D23: Not. | E23: % | F23: Função | G23: mês | T23: =T5 -> Ano 1 | X23: Licitação | Z23: FU | AA23: FU | AB23: FU | AC23: FU | AD23: FU | AE23: FU | AF23: FU | AG23: FU | AH23: FU | AI23: FU | AJ23: FU | AK23: FU | BD23: Licitação | BE23: Frota | BF23: Frota | BG23: Frota | BH23: Frota | BI23: Frota | BJ23: Frota | BK23: Frota | BL23: Frota | BM23: Frota | BN23: Frota | BO23: Frota | BP23: Frota
A24: Controle Operacional | B24: ='Plan2 R$ Pessoal'!C14 -> Fiscal | C24: 1536.029 | D24: 0 | E24: =E6 -> 0.3442967869 | F24: =(C24+D24)*(E24/100*100+1) -> 2064.878849 | G24: =G16 -> 624.71 | H24: =(($F24*Z24)+($G24*AO24))*BE24 -> 63339.8174 | I24: 63339.8174 | J24: 63339.8174 | K24: 63339.8174 | L24: 63339.8174 | M24: 63339.8174 | N24: 63339.8174 | O24: 63339.8174 | P24: 61188.14632 | Q24: 61188.14632 | R24: 61188.14632 | S24: 61188.14632 | T24: =SUM(H24:S24) -> 751471.1245 | V24: Controle Operacional | W24: =B24 -> Fiscal | X24: ='Plan2 R$ Pessoal'!D14 -> 0.05 | Y24: =X24/X30 -> 0.4077033395 | Z24: =Z30*$Y24 -> 0.05 | AA24: 0.05 | AB24: 0.05 | AC24: 0.05 | AD24: 0.05 | AE24: 0.05 | AF24: 0.05 | AG24: 0.05 | AH24: 0.05 | AI24: 0.05 | AJ24: 0.05 | AK24: 0.05 | AM24: Controle Operacional | AN24: =W24 -> Fiscal | AO24: =AO30*$Y24 -> 0.05 | AP24: 0.05 | AQ24: 0.05 | AR24: 0.05 | AS24: 0.05 | AT24: 0.05 | AU24: 0.05 | AV24: 0.05 | AW24: 0.05 | AX24: 0.05 | AY24: 0.05 | AZ24: 0.05 | BB24: Controle Operacional | BC24: =AN24 -> Fiscal | BD24: =BD$11 -> 478 | BE24: 471 | BF24: 471 | BG24: 471 | BH24: 471 | BI24: 471 | BJ24: 471 | BK24: 471 | BL24: 471 | BM24: 455 | BN24: 455 | BO24: 455 | BP24: 455
B25: ='Plan2 R$ Pessoal'!C15 -> Inspetores de Tráfego | C25: 1256.751 | D25: 0 | E25: 0.3442967869 | F25: 1689.446331 | G25: =G24 -> 624.71 | H25: =(($F25*Z25)+($G25*AO25))*BE25 -> 32699.02896 | I25: 32699.02896 | J25: 32699.02896 | K25: 32699.02896 | L25: 32699.02896 | M25: 32699.02896 | N25: 32699.02896 | O25: 32699.02896 | P25: 31588.23392 | Q25: 31588.23392 | R25: 31588.23392 | S25: 31588.23392 | T25: 387945.1674 | W25: Inspetores de Tráfego | X25: ='Plan2 R$ Pessoal'!D15 -> 0.03 | Y25: =X25/X30 -> 0.2446220037 | Z25: =Z30*$Y25 -> 0.03 | AA25: 0.03 | AB25: 0.03 | AC25: 0.03 | AD25: 0.03 | AE25: 0.03 | AF25: 0.03 | AG25: 0.03 | AH25: 0.03 | AI25: 0.03 | AJ25: 0.03 | AK25: 0.03 | AN25: Inspetores de Tráfego | AO25: =AO30*$Y25 -> 0.03 | AP25: 0.03 | AQ25: 0.03 | AR25: 0.03 | AS25: 0.03 | AT25: 0.03 | AU25: 0.03 | AV25: 0.03 | AW25: 0.03 | AX25: 0.03 | AY25: 0.03 | AZ25: 0.03 | BC25: Inspetores de Tráfego | BD25: =BD$11 -> 478 | BE25: 471 | BF25: 471 | BG25: 471 | BH25: 471 | BI25: 471 | BJ25: 471 | BK25: 471 | BL25: 471 | BM25: 455 | BN25: 455 | BO25: 455 | BP25: 455
B26: ='Plan2 R$ Pessoal'!C16 -> Chefe de tráfego | C26: 3490.975 | D26: 0 | E26: 0.3442967869 | F26: 4692.906476 | G26: 624.71 | H26: =(($F26*Z26)+($G26*AO26))*BE26 -> 18784.4802 | I26: 18784.4802 | J26: 18784.4802 | K26: 18784.4802 | L26: 18784.4802 | M26: 18784.4802 | N26: 18784.4802 | O26: 18784.4802 | P26: 18146.36622 | Q26: 18146.36622 | R26: 18146.36622 | S26: 18146.36622 | T26: 222861.3065 | W26: Chefe de tráfego | X26: ='Plan2 R$ Pessoal'!D16 -> 0.0075 | Y26: =X26/X30 -> 0.06115550092 | Z26: =Z30*$Y26 -> 0.0075 | AA26: 0.0075 | AB26: 0.0075 | AC26: 0.0075 | AD26: 0.0075 | AE26: 0.0075 | AF26: 0.0075 | AG26: 0.0075 | AH26: 0.0075 | AI26: 0.0075 | AJ26: 0.0075 | AK26: 0.0075 | AN26: Chefe de tráfego | AO26: =AO30*$Y26 -> 0.0075 | AP26: 0.0075 | AQ26: 0.0075 | AR26: 0.0075 | AS26: 0.0075 | AT26: 0.0075 | AU26: 0.0075 | AV26: 0.0075 | AW26: 0.0075 | AX26: 0.0075 | AY26: 0.0075 | AZ26: 0.0075 | BC26: Chefe de tráfego | BD26: =BD$11 -> 478 | BE26: 471 | BF26: 471 | BG26: 471 | BH26: 471 | BI26: 471 | BJ26: 471 | BK26: 471 | BL26: 471 | BM26: 455 | BN26: 455 | BO26: 455 | BP26: 455
B27: ='Plan2 R$ Pessoal'!C17 -> Programadores | C27: 1536.029 | D27: 0 | E27: 0.3442967869 | F27: 2064.878849 | G27: 624.71 | H27: =(($F27*Z27)+($G27*AO27))*BE27 -> 9500.97261 | I27: 9500.97261 | J27: 9500.97261 | K27: 9500.97261 | L27: 9500.97261 | M27: 9500.97261 | N27: 9500.97261 | O27: 9500.97261 | P27: 9178.221948 | Q27: 9178.221948 | R27: 9178.221948 | S27: 9178.221948 | T27: 112720.6687 | W27: Programadores | X27: ='Plan2 R$ Pessoal'!D17 -> 0.0075 | Y27: =X27/X30 -> 0.06115550092 | Z27: =Z30*$Y27 -> 0.0075 | AA27: 0.0075 | AB27: 0.0075 | AC27: 0.0075 | AD27: 0.0075 | AE27: 0.0075 | AF27: 0.0075 | AG27: 0.0075 | AH27: 0.0075 | AI27: 0.0075 | AJ27: 0.0075 | AK27: 0.0075 | AN27: Programadores | AO27: =AO30*$Y27 -> 0.0075 | AP27: 0.0075 | AQ27: 0.0075 | AR27: 0.0075 | AS27: 0.0075 | AT27: 0.0075 | AU27: 0.0075 | AV27: 0.0075 | AW27: 0.0075 | AX27: 0.0075 | AY27: 0.0075 | AZ27: 0.0075 | BC27: Programadores | BD27: =BD$11 -> 478 | BE27: 471 | BF27: 471 | BG27: 471 | BH27: 471 | BI27: 471 | BJ27: 471 | BK27: 471 | BL27: 471 | BM27: 455 | BN27: 455 | BO27: 455 | BP27: 455
B28: ='Plan2 R$ Pessoal'!C18 -> Escaladores | C28: 2513.502 | D28: 0 | E28: 0.3442967869 | F28: 3378.892663 | G28: 624.71 | H28: =(($F28*Z28)+($G28*AO28))*BE28 -> 9475.863588 | I28: 9475.863588 | J28: 9475.863588 | K28: 9475.863588 | L28: 9475.863588 | M28: 9475.863588 | N28: 9475.863588 | O28: 9475.863588 | P28: 9153.965887 | Q28: 9153.965887 | R28: 9153.965887 | S28: 9153.965887 | T28: 112422.7723 | W28: Escaladores | X28: ='Plan2 R$ Pessoal'!D18 -> 0.005025125628 | Y28: =X28/X30 -> 0.04097521 | Z28: =Z30*$Y28 -> 0.005025125628 | AA28: 0.005025125628 | AB28: 0.005025125628 | AC28: 0.005025125628 | AD28: 0.005025125628 | AE28: 0.005025125628 | AF28: 0.005025125628 | AG28: 0.005025125628 | AH28: 0.005025125628 | AI28: 0.005025125628 | AJ28: 0.005025125628 | AK28: 0.005025125628 | AN28: Escaladores | AO28: =AO30*$Y28 -> 0.005025125628 | AP28: 0.005025125628 | AQ28: 0.005025125628 | AR28: 0.005025125628 | AS28: 0.005025125628 | AT28: 0.005025125628 | AU28: 0.005025125628 | AV28: 0.005025125628 | AW28: 0.005025125628 | AX28: 0.005025125628 | AY28: 0.005025125628 | AZ28: 0.005025125628 | BC28: Escaladores | BD28: =BD$11 -> 478 | BE28: 471 | BF28: 471 | BG28: 471 | BH28: 471 | BI28: 471 | BJ28: 471 | BK28: 471 | BL28: 471 | BM28: 455 | BN28: 455 | BO28: 455 | BP28: 455
B29: ='Plan2 R$ Pessoal'!C19 -> Auxiliares | C29: 1117.112 | D29: 0 | E29: 0.3442967869 | F29: 1501.730072 | G29: 624.71 | H29: =(($F29*Z29)+($G29*AO29))*BE29 -> 22648.18961 | I29: 22648.18961 | J29: 22648.18961 | K29: 22648.18961 | L29: 22648.18961 | M29: 22648.18961 | N29: 22648.18961 | O29: 22648.18961 | P29: 21878.82436 | Q29: 21878.82436 | R29: 21878.82436 | S29: 21878.82436 | T29: 268700.8144 | W29: Auxiliares | X29: ='Plan2 R$ Pessoal'!D19 -> 0.02261306533 | Y29: =X29/X30 -> 0.184388445 | Z29: =Z30*$Y29 -> 0.02261306533 | AA29: 0.02261306533 | AB29: 0.02261306533 | AC29: 0.02261306533 | AD29: 0.02261306533 | AE29: 0.02261306533 | AF29: 0.02261306533 | AG29: 0.02261306533 | AH29: 0.02261306533 | AI29: 0.02261306533 | AJ29: 0.02261306533 | AK29: 0.02261306533 | AN29: Auxiliares | AO29: =AO30*$Y29 -> 0.02261306533 | AP29: 0.02261306533 | AQ29: 0.02261306533 | AR29: 0.02261306533 | AS29: 0.02261306533 | AT29: 0.02261306533 | AU29: 0.02261306533 | AV29: 0.02261306533 | AW29: 0.02261306533 | AX29: 0.02261306533 | AY29: 0.02261306533 | AZ29: 0.02261306533 | BC29: Auxiliares | BD29: =BD$11 -> 478 | BE29: 471 | BF29: 471 | BG29: 471 | BH29: 471 | BI29: 471 | BJ29: 471 | BK29: 471 | BL29: 471 | BM29: 455 | BN29: 455 | BO29: 455 | BP29: 455
B30: Totais........................ | F30: Totais... | H30: =SUM(H24:H29) -> 156448.3524 | I30: 156448.3524 | J30: 156448.3524 | K30: 156448.3524 | L30: 156448.3524 | M30: 156448.3524 | N30: 156448.3524 | O30: 156448.3524 | P30: 151133.7587 | Q30: 151133.7587 | R30: 151133.7587 | S30: 151133.7587 | T30: 1856121.854 | W30: Totais........................ | X30: =SUM(X24:X29) -> 0.122638191 | Y30: 1 | Z30: ='FU Folha FGV 11 em diante'!$AM26 -> 0.122638191 | AA30: ='FU Folha FGV 11 em diante'!$AM27 -> 0.122638191 | AB30: ='FU Folha FGV 11 em diante'!$AM28 -> 0.122638191 | AC30: ='FU Folha FGV 11 em diante'!$AM29 -> 0.122638191 | AD30: ='FU Folha FGV 11 em diante'!$AM30 -> 0.122638191 | AE30: ='FU Folha FGV 11 em diante'!$AM31 -> 0.122638191 | AF30: ='FU Folha FGV 11 em diante'!$AM32 -> 0.122638191 | AG30: ='FU Folha FGV 11 em diante'!$AM33 -> 0.122638191 | AH30: ='FU Folha FGV 11 em diante'!$AM34 -> 0.122638191 | AI30: ='FU Folha FGV 11 em diante'!$AM35 -> 0.122638191 | AJ30: ='FU Folha FGV 11 em diante'!$AM36 -> 0.122638191 | AK30: ='FU Folha FGV 11 em diante'!$AM37 -> 0.122638191 | AN30: Totais........................ | AO30: ='FU Folha FGV 11 em diante'!$AT$26 -> 0.122638191 | AP30: ='FU Folha FGV 11 em diante'!$AT$27 -> 0.122638191 | AQ30: ='FU Folha FGV 11 em diante'!$AT$28 -> 0.122638191 | AR30: ='FU Folha FGV 11 em diante'!$AT$29 -> 0.122638191 | AS30: ='FU Folha FGV 11 em diante'!$AT$30 -> 0.122638191 | AT30: ='FU Folha FGV 11 em diante'!$AT$31 -> 0.122638191 | AU30: ='FU Folha FGV 11 em diante'!$AT$32 -> 0.122638191 | AV30: ='FU Folha FGV 11 em diante'!$AT$33 -> 0.122638191 | AW30: ='FU Folha FGV 11 em diante'!$AT$34 -> 0.122638191 | AX30: ='FU Folha FGV 11 em diante'!$AT$35 -> 0.122638191 | AY30: ='FU Folha FGV 11 em diante'!$AT$36 -> 0.122638191 | AZ30: ='FU Folha FGV 11 em diante'!$AT$37 -> 0.122638191 | BC30: Totais........................ | BD30: =BD$11 -> 478 | BE30: 471 | BF30: 471 | BG30: 471 | BH30: 471 | BI30: 471 | BJ30: 471 | BK30: 471 | BL30: 471 | BM30: 455 | BN30: 455 | BO30: 455 | BP30: 455
A31: Manutenção | B31: ='Plan2 R$ Pessoal'!C22 -> Chefe de Manutenção | C31: 3490.975 | D31: 0 | E31: =E24 -> 0.3442967869 | F31: =(C31+D31)*(E31/100*100+1) -> 4692.906476 | G31: =G29 -> 624.71 | H31: =(($F31*Z31)+($G31*AO31))*BE31 -> 18784.4802 | I31: 18784.4802 | J31: 18784.4802 | K31: 18784.4802 | L31: 18784.4802 | M31: 18784.4802 | N31: 18784.4802 | O31: 18784.4802 | P31: 18146.36622 | Q31: 18146.36622 | R31: 18146.36622 | S31: 18146.36622 | T31: =SUM(H31:S31) -> 222861.3065 | V31: Manutenção | W31: Chefe de Manutenção | X31: ='Plan2 R$ Pessoal'!D22 -> 0.0075 | Y31: =X31/X40 -> 0.01492611946 | Z31: =Z40*$Y31 -> 0.0075 | AA31: 0.0075 | AB31: 0.0075 | AC31: 0.0075 | AD31: 0.0075 | AE31: 0.0075 | AF31: 0.0075 | AG31: 0.0075 | AH31: 0.0075 | AI31: 0.0075 | AJ31: 0.0075 | AK31: 0.0075 | AM31: Manutenção | AN31: Chefe de Manutenção | AO31: =AO40*$Y31 -> 0.0075 | AP31: 0.0075 | AQ31: 0.0075 | AR31: 0.0075 | AS31: 0.0075 | AT31: 0.0075 | AU31: 0.0075 | AV31: 0.0075 | AW31: 0.0075 | AX31: 0.0075 | AY31: 0.0075 | AZ31: 0.0075 | BB31: Manutenção | BC31: Chefe de Manutenção | BD31: =BD$11 -> 478 | BE31: 471 | BF31: 471 | BG31: 471 | BH31: 471 | BI31: 471 | BJ31: 471 | BK31: 471 | BL31: 471 | BM31: 455 | BN31: 455 | BO31: 455 | BP31: 455
B32: ='Plan2 R$ Pessoal'!C23 -> Mecânicos | C32: 2094.585 | D32: 0 | E32: 0.3442967869 | F32: 2815.743885 | G32: =G31 -> 624.71 | H32: =(($F32*Z32)+($G32*AO32))*BE32 -> 146573.7087 | I32: 146573.7087 | J32: 146573.7087 | K32: 146573.7087 | L32: 146573.7087 | M32: 146573.7087 | N32: 146573.7087 | O32: 146573.7087 | P32: 141594.5594 | Q32: 141594.5594 | R32: 141594.5594 | S32: 141594.5594 | T32: 1738967.908 | W32: Mecânicos | X32: ='Plan2 R$ Pessoal'!D23 -> 0.09045226131 | Y32: =X32/X40 -> 0.180013501 | Z32: =Z40*$Y32 -> 0.09045226131 | AA32: 0.09045226131 | AB32: 0.09045226131 | AC32: 0.09045226131 | AD32: 0.09045226131 | AE32: 0.09045226131 | AF32: 0.09045226131 | AG32: 0.09045226131 | AH32: 0.09045226131 | AI32: 0.09045226131 | AJ32: 0.09045226131 | AK32: 0.09045226131 | AN32: Mecânicos | AO32: =AO40*$Y32 -> 0.09045226131 | AP32: 0.09045226131 | AQ32: 0.09045226131 | AR32: 0.09045226131 | AS32: 0.09045226131 | AT32: 0.09045226131 | AU32: 0.09045226131 | AV32: 0.09045226131 | AW32: 0.09045226131 | AX32: 0.09045226131 | AY32: 0.09045226131 | AZ32: 0.09045226131 | BC32: Mecânicos | BD32: =BD$11 -> 478 | BE32: 471 | BF32: 471 | BG32: 471 | BH32: 471 | BI32: 471 | BJ32: 471 | BK32: 471 | BL32: 471 | BM32: 455 | BN32: 455 | BO32: 455 | BP32: 455
B33: ='Plan2 R$ Pessoal'!C24 -> Auxiliares | C33: 1256.751 | D33: 0 | E33: 0.3442967869 | F33: 1689.446331 | G33: 624.71 | H33: =(($F33*Z33)+($G33*AO33))*BE33 -> 98590.03707 | I33: 98590.03707 | J33: 98590.03707 | K33: 98590.03707 | L33: 98590.03707 | M33: 98590.03707 | N33: 98590.03707 | O33: 98590.03707 | P33: 95240.9063 | Q33: 95240.9063 | R33: 95240.9063 | S33: 95240.9063 | T33: 1169683.922 | W33: Auxiliares | X33: ='Plan2 R$ Pessoal'!D24 -> 0.09045226131 | Y33: =X33/X40 -> 0.180013501 | Z33: =Z40*$Y33 -> 0.09045226131 | AA33: 0.09045226131 | AB33: 0.09045226131 | AC33: 0.09045226131 | AD33: 0.09045226131 | AE33: 0.09045226131 | AF33: 0.09045226131 | AG33: 0.09045226131 | AH33: 0.09045226131 | AI33: 0.09045226131 | AJ33: 0.09045226131 | AK33: 0.09045226131 | AN33: Auxiliares | AO33: =AO40*$Y33 -> 0.09045226131 | AP33: 0.09045226131 | AQ33: 0.09045226131 | AR33: 0.09045226131 | AS33: 0.09045226131 | AT33: 0.09045226131 | AU33: 0.09045226131 | AV33: 0.09045226131 | AW33: 0.09045226131 | AX33: 0.09045226131 | AY33: 0.09045226131 | AZ33: 0.09045226131 | BC33: Auxiliares | BD33: =BD$11 -> 478 | BE33: 471 | BF33: 471 | BG33: 471 | BH33: 471 | BI33: 471 | BJ33: 471 | BK33: 471 | BL33: 471 | BM33: 455 | BN33: 455 | BO33: 455 | BP33: 455
B34: ='Plan2 R$ Pessoal'!C25 -> Funileiro | C34: 2094.585 | D34: 0 | E34: 0.3442967869 | F34: 2815.743885 | G34: 624.71 | H34: =(($F34*Z34)+($G34*AO34))*BE34 -> 101787.2977 | I34: 101787.2977 | J34: 101787.2977 | K34: 101787.2977 | L34: 101787.2977 | M34: 101787.2977 | N34: 101787.2977 | O34: 101787.2977 | P34: 98329.55514 | Q34: 98329.55514 | R34: 98329.55514 | S34: 98329.55514 | T34: 1207616.602 | W34: Funileiro | X34: ='Plan2 R$ Pessoal'!D25 -> 0.06281407035 | Y34: =X34/X40 -> 0.1250093757 | Z34: =Z40*$Y34 -> 0.06281407035 | AA34: 0.06281407035 | AB34: 0.06281407035 | AC34: 0.06281407035 | AD34: 0.06281407035 | AE34: 0.06281407035 | AF34: 0.06281407035 | AG34: 0.06281407035 | AH34: 0.06281407035 | AI34: 0.06281407035 | AJ34: 0.06281407035 | AK34: 0.06281407035 | AN34: Funileiro | AO34: =AO40*$Y34 -> 0.06281407035 | AP34: 0.06281407035 | AQ34: 0.06281407035 | AR34: 0.06281407035 | AS34: 0.06281407035 | AT34: 0.06281407035 | AU34: 0.06281407035 | AV34: 0.06281407035 | AW34: 0.06281407035 | AX34: 0.06281407035 | AY34: 0.06281407035 | AZ34: 0.06281407035 | BC34: Funileiro | BD34: =BD$11 -> 478 | BE34: 471 | BF34: 471 | BG34: 471 | BH34: 471 | BI34: 471 | BJ34: 471 | BK34: 471 | BL34: 471 | BM34: 455 | BN34: 455 | BO34: 455 | BP34: 455
B35: ='Plan2 R$ Pessoal'!C26 -> Borracheiro | C35: 1396.39 | D35: 0 | E35: 0.3442967869 | F35: 1877.16259 | G35: 624.71 | H35: =(($F35*Z35)+($G35*AO35))*BE35 -> 20725.31138 | I35: 20725.31138 | J35: 20725.31138 | K35: 20725.31138 | L35: 20725.31138 | M35: 20725.31138 | N35: 20725.31138 | O35: 20725.31138 | P35: 20021.26683 | Q35: 20021.26683 | R35: 20021.26683 | S35: 20021.26683 | T35: 245887.5584 | W35: Borracheiro | X35: ='Plan2 R$ Pessoal'!D26 -> 0.0175879397 | Y35: =X35/X40 -> 0.0350026252 | Z35: =Z40*$Y35 -> 0.0175879397 | AA35: 0.0175879397 | AB35: 0.0175879397 | AC35: 0.0175879397 | AD35: 0.0175879397 | AE35: 0.0175879397 | AF35: 0.0175879397 | AG35: 0.0175879397 | AH35: 0.0175879397 | AI35: 0.0175879397 | AJ35: 0.0175879397 | AK35: 0.0175879397 | AN35: Borracheiro | AO35: =AO40*$Y35 -> 0.0175879397 | AP35: 0.0175879397 | AQ35: 0.0175879397 | AR35: 0.0175879397 | AS35: 0.0175879397 | AT35: 0.0175879397 | AU35: 0.0175879397 | AV35: 0.0175879397 | AW35: 0.0175879397 | AX35: 0.0175879397 | AY35: 0.0175879397 | AZ35: 0.0175879397 | BC35: Borracheiro | BD35: =BD$11 -> 478 | BE35: 471 | BF35: 471 | BG35: 471 | BH35: 471 | BI35: 471 | BJ35: 471 | BK35: 471 | BL35: 471 | BM35: 455 | BN35: 455 | BO35: 455 | BP35: 455
B36: ='Plan2 R$ Pessoal'!C27 -> Eletricista | C36: 2373.863 | D36: 0 | E36: 0.3442967869 | F36: 3191.176403 | G36: 624.71 | H36: =(($F36*Z36)+($G36*AO36))*BE36 -> 112894.6291 | I36: 112894.6291 | J36: 112894.6291 | K36: 112894.6291 | L36: 112894.6291 | M36: 112894.6291 | N36: 112894.6291 | O36: 112894.6291 | P36: 109059.5674 | Q36: 109059.5674 | R36: 109059.5674 | S36: 109059.5674 | T36: 1339395.303 | W36: Eletricista | X36: ='Plan2 R$ Pessoal'!D27 -> 0.06281407035 | Y36: =X36/X40 -> 0.1250093757 | Z36: =Z40*$Y36 -> 0.06281407035 | AA36: 0.06281407035 | AB36: 0.06281407035 | AC36: 0.06281407035 | AD36: 0.06281407035 | AE36: 0.06281407035 | AF36: 0.06281407035 | AG36: 0.06281407035 | AH36: 0.06281407035 | AI36: 0.06281407035 | AJ36: 0.06281407035 | AK36: 0.06281407035 | AN36: Eletricista | AO36: =AO40*$Y36 -> 0.06281407035 | AP36: 0.06281407035 | AQ36: 0.06281407035 | AR36: 0.06281407035 | AS36: 0.06281407035 | AT36: 0.06281407035 | AU36: 0.06281407035 | AV36: 0.06281407035 | AW36: 0.06281407035 | AX36: 0.06281407035 | AY36: 0.06281407035 | AZ36: 0.06281407035 | BC36: Eletricista | BD36: =BD$11 -> 478 | BE36: 471 | BF36: 471 | BG36: 471 | BH36: 471 | BI36: 471 | BJ36: 471 | BK36: 471 | BL36: 471 | BM36: 455 | BN36: 455 | BO36: 455 | BP36: 455
B37: ='Plan2 R$ Pessoal'!C28 -> Pintores | C37: 2373.863 | D37: 0 | E37: 0.3442967869 | F37: 3191.176403 | G37: 624.71 | H37: =(($F37*Z37)+($G37*AO37))*BE37 -> 54189.42199 | I37: 54189.42199 | J37: 54189.42199 | K37: 54189.42199 | L37: 54189.42199 | M37: 54189.42199 | N37: 54189.42199 | O37: 54189.42199 | P37: 52348.59237 | Q37: 52348.59237 | R37: 52348.59237 | S37: 52348.59237 | T37: 642909.7454 | W37: Pintores | X37: ='Plan2 R$ Pessoal'!D28 -> 0.03015075377 | Y37: =X37/X40 -> 0.06000450034 | Z37: =Z40*$Y37 -> 0.03015075377 | AA37: 0.03015075377 | AB37: 0.03015075377 | AC37: 0.03015075377 | AD37: 0.03015075377 | AE37: 0.03015075377 | AF37: 0.03015075377 | AG37: 0.03015075377 | AH37: 0.03015075377 | AI37: 0.03015075377 | AJ37: 0.03015075377 | AK37: 0.03015075377 | AN37: Pintores | AO37: =AO40*$Y37 -> 0.03015075377 | AP37: 0.03015075377 | AQ37: 0.03015075377 | AR37: 0.03015075377 | AS37: 0.03015075377 | AT37: 0.03015075377 | AU37: 0.03015075377 | AV37: 0.03015075377 | AW37: 0.03015075377 | AX37: 0.03015075377 | AY37: 0.03015075377 | AZ37: 0.03015075377 | BC37: Pintores | BD37: =BD$11 -> 478 | BE37: 471 | BF37: 471 | BG37: 471 | BH37: 471 | BI37: 471 | BJ37: 471 | BK37: 471 | BL37: 471 | BM37: 455 | BN37: 455 | BO37: 455 | BP37: 455
B38: ='Plan2 R$ Pessoal'!C29 -> Eletrônico | C38: 2792.78 | E38: 0.3442967869 | F38: 3754.325181 | G38: 624.71 | H38: =(($F38*Z38)+($G38*AO38))*BE38 -> 31093.3503 | I38: 31093.3503 | J38: 31093.3503 | K38: 31093.3503 | L38: 31093.3503 | M38: 31093.3503 | N38: 31093.3503 | O38: 31093.3503 | P38: 30037.10061 | Q38: 30037.10061 | R38: 30037.10061 | S38: 30037.10061 | T38: 368895.2049 | W38: Eletrônico | X38: ='Plan2 R$ Pessoal'!D29 -> 0.01507537688 | Y38: =X38/X40 -> 0.03000225017 | Z38: =Z40*$Y38 -> 0.01507537688 | AA38: 0.01507537688 | AB38: 0.01507537688 | AC38: 0.01507537688 | AD38: 0.01507537688 | AE38: 0.01507537688 | AF38: 0.01507537688 | AG38: 0.01507537688 | AH38: 0.01507537688 | AI38: 0.01507537688 | AJ38: 0.01507537688 | AK38: 0.01507537688 | AN38: Eletrônico | AO38: =AO40*$Y38 -> 0.01507537688 | AP38: 0.01507537688 | AQ38: 0.01507537688 | AR38: 0.01507537688 | AS38: 0.01507537688 | AT38: 0.01507537688 | AU38: 0.01507537688 | AV38: 0.01507537688 | AW38: 0.01507537688 | AX38: 0.01507537688 | AY38: 0.01507537688 | AZ38: 0.01507537688 | BC38: Eletrônico | BD38: =BD$11 -> 478 | BE38: 471 | BF38: 471 | BG38: 471 | BH38: 471 | BI38: 471 | BJ38: 471 | BK38: 471 | BL38: 471 | BM38: 455 | BN38: 455 | BO38: 455 | BP38: 455
B39: ='Plan2 R$ Pessoal'!C30 -> Outros | C39: 1256.751 | D39: 0 | E39: 0.3442967869 | F39: 1689.446331 | G39: =G37 -> 624.71 | H39: =(($F39*Z39)+($G39*AO39))*BE39 -> 136930.607 | I39: 136930.607 | J39: 136930.607 | K39: 136930.607 | L39: 136930.607 | M39: 136930.607 | N39: 136930.607 | O39: 136930.607 | P39: 132279.0365 | Q39: 132279.0365 | R39: 132279.0365 | S39: 132279.0365 | T39: 1624561.002 | W39: Outros | X39: ='Plan2 R$ Pessoal'!D30 -> 0.1256281407 | Y39: =X39/X40 -> 0.2500187514 | Z39: =Z40*$Y39 -> 0.1256281407 | AA39: 0.1256281407 | AB39: 0.1256281407 | AC39: 0.1256281407 | AD39: 0.1256281407 | AE39: 0.1256281407 | AF39: 0.1256281407 | AG39: 0.1256281407 | AH39: 0.1256281407 | AI39: 0.1256281407 | AJ39: 0.1256281407 | AK39: 0.1256281407 | AN39: Outros | AO39: =AO40*$Y39 -> 0.1256281407 | AP39: 0.1256281407 | AQ39: 0.1256281407 | AR39: 0.1256281407 | AS39: 0.1256281407 | AT39: 0.1256281407 | AU39: 0.1256281407 | AV39: 0.1256281407 | AW39: 0.1256281407 | AX39: 0.1256281407 | AY39: 0.1256281407 | AZ39: 0.1256281407 | BC39: Outros | BD39: =BD$11 -> 478 | BE39: 471 | BF39: 471 | BG39: 471 | BH39: 471 | BI39: 471 | BJ39: 471 | BK39: 471 | BL39: 471 | BM39: 455 | BN39: 455 | BO39: 455 | BP39: 455
B40: Totais........................ | F40: Totais... | H40: =SUM(H31:H39) -> 721568.8436 | I40: 721568.8436 | J40: 721568.8436 | K40: 721568.8436 | L40: 721568.8436 | M40: 721568.8436 | N40: 721568.8436 | O40: 721568.8436 | P40: 697056.9508 | Q40: 697056.9508 | R40: 697056.9508 | S40: 697056.9508 | T40: 8560778.552 | W40: Totais........................ | X40: =SUM(X31:X39) -> 0.5024748744 | Y40: 1 | Z40: ='FU Folha FGV 11 em diante'!$AN26 -> 0.5024748744 | AA40: ='FU Folha FGV 11 em diante'!$AN27 -> 0.5024748744 | AB40: ='FU Folha FGV 11 em diante'!$AN28 -> 0.5024748744 | AC40: ='FU Folha FGV 11 em diante'!$AN29 -> 0.5024748744 | AD40: ='FU Folha FGV 11 em diante'!$AN30 -> 0.5024748744 | AE40: ='FU Folha FGV 11 em diante'!$AN31 -> 0.5024748744 | AF40: ='FU Folha FGV 11 em diante'!$AN32 -> 0.5024748744 | AG40: ='FU Folha FGV 11 em diante'!$AN33 -> 0.5024748744 | AH40: ='FU Folha FGV 11 em diante'!$AN34 -> 0.5024748744 | AI40: ='FU Folha FGV 11 em diante'!$AN35 -> 0.5024748744 | AJ40: ='FU Folha FGV 11 em diante'!$AN36 -> 0.5024748744 | AK40: ='FU Folha FGV 11 em diante'!$AN37 -> 0.5024748744 | AN40: Totais........................ | AO40: ='FU Folha FGV 11 em diante'!$AU$26 -> 0.5024748744 | AP40: ='FU Folha FGV 11 em diante'!$AU$27 -> 0.5024748744 | AQ40: ='FU Folha FGV 11 em diante'!$AU$28 -> 0.5024748744 | AR40: ='FU Folha FGV 11 em diante'!$AU$29 -> 0.5024748744 | AS40: ='FU Folha FGV 11 em diante'!$AU$30 -> 0.5024748744 | AT40: ='FU Folha FGV 11 em diante'!$AU$31 -> 0.5024748744 | AU40: ='FU Folha FGV 11 em diante'!$AU$32 -> 0.5024748744 | AV40: ='FU Folha FGV 11 em diante'!$AU$33 -> 0.5024748744 | AW40: ='FU Folha FGV 11 em diante'!$AU$34 -> 0.5024748744 | AX40: ='FU Folha FGV 11 em diante'!$AU$35 -> 0.5024748744 | AY40: ='FU Folha FGV 11 em diante'!$AU$36 -> 0.5024748744 | AZ40: ='FU Folha FGV 11 em diante'!$AU$37 -> 0.5024748744 | BC40: Totais........................ | BD40: =BD$11 -> 478 | BE40: 471 | BF40: 471 | BG40: 471 | BH40: 471 | BI40: 471 | BJ40: 471 | BK40: 471 | BL40: 471 | BM40: 455 | BN40: 455 | BO40: 455 | BP40: 455
F41: Total Geral Mensal Pessoal de Operação | H41: =H18+H30+H40 -> 5799438.811 | I41: 5799438.811 | J41: 5799438.811 | K41: 5799438.811 | L41: 5799438.811 | M41: 5799438.811 | N41: 5799438.811 | O41: 5799438.811 | P41: 5602430.274 | Q41: 5602430.274 | R41: 5602430.274 | S41: 5602430.274 | T41: 68805231.58
A43: Administração - Composição do Custo Unitário Por Função | G43: Ano 1 | H43: Administração - Composição de Custo Total Mensal | T43: R$
A44: Funções | B44: Cargo | C44: Salário | D44: Hs Extras | E44: Enc. | F44: R$ Total | G44: Benefícios | H44: =H3 -> 2024-01-01 | I44: =DATE(YEAR(H44),MONTH(H44)+1,DAY(H44)) -> 2024-02-01 | J44: 2024-03-01 | K44: 2024-04-01 | L44: 2024-05-01 | M44: 2024-06-01 | N44: 2024-07-01 | O44: 2024-08-01 | P44: 2024-09-01 | Q44: 2024-10-01 | R44: 2024-11-01 | S44: 2024-12-01 | T44: Total | V44: Fator Utilização Mensal | X44: =X21 -> Ano 1 | Z44: FU FOLHA DE PAGAMENTO | AM44: =X44 -> Ano 1 | AN44: FU Benefícios | AO44: FU FÍSICO PARA CÁLCULOS DOS BENEFÍCIOS | BB44: Frota Mensal | BE44: =BE21 -> Ano 1
C45: base | D45: e Adic. | E45: Soc. | F45: Por | G45: R$ por | H45: R$ | I45: R$ | J45: R$ | K45: R$ | L45: R$ | M45: R$ | N45: R$ | O45: R$ | P45: R$ | Q45: R$ | R45: R$ | S45: R$ | T45: Durante o | V45: Funções | W45: Cargo | X45: FU | Z45: =H44 -> 2024-01-01 | AA45: 2024-02-01 | AB45: 2024-03-01 | AC45: 2024-04-01 | AD45: 2024-05-01 | AE45: 2024-06-01 | AF45: 2024-07-01 | AG45: 2024-08-01 | AH45: 2024-09-01 | AI45: 2024-10-01 | AJ45: 2024-11-01 | AK45: 2024-12-01 | AM45: Funções | AN45: Cargo | AO45: =Z45 -> 2024-01-01 | AP45: 2024-02-01 | AQ45: 2024-03-01 | AR45: 2024-04-01 | AS45: 2024-05-01 | AT45: 2024-06-01 | AU45: 2024-07-01 | AV45: 2024-08-01 | AW45: 2024-09-01 | AX45: 2024-10-01 | AY45: 2024-11-01 | AZ45: 2024-12-01 | BB45: Funções | BC45: Cargo | BD45: Frota | BE45: =Z45 -> 2024-01-01 | BF45: 2024-02-01 | BG45: 2024-03-01 | BH45: 2024-04-01 | BI45: 2024-05-01 | BJ45: 2024-06-01 | BK45: 2024-07-01 | BL45: 2024-08-01 | BM45: 2024-09-01 | BN45: 2024-10-01 | BO45: 2024-11-01 | BP45: 2024-12-01
C46: (R$/mês) | D46: Not. | E46: % | F46: Função | G46: mês | T46: =T23 -> Ano 1 | X46: Licitação | Z46: FU | AA46: FU | AB46: FU | AC46: FU | AD46: FU | AE46: FU | AF46: FU | AG46: FU | AH46: FU | AI46: FU | AJ46: FU | AK46: FU | BD46: Licitação | BE46: Frota | BF46: Frota | BG46: Frota | BH46: Frota | BI46: Frota | BJ46: Frota | BK46: Frota | BL46: Frota | BM46: Frota | BN46: Frota | BO46: Frota | BP46: Frota
A47: Administração | B47: ='Plan4 R$ Pessoal'!C8 -> Controle de Manutenção | C47: 1256.751 | D47: 0 | E47: 0.3442967869 | F47: =(C47+D47)*(E47/100*100+1) -> 1689.446331 | G47: =G39 -> 624.71 | H47: =(($F47*Z47)+($G47*AO47))*BE47 -> 12357.90966 | I47: 12357.90966 | J47: 12357.90966 | K47: 12357.90966 | L47: 12357.90966 | M47: 12357.90966 | N47: 12357.90966 | O47: 12357.90966 | P47: 11938.10806 | Q47: 11938.10806 | R47: 11938.10806 | S47: 11938.10806 | T47: =SUM(H47:S47) -> 146615.7095 | V47: Administração | W47: =B47 -> Controle de Manutenção | X47: ='Plan4 R$ Pessoal'!D8 -> 0.01133786848 | Y47: =X47/X62 -> 0.1136363636 | Z47: =Z62*$Y47 -> 0.01133786848 | AA47: 0.01133786848 | AB47: 0.01133786848 | AC47: 0.01133786848 | AD47: 0.01133786848 | AE47: 0.01133786848 | AF47: 0.01133786848 | AG47: 0.01133786848 | AH47: 0.01133786848 | AI47: 0.01133786848 | AJ47: 0.01133786848 | AK47: 0.01133786848 | AM47: Administração | AN47: =W47 -> Controle de Manutenção | AO47: =AO62*$Y47 -> 0.01133786848 | AP47: 0.01133786848 | AQ47: 0.01133786848 | AR47: 0.01133786848 | AS47: 0.01133786848 | AT47: 0.01133786848 | AU47: 0.01133786848 | AV47: 0.01133786848 | AW47: 0.01133786848 | AX47: 0.01133786848 | AY47: 0.01133786848 | AZ47: 0.01133786848 | BB47: Administração | BC47: =AN47 -> Controle de Manutenção | BD47: =BD$11 -> 478 | BE47: 471 | BF47: 471 | BG47: 471 | BH47: 471 | BI47: 471 | BJ47: 471 | BK47: 471 | BL47: 471 | BM47: 455 | BN47: 455 | BO47: 455 | BP47: 455
B48: ='Plan4 R$ Pessoal'!C9 -> Gerente de Operação | C48: 6981.95 | D48: 0 | E48: 0.3442967869 | F48: 9385.812951 | G48: =G47 -> 624.71 | H48: =(($F48*Z48)+($G48*AO48))*BE48 -> 10691.51091 | I48: 10691.51091 | J48: 10691.51091 | K48: 10691.51091 | L48: 10691.51091 | M48: 10691.51091 | N48: 10691.51091 | O48: 10691.51091 | P48: 10328.31733 | Q48: 10328.31733 | R48: 10328.31733 | S48: 10328.31733 | T48: 126845.3566 | W48: Gerente de Operação | X48: ='Plan4 R$ Pessoal'!D9 -> 0.002267573696 | Y48: =X48/X62 -> 0.02272727273 | Z48: =Z62*$Y48 -> 0.002267573696 | AA48: 0.002267573696 | AB48: 0.002267573696 | AC48: 0.002267573696 | AD48: 0.002267573696 | AE48: 0.002267573696 | AF48: 0.002267573696 | AG48: 0.002267573696 | AH48: 0.002267573696 | AI48: 0.002267573696 | AJ48: 0.002267573696 | AK48: 0.002267573696 | AN48: Gerente de Operação | AO48: =AO62*$Y48 -> 0.002267573696 | AP48: 0.002267573696 | AQ48: 0.002267573696 | AR48: 0.002267573696 | AS48: 0.002267573696 | AT48: 0.002267573696 | AU48: 0.002267573696 | AV48: 0.002267573696 | AW48: 0.002267573696 | AX48: 0.002267573696 | AY48: 0.002267573696 | AZ48: 0.002267573696 | BC48: Gerente de Operação | BD48: =BD$11 -> 478 | BE48: 471 | BF48: 471 | BG48: 471 | BH48: 471 | BI48: 471 | BJ48: 471 | BK48: 471 | BL48: 471 | BM48: 455 | BN48: 455 | BO48: 455 | BP48: 455
B49: ='Plan4 R$ Pessoal'!C10 -> Gerente Administrativo | C49: 6981.95 | D49: 0 | E49: 0.3442967869 | F49: 9385.812951 | G49: 624.71 | H49: =(($F49*Z49)+($G49*AO49))*BE49 -> 10691.51091 | I49: 10691.51091 | J49: 10691.51091 | K49: 10691.51091 | L49: 10691.51091 | M49: 10691.51091 | N49: 10691.51091 | O49: 10691.51091 | P49: 10328.31733 | Q49: 10328.31733 | R49: 10328.31733 | S49: 10328.31733 | T49: 126845.3566 | W49: Gerente Administrativo | X49: ='Plan4 R$ Pessoal'!D10 -> 0.002267573696 | Y49: =X49/X62 -> 0.02272727273 | Z49: =Z62*$Y49 -> 0.002267573696 | AA49: 0.002267573696 | AB49: 0.002267573696 | AC49: 0.002267573696 | AD49: 0.002267573696 | AE49: 0.002267573696 | AF49: 0.002267573696 | AG49: 0.002267573696 | AH49: 0.002267573696 | AI49: 0.002267573696 | AJ49: 0.002267573696 | AK49: 0.002267573696 | AN49: Gerente Administrativo | AO49: =AO62*$Y49 -> 0.002267573696 | AP49: 0.002267573696 | AQ49: 0.002267573696 | AR49: 0.002267573696 | AS49: 0.002267573696 | AT49: 0.002267573696 | AU49: 0.002267573696 | AV49: 0.002267573696 | AW49: 0.002267573696 | AX49: 0.002267573696 | AY49: 0.002267573696 | AZ49: 0.002267573696 | BC49: Gerente Administrativo | BD49: =BD$11 -> 478 | BE49: 471 | BF49: 471 | BG49: 471 | BH49: 471 | BI49: 471 | BJ49: 471 | BK49: 471 | BL49: 471 | BM49: 455 | BN49: 455 | BO49: 455 | BP49: 455
B50: ='Plan4 R$ Pessoal'!C11 -> Assistente Administrativo | C50: 1536.029 | D50: 0 | E50: 0.3442967869 | F50: 2064.878849 | G50: 624.71 | H50: =(($F50*Z50)+($G50*AO50))*BE50 -> 14362.77039 | I50: 14362.77039 | J50: 14362.77039 | K50: 14362.77039 | L50: 14362.77039 | M50: 14362.77039 | N50: 14362.77039 | O50: 14362.77039 | P50: 13874.86311 | Q50: 13874.86311 | R50: 13874.86311 | S50: 13874.86311 | T50: 170401.6155 | W50: Assistente Administrativo | X50: ='Plan4 R$ Pessoal'!D11 -> 0.01133786848 | Y50: =X50/X62 -> 0.1136363636 | Z50: =Z62*$Y50 -> 0.01133786848 | AA50: 0.01133786848 | AB50: 0.01133786848 | AC50: 0.01133786848 | AD50: 0.01133786848 | AE50: 0.01133786848 | AF50: 0.01133786848 | AG50: 0.01133786848 | AH50: 0.01133786848 | AI50: 0.01133786848 | AJ50: 0.01133786848 | AK50: 0.01133786848 | AN50: Assistente Administrativo | AO50: =AO62*$Y50 -> 0.01133786848 | AP50: 0.01133786848 | AQ50: 0.01133786848 | AR50: 0.01133786848 | AS50: 0.01133786848 | AT50: 0.01133786848 | AU50: 0.01133786848 | AV50: 0.01133786848 | AW50: 0.01133786848 | AX50: 0.01133786848 | AY50: 0.01133786848 | AZ50: 0.01133786848 | BC50: Assistente Administrativo | BD50: =BD$11 -> 478 | BE50: 471 | BF50: 471 | BG50: 471 | BH50: 471 | BI50: 471 | BJ50: 471 | BK50: 471 | BL50: 471 | BM50: 455 | BN50: 455 | BO50: 455 | BP50: 455
B51: ='Plan4 R$ Pessoal'!C12 -> Psicólogo | C51: 3630.614 | D51: 0 | E51: 0.3442967869 | F51: 4880.622735 | G51: 624.71 | H51: =(($F51*Z51)+($G51*AO51))*BE51 -> 5879.845166 | I51: 5879.845166 | J51: 5879.845166 | K51: 5879.845166 | L51: 5879.845166 | M51: 5879.845166 | N51: 5879.845166 | O51: 5879.845166 | P51: 5680.105202 | Q51: 5680.105202 | R51: 5680.105202 | S51: 5680.105202 | T51: 69759.18214 | W51: Psicólogo | X51: ='Plan4 R$ Pessoal'!D12 -> 0.002267573696 | Y51: =X51/X62 -> 0.02272727273 | Z51: =Z62*$Y51 -> 0.002267573696 | AA51: 0.002267573696 | AB51: 0.002267573696 | AC51: 0.002267573696 | AD51: 0.002267573696 | AE51: 0.002267573696 | AF51: 0.002267573696 | AG51: 0.002267573696 | AH51: 0.002267573696 | AI51: 0.002267573696 | AJ51: 0.002267573696 | AK51: 0.002267573696 | AN51: Psicólogo | AO51: =AO62*$Y51 -> 0.002267573696 | AP51: 0.002267573696 | AQ51: 0.002267573696 | AR51: 0.002267573696 | AS51: 0.002267573696 | AT51: 0.002267573696 | AU51: 0.002267573696 | AV51: 0.002267573696 | AW51: 0.002267573696 | AX51: 0.002267573696 | AY51: 0.002267573696 | AZ51: 0.002267573696 | BC51: Psicólogo | BD51: =BD$11 -> 478 | BE51: 471 | BF51: 471 | BG51: 471 | BH51: 471 | BI51: 471 | BJ51: 471 | BK51: 471 | BL51: 471 | BM51: 455 | BN51: 455 | BO51: 455 | BP51: 455
B52: ='Plan4 R$ Pessoal'!C13 -> Técnico Seg. do Trabalho | C52: 1815.307 | D52: 0 | E52: 0.3442967869 | F52: 2440.311367 | G52: 624.71 | H52: =(($F52*Z52)+($G52*AO52))*BE52 -> 19641.15733 | I52: 19641.15733 | J52: 19641.15733 | K52: 19641.15733 | L52: 19641.15733 | M52: 19641.15733 | N52: 19641.15733 | O52: 19641.15733 | P52: 18973.9418 | Q52: 18973.9418 | R52: 18973.9418 | S52: 18973.9418 | T52: 233025.0259 | W52: Técnico Seg. do Trabalho | X52: ='Plan4 R$ Pessoal'!D13 -> 0.01360544218 | Y52: =X52/X62 -> 0.1363636364 | Z52: =Z62*$Y52 -> 0.01360544218 | AA52: 0.01360544218 | AB52: 0.01360544218 | AC52: 0.01360544218 | AD52: 0.01360544218 | AE52: 0.01360544218 | AF52: 0.01360544218 | AG52: 0.01360544218 | AH52: 0.01360544218 | AI52: 0.01360544218 | AJ52: 0.01360544218 | AK52: 0.01360544218 | AN52: Técnico Seg. do Trabalho | AO52: =AO62*$Y52 -> 0.01360544218 | AP52: 0.01360544218 | AQ52: 0.01360544218 | AR52: 0.01360544218 | AS52: 0.01360544218 | AT52: 0.01360544218 | AU52: 0.01360544218 | AV52: 0.01360544218 | AW52: 0.01360544218 | AX52: 0.01360544218 | AY52: 0.01360544218 | AZ52: 0.01360544218 | BC52: Técnico Seg. do Trabalho | BD52: =BD$11 -> 478 | BE52: 471 | BF52: 471 | BG52: 471 | BH52: 471 | BI52: 471 | BJ52: 471 | BK52: 471 | BL52: 471 | BM52: 455 | BN52: 455 | BO52: 455 | BP52: 455
B53: ='Plan4 R$ Pessoal'!C14 -> Auxiliar de Compras | C53: 2234.224 | D53: 0 | E53: 0.3442967869 | F53: 3003.460144 | G53: 624.71 | H53: =(($F53*Z53)+($G53*AO53))*BE53 -> 3874.98444 | I53: 3874.98444 | J53: 3874.98444 | K53: 3874.98444 | L53: 3874.98444 | M53: 3874.98444 | N53: 3874.98444 | O53: 3874.98444 | P53: 3743.350149 | Q53: 3743.350149 | R53: 3743.350149 | S53: 3743.350149 | T53: 45973.27612 | W53: Auxiliar de Compras | X53: ='Plan4 R$ Pessoal'!D14 -> 0.002267573696 | Y53: =X53/X62 -> 0.02272727273 | Z53: =Z62*$Y53 -> 0.002267573696 | AA53: 0.002267573696 | AB53: 0.002267573696 | AC53: 0.002267573696 | AD53: 0.002267573696 | AE53: 0.002267573696 | AF53: 0.002267573696 | AG53: 0.002267573696 | AH53: 0.002267573696 | AI53: 0.002267573696 | AJ53: 0.002267573696 | AK53: 0.002267573696 | AN53: Auxiliar de Compras | AO53: =AO62*$Y53 -> 0.002267573696 | AP53: 0.002267573696 | AQ53: 0.002267573696 | AR53: 0.002267573696 | AS53: 0.002267573696 | AT53: 0.002267573696 | AU53: 0.002267573696 | AV53: 0.002267573696 | AW53: 0.002267573696 | AX53: 0.002267573696 | AY53: 0.002267573696 | AZ53: 0.002267573696 | BC53: Auxiliar de Compras | BD53: =BD$11 -> 478 | BE53: 471 | BF53: 471 | BG53: 471 | BH53: 471 | BI53: 471 | BJ53: 471 | BK53: 471 | BL53: 471 | BM53: 455 | BN53: 455 | BO53: 455 | BP53: 455
B54: ='Plan4 R$ Pessoal'!C15 -> Assistente Financeiro | C54: 2234.224 | D54: 0 | E54: 0.3442967869 | F54: 3003.460144 | G54: 624.71 | H54: =(($F54*Z54)+($G54*AO54))*BE54 -> 7749.96888 | I54: 7749.96888 | J54: 7749.96888 | K54: 7749.96888 | L54: 7749.96888 | M54: 7749.96888 | N54: 7749.96888 | O54: 7749.96888 | P54: 7486.700298 | Q54: 7486.700298 | R54: 7486.700298 | S54: 7486.700298 | T54: 91946.55223 | W54: Assistente Financeiro | X54: ='Plan4 R$ Pessoal'!D15 -> 0.004535147392 | Y54: =X54/X62 -> 0.04545454545 | Z54: =Z62*$Y54 -> 0.004535147392 | AA54: 0.004535147392 | AB54: 0.004535147392 | AC54: 0.004535147392 | AD54: 0.004535147392 | AE54: 0.004535147392 | AF54: 0.004535147392 | AG54: 0.004535147392 | AH54: 0.004535147392 | AI54: 0.004535147392 | AJ54: 0.004535147392 | AK54: 0.004535147392 | AN54: Assistente Financeiro | AO54: =AO62*$Y54 -> 0.004535147392 | AP54: 0.004535147392 | AQ54: 0.004535147392 | AR54: 0.004535147392 | AS54: 0.004535147392 | AT54: 0.004535147392 | AU54: 0.004535147392 | AV54: 0.004535147392 | AW54: 0.004535147392 | AX54: 0.004535147392 | AY54: 0.004535147392 | AZ54: 0.004535147392 | BC54: Assistente Financeiro | BD54: =BD$11 -> 478 | BE54: 471 | BF54: 471 | BG54: 471 | BH54: 471 | BI54: 471 | BJ54: 471 | BK54: 471 | BL54: 471 | BM54: 455 | BN54: 455 | BO54: 455 | BP54: 455
B55: ='Plan4 R$ Pessoal'!C16 -> Auxiliar de CPD | C55: 2234.224 | D55: 0 | E55: 0.3442967869 | F55: 3003.460144 | G55: 624.71 | H55: =(($F55*Z55)+($G55*AO55))*BE55 -> 11624.95332 | I55: 11624.95332 | J55: 11624.95332 | K55: 11624.95332 | L55: 11624.95332 | M55: 11624.95332 | N55: 11624.95332 | O55: 11624.95332 | P55: 11230.05045 | Q55: 11230.05045 | R55: 11230.05045 | S55: 11230.05045 | T55: 137919.8283 | W55: Auxiliar de CPD | X55: ='Plan4 R$ Pessoal'!D16 -> 0.006802721088 | Y55: =X55/X62 -> 0.06818181818 | Z55: =Z62*$Y55 -> 0.006802721088 | AA55: 0.006802721088 | AB55: 0.006802721088 | AC55: 0.006802721088 | AD55: 0.006802721088 | AE55: 0.006802721088 | AF55: 0.006802721088 | AG55: 0.006802721088 | AH55: 0.006802721088 | AI55: 0.006802721088 | AJ55: 0.006802721088 | AK55: 0.006802721088 | AN55: Auxiliar de CPD | AO55: =AO62*$Y55 -> 0.006802721088 | AP55: 0.006802721088 | AQ55: 0.006802721088 | AR55: 0.006802721088 | AS55: 0.006802721088 | AT55: 0.006802721088 | AU55: 0.006802721088 | AV55: 0.006802721088 | AW55: 0.006802721088 | AX55: 0.006802721088 | AY55: 0.006802721088 | AZ55: 0.006802721088 | BC55: Auxiliar de CPD | BD55: =BD$11 -> 478 | BE55: 471 | BF55: 471 | BG55: 471 | BH55: 471 | BI55: 471 | BJ55: 471 | BK55: 471 | BL55: 471 | BM55: 455 | BN55: 455 | BO55: 455 | BP55: 455
